Workbook

Sheet Cover

Sheet Output
D2: Live asset number | E2: 3
D4: Real
D6: Tariff Class 1 & 2 - $ | AQ6: Tariff Class 3 - $ / Component | BK6: Tariff Class 4 - $ / Component | CE6: Tariff Class 5 - $ / Component
E8: Capital | L8: Opex | R8: Total | Y8: Smoothed
E9: =REG_Timing!$K$4 -> 2015 | F9: =REG_Timing!$L$4 -> 2016 | G9: =REG_Timing!$M$4 -> 2017 | H9: =REG_Timing!$N$4 -> 2018 | I9: =REG_Timing!$O$4 -> 2019 | L9: =REG_Timing!$K$4 -> 2015 | M9: =REG_Timing!$L$4 -> 2016 | N9: =REG_Timing!$M$4 -> 2017 | O9: =REG_Timing!$N$4 -> 2018 | P9: =REG_Timing!$O$4 -> 2019 | R9: =REG_Timing!$K$4 -> 2015 | S9: =REG_Timing!$L$4 -> 2016 | T9: =REG_Timing!$M$4 -> 2017 | U9: =REG_Timing!$N$4 -> 2018 | V9: =REG_Timing!$O$4 -> 2019 | Y9: Capital | AE9: Opex | AK9: Total | AR9: Capital Recovery | AX9: Maintenance | BD9: Total Tariff | BL9: Tax Recovery | BR9: Maintenance | BX9: Total Tariff | CF9: RAB
D10: =INDEX(List_RABAssets,E2) -> 4 x 20 W Fluorescent | E10: ='TC1&2'!K1796-L10 -> 0 | F10: ='TC1&2'!L1796-M10 -> 0 | G10: ='TC1&2'!M1796-N10 -> 0 | H10: ='TC1&2'!N1796-O10 -> 0 | I10: ='TC1&2'!O1796-P10 -> 0 | L10: ='TC1&2'!K1797 -> 64.68699971 | M10: ='TC1&2'!L1797 -> 64.68699971 | N10: ='TC1&2'!M1797 -> 64.68699971 | O10: ='TC1&2'!N1797 -> 64.68699971 | P10: ='TC1&2'!O1797 -> 64.68699971 | R10: ='TC1&2'!Q1797 -> 0 | S10: ='TC1&2'!R1797 -> 0 | T10: ='TC1&2'!S1797 -> 0 | U10: ='TC1&2'!T1797 -> 0 | V10: ='TC1&2'!U1797 -> 0 | Y10: =REG_Timing!$K$4 -> 2015 | Z10: =REG_Timing!$L$4 -> 2016 | AA10: =REG_Timing!$M$4 -> 2017 | AB10: =REG_Timing!$N$4 -> 2018 | AC10: =REG_Timing!$O$4 -> 2019 | AE10: =REG_Timing!$K$4 -> 2015 | AF10: =REG_Timing!$L$4 -> 2016 | AG10: =REG_Timing!$M$4 -> 2017 | AH10: =REG_Timing!$N$4 -> 2018 | AI10: =REG_Timing!$O$4 -> 2019 | AK10: =REG_Timing!$K$4 -> 2015 | AL10: =REG_Timing!$L$4 -> 2016 | AM10: =REG_Timing!$M$4 -> 2017 | AN10: =REG_Timing!$N$4 -> 2018 | AO10: =REG_Timing!$O$4 -> 2019 | AR10: =REG_Timing!$K$4 -> 2015 | AS10: =REG_Timing!$L$4 -> 2016 | AT10: =REG_Timing!$M$4 -> 2017 | AU10: =REG_Timing!$N$4 -> 2018 | AV10: =REG_Timing!$O$4 -> 2019 | AX10: =REG_Timing!$K$4 -> 2015 | AY10: =REG_Timing!$L$4 -> 2016 | AZ10: =REG_Timing!$M$4 -> 2017 | BA10: =REG_Timing!$N$4 -> 2018 | BB10: =REG_Timing!$O$4 -> 2019 | BD10: =REG_Timing!$J$4 -> 2014 | BE10: =REG_Timing!$K$4 -> 2015 | BF10: =REG_Timing!$L$4 -> 2016 | BG10: =REG_Timing!$M$4 -> 2017 | BH10: =REG_Timing!$N$4 -> 2018 | BI10: =REG_Timing!$O$4 -> 2019 | BL10: =REG_Timing!$K$4 -> 2015 | BM10: =REG_Timing!$L$4 -> 2016 | BN10: =REG_Timing!$M$4 -> 2017 | BO10: =REG_Timing!$N$4 -> 2018 | BP10: =REG_Timing!$O$4 -> 2019 | BR10: =REG_Timing!$K$4 -> 2015 | BS10: =REG_Timing!$L$4 -> 2016 | BT10: =REG_Timing!$M$4 -> 2017 | BU10: =REG_Timing!$N$4 -> 2018 | BV10: =REG_Timing!$O$4 -> 2019 | BX10: =REG_Timing!$J$4 -> 2014 | BY10: =REG_Timing!$K$4 -> 2015 | BZ10: =REG_Timing!$L$4 -> 2016 | CA10: =REG_Timing!$M$4 -> 2017 | CB10: =REG_Timing!$N$4 -> 2018 | CC10: =REG_Timing!$O$4 -> 2019 | CF10: =REG_Timing!$K$4 -> 2015 | CG10: =REG_Timing!$L$4 -> 2016 | CH10: =REG_Timing!$M$4 -> 2017 | CI10: =REG_Timing!$N$4 -> 2018 | CJ10: =REG_Timing!$O$4 -> 2019 | CL10: Capital Recovery | CM10: ='TC5'!K3 -> 1 | CN10: ='TC5'!L3 -> 2 | CO10: ='TC5'!M3 -> 3 | CP10: ='TC5'!N3 -> 4 | CQ10: ='TC5'!O3 -> 5 | CR10: ='TC5'!P3 -> 6 | CS10: ='TC5'!Q3 -> 7 | CT10: ='TC5'!R3 -> 8 | CU10: ='TC5'!S3 -> 9 | CV10: ='TC5'!T3 -> 10 | CW10: ='TC5'!U3 -> 11 | CX10: ='TC5'!V3 -> 12 | CY10: ='TC5'!W3 -> 13 | CZ10: ='TC5'!X3 -> 14 | DA10: ='TC5'!Y3 -> 15 | DB10: ='TC5'!Z3 -> 16 | DC10: ='TC5'!AA3 -> 17 | DD10: ='TC5'!AB3 -> 18 | DE10: ='TC5'!AC3 -> 19 | DF10: ='TC5'!AD3 -> 20 | DG10: ='TC5'!AE3 -> 21 | DH10: ='TC5'!AF3 -> 22 | DI10: ='TC5'!AG3 -> 23 | DJ10: ='TC5'!AH3 -> 24 | DK10: ='TC5'!AI3 -> 25 | DL10: ='TC5'!AJ3 -> 26 | DM10: ='TC5'!AK3 -> 27 | DN10: ='TC5'!AL3 -> 28 | DO10: ='TC5'!AM3 -> 29 | DP10: ='TC5'!AN3 -> 30 | DQ10: ='TC5'!AO3 -> 31 | DR10: ='TC5'!AP3 -> 32 | DS10: ='TC5'!AQ3 -> 33 | DT10: ='TC5'!AR3 -> 34 | DU10: ='TC5'!AS3 -> 35 | DV10: ='TC5'!AT3 -> 36 | DW10: ='TC5'!AU3 -> 37 | DX10: ='TC5'!AV3 -> 38 | DY10: ='TC5'!AW3 -> 39 | DZ10: ='TC5'!AX3 -> 40 | EA10: ='TC5'!AY3 -> 41 | EB10: ='TC5'!AZ3 -> 42 | EC10: ='TC5'!BA3 -> 43 | ED10: ='TC5'!BB3 -> 44 | EE10: ='TC5'!BC3 -> 45 | EF10: ='TC5'!BD3 -> 46 | EG10: ='TC5'!BE3 -> 47 | EH10: ='TC5'!BF3 -> 48 | EI10: ='TC5'!BG3 -> 49 | EJ10: ='TC5'!BH3 -> 50 | EL10: Tax Recovery | EM10: =CM10 -> 1 | EN10: =CN10 -> 2 | EO10: 3 | EP10: 4 | EQ10: 5 | ER10: 6 | ES10: 7 | ET10: 8 | EU10: 9 | EV10: 10 | EW10: 11 | EX10: 12 | EY10: 13 | EZ10: 14 | FA10: 15 | FB10: 16 | FC10: 17 | FD10: 18 | FE10: 19 | FF10: 20 | FG10: 21 | FH10: 22 | FI10: 23 | FJ10: 24 | FK10: 25 | FL10: 26 | FM10: 27 | FN10: 28 | FO10: 29 | FP10: 30 | FQ10: 31 | FR10: 32 | FS10: 33 | FT10: 34 | FU10: 35 | FV10: 36 | FW10: 37 | FX10: 38 | FY10: 39 | FZ10: 40 | GA10: 41 | GB10: 42 | GC10: 43 | GD10: 44 | GE10: 45 | GF10: 46 | GG10: 47 | GH10: 48 | GI10: 49 | GJ10: 50
B11: =IF(AND(D11="Spare",AQ11="Spare"),TRUE,0) -> 0 | C11: 1 | D11: 1 x 20 W Fluorescent | E11: 0.8267334256 | F11: 0.8009821177 | G11: 0.7752308099 | H11: 0.749479502 | I11: 0.7237281942 | K11: 1 | L11: 54.92699971 | M11: 54.92699971 | N11: 54.92699971 | O11: 54.92699971 | P11: 54.92699971 | R11: =E11+L11 -> 55.75373313 | S11: =F11+M11 -> 55.72798183 | T11: =G11+N11 -> 55.70223052 | U11: =H11+O11 -> 55.67647921 | V11: =I11+P11 -> 55.6507279 | X11: =D11 -> 1 x 20 W Fluorescent | Y11: ='Tariff Smoothing - real'!N11 -> 0.009090909091 | Z11: ='Tariff Smoothing - real'!O11 -> 0.6127185845 | AA11: ='Tariff Smoothing - real'!P11 -> 0.6127185845 | AB11: ='Tariff Smoothing - real'!Q11 -> 0.6127185845 | AC11: ='Tariff Smoothing - real'!R11 -> 0.6127185845 | AE11: ='Tariff Smoothing - real'!AE11 -> 40.30909091 | AF11: ='Tariff Smoothing - real'!AF11 -> 44.02711502 | AG11: ='Tariff Smoothing - real'!AG11 -> 44.02711502 | AH11: ='Tariff Smoothing - real'!AH11 -> 44.02711502 | AI11: ='Tariff Smoothing - real'!AI11 -> 44.02711502 | AK11: =Y11+AE11 -> 40.31818182 | AL11: =Z11+AF11 -> 44.63983361 | AM11: =AA11+AG11 -> 44.63983361 | AN11: =AB11+AH11 -> 44.63983361 | AO11: =AC11+AI11 -> 44.63983361 | AQ11: =Annuity!C24 -> 2x14W Energy Efficient Fluro - STD | AR11: ='TC3'!K20+'TC3'!K177 -> 50.75186911 | AS11: ='TC3'!L20+'TC3'!L177 -> 50.91427509 | AT11: ='TC3'!M20+'TC3'!M177 -> 51.12811504 | AU11: ='TC3'!N20+'TC3'!N177 -> 51.34285313 | AV11: ='TC3'!O20+'TC3'!O177 -> 51.54822454 | AX11: ='TC3'!K335 -> 34.99568306 | AY11: ='TC3'!L335 -> 34.67582251 | AZ11: ='TC3'!M335 -> 34.39529511 | BA11: ='TC3'!N335 -> 34.11703717 | BB11: ='TC3'!O335 -> 33.83386576 | BD11: =BD169 -> 94.37827496 | BE11: =AR11+AX11 -> 85.74755216 | BF11: =AS11+AY11 -> 85.5900976 | BG11: =AT11+AZ11 -> 85.52341015 | BH11: =AU11+BA11 -> 85.4598903 | BI11: =AV11+BB11 -> 85.3820903 | BK11: =AQ11 -> 2x14W Energy Efficient Fluro - STD | BL11: ='TC4'!L17 -> 8.200105211 | BM11: ='TC4'!M17 -> 8.226345548 | BN11: ='TC4'!N17 -> 8.260896199 | BO11: ='TC4'!O17 -> 8.295591964 | BP11: ='TC4'!P17 -> 8.328774331 | BR11: =AX11 -> 34.99568306 | BS11: =AY11 -> 34.67582251 | BT11: =AZ11 -> 34.39529511 | BU11: =BA11 -> 34.11703717 | BV11: =BB11 -> 33.83386576 | BX11: =BX169 -> 59.02337159 | BY11: =BL11+BR11 -> 43.19578827 | BZ11: =BM11+BS11 -> 42.90216806 | CA11: =BN11+BT11 -> 42.65619131 | CB11: =BO11+BU11 -> 42.41262914 | CC11: =BP11+BV11 -> 42.1626401 | CE11: =D11 -> 1 x 20 W Fluorescent | CF11: ='TC5'!E632 -> 6.334219147 | CG11: ='TC5'!F632 -> 5.897376447 | CH11: ='TC5'!G632 -> 5.460533747 | CI11: ='TC5'!H632 -> 5.023691048 | CJ11: ='TC5'!I632 -> 4.586848348 | CL11: =Output!BK11 -> 2x14W Energy Efficient Fluro - STD | CM11: ='TC5'!K167 -> 460.1670434 | CN11: ='TC5'!L167 -> 416.4552547 | CO11: ='TC5'!M167 -> 375.7829949 | CP11: ='TC5'!N167 -> 337.9389084 | CQ11: ='TC5'!O167 -> 302.7333492 | CR11: ='TC5'!P167 -> 270.1128387 | CS11: ='TC5'!Q167 -> 239.8875637 | CT11: ='TC5'!R167 -> 211.8816486 | CU11: ='TC5'!S167 -> 185.9321318 | CV11: ='TC5'!T167 -> 161.8880177 | CW11: ='TC5'!U167 -> 139.6093975 | CX11: ='TC5'!V167 -> 118.966636 | CY11: ='TC5'!W167 -> 99.83961641 | CZ11: ='TC5'!X167 -> 82.11704195 | DA11: ='TC5'!Y167 -> 65.69578803 | DB11: ='TC5'!Z167 -> 50.48030221 | DC11: ='TC5'!AA167 -> 36.38204821 | DD11: ='TC5'!AB167 -> 23.31899073 | DE11: ='TC5'!AC167 -> 11.21511811 | DF11: ='TC5'!AD167 -> 0 | DG11: ='TC5'!AE167 -> 0 | DH11: ='TC5'!AF167 -> 0 | DI11: ='TC5'!AG167 -> 0 | DJ11: ='TC5'!AH167 -> 0 | DK11: ='TC5'!AI167 -> 0 | DL11: ='TC5'!AJ167 -> 0 | DM11: ='TC5'!AK167 -> 0 | DN11: ='TC5'!AL167 -> 0 | DO11: ='TC5'!AM167 -> 0 | DP11: ='TC5'!AN167 -> 0 | DQ11: ='TC5'!AO167 -> 0 | DR11: ='TC5'!AP167 -> 0 | DS11: ='TC5'!AQ167 -> 0 | DT11: ='TC5'!AR167 -> 0 | DU11: ='TC5'!AS167 -> 0 | DV11: ='TC5'!AT167 -> 0 | DW11: ='TC5'!AU167 -> 0 | DX11: ='TC5'!AV167 -> 0 | DY11: ='TC5'!AW167 -> 0 | DZ11: ='TC5'!AX167 -> 0 | EA11: ='TC5'!AY167 -> 0 | EB11: ='TC5'!AZ167 -> 0 | EC11: ='TC5'!BA167 -> 0 | ED11: ='TC5'!BB167 -> 0 | EE11: ='TC5'!BC167 -> 0 | EF11: ='TC5'!BD167 -> 0 | EG11: ='TC5'!BE167 -> 0 | EH11: ='TC5'!BF167 -> 0 | EI11: ='TC5'!BG167 -> 0 | EJ11: ='TC5'!BH167 -> 0 | EL11: =CL11 -> 2x14W Energy Efficient Fluro - STD | EM11: ='TC5'!K475 -> 74.3503291 | EN11: ='TC5'!L475 -> 67.28770712 | EO11: ='TC5'!M475 -> 60.71618935 | EP11: ='TC5'!N475 -> 54.60162655 | EQ11: ='TC5'!O475 -> 48.91337714 | ER11: ='TC5'!P475 -> 43.64280045 | ES11: ='TC5'!Q475 -> 38.7592279 | ET11: ='TC5'!R475 -> 34.23424283 | EU11: ='TC5'!S475 -> 30.04151512 | EV11: ='TC5'!T475 -> 26.15664804 | EW11: ='TC5'!U475 -> 22.55703619 | EX11: ='TC5'!V475 -> 19.22173408 | EY11: ='TC5'!W475 -> 16.13133414 | EZ11: ='TC5'!X475 -> 13.26785388 | FA11: ='TC5'!Y475 -> 10.61463121 | FB11: ='TC5'!Z475 -> 8.156227475 | FC11: ='TC5'!AA475 -> 5.878337653 | FD11: ='TC5'!AB475 -> 3.767707097 | FE11: ='TC5'!AC475 -> 1.812054415 | FF11: ='TC5'!AD475 -> 0 | FG11: ='TC5'!AE475 -> 0 | FH11: ='TC5'!AF475 -> 0 | FI11: ='TC5'!AG475 -> 0 | FJ11: ='TC5'!AH475 -> 0 | FK11: ='TC5'!AI475 -> 0 | FL11: ='TC5'!AJ475 -> 0 | FM11: ='TC5'!AK475 -> 0 | FN11: ='TC5'!AL475 -> 0 | FO11: ='TC5'!AM475 -> 0 | FP11: ='TC5'!AN475 -> 0 | FQ11: ='TC5'!AO475 -> 0 | FR11: ='TC5'!AP475 -> 0 | FS11: ='TC5'!AQ475 -> 0 | FT11: ='TC5'!AR475 -> 0 | FU11: ='TC5'!AS475 -> 0 | FV11: ='TC5'!AT475 -> 0 | FW11: ='TC5'!AU475 -> 0 | FX11: ='TC5'!AV475 -> 0 | FY11: ='TC5'!AW475 -> 0 | FZ11: ='TC5'!AX475 -> 0 | GA11: ='TC5'!AY475 -> 0 | GB11: ='TC5'!AZ475 -> 0 | GC11: ='TC5'!BA475 -> 0 | GD11: ='TC5'!BB475 -> 0 | GE11: ='TC5'!BC475 -> 0 | GF11: ='TC5'!BD475 -> 0 | GG11: ='TC5'!BE475 -> 0 | GH11: ='TC5'!BF475 -> 0 | GI11: ='TC5'!BG475 -> 0 | GJ11: ='TC5'!BH475 -> 0
B12: 0 | C12: =C11+1 -> 2 | D12: 2 x 20 W Fluorescent | E12: 0.3246608358 | F12: 0.3246608358 | G12: 0.3246608358 | H12: 0.3246608358 | I12: 0.3246608358 | K12: =K11+1 -> 2 | L12: 58.18033304 | M12: 58.18033304 | N12: 58.18033304 | O12: 58.18033304 | P12: 58.18033304 | R12: =E12+L12 -> 58.50499388 | S12: 58.50499388 | T12: 58.50499388 | U12: 58.50499388 | V12: 58.50499388 | X12: =D12 -> 2 x 20 W Fluorescent | Y12: ='Tariff Smoothing - real'!N12 -> 45.66363636 | Z12: ='Tariff Smoothing - real'!O12 -> 0.2602341296 | AA12: ='Tariff Smoothing - real'!P12 -> 0.2602341296 | AB12: ='Tariff Smoothing - real'!Q12 -> 0.2602341296 | AC12: ='Tariff Smoothing - real'!R12 -> 0.2602341296 | AE12: ='Tariff Smoothing - real'!AE12 -> 0 | AF12: ='Tariff Smoothing - real'!AF12 -> 46.63484677 | AG12: ='Tariff Smoothing - real'!AG12 -> 46.63484677 | AH12: ='Tariff Smoothing - real'!AH12 -> 46.63484677 | AI12: ='Tariff Smoothing - real'!AI12 -> 46.63484677 | AK12: =Y12+AE12 -> 45.66363636 | AL12: 46.8950809 | AM12: 46.8950809 | AN12: 46.8950809 | AO12: 46.8950809 | AQ12: =Annuity!C25 -> 2x24W Energy Efficient Fluro - STD | AR12: ='TC3'!K21+'TC3'!K178 -> 53.82001085 | AS12: ='TC3'!L21+'TC3'!L178 -> 53.99223488 | AT12: ='TC3'!M21+'TC3'!M178 -> 54.21900227 | AU12: ='TC3'!N21+'TC3'!N178 -> 54.44672208 | AV12: ='TC3'!O21+'TC3'!O178 -> 54.66450896 | AX12: ='TC3'!K336 -> 36.50051346 | AY12: ='TC3'!L336 -> 36.16689876 | AZ12: ='TC3'!M336 -> 35.87430855 | BA12: ='TC3'!N336 -> 35.5840854 | BB12: ='TC3'!O336 -> 35.28873749 | BD12: =BD170 -> 97.32636131 | BE12: 90.3205243 | BF12: 90.15913365 | BG12: 90.09331082 | BH12: 90.03080747 | BI12: 89.95324645 | BK12: 2x24W Energy Efficient Fluro - STD | BL12: ='TC4'!L18 -> 8.695832473 | BM12: ='TC4'!M18 -> 8.723659137 | BN12: ='TC4'!N18 -> 8.760298505 | BO12: ='TC4'!O18 -> 8.797091759 | BP12: ='TC4'!P18 -> 8.832280126 | BR12: 36.50051346 | BS12: 36.16689876 | BT12: 35.87430855 | BU12: 35.5840854 | BV12: 35.28873749 | BX12: =BX170 -> 61.15902993 | BY12: 45.19634593 | BZ12: 44.8905579 | CA12: 44.63460706 | CB12: 44.38117716 | CC12: 44.12101761 | CE12: 2 x 20 W Fluorescent | CF12: ='TC5'!E633 -> 5.50751507 | CG12: ='TC5'!F633 -> 5.50751507 | CH12: ='TC5'!G633 -> 5.50751507 | CI12: ='TC5'!H633 -> 5.50751507 | CJ12: ='TC5'!I633 -> 5.50751507 | CL12: =Output!BK12 -> 2x24W Energy Efficient Fluro - STD | CM12: ='TC5'!K168 -> 487.9858753 | CN12: ='TC5'!L168 -> 441.6315442 | CO12: ='TC5'!M168 -> 398.500493 | CP12: ='TC5'!N168 -> 358.3685888 | CQ12: ='TC5'!O168 -> 321.034721 | CR12: ='TC5'!P168 -> 286.4421776 | CS12: ='TC5'!Q168 -> 254.3896709 | CT12: ='TC5'!R168 -> 224.6906927 | CU12: ='TC5'!S168 -> 197.1724299 | CV12: ='TC5'!T168 -> 171.6747584 | CW12: ='TC5'!U168 -> 148.0493117 | CX12: ='TC5'!V168 -> 126.1586175 | CY12: ='TC5'!W168 -> 105.8752975 | CZ12: ='TC5'!X168 -> 87.08132658 | DA12: ='TC5'!Y168 -> 69.66734598 | DB12: ='TC5'!Z168 -> 53.5320267 | DC12: ='TC5'!AA168 -> 38.58148012 | DD12: ='TC5'!AB168 -> 24.7287116 | DE12: ='TC5'!AC168 -> 11.89311426 | DF12: ='TC5'!AD168 -> 0 | DG12: ='TC5'!AE168 -> 0 | DH12: ='TC5'!AF168 -> 0 | DI12: ='TC5'!AG168 -> 0 | DJ12: ='TC5'!AH168 -> 0 | DK12: ='TC5'!AI168 -> 0 | DL12: ='TC5'!AJ168 -> 0 | DM12: ='TC5'!AK168 -> 0 | DN12: ='TC5'!AL168 -> 0 | DO12: ='TC5'!AM168 -> 0 | DP12: ='TC5'!AN168 -> 0 | DQ12: ='TC5'!AO168 -> 0 | DR12: ='TC5'!AP168 -> 0 | DS12: ='TC5'!AQ168 -> 0 | DT12: ='TC5'!AR168 -> 0 | DU12: ='TC5'!AS168 -> 0 | DV12: ='TC5'!AT168 -> 0 | DW12: ='TC5'!AU168 -> 0 | DX12: ='TC5'!AV168 -> 0 | DY12: ='TC5'!AW168 -> 0 | DZ12: ='TC5'!AX168 -> 0 | EA12: ='TC5'!AY168 -> 0 | EB12: ='TC5'!AZ168 -> 0 | EC12: ='TC5'!BA168 -> 0 | ED12: ='TC5'!BB168 -> 0 | EE12: ='TC5'!BC168 -> 0 | EF12: ='TC5'!BD168 -> 0 | EG12: ='TC5'!BE168 -> 0 | EH12: ='TC5'!BF168 -> 0 | EI12: ='TC5'!BG168 -> 0 | EJ12: ='TC5'!BH168 -> 0 | EL12: =CL12 -> 2x24W Energy Efficient Fluro - STD | EM12: ='TC5'!K476 -> 78.84508668 | EN12: ='TC5'!L476 -> 71.35550258 | EO12: ='TC5'!M476 -> 64.3867118 | EP12: ='TC5'!N476 -> 57.90250063 | EQ12: ='TC5'!O476 -> 51.87037512 | ER12: ='TC5'!P476 -> 46.2811722 | ES12: ='TC5'!Q476 -> 41.10236929 | ET12: ='TC5'!R476 -> 36.30383181 | EU12: ='TC5'!S476 -> 31.85763792 | EV12: ='TC5'!T476 -> 27.73791598 | EW12: ='TC5'!U476 -> 23.92069403 | EX12: ='TC5'!V476 -> 20.38376034 | EY12: ='TC5'!W476 -> 17.10653408 | EZ12: ='TC5'!X476 -> 14.06994565 | FA12: ='TC5'!Y476 -> 11.25632567 | FB12: ='TC5'!Z476 -> 8.649302161 | FC12: ='TC5'!AA476 -> 6.233705316 | FD12: ='TC5'!AB476 -> 3.99547919 | FE12: ='TC5'!AC476 -> 1.921599933 | FF12: ='TC5'!AD476 -> 0 | FG12: ='TC5'!AE476 -> 0 | FH12: ='TC5'!AF476 -> 0 | FI12: ='TC5'!AG476 -> 0 | FJ12: ='TC5'!AH476 -> 0 | FK12: ='TC5'!AI476 -> 0 | FL12: ='TC5'!AJ476 -> 0 | FM12: ='TC5'!AK476 -> 0 | FN12: ='TC5'!AL476 -> 0 | FO12: ='TC5'!AM476 -> 0 | FP12: ='TC5'!AN476 -> 0 | FQ12: ='TC5'!AO476 -> 0 | FR12: ='TC5'!AP476 -> 0 | FS12: ='TC5'!AQ476 -> 0 | FT12: ='TC5'!AR476 -> 0 | FU12: ='TC5'!AS476 -> 0 | FV12: ='TC5'!AT476 -> 0 | FW12: ='TC5'!AU476 -> 0 | FX12: ='TC5'!AV476 -> 0 | FY12: ='TC5'!AW476 -> 0 | FZ12: ='TC5'!AX476 -> 0 | GA12: ='TC5'!AY476 -> 0 | GB12: ='TC5'!AZ476 -> 0 | GC12: ='TC5'!BA476 -> 0 | GD12: ='TC5'!BB476 -> 0 | GE12: ='TC5'!BC476 -> 0 | GF12: ='TC5'!BD476 -> 0 | GG12: ='TC5'!BE476 -> 0 | GH12: ='TC5'!BF476 -> 0 | GI12: ='TC5'!BG476 -> 0 | GJ12: ='TC5'!BH476 -> 0
B13: 0 | C13: =C12+1 -> 3 | D13: 4 x 20 W Fluorescent | E13: 0 | F13: 0 | G13: 0 | H13: 0 | I13: 0 | K13: =K12+1 -> 3 | L13: 64.68699971 | M13: 64.68699971 | N13: 64.68699971 | O13: 64.68699971 | P13: 64.68699971 | R13: 64.68699971 | S13: 64.68699971 | T13: 64.68699971 | U13: 64.68699971 | V13: 64.68699971 | X13: 4 x 20 W Fluorescent | Y13: ='Tariff Smoothing - real'!N13 -> 161.2363636 | Z13: ='Tariff Smoothing - real'!O13 -> 0 | AA13: ='Tariff Smoothing - real'!P13 -> 0 | AB13: ='Tariff Smoothing - real'!Q13 -> 0 | AC13: ='Tariff Smoothing - real'!R13 -> 0 | AE13: ='Tariff Smoothing - real'!AE13 -> 0 | AF13: ='Tariff Smoothing - real'!AF13 -> 51.85031026 | AG13: ='Tariff Smoothing - real'!AG13 -> 51.85031026 | AH13: ='Tariff Smoothing - real'!AH13 -> 51.85031026 | AI13: ='Tariff Smoothing - real'!AI13 -> 51.85031026 | AK13: 161.2363636 | AL13: 51.85031026 | AM13: 51.85031026 | AN13: 51.85031026 | AO13: 51.85031026 | AQ13: =Annuity!C26 -> 1x42W Compact Fluorescent - STD | AR13: ='TC3'!K22+'TC3'!K179 -> 43.67027153 | AS13: ='TC3'!L22+'TC3'!L179 -> 43.8100164 | AT13: ='TC3'!M22+'TC3'!M179 -> 43.99401847 | AU13: ='TC3'!N22+'TC3'!N179 -> 44.17879335 | AV13: ='TC3'!O22+'TC3'!O179 -> 44.35550852 | AX13: ='TC3'!K337 -> 35.01218339 | AY13: ='TC3'!L337 -> 34.69217203 | AZ13: ='TC3'!M337 -> 34.41151236 | BA13: ='TC3'!N337 -> 34.13312323 | BB13: ='TC3'!O337 -> 33.84981831 | BD13: 92.0112671 | BE13: 78.68245492 | BF13: 78.50218844 | BG13: 78.40553083 | BH13: 78.31191657 | BI13: 78.20532683 | BK13: 1x42W Compact Fluorescent - STD | BL13: ='TC4'!L19 -> 7.055913949 | BM13: ='TC4'!M19 -> 7.078492874 | BN13: ='TC4'!N19 -> 7.108222544 | BO13: ='TC4'!O19 -> 7.138077079 | BP13: ='TC4'!P19 -> 7.166629387 | BR13: 35.01218339 | BS13: 34.69217203 | BT13: 34.41151236 | BU13: 34.13312323 | BV13: 33.84981831 | BX13: 62.00823994 | BY13: 42.06809734 | BZ13: 41.77066491 | CA13: 41.51973491 | CB13: 41.27120031 | CC13: 41.01644769 | CE13: 4 x 20 W Fluorescent | CF13: ='TC5'!E634 -> 0 | CG13: ='TC5'!F634 -> 0 | CH13: ='TC5'!G634 -> 0 | CI13: ='TC5'!H634 -> 0 | CJ13: ='TC5'!I634 -> 0 | CL13: =Output!BK13 -> 1x42W Compact Fluorescent - STD | CM13: ='TC5'!K169 -> 395.9582196 | CN13: ='TC5'!L169 -> 358.3456998 | CO13: ='TC5'!M169 -> 323.3485921 | CP13: ='TC5'!N169 -> 290.7850321 | CQ13: ='TC5'!O169 -> 260.4918359 | CR13: ='TC5'!P169 -> 232.4229869 | CS13: ='TC5'!Q169 -> 206.4151573 | CT13: ='TC5'!R169 -> 182.317012 | CU13: ='TC5'!S169 -> 159.9883281 | CV13: ='TC5'!T169 -> 139.2991788 | CW13: ='TC5'!U169 -> 120.1291776 | CX13: ='TC5'!V169 -> 102.3667776 | CY13: ='TC5'!W169 -> 85.90862238 | CZ13: ='TC5'!X169 -> 70.65894483 | DA13: ='TC5'!Y169 -> 56.52900971 | DB13: ='TC5'!Z169 -> 43.43659737 | DC13: ='TC5'!AA169 -> 31.30552534 | DD13: ='TC5'!AB169 -> 20.06520499 | DE13: ='TC5'!AC169 -> 9.650230854 | DF13: ='TC5'!AD169 -> 0 | DG13: ='TC5'!AE169 -> 0 | DH13: ='TC5'!AF169 -> 0 | DI13: ='TC5'!AG169 -> 0 | DJ13: ='TC5'!AH169 -> 0 | DK13: ='TC5'!AI169 -> 0 | DL13: ='TC5'!AJ169 -> 0 | DM13: ='TC5'!AK169 -> 0 | DN13: ='TC5'!AL169 -> 0 | DO13: ='TC5'!AM169 -> 0 | DP13: ='TC5'!AN169 -> 0 | DQ13: ='TC5'!AO169 -> 0 | DR13: ='TC5'!AP169 -> 0 | DS13: ='TC5'!AQ169 -> 0 | DT13: ='TC5'!AR169 -> 0 | DU13: ='TC5'!AS169 -> 0 | DV13: ='TC5'!AT169 -> 0 | DW13: ='TC5'!AU169 -> 0 | DX13: ='TC5'!AV169 -> 0 | DY13: ='TC5'!AW169 -> 0 | DZ13: ='TC5'!AX169 -> 0 | EA13: ='TC5'!AY169 -> 0 | EB13: ='TC5'!AZ169 -> 0 | EC13: ='TC5'!BA169 -> 0 | ED13: ='TC5'!BB169 -> 0 | EE13: ='TC5'!BC169 -> 0 | EF13: ='TC5'!BD169 -> 0 | EG13: ='TC5'!BE169 -> 0 | EH13: ='TC5'!BF169 -> 0 | EI13: ='TC5'!BG169 -> 0 | EJ13: ='TC5'!BH169 -> 0 | EL13: =CL13 -> 1x42W Compact Fluorescent - STD | EM13: ='TC5'!K477 -> 63.9759504 | EN13: ='TC5'!L477 -> 57.89880239 | EO13: ='TC5'!M477 -> 52.24423301 | EP13: ='TC5'!N477 -> 46.98285796 | EQ13: ='TC5'!O477 -> 42.08831121 | ER13: ='TC5'!P477 -> 37.55315774 | ES13: ='TC5'!Q477 -> 33.35100828 | ET13: ='TC5'!R477 -> 29.45741125 | EU13: ='TC5'!S477 -> 25.84971048 | EV13: ='TC5'!T477 -> 22.50691338 | EW13: ='TC5'!U477 -> 19.40956881 | EX13: ='TC5'!V477 -> 16.53965383 | EY13: ='TC5'!W477 -> 13.88046893 | EZ13: ='TC5'!X477 -> 11.41654075 | FA13: ='TC5'!Y477 -> 9.13353213 | FB13: ='TC5'!Z477 -> 7.018158637 | FC13: ='TC5'!AA477 -> 5.058111277 | FD13: ='TC5'!AB477 -> 3.241984875 | FE13: ='TC5'!AC477 -> 1.559211704 | FF13: ='TC5'!AD477 -> 0 | FG13: ='TC5'!AE477 -> 0 | FH13: ='TC5'!AF477 -> 0 | FI13: ='TC5'!AG477 -> 0 | FJ13: ='TC5'!AH477 -> 0 | FK13: ='TC5'!AI477 -> 0 | FL13: ='TC5'!AJ477 -> 0 | FM13: ='TC5'!AK477 -> 0 | FN13: ='TC5'!AL477 -> 0 | FO13: ='TC5'!AM477 -> 0 | FP13: ='TC5'!AN477 -> 0 | FQ13: ='TC5'!AO477 -> 0 | FR13: ='TC5'!AP477 -> 0 | FS13: ='TC5'!AQ477 -> 0 | FT13: ='TC5'!AR477 -> 0 | FU13: ='TC5'!AS477 -> 0 | FV13: ='TC5'!AT477 -> 0 | FW13: ='TC5'!AU477 -> 0 | FX13: ='TC5'!AV477 -> 0 | FY13: ='TC5'!AW477 -> 0 | FZ13: ='TC5'!AX477 -> 0 | GA13: ='TC5'!AY477 -> 0 | GB13: ='TC5'!AZ477 -> 0 | GC13: ='TC5'!BA477 -> 0 | GD13: ='TC5'!BB477 -> 0 | GE13: ='TC5'!BC477 -> 0 | GF13: ='TC5'!BD477 -> 0 | GG13: ='TC5'!BE477 -> 0 | GH13: ='TC5'!BF477 -> 0 | GI13: ='TC5'!BG477 -> 0 | GJ13: ='TC5'!BH477 -> 0
B14: 0 | C14: 4 | D14: 2 x 14 W Fluorescent | E14: 0.4885574646 | F14: 0.3480773179 | G14: 0.2110235163 | H14: 0.07731249028 | I14: -0.05313729118 | K14: 4 | L14: 53.40699971 | M14: 53.40699971 | N14: 53.40699971 | O14: 53.40699971 | P14: 53.40699971 | R14: 53.89555717 | S14: 53.75507703 | T14: 53.61802323 | U14: 53.4843122 | V14: 53.35386242 | X14: 2 x 14 W Fluorescent | Y14: ='Tariff Smoothing - real'!N14 -> 20.64545455 | Z14: ='Tariff Smoothing - real'!O14 -> 0.1254412674 | AA14: ='Tariff Smoothing - real'!P14 -> 0.1254412674 | AB14: ='Tariff Smoothing - real'!Q14 -> 0.1254412674 | AC14: ='Tariff Smoothing - real'!R14 -> 0.1254412674 | AE14: ='Tariff Smoothing - real'!AE14 -> 44.85454545 | AF14: ='Tariff Smoothing - real'!AF14 -> 42.80874855 | AG14: ='Tariff Smoothing - real'!AG14 -> 42.80874855 | AH14: ='Tariff Smoothing - real'!AH14 -> 42.80874855 | AI14: ='Tariff Smoothing - real'!AI14 -> 42.80874855 | AK14: 65.5 | AL14: 42.93418982 | AM14: 42.93418982 | AN14: 42.93418982 | AO14: 42.93418982 | AQ14: =Annuity!C27 -> 50W Mercury - STANDARD | AR14: ='TC3'!K23+'TC3'!K180 -> 38.93009941 | AS14: ='TC3'!L23+'TC3'!L180 -> 39.05467573 | AT14: ='TC3'!M23+'TC3'!M180 -> 39.21870537 | AU14: ='TC3'!N23+'TC3'!N180 -> 39.38342393 | AV14: ='TC3'!O23+'TC3'!O180 -> 39.54095763 | AX14: ='TC3'!K338 -> 34.02216339 | AY14: ='TC3'!L338 -> 33.71120082 | AZ14: ='TC3'!M338 -> 33.4384772 | BA14: ='TC3'!N338 -> 33.16795992 | BB14: ='TC3'!O338 -> 32.89266585 | BD14: 77.97524095 | BE14: 72.9522628 | BF14: 72.76587655 | BG14: 72.65718257 | BH14: 72.55138385 | BI14: 72.43362348 | BK14: 50W Mercury - STANDARD | BL14: ='TC4'!L20 -> 6.290032598 | BM14: ='TC4'!M20 -> 6.310160702 | BN14: ='TC4'!N20 -> 6.336663377 | BO14: ='TC4'!O20 -> 6.363277363 | BP14: ='TC4'!P20 -> 6.388730473 | BR14: 34.02216339 | BS14: 33.71120082 | BT14: 33.4384772 | BU14: 33.16795992 | BV14: 32.89266585 | BX14: 51.35340136 | BY14: 40.31219599 | BZ14: 40.02136152 | CA14: 39.77514058 | CB14: 39.53123729 | CC14: 39.28139633 | CE14: 2 x 14 W Fluorescent | CF14: ='TC5'!E635 -> 0 | CG14: ='TC5'!F635 -> 0 | CH14: ='TC5'!G635 -> 0 | CI14: ='TC5'!H635 -> 0 | CJ14: ='TC5'!I635 -> 0 | CL14: =Output!BK14 -> 50W Mercury - STANDARD | CM14: ='TC5'!K170 -> 352.9790934 | CN14: ='TC5'!L170 -> 319.4492095 | CO14: ='TC5'!M170 -> 288.2508488 | CP14: ='TC5'!N170 -> 259.2218874 | CQ14: ='TC5'!O170 -> 232.216854 | CR14: ='TC5'!P170 -> 207.194727 | CS14: ='TC5'!Q170 -> 184.0099068 | CT14: ='TC5'!R170 -> 162.527485 | CU14: ='TC5'!S170 -> 142.6224591 | CV14: ='TC5'!T170 -> 124.1790053 | CW14: ='TC5'!U170 -> 107.0898042 | CX14: ='TC5'!V170 -> 91.25541675 | CY14: ='TC5'!W170 -> 76.5837054 | CZ14: ='TC5'!X170 -> 62.98929799 | DA14: ='TC5'!Y170 -> 50.39309101 | DB14: ='TC5'!Z170 -> 38.72178932 | DC14: ='TC5'!AA170 -> 27.90747964 | DD14: ='TC5'!AB170 -> 17.88723536 | DE14: ='TC5'!AC170 -> 8.602750414 | DF14: ='TC5'!AD170 -> 0 | DG14: ='TC5'!AE170 -> 0 | DH14: ='TC5'!AF170 -> 0 | DI14: ='TC5'!AG170 -> 0 | DJ14: ='TC5'!AH170 -> 0 | DK14: ='TC5'!AI170 -> 0 | DL14: ='TC5'!AJ170 -> 0 | DM14: ='TC5'!AK170 -> 0 | DN14: ='TC5'!AL170 -> 0 | DO14: ='TC5'!AM170 -> 0 | DP14: ='TC5'!AN170 -> 0 | DQ14: ='TC5'!AO170 -> 0 | DR14: ='TC5'!AP170 -> 0 | DS14: ='TC5'!AQ170 -> 0 | DT14: ='TC5'!AR170 -> 0 | DU14: ='TC5'!AS170 -> 0 | DV14: ='TC5'!AT170 -> 0 | DW14: ='TC5'!AU170 -> 0 | DX14: ='TC5'!AV170 -> 0 | DY14: ='TC5'!AW170 -> 0 | DZ14: ='TC5'!AX170 -> 0 | EA14: ='TC5'!AY170 -> 0 | EB14: ='TC5'!AZ170 -> 0 | EC14: ='TC5'!BA170 -> 0 | ED14: ='TC5'!BB170 -> 0 | EE14: ='TC5'!BC170 -> 0 | EF14: ='TC5'!BD170 -> 0 | EG14: ='TC5'!BE170 -> 0 | EH14: ='TC5'!BF170 -> 0 | EI14: ='TC5'!BG170 -> 0 | EJ14: ='TC5'!BH170 -> 0 | EL14: 50W Mercury - STANDARD | EM14: ='TC5'!K478 -> 57.03170651 | EN14: ='TC5'!L478 -> 51.6142001 | EO14: ='TC5'!M478 -> 46.57340368 | EP14: ='TC5'!N478 -> 41.88312248 | EQ14: ='TC5'!O478 -> 37.51985234 | ER14: ='TC5'!P478 -> 33.47696529 | ES14: ='TC5'!Q478 -> 29.73093646 | ET14: ='TC5'!R478 -> 26.25996835 | EU14: ='TC5'!S478 -> 23.04386402 | EV14: ='TC5'!T478 -> 20.06390949 | EW14: ='TC5'!U478 -> 17.30276494 | EX14: ='TC5'!V478 -> 14.74436374 | EY14: ='TC5'!W478 -> 12.37381899 | EZ14: ='TC5'!X478 -> 10.17733691 | FA14: ='TC5'!Y478 -> 8.142136546 | FB14: ='TC5'!Z478 -> 6.256375421 | FC14: ='TC5'!AA478 -> 4.509080616 | FD14: ='TC5'!AB478 -> 2.890084926 | FE14: ='TC5'!AC478 -> 1.389967695 | FF14: ='TC5'!AD478 -> 0 | FG14: ='TC5'!AE478 -> 0 | FH14: ='TC5'!AF478 -> 0 | FI14: ='TC5'!AG478 -> 0 | FJ14: ='TC5'!AH478 -> 0 | FK14: ='TC5'!AI478 -> 0 | FL14: ='TC5'!AJ478 -> 0 | FM14: ='TC5'!AK478 -> 0 | FN14: ='TC5'!AL478 -> 0 | FO14: ='TC5'!AM478 -> 0 | FP14: ='TC5'!AN478 -> 0 | FQ14: ='TC5'!AO478 -> 0 | FR14: ='TC5'!AP478 -> 0 | FS14: ='TC5'!AQ478 -> 0 | FT14: ='TC5'!AR478 -> 0 | FU14: ='TC5'!AS478 -> 0 | FV14: ='TC5'!AT478 -> 0 | FW14: ='TC5'!AU478 -> 0 | FX14: ='TC5'!AV478 -> 0 | FY14: ='TC5'!AW478 -> 0 | FZ14: ='TC5'!AX478 -> 0 | GA14: ='TC5'!AY478 -> 0 | GB14: ='TC5'!AZ478 -> 0 | GC14: ='TC5'!BA478 -> 0 | GD14: ='TC5'!BB478 -> 0 | GE14: ='TC5'!BC478 -> 0 | GF14: ='TC5'!BD478 -> 0 | GG14: ='TC5'!BE478 -> 0 | GH14: ='TC5'!BF478 -> 0 | GI14: ='TC5'!BG478 -> 0 | GJ14: ='TC5'!BH478 -> 0
B15: 0 | C15: 5 | D15: 2 x 24 W Fluorescent | E15: 0 | F15: 0 | G15: 0 | H15: 0 | I15: 0 | K15: 5 | L15: 54.92699971 | M15: 54.92699971 | N15: 54.92699971 | O15: 54.92699971 | P15: 54.92699971 | R15: 54.92699971 | S15: 54.92699971 | T15: 54.92699971 | U15: 54.92699971 | V15: 54.92699971 | X15: 2 x 24 W Fluorescent | Y15: ='Tariff Smoothing - real'!N15 -> -0.02727272727 | Z15: ='Tariff Smoothing - real'!O15 -> 0 | AA15: ='Tariff Smoothing - real'!P15 -> 0 | AB15: ='Tariff Smoothing - real'!Q15 -> 0 | AC15: ='Tariff Smoothing - real'!R15 -> 0 | AE15: ='Tariff Smoothing - real'!AE15 -> 45.66363636 | AF15: ='Tariff Smoothing - real'!AF15 -> 44.02711502 | AG15: ='Tariff Smoothing - real'!AG15 -> 44.02711502 | AH15: ='Tariff Smoothing - real'!AH15 -> 44.02711502 | AI15: ='Tariff Smoothing - real'!AI15 -> 44.02711502 | AK15: 45.63636364 | AL15: 44.02711502 | AM15: 44.02711502 | AN15: 44.02711502 | AO15: 44.02711502 | AQ15: =Annuity!C28 -> 80W Mercury - STANDARD | AR15: ='TC3'!K24+'TC3'!K181 -> 35.10706656 | AS15: ='TC3'!L24+'TC3'!L181 -> 35.21940917 | AT15: ='TC3'!M24+'TC3'!M181 -> 35.36733069 | AU15: ='TC3'!N24+'TC3'!N181 -> 35.51587348 | AV15: ='TC3'!O24+'TC3'!O181 -> 35.65793698 | AX15: ='TC3'!K339 -> 34.56667439 | AY15: ='TC3'!L339 -> 34.25073499 | AZ15: ='TC3'!M339 -> 33.97364654 | BA15: ='TC3'!N339 -> 33.69879974 | BB15: ='TC3'!O339 -> 33.4190997 | BD15: 72.43187819 | BE15: 69.67374095 | BF15: 69.47014416 | BG15: 69.34097723 | BH15: 69.21467322 | BI15: 69.07703668 | BK15: 80W Mercury - STANDARD | BL15: ='TC4'!L21 -> 5.67233571 | BM15: ='TC4'!M21 -> 5.690487184 | BN15: ='TC4'!N21 -> 5.71438723 | BO15: ='TC4'!O21 -> 5.738387657 | BP15: ='TC4'!P21 -> 5.761341207 | BR15: 34.56667439 | BS15: 34.25073499 | BT15: 33.97364654 | BU15: 33.69879974 | BV15: 33.4190997 | BX15: 47.8210976 | BY15: 40.2390101 | BZ15: 39.94122217 | CA15: 39.68803377 | CB15: 39.4371874 | CC15: 39.18044091 | CE15: 2 x 24 W Fluorescent | CF15: ='TC5'!E636 -> 0 | CG15: ='TC5'!F636 -> 0 | CH15: ='TC5'!G636 -> 0 | CI15: ='TC5'!H636 -> 0 | CJ15: ='TC5'!I636 -> 0 | CL15: =Output!BK15 -> 80W Mercury - STANDARD | CM15: ='TC5'!K171 -> 318.3156661 | CN15: ='TC5'!L171 -> 288.0785004 | CO15: ='TC5'!M171 -> 259.9438966 | CP15: ='TC5'!N171 -> 233.7656516 | CQ15: ='TC5'!O171 -> 209.4125798 | CR15: ='TC5'!P171 -> 186.847688 | CS15: ='TC5'!Q171 -> 165.939675 | CT15: ='TC5'!R171 -> 146.5668806 | CU15: ='TC5'!S171 -> 128.6165779 | CV15: ='TC5'!T171 -> 111.9843173 | CW15: ='TC5'!U171 -> 96.57331834 | CX15: ='TC5'!V171 -> 82.29390724 | CY15: ='TC5'!W171 -> 69.06299453 | CZ15: ='TC5'!X171 -> 56.80359183 | DA15: ='TC5'!Y171 -> 45.4443638 | DB15: ='TC5'!Z171 -> 34.91921304 | DC15: ='TC5'!AA171 -> 25.16689554 | DD15: ='TC5'!AB171 -> 16.13066423 | DE15: ='TC5'!AC171 -> 7.757938869 | DF15: ='TC5'!AD171 -> 0 | DG15: ='TC5'!AE171 -> 0 | DH15: ='TC5'!AF171 -> 0 | DI15: ='TC5'!AG171 -> 0 | DJ15: ='TC5'!AH171 -> 0 | DK15: ='TC5'!AI171 -> 0 | DL15: ='TC5'!AJ171 -> 0 | DM15: ='TC5'!AK171 -> 0 | DN15: ='TC5'!AL171 -> 0 | DO15: ='TC5'!AM171 -> 0 | DP15: ='TC5'!AN171 -> 0 | DQ15: ='TC5'!AO171 -> 0 | DR15: ='TC5'!AP171 -> 0 | DS15: ='TC5'!AQ171 -> 0 | DT15: ='TC5'!AR171 -> 0 | DU15: ='TC5'!AS171 -> 0 | DV15: ='TC5'!AT171 -> 0 | DW15: ='TC5'!AU171 -> 0 | DX15: ='TC5'!AV171 -> 0 | DY15: ='TC5'!AW171 -> 0 | DZ15: ='TC5'!AX171 -> 0 | EA15: ='TC5'!AY171 -> 0 | EB15: ='TC5'!AZ171 -> 0 | EC15: ='TC5'!BA171 -> 0 | ED15: ='TC5'!BB171 -> 0 | EE15: ='TC5'!BC171 -> 0 | EF15: ='TC5'!BD171 -> 0 | EG15: ='TC5'!BE171 -> 0 | EH15: ='TC5'!BF171 -> 0 | EI15: ='TC5'!BG171 -> 0 | EJ15: ='TC5'!BH171 -> 0 | EL15: 80W Mercury - STANDARD | EM15: ='TC5'!K479 -> 51.43105069 | EN15: ='TC5'!L479 -> 46.54555693 | EO15: ='TC5'!M479 -> 41.99977929 | EP15: ='TC5'!N479 -> 37.77009539 | EQ15: ='TC5'!O479 -> 33.83530927 | ER15: ='TC5'!P479 -> 30.18944381 | ES15: ='TC5'!Q479 -> 26.81128435 | ET15: ='TC5'!R479 -> 23.68117397 | EU15: ='TC5'!S479 -> 20.7808991 | EV15: ='TC5'!T479 -> 18.09358354 | EW15: ='TC5'!U479 -> 15.60359027 | EX15: ='TC5'!V479 -> 13.29643045 | EY15: ='TC5'!W479 -> 11.15867911 | EZ15: ='TC5'!X479 -> 9.177897044 | FA15: ='TC5'!Y479 -> 7.342558431 | FB15: ='TC5'!Z479 -> 5.641983751 | FC15: ='TC5'!AA479 -> 4.066277654 | FD15: ='TC5'!AB479 -> 2.606271378 | FE15: ='TC5'!AC479 -> 1.253469401 | FF15: ='TC5'!AD479 -> 0 | FG15: ='TC5'!AE479 -> 0 | FH15: ='TC5'!AF479 -> 0 | FI15: ='TC5'!AG479 -> 0 | FJ15: ='TC5'!AH479 -> 0 | FK15: ='TC5'!AI479 -> 0 | FL15: ='TC5'!AJ479 -> 0 | FM15: ='TC5'!AK479 -> 0 | FN15: ='TC5'!AL479 -> 0 | FO15: ='TC5'!AM479 -> 0 | FP15: ='TC5'!AN479 -> 0 | FQ15: ='TC5'!AO479 -> 0 | FR15: ='TC5'!AP479 -> 0 | FS15: ='TC5'!AQ479 -> 0 | FT15: ='TC5'!AR479 -> 0 | FU15: ='TC5'!AS479 -> 0 | FV15: ='TC5'!AT479 -> 0 | FW15: ='TC5'!AU479 -> 0 | FX15: ='TC5'!AV479 -> 0 | FY15: ='TC5'!AW479 -> 0 | FZ15: ='TC5'!AX479 -> 0 | GA15: ='TC5'!AY479 -> 0 | GB15: ='TC5'!AZ479 -> 0 | GC15: ='TC5'!BA479 -> 0 | GD15: ='TC5'!BB479 -> 0 | GE15: ='TC5'!BC479 -> 0 | GF15: ='TC5'!BD479 -> 0 | GG15: ='TC5'!BE479 -> 0 | GH15: ='TC5'!BF479 -> 0 | GI15: ='TC5'!BG479 -> 0 | GJ15: ='TC5'!BH479 -> 0
B16: 0 | C16: 6 | D16: 1 x 40 W Fluorescent | E16: 0.08045179657 | F16: 0.07802723797 | G16: 0.07560267937 | H16: 0.07317812077 | I16: 0.07075356218 | K16: 6 | L16: 53.42366638 | M16: 53.42366638 | N16: 53.42366638 | O16: 53.42366638 | P16: 53.42366638 | R16: 53.50411817 | S16: 53.50169361 | T16: 53.49926906 | U16: 53.4968445 | V16: 53.49441994 | X16: 1 x 40 W Fluorescent | Y16: ='Tariff Smoothing - real'!N16 -> 0 | Z16: ='Tariff Smoothing - real'!O16 -> 0.05978325985 | AA16: ='Tariff Smoothing - real'!P16 -> 0.05978325985 | AB16: ='Tariff Smoothing - real'!Q16 -> 0.05978325985 | AC16: ='Tariff Smoothing - real'!R16 -> 0.05978325985 | AE16: ='Tariff Smoothing - real'!AE16 -> 40.06363636 | AF16: ='Tariff Smoothing - real'!AF16 -> 42.82210783 | AG16: ='Tariff Smoothing - real'!AG16 -> 42.82210783 | AH16: ='Tariff Smoothing - real'!AH16 -> 42.82210783 | AI16: ='Tariff Smoothing - real'!AI16 -> 42.82210783 | AK16: 40.06363636 | AL16: 42.88189109 | AM16: 42.88189109 | AN16: 42.88189109 | AO16: 42.88189109 | AQ16: =Annuity!C29 -> 70W Sodium - STANDARD | AR16: ='TC3'!K25+'TC3'!K182 -> 40.53120695 | AS16: ='TC3'!L25+'TC3'!L182 -> 40.66090681 | AT16: ='TC3'!M25+'TC3'!M182 -> 40.83168262 | AU16: ='TC3'!N25+'TC3'!N182 -> 41.00317568 | AV16: ='TC3'!O25+'TC3'!O182 -> 41.16718839 | AX16: ='TC3'!K340 -> 35.64332114 | AY16: ='TC3'!L340 -> 35.31754119 | AZ16: ='TC3'!M340 -> 35.03182228 | BA16: ='TC3'!N340 -> 34.74841484 | BB16: ='TC3'!O340 -> 34.46000299 | BD16: 92.43398128 | BE16: 76.17452809 | BF16: 75.97844799 | BG16: 75.86350489 | BH16: 75.75159052 | BI16: 75.62719138 | BK16: 70W Sodium - STANDARD | BL16: ='TC4'!L22 -> 6.548727508 | BM16: ='TC4'!M22 -> 6.569683436 | BN16: ='TC4'!N22 -> 6.597276107 | BO16: ='TC4'!O22 -> 6.624984666 | BP16: ='TC4'!P22 -> 6.651484605 | BR16: 35.64332114 | BS16: 35.31754119 | BT16: 35.03182228 | BU16: 34.74841484 | BV16: 34.46000299 | BX16: 64.58876346 | BY16: 42.19204865 | BZ16: 41.88722462 | CA16: 41.62909838 | CB16: 41.3733995 | CC16: 41.1114876 | CE16: 1 x 40 W Fluorescent | CF16: ='TC5'!E637 -> 0.5963846801 | CG16: ='TC5'!F637 -> 0.5552547021 | CH16: ='TC5'!G637 -> 0.5141247242 | CI16: ='TC5'!H637 -> 0.4729947463 | CJ16: ='TC5'!I637 -> 0.4318647683 | CL16: =Output!BK16 -> 70W Sodium - STANDARD | CM16: ='TC5'!K172 -> 367.4963306 | CN16: ='TC5'!L172 -> 332.5874378 | CO16: ='TC5'!M172 -> 300.1059587 | CP16: ='TC5'!N172 -> 269.8831013 | CQ16: ='TC5'!O172 -> 241.7674116 | CR16: ='TC5'!P172 -> 215.7161806 | CS16: ='TC5'!Q172 -> 191.5778208 | CT16: ='TC5'!R172 -> 169.2118753 | CU16: ='TC5'!S172 -> 148.4882005 | CV16: ='TC5'!T172 -> 129.2862088 | CW16: ='TC5'!U172 -> 111.4941673 | CX16: ='TC5'!V172 -> 95.00854704 | CY16: ='TC5'!W172 -> 79.73342116 | CZ16: ='TC5'!X172 -> 65.57990631 | DA16: ='TC5'!Y172 -> 52.46564564 | DB16: ='TC5'!Z172 -> 40.31432953 | DC16: ='TC5'!AA172 -> 29.05525158 | DD16: ='TC5'!AB172 -> 18.62289716 | DE16: ='TC5'!AC172 -> 8.956562213 | DF16: ='TC5'!AD172 -> 0 | DG16: ='TC5'!AE172 -> 0 | DH16: ='TC5'!AF172 -> 0 | DI16: ='TC5'!AG172 -> 0 | DJ16: ='TC5'!AH172 -> 0 | DK16: ='TC5'!AI172 -> 0 | DL16: ='TC5'!AJ172 -> 0 | DM16: ='TC5'!AK172 -> 0 | DN16: ='TC5'!AL172 -> 0 | DO16: ='TC5'!AM172 -> 0 | DP16: ='TC5'!AN172 -> 0 | DQ16: ='TC5'!AO172 -> 0 | DR16: ='TC5'!AP172 -> 0 | DS16: ='TC5'!AQ172 -> 0 | DT16: ='TC5'!AR172 -> 0 | DU16: ='TC5'!AS172 -> 0 | DV16: ='TC5'!AT172 -> 0 | DW16: ='TC5'!AU172 -> 0 | DX16: ='TC5'!AV172 -> 0 | DY16: ='TC5'!AW172 -> 0 | DZ16: ='TC5'!AX172 -> 0 | EA16: ='TC5'!AY172 -> 0 | EB16: ='TC5'!AZ172 -> 0 | EC16: ='TC5'!BA172 -> 0 | ED16: ='TC5'!BB172 -> 0 | EE16: ='TC5'!BC172 -> 0 | EF16: ='TC5'!BD172 -> 0 | EG16: ='TC5'!BE172 -> 0 | EH16: ='TC5'!BF172 -> 0 | EI16: ='TC5'!BG172 -> 0 | EJ16: ='TC5'!BH172 -> 0 | EL16: 70W Sodium - STANDARD | EM16: ='TC5'!K480 -> 59.37729247 | EN16: ='TC5'!L480 -> 53.7369762 | EO16: ='TC5'!M480 -> 48.48886315 | EP16: ='TC5'!N480 -> 43.60568121 | EQ16: ='TC5'!O480 -> 39.06295958 | ER16: ='TC5'!P480 -> 34.85379766 | ES16: ='TC5'!Q480 -> 30.95370308 | ET16: ='TC5'!R480 -> 27.33998186 | EU16: ='TC5'!S480 -> 23.99160638 | EV16: ='TC5'!T480 -> 20.88909302 | EW16: ='TC5'!U480 -> 18.01438879 | EX16: ='TC5'!V480 -> 15.3507663 | EY16: ='TC5'!W480 -> 12.88272637 | EZ16: ='TC5'!X480 -> 10.59590791 | FA16: ='TC5'!Y480 -> 8.477004331 | FB16: ='TC5'!Z480 -> 6.513686087 | FC16: ='TC5'!AA480 -> 4.694528972 | FD16: ='TC5'!AB480 -> 3.008947626 | FE16: ='TC5'!AC480 -> 1.447133943 | FF16: ='TC5'!AD480 -> 0 | FG16: ='TC5'!AE480 -> 0 | FH16: ='TC5'!AF480 -> 0 | FI16: ='TC5'!AG480 -> 0 | FJ16: ='TC5'!AH480 -> 0 | FK16: ='TC5'!AI480 -> 0 | FL16: ='TC5'!AJ480 -> 0 | FM16: ='TC5'!AK480 -> 0 | FN16: ='TC5'!AL480 -> 0 | FO16: ='TC5'!AM480 -> 0 | FP16: ='TC5'!AN480 -> 0 | FQ16: ='TC5'!AO480 -> 0 | FR16: ='TC5'!AP480 -> 0 | FS16: ='TC5'!AQ480 -> 0 | FT16: ='TC5'!AR480 -> 0 | FU16: ='TC5'!AS480 -> 0 | FV16: ='TC5'!AT480 -> 0 | FW16: ='TC5'!AU480 -> 0 | FX16: ='TC5'!AV480 -> 0 | FY16: ='TC5'!AW480 -> 0 | FZ16: ='TC5'!AX480 -> 0 | GA16: ='TC5'!AY480 -> 0 | GB16: ='TC5'!AZ480 -> 0 | GC16: ='TC5'!BA480 -> 0 | GD16: ='TC5'!BB480 -> 0 | GE16: ='TC5'!BC480 -> 0 | GF16: ='TC5'!BD480 -> 0 | GG16: ='TC5'!BE480 -> 0 | GH16: ='TC5'!BF480 -> 0 | GI16: ='TC5'!BG480 -> 0 | GJ16: ='TC5'!BH480 -> 0
B17: 0 | C17: 7 | D17: 2 x 40 W Fluorescent | E17: 0 | F17: 0 | G17: 0 | H17: 0 | I17: 0 | K17: 7 | L17: 55.17366638 | M17: 55.17366638 | N17: 55.17366638 | O17: 55.17366638 | P17: 55.17366638 | R17: 55.17366638 | S17: 55.17366638 | T17: 55.17366638 | U17: 55.17366638 | V17: 55.17366638 | X17: 2 x 40 W Fluorescent | Y17: ='Tariff Smoothing - real'!N17 -> 0.009090909091 | Z17: ='Tariff Smoothing - real'!O17 -> 0 | AA17: ='Tariff Smoothing - real'!P17 -> 0 | AB17: ='Tariff Smoothing - real'!Q17 -> 0 | AC17: ='Tariff Smoothing - real'!R17 -> 0 | AE17: ='Tariff Smoothing - real'!AE17 -> 40.78181818 | AF17: ='Tariff Smoothing - real'!AF17 -> 44.22483239 | AG17: ='Tariff Smoothing - real'!AG17 -> 44.22483239 | AH17: ='Tariff Smoothing - real'!AH17 -> 44.22483239 | AI17: ='Tariff Smoothing - real'!AI17 -> 44.22483239 | AK17: 40.79090909 | AL17: 44.22483239 | AM17: 44.22483239 | AN17: 44.22483239 | AO17: 44.22483239 | AQ17: =Annuity!C30 -> 100W Sodium - STANDARD | AR17: ='TC3'!K26+'TC3'!K183 -> 46.65874651 | AS17: ='TC3'!L26+'TC3'!L183 -> 46.8080545 | AT17: ='TC3'!M26+'TC3'!M183 -> 47.00464833 | AU17: ='TC3'!N26+'TC3'!N183 -> 47.20206785 | AV17: ='TC3'!O26+'TC3'!O183 -> 47.39087613 | AX17: ='TC3'!K341 -> 36.44771239 | AY17: ='TC3'!L341 -> 36.1145803 | AZ17: ='TC3'!M341 -> 35.82241335 | BA17: ='TC3'!N341 -> 35.53261002 | BB17: ='TC3'!O341 -> 35.23768936 | BD17: 90.90819661 | BE17: 83.1064589 | BF17: 82.9226348 | BG17: 82.82706168 | BH17: 82.73467787 | BI17: 82.62856548 | BK17: 100W Sodium - STANDARD | BL17: ='TC4'!L23 -> 7.538769255 | BM17: ='TC4'!M23 -> 7.562893316 | BN17: ='TC4'!N23 -> 7.594657468 | BO17: ='TC4'!O23 -> 7.62655503 | BP17: ='TC4'!P23 -> 7.65706125 | BR17: 36.44771239 | BS17: 36.1145803 | BT17: 35.82241335 | BU17: 35.53261002 | BV17: 35.23768936 | BX17: 66.5121639 | BY17: 43.98648165 | BZ17: 43.67747362 | CA17: 43.41707081 | CB17: 43.15916505 | CC17: 42.89475061 | CE17: 2 x 40 W Fluorescent | CF17: ='TC5'!E638 -> 0 | CG17: ='TC5'!F638 -> 0 | CH17: ='TC5'!G638 -> 0 | CI17: ='TC5'!H638 -> 0 | CJ17: ='TC5'!I638 -> 0 | CL17: =Output!BK17 -> 100W Sodium - STANDARD | CM17: ='TC5'!K173 -> 423.0547132 | CN17: ='TC5'!L173 -> 382.8682668 | CO17: ='TC5'!M173 -> 345.4762122 | CP17: ='TC5'!N173 -> 310.6842396 | CQ17: ='TC5'!O173 -> 278.3179979 | CR17: ='TC5'!P173 -> 248.3283215 | CS17: ='TC5'!Q173 -> 220.5407056 | CT17: ='TC5'!R173 -> 194.793459 | CU17: ='TC5'!S173 -> 170.9367627 | CV17: ='TC5'!T173 -> 148.831799 | CW17: ='TC5'!U173 -> 128.3499427 | CX17: ='TC5'!V173 -> 109.3720135 | CY17: ='TC5'!W173 -> 91.78758213 | CZ17: ='TC5'!X173 -> 75.49432784 | DA17: ='TC5'!Y173 -> 60.39744298 | DB17: ='TC5'!Z173 -> 46.4090814 | DC17: ='TC5'!AA173 -> 33.44784724 | DD17: ='TC5'!AB173 -> 21.43832132 | DE17: ='TC5'!AC173 -> 10.31062229 | DF17: ='TC5'!AD173 -> 0 | DG17: ='TC5'!AE173 -> 0 | DH17: ='TC5'!AF173 -> 0 | DI17: ='TC5'!AG173 -> 0 | DJ17: ='TC5'!AH173 -> 0 | DK17: ='TC5'!AI173 -> 0 | DL17: ='TC5'!AJ173 -> 0 | DM17: ='TC5'!AK173 -> 0 | DN17: ='TC5'!AL173 -> 0 | DO17: ='TC5'!AM173 -> 0 | DP17: ='TC5'!AN173 -> 0 | DQ17: ='TC5'!AO173 -> 0 | DR17: ='TC5'!AP173 -> 0 | DS17: ='TC5'!AQ173 -> 0 | DT17: ='TC5'!AR173 -> 0 | DU17: ='TC5'!AS173 -> 0 | DV17: ='TC5'!AT173 -> 0 | DW17: ='TC5'!AU173 -> 0 | DX17: ='TC5'!AV173 -> 0 | DY17: ='TC5'!AW173 -> 0 | DZ17: ='TC5'!AX173 -> 0 | EA17: ='TC5'!AY173 -> 0 | EB17: ='TC5'!AZ173 -> 0 | EC17: ='TC5'!BA173 -> 0 | ED17: ='TC5'!BB173 -> 0 | EE17: ='TC5'!BC173 -> 0 | EF17: ='TC5'!BD173 -> 0 | EG17: ='TC5'!BE173 -> 0 | EH17: ='TC5'!BF173 -> 0 | EI17: ='TC5'!BG173 -> 0 | EJ17: ='TC5'!BH173 -> 0 | EL17: 100W Sodium - STANDARD | EM17: ='TC5'!K481 -> 68.35399799 | EN17: ='TC5'!L481 -> 61.86097429 | EO17: ='TC5'!M481 -> 55.81944741 | EP17: ='TC5'!N481 -> 50.1980222 | EQ17: ='TC5'!O481 -> 44.96852836 | ER17: ='TC5'!P481 -> 40.12302205 | ES17: ='TC5'!Q481 -> 35.63330812 | ET17: ='TC5'!R481 -> 31.4732617 | EU17: ='TC5'!S481 -> 27.61867619 | EV17: ='TC5'!T481 -> 24.04712244 | EW17: ='TC5'!U481 -> 20.73781818 | EX17: ='TC5'!V481 -> 17.67150715 | EY17: ='TC5'!W481 -> 14.83034702 | EZ17: ='TC5'!X481 -> 12.19780556 | FA17: ='TC5'!Y481 -> 9.758564476 | FB17: ='TC5'!Z481 -> 7.498430244 | FC17: ='TC5'!AA481 -> 5.404251534 | FD17: ='TC5'!AB481 -> 3.463842682 | FE17: ='TC5'!AC481 -> 1.665912785 | FF17: ='TC5'!AD481 -> 0 | FG17: ='TC5'!AE481 -> 0 | FH17: ='TC5'!AF481 -> 0 | FI17: ='TC5'!AG481 -> 0 | FJ17: ='TC5'!AH481 -> 0 | FK17: ='TC5'!AI481 -> 0 | FL17: ='TC5'!AJ481 -> 0 | FM17: ='TC5'!AK481 -> 0 | FN17: ='TC5'!AL481 -> 0 | FO17: ='TC5'!AM481 -> 0 | FP17: ='TC5'!AN481 -> 0 | FQ17: ='TC5'!AO481 -> 0 | FR17: ='TC5'!AP481 -> 0 | FS17: ='TC5'!AQ481 -> 0 | FT17: ='TC5'!AR481 -> 0 | FU17: ='TC5'!AS481 -> 0 | FV17: ='TC5'!AT481 -> 0 | FW17: ='TC5'!AU481 -> 0 | FX17: ='TC5'!AV481 -> 0 | FY17: ='TC5'!AW481 -> 0 | FZ17: ='TC5'!AX481 -> 0 | GA17: ='TC5'!AY481 -> 0 | GB17: ='TC5'!AZ481 -> 0 | GC17: ='TC5'!BA481 -> 0 | GD17: ='TC5'!BB481 -> 0 | GE17: ='TC5'!BC481 -> 0 | GF17: ='TC5'!BD481 -> 0 | GG17: ='TC5'!BE481 -> 0 | GH17: ='TC5'!BF481 -> 0 | GI17: ='TC5'!BG481 -> 0 | GJ17: ='TC5'!BH481 -> 0
B18: 0 | C18: 8 | D18: 1 x 42 W Fluorescent | E18: 0 | F18: 0 | G18: 0 | H18: 0 | I18: 0 | K18: 8 | L18: 53.42366638 | M18: 53.42366638 | N18: 53.42366638 | O18: 53.42366638 | P18: 53.42366638 | R18: 53.42366638 | S18: 53.42366638 | T18: 53.42366638 | U18: 53.42366638 | V18: 53.42366638 | X18: 1 x 42 W Fluorescent | Y18: ='Tariff Smoothing - real'!N18 -> 0 | Z18: ='Tariff Smoothing - real'!O18 -> 0 | AA18: ='Tariff Smoothing - real'!P18 -> 0 | AB18: ='Tariff Smoothing - real'!Q18 -> 0 | AC18: ='Tariff Smoothing - real'!R18 -> 0 | AE18: ='Tariff Smoothing - real'!AE18 -> 40.06363636 | AF18: ='Tariff Smoothing - real'!AF18 -> 42.82210783 | AG18: ='Tariff Smoothing - real'!AG18 -> 42.82210783 | AH18: ='Tariff Smoothing - real'!AH18 -> 42.82210783 | AI18: ='Tariff Smoothing - real'!AI18 -> 42.82210783 | AK18: 40.06363636 | AL18: 42.82210783 | AM18: 42.82210783 | AN18: 42.82210783 | AO18: 42.82210783 | AQ18: =Annuity!C31 -> 100W Metal Halide - STANDARD | AR18: ='TC3'!K27+'TC3'!K184 -> 48.53674461 | AS18: ='TC3'!L27+'TC3'!L184 -> 48.69206219 | AT18: ='TC3'!M27+'TC3'!M184 -> 48.89656885 | AU18: ='TC3'!N27+'TC3'!N184 -> 49.10193444 | AV18: ='TC3'!O27+'TC3'!O184 -> 49.29834218 | AX18: ='TC3'!K342 -> 43.88276259 | AY18: ='TC3'!L342 -> 43.48167414 | AZ18: ='TC3'!M342 -> 43.1299074 | BA18: ='TC3'!N342 -> 42.78098645 | BB18: ='TC3'!O342 -> 42.42590426 | BD18: 91.86110224 | BE18: 92.4195072 | BF18: 92.17373633 | BG18: 92.02647625 | BH18: 91.88292089 | BI18: 91.72424644 | BK18: 100W Metal Halide - STANDARD | BL18: ='TC4'!L24 -> 7.842202059 | BM18: ='TC4'!M24 -> 7.867297106 | BN18: ='TC4'!N24 -> 7.900339753 | BO18: ='TC4'!O24 -> 7.93352118 | BP18: ='TC4'!P24 -> 7.965255265 | BR18: 43.88276259 | BS18: 43.48167414 | BT18: 43.1299074 | BU18: 42.78098645 | BV18: 42.42590426 | BX18: 67.46506953 | BY18: 51.72496465 | BZ18: 51.34897125 | CA18: 51.03024715 | CB18: 50.71450763 | CC18: 50.39115952 | CE18: 1 x 42 W Fluorescent | CF18: ='TC5'!E639 -> 0 | CG18: ='TC5'!F639 -> 0 | CH18: ='TC5'!G639 -> 0 | CI18: ='TC5'!H639 -> 0 | CJ18: ='TC5'!I639 -> 0 | CL18: =Output!BK18 -> 100W Metal Halide - STANDARD | CM18: ='TC5'!K174 -> 440.0825163 | CN18: ='TC5'!L174 -> 398.2785795 | CO18: ='TC5'!M174 -> 359.3815079 | CP18: ='TC5'!N174 -> 323.1891707 | CQ18: ='TC5'!O174 -> 289.5201992 | CR18: ='TC5'!P174 -> 258.3234489 | CS18: ='TC5'!Q174 -> 229.4173913 | CT18: ='TC5'!R174 -> 202.633827 | CU18: ='TC5'!S174 -> 177.8169072 | CV18: ='TC5'!T174 -> 154.8222264 | CW18: ='TC5'!U174 -> 133.5159826 | CX18: ='TC5'!V174 -> 113.7741985 | CY18: ='TC5'!W174 -> 95.48199995 | CZ18: ='TC5'!X174 -> 78.53294791 | DA18: ='TC5'!Y174 -> 62.82841876 | DB18: ='TC5'!Z174 -> 48.27703056 | DC18: ='TC5'!AA174 -> 34.7941113 | DD18: ='TC5'!AB174 -> 22.3012062 | DE18: ='TC5'!AC174 -> 10.72562121 | DF18: ='TC5'!AD174 -> 0 | DG18: ='TC5'!AE174 -> 0 | DH18: ='TC5'!AF174 -> 0 | DI18: ='TC5'!AG174 -> 0 | DJ18: ='TC5'!AH174 -> 0 | DK18: ='TC5'!AI174 -> 0 | DL18: ='TC5'!AJ174 -> 0 | DM18: ='TC5'!AK174 -> 0 | DN18: ='TC5'!AL174 -> 0 | DO18: ='TC5'!AM174 -> 0 | DP18: ='TC5'!AN174 -> 0 | DQ18: ='TC5'!AO174 -> 0 | DR18: ='TC5'!AP174 -> 0 | DS18: ='TC5'!AQ174 -> 0 | DT18: ='TC5'!AR174 -> 0 | DU18: ='TC5'!AS174 -> 0 | DV18: ='TC5'!AT174 -> 0 | DW18: ='TC5'!AU174 -> 0 | DX18: ='TC5'!AV174 -> 0 | DY18: ='TC5'!AW174 -> 0 | DZ18: ='TC5'!AX174 -> 0 | EA18: ='TC5'!AY174 -> 0 | EB18: ='TC5'!AZ174 -> 0 | EC18: ='TC5'!BA174 -> 0 | ED18: ='TC5'!BB174 -> 0 | EE18: ='TC5'!BC174 -> 0 | EF18: ='TC5'!BD174 -> 0 | EG18: ='TC5'!BE174 -> 0 | EH18: ='TC5'!BF174 -> 0 | EI18: ='TC5'!BG174 -> 0 | EJ18: ='TC5'!BH174 -> 0 | EL18: 100W Metal Halide - STANDARD | EM18: ='TC5'!K482 -> 71.10522231 | EN18: ='TC5'!L482 -> 64.35085669 | EO18: ='TC5'!M482 -> 58.06616048 | EP18: ='TC5'!N482 -> 52.2184749 | EQ18: ='TC5'!O482 -> 46.77849577 | ER18: ='TC5'!P482 -> 41.73795954 | ES18: ='TC5'!Q482 -> 37.06753621 | ET18: ='TC5'!R482 -> 32.74004939 | EU18: ='TC5'!S482 -> 28.73031817 | EV18: ='TC5'!T482 -> 25.01501064 | EW18: ='TC5'!U482 -> 21.57250805 | EX18: ='TC5'!V482 -> 18.38277908 | EY18: ='TC5'!W482 -> 15.42726325 | EZ18: ='TC5'!X482 -> 12.68876293 | FA18: ='TC5'!Y482 -> 10.15134325 | FB18: ='TC5'!Z482 -> 7.800239417 | FC18: ='TC5'!AA482 -> 5.621770752 | FD18: ='TC5'!AB482 -> 3.603261128 | FE18: ='TC5'!AC482 -> 1.732965187 | FF18: ='TC5'!AD482 -> 0 | FG18: ='TC5'!AE482 -> 0 | FH18: ='TC5'!AF482 -> 0 | FI18: ='TC5'!AG482 -> 0 | FJ18: ='TC5'!AH482 -> 0 | FK18: ='TC5'!AI482 -> 0 | FL18: ='TC5'!AJ482 -> 0 | FM18: ='TC5'!AK482 -> 0 | FN18: ='TC5'!AL482 -> 0 | FO18: ='TC5'!AM482 -> 0 | FP18: ='TC5'!AN482 -> 0 | FQ18: ='TC5'!AO482 -> 0 | FR18: ='TC5'!AP482 -> 0 | FS18: ='TC5'!AQ482 -> 0 | FT18: ='TC5'!AR482 -> 0 | FU18: ='TC5'!AS482 -> 0 | FV18: ='TC5'!AT482 -> 0 | FW18: ='TC5'!AU482 -> 0 | FX18: ='TC5'!AV482 -> 0 | FY18: ='TC5'!AW482 -> 0 | FZ18: ='TC5'!AX482 -> 0 | GA18: ='TC5'!AY482 -> 0 | GB18: ='TC5'!AZ482 -> 0 | GC18: ='TC5'!BA482 -> 0 | GD18: ='TC5'!BB482 -> 0 | GE18: ='TC5'!BC482 -> 0 | GF18: ='TC5'!BD482 -> 0 | GG18: ='TC5'!BE482 -> 0 | GH18: ='TC5'!BF482 -> 0 | GI18: ='TC5'!BG482 -> 0 | GJ18: ='TC5'!BH482 -> 0
B19: 0 | C19: 9 | D19: 50W Mercury | E19: 12.54356017 | F19: 12.15851719 | G19: 11.77347421 | H19: 11.38843124 | I19: 11.00338826 | K19: 9 | L19: 52.42366638 | M19: 52.42366638 | N19: 52.42366638 | O19: 52.42366638 | P19: 52.42366638 | R19: 64.96722654 | S19: 64.58218357 | T19: 64.19714059 | U19: 63.81209761 | V19: 63.42705464 | X19: 50W Mercury | Y19: ='Tariff Smoothing - real'!N19 -> 10.11818182 | Z19: ='Tariff Smoothing - real'!O19 -> 9.30742732 | AA19: ='Tariff Smoothing - real'!P19 -> 9.30742732 | AB19: ='Tariff Smoothing - real'!Q19 -> 9.30742732 | AC19: ='Tariff Smoothing - real'!R19 -> 9.30742732 | AE19: ='Tariff Smoothing - real'!AE19 -> 38.53636364 | AF19: ='Tariff Smoothing - real'!AF19 -> 42.02055094 | AG19: ='Tariff Smoothing - real'!AG19 -> 42.02055094 | AH19: ='Tariff Smoothing - real'!AH19 -> 42.02055094 | AI19: ='Tariff Smoothing - real'!AI19 -> 42.02055094 | AK19: 48.65454545 | AL19: 51.32797826 | AM19: 51.32797826 | AN19: 51.32797826 | AO19: 51.32797826 | AQ19: =Annuity!C32 -> 25W LED | AR19: ='TC3'!K28+'TC3'!K185 -> 74.26516235 | AS19: ='TC3'!L28+'TC3'!L185 -> 74.50281086 | AT19: ='TC3'!M28+'TC3'!M185 -> 74.81572267 | AU19: ='TC3'!N28+'TC3'!N185 -> 75.12994871 | AV19: ='TC3'!O28+'TC3'!O185 -> 75.4304685 | AX19: ='TC3'!K343 -> 33.77465839 | AY19: ='TC3'!L343 -> 33.46595801 | AZ19: ='TC3'!M343 -> 33.19521841 | BA19: ='TC3'!N343 -> 32.9266691 | BB19: ='TC3'!O343 -> 32.65337774 | BD19: 103.0120043 | BE19: 108.0398207 | BF19: 107.9687689 | BG19: 108.0109411 | BH19: 108.0566178 | BI19: 108.0838462 | BK19: 25W LED | BL19: ='TC4'!L25 -> 8.882110218 | BM19: ='TC4'!M25 -> 8.910532971 | BN19: ='TC4'!N25 -> 8.947957209 | BO19: ='TC4'!O25 -> 8.985538629 | BP19: ='TC4'!P25 -> 9.021480784 | BR19: 33.77465839 | BS19: 33.46595801 | BT19: 33.19521841 | BU19: 32.9266691 | BV19: 32.65337774 | BX19: 62.75402395 | BY19: 42.65676861 | BZ19: 42.37649098 | CA19: 42.14317562 | CB19: 41.91220773 | CC19: 41.67485853 | CE19: 50W Mercury | CF19: ='TC5'!E640 -> 94.71156235 | CG19: ='TC5'!F640 -> 88.17973046 | CH19: ='TC5'!G640 -> 81.64789858 | CI19: ='TC5'!H640 -> 75.11606669 | CJ19: ='TC5'!I640 -> 68.5842348 | CL19: =Output!BK19 -> 25W LED | CM19: ='TC5'!K175 -> 499.2782354 | CN19: ='TC5'!L175 -> 435.314816 | CO19: ='TC5'!M175 -> 375.7991365 | CP19: ='TC5'!N175 -> 320.4219203 | CQ19: ='TC5'!O175 -> 268.9056586 | CR19: ='TC5'!P175 -> 221.1720963 | CS19: ='TC5'!Q175 -> 176.9434798 | CT19: ='TC5'!R175 -> 135.9624506 | CU19: ='TC5'!S175 -> 97.99054712 | CV19: ='TC5'!T175 -> 62.80681745 | CW19: ='TC5'!U175 -> 30.20653355 | CX19: ='TC5'!V175 -> 0 | CY19: ='TC5'!W175 -> 0 | CZ19: ='TC5'!X175 -> 0 | DA19: ='TC5'!Y175 -> 0 | DB19: ='TC5'!Z175 -> 0 | DC19: ='TC5'!AA175 -> 0 | DD19: ='TC5'!AB175 -> 0 | DE19: ='TC5'!AC175 -> 0 | DF19: ='TC5'!AD175 -> 0 | DG19: ='TC5'!AE175 -> 0 | DH19: ='TC5'!AF175 -> 0 | DI19: ='TC5'!AG175 -> 0 | DJ19: ='TC5'!AH175 -> 0 | DK19: ='TC5'!AI175 -> 0 | DL19: ='TC5'!AJ175 -> 0 | DM19: ='TC5'!AK175 -> 0 | DN19: ='TC5'!AL175 -> 0 | DO19: ='TC5'!AM175 -> 0 | DP19: ='TC5'!AN175 -> 0 | DQ19: ='TC5'!AO175 -> 0 | DR19: ='TC5'!AP175 -> 0 | DS19: ='TC5'!AQ175 -> 0 | DT19: ='TC5'!AR175 -> 0 | DU19: ='TC5'!AS175 -> 0 | DV19: ='TC5'!AT175 -> 0 | DW19: ='TC5'!AU175 -> 0 | DX19: ='TC5'!AV175 -> 0 | DY19: ='TC5'!AW175 -> 0 | DZ19: ='TC5'!AX175 -> 0 | EA19: ='TC5'!AY175 -> 0 | EB19: ='TC5'!AZ175 -> 0 | EC19: ='TC5'!BA175 -> 0 | ED19: ='TC5'!BB175 -> 0 | EE19: ='TC5'!BC175 -> 0 | EF19: ='TC5'!BD175 -> 0 | EG19: ='TC5'!BE175 -> 0 | EH19: ='TC5'!BF175 -> 0 | EI19: ='TC5'!BG175 -> 0 | EJ19: ='TC5'!BH175 -> 0 | EL19: 25W LED | EM19: ='TC5'!K483 -> 59.71365544 | EN19: ='TC5'!L483 -> 52.06363324 | EO19: ='TC5'!M483 -> 44.94556054 | EP19: ='TC5'!N483 -> 38.32244786 | EQ19: ='TC5'!O483 -> 32.16110519 | ER19: ='TC5'!P483 -> 26.45217319 | ES19: ='TC5'!Q483 -> 21.16243256 | ET19: ='TC5'!R483 -> 16.26110323 | EU19: ='TC5'!S483 -> 11.71966521 | EV19: ='TC5'!T483 -> 7.511692662 | EW19: ='TC5'!U483 -> 3.612700111 | EX19: ='TC5'!V483 -> 0 | EY19: ='TC5'!W483 -> 0 | EZ19: ='TC5'!X483 -> 0 | FA19: ='TC5'!Y483 -> 0 | FB19: ='TC5'!Z483 -> 0 | FC19: ='TC5'!AA483 -> 0 | FD19: ='TC5'!AB483 -> 0 | FE19: ='TC5'!AC483 -> 0 | FF19: ='TC5'!AD483 -> 0 | FG19: ='TC5'!AE483 -> 0 | FH19: ='TC5'!AF483 -> 0 | FI19: ='TC5'!AG483 -> 0 | FJ19: ='TC5'!AH483 -> 0 | FK19: ='TC5'!AI483 -> 0 | FL19: ='TC5'!AJ483 -> 0 | FM19: ='TC5'!AK483 -> 0 | FN19: ='TC5'!AL483 -> 0 | FO19: ='TC5'!AM483 -> 0 | FP19: ='TC5'!AN483 -> 0 | FQ19: ='TC5'!AO483 -> 0 | FR19: ='TC5'!AP483 -> 0 | FS19: ='TC5'!AQ483 -> 0 | FT19: ='TC5'!AR483 -> 0 | FU19: ='TC5'!AS483 -> 0 | FV19: ='TC5'!AT483 -> 0 | FW19: ='TC5'!AU483 -> 0 | FX19: ='TC5'!AV483 -> 0 | FY19: ='TC5'!AW483 -> 0 | FZ19: ='TC5'!AX483 -> 0 | GA19: ='TC5'!AY483 -> 0 | GB19: ='TC5'!AZ483 -> 0 | GC19: ='TC5'!BA483 -> 0 | GD19: ='TC5'!BB483 -> 0 | GE19: ='TC5'!BC483 -> 0 | GF19: ='TC5'!BD483 -> 0 | GG19: ='TC5'!BE483 -> 0 | GH19: ='TC5'!BF483 -> 0 | GI19: ='TC5'!BG483 -> 0 | GJ19: ='TC5'!BH483 -> 0
B20: 0 | C20: 10 | D20: 80W Mercury | E20: 3.294982517 | F20: 3.149077577 | G20: 3.004349079 | H20: 2.860768328 | I20: 2.718307332 | K20: 10 | L20: 52.97366638 | M20: 52.97366638 | N20: 52.97366638 | O20: 52.97366638 | P20: 52.97366638 | R20: 56.26864889 | S20: 56.12274395 | T20: 55.97801545 | U20: 55.8344347 | V20: 55.69197371 | X20: 80W Mercury | Y20: ='Tariff Smoothing - real'!N20 -> 10.1 | Z20: ='Tariff Smoothing - real'!O20 -> 2.360254712 | AA20: ='Tariff Smoothing - real'!P20 -> 2.360254712 | AB20: ='Tariff Smoothing - real'!Q20 -> 2.360254712 | AC20: ='Tariff Smoothing - real'!R20 -> 2.360254712 | AE20: ='Tariff Smoothing - real'!AE20 -> 38.53636364 | AF20: ='Tariff Smoothing - real'!AF20 -> 42.46140723 | AG20: ='Tariff Smoothing - real'!AG20 -> 42.46140723 | AH20: ='Tariff Smoothing - real'!AH20 -> 42.46140723 | AI20: ='Tariff Smoothing - real'!AI20 -> 42.46140723 | AK20: 48.63636364 | AL20: 44.82166194 | AM20: 44.82166194 | AN20: 44.82166194 | AO20: 44.82166194 | AQ20: =Annuity!C33 -> Suburban 70W HPS c/w D2 PECB - STD | AR20: ='TC3'!K29+'TC3'!K186 -> 35.90179105 | AS20: ='TC3'!L29+'TC3'!L186 -> 36.01667678 | AT20: ='TC3'!M29+'TC3'!M186 -> 36.16794683 | AU20: ='TC3'!N29+'TC3'!N186 -> 36.3198522 | AV20: ='TC3'!O29+'TC3'!O186 -> 36.46513161 | AX20: ='TC3'!K344 -> 33.27964839 | AY20: ='TC3'!L344 -> 32.9754724 | AZ20: ='TC3'!M344 -> 32.70870083 | BA20: ='TC3'!N344 -> 32.44408744 | BB20: ='TC3'!O344 -> 32.17480152 | BD20: 91.53507748 | BE20: 69.18143944 | BF20: 68.99214919 | BG20: 68.87664766 | BH20: 68.76393965 | BI20: 68.63993313 | BK20: Suburban 70W HPS c/w D2 PECB - STD | BL20: ='TC4'!L26 -> 5.800741315 | BM20: ='TC4'!M26 -> 5.819303687 | BN20: ='TC4'!N26 -> 5.843744762 | BO20: ='TC4'!O26 -> 5.86828849 | BP20: ='TC4'!P26 -> 5.891761644 | BR20: 33.27964839 | BS20: 32.9754724 | BT20: 32.70870083 | BU20: 32.44408744 | BV20: 32.17480152 | BX20: 63.83570434 | BY20: 39.08038971 | BZ20: 38.79477609 | CA20: 38.5524456 | CB20: 38.31237593 | CC20: 38.06656316 | CE20: 80W Mercury | CF20: ='TC5'!E641 -> 29.77865556 | CG20: ='TC5'!F641 -> 27.60992303 | CH20: ='TC5'!G641 -> 25.44279066 | CI20: ='TC5'!H641 -> 23.27691464 | CJ20: ='TC5'!I641 -> 21.11195578 | CL20: =Output!BK20 -> Suburban 70W HPS c/w D2 PECB - STD | CM20: ='TC5'!K176 -> 325.5214307 | CN20: ='TC5'!L176 -> 294.5997812 | CO20: ='TC5'!M176 -> 265.8282897 | CP20: ='TC5'!N176 -> 239.0574434 | CQ20: ='TC5'!O176 -> 214.1530871 | CR20: ='TC5'!P176 -> 191.0773902 | CS20: ='TC5'!Q176 -> 169.696079 | CT20: ='TC5'!R176 -> 149.8847394 | CU20: ='TC5'!S176 -> 131.5280928 | CV20: ='TC5'!T176 -> 114.5193248 | CW20: ='TC5'!U176 -> 98.75946458 | CX20: ='TC5'!V176 -> 84.15680807 | CY20: ='TC5'!W176 -> 70.626385 | CZ20: ='TC5'!X176 -> 58.08946417 | DA20: ='TC5'!Y176 -> 46.4730954 | DB20: ='TC5'!Z176 -> 35.70968506 | DC20: ='TC5'!AA176 -> 25.73660273 | DD20: ='TC5'!AB176 -> 16.49581676 | DE20: ='TC5'!AC176 -> 7.933556618 | DF20: ='TC5'!AD176 -> 0 | DG20: ='TC5'!AE176 -> 0 | DH20: ='TC5'!AF176 -> 0 | DI20: ='TC5'!AG176 -> 0 | DJ20: ='TC5'!AH176 -> 0 | DK20: ='TC5'!AI176 -> 0 | DL20: ='TC5'!AJ176 -> 0 | DM20: ='TC5'!AK176 -> 0 | DN20: ='TC5'!AL176 -> 0 | DO20: ='TC5'!AM176 -> 0 | DP20: ='TC5'!AN176 -> 0 | DQ20: ='TC5'!AO176 -> 0 | DR20: ='TC5'!AP176 -> 0 | DS20: ='TC5'!AQ176 -> 0 | DT20: ='TC5'!AR176 -> 0 | DU20: ='TC5'!AS176 -> 0 | DV20: ='TC5'!AT176 -> 0 | DW20: ='TC5'!AU176 -> 0 | DX20: ='TC5'!AV176 -> 0 | DY20: ='TC5'!AW176 -> 0 | DZ20: ='TC5'!AX176 -> 0 | EA20: ='TC5'!AY176 -> 0 | EB20: ='TC5'!AZ176 -> 0 | EC20: ='TC5'!BA176 -> 0 | ED20: ='TC5'!BB176 -> 0 | EE20: ='TC5'!BC176 -> 0 | EF20: ='TC5'!BD176 -> 0 | EG20: ='TC5'!BE176 -> 0 | EH20: ='TC5'!BF176 -> 0 | EI20: ='TC5'!BG176 -> 0 | EJ20: ='TC5'!BH176 -> 0 | EL20: Suburban 70W HPS c/w D2 PECB - STD | EM20: ='TC5'!K484 -> 52.59530392 | EN20: ='TC5'!L484 -> 47.59921642 | EO20: ='TC5'!M484 -> 42.95053526 | EP20: ='TC5'!N484 -> 38.62510331 | EQ20: ='TC5'!O484 -> 34.60124478 | ER20: ='TC5'!P484 -> 30.87284726 | ES20: ='TC5'!Q484 -> 27.41821584 | ET20: ='TC5'!R484 -> 24.21724864 | EU20: ='TC5'!S484 -> 21.25131976 | EV20: ='TC5'!T484 -> 18.503171 | EW20: ='TC5'!U484 -> 15.95681133 | EX20: ='TC5'!V484 -> 13.59742395 | EY20: ='TC5'!W484 -> 11.41127998 | EZ20: ='TC5'!X484 -> 9.385658622 | FA20: ='TC5'!Y484 -> 7.508773145 | FB20: ='TC5'!Z484 -> 5.769702274 | FC20: ='TC5'!AA484 -> 4.158326656 | FD20: ='TC5'!AB484 -> 2.665269976 | FE20: ='TC5'!AC484 -> 1.281844395 | FF20: ='TC5'!AD484 -> 0 | FG20: ='TC5'!AE484 -> 0 | FH20: ='TC5'!AF484 -> 0 | FI20: ='TC5'!AG484 -> 0 | FJ20: ='TC5'!AH484 -> 0 | FK20: ='TC5'!AI484 -> 0 | FL20: ='TC5'!AJ484 -> 0 | FM20: ='TC5'!AK484 -> 0 | FN20: ='TC5'!AL484 -> 0 | FO20: ='TC5'!AM484 -> 0 | FP20: ='TC5'!AN484 -> 0 | FQ20: ='TC5'!AO484 -> 0 | FR20: ='TC5'!AP484 -> 0 | FS20: ='TC5'!AQ484 -> 0 | FT20: ='TC5'!AR484 -> 0 | FU20: ='TC5'!AS484 -> 0 | FV20: ='TC5'!AT484 -> 0 | FW20: ='TC5'!AU484 -> 0 | FX20: ='TC5'!AV484 -> 0 | FY20: ='TC5'!AW484 -> 0 | FZ20: ='TC5'!AX484 -> 0 | GA20: ='TC5'!AY484 -> 0 | GB20: ='TC5'!AZ484 -> 0 | GC20: ='TC5'!BA484 -> 0 | GD20: ='TC5'!BB484 -> 0 | GE20: ='TC5'!BC484 -> 0 | GF20: ='TC5'!BD484 -> 0 | GG20: ='TC5'!BE484 -> 0 | GH20: ='TC5'!BF484 -> 0 | GI20: ='TC5'!BG484 -> 0 | GJ20: ='TC5'!BH484 -> 0
B21: 0 | C21: 11 | D21: 125W Mercury | E21: 0.4151864236 | F21: 0.4029730851 | G21: 0.3907597466 | H21: 0.3785464081 | I21: 0.3663330696 | K21: 11 | L21: 52.97366638 | M21: 52.97366638 | N21: 52.97366638 | O21: 52.97366638 | P21: 52.97366638 | R21: 53.3888528 | S21: 53.37663946 | T21: 53.36442612 | U21: 53.35221278 | V21: 53.33999945 | X21: 125W Mercury | Y21: ='Tariff Smoothing - real'!N21 -> 10.11818182 | Z21: ='Tariff Smoothing - real'!O21 -> 0.3091027281 | AA21: ='Tariff Smoothing - real'!P21 -> 0.3091027281 | AB21: ='Tariff Smoothing - real'!Q21 -> 0.3091027281 | AC21: ='Tariff Smoothing - real'!R21 -> 0.3091027281 | AE21: ='Tariff Smoothing - real'!AE21 -> 38.53636364 | AF21: ='Tariff Smoothing - real'!AF21 -> 42.46140723 | AG21: ='Tariff Smoothing - real'!AG21 -> 42.46140723 | AH21: ='Tariff Smoothing - real'!AH21 -> 42.46140723 | AI21: ='Tariff Smoothing - real'!AI21 -> 42.46140723 | AK21: 48.65454545 | AL21: 42.77050996 | AM21: 42.77050996 | AN21: 42.77050996 | AO21: 42.77050996 | AQ21: =Annuity!C34 -> 150W Sodium - STANDARD | AR21: ='TC3'!K30+'TC3'!K187 -> 50.14853914 | AS21: ='TC3'!L30+'TC3'!L187 -> 50.30901447 | AT21: ='TC3'!M30+'TC3'!M187 -> 50.52031233 | AU21: ='TC3'!N30+'TC3'!N187 -> 50.73249764 | AV21: ='TC3'!O30+'TC3'!O187 -> 50.93542763 | AX21: ='TC3'!K345 -> 35.44531714 | AY21: ='TC3'!L345 -> 35.12134694 | AZ21: ='TC3'!M345 -> 34.83721525 | BA21: ='TC3'!N345 -> 34.55538217 | BB21: ='TC3'!O345 -> 34.2685725 | BD21: 90.18338605 | BE21: 85.59385628 | BF21: 85.43036141 | BG21: 85.35752758 | BH21: 85.28787982 | BI21: 85.20400013 | BK21: 150W Sodium - STANDARD | BL21: ='TC4'!L27 -> 8.102623695 | BM21: ='TC4'!M27 -> 8.128552091 | BN21: ='TC4'!N27 -> 8.16269201 | BO21: ='TC4'!O27 -> 8.196975316 | BP21: ='TC4'!P27 -> 8.229763217 | BR21: 35.44531714 | BS21: 35.12134694 | BT21: 34.83721525 | BU21: 34.55538217 | BV21: 34.2685725 | BX21: 54.79580151 | BY21: 43.54794084 | BZ21: 43.24989903 | CA21: 42.99990726 | CB21: 42.75235749 | CC21: 42.49833572 | CE21: 125W Mercury | CF21: ='TC5'!E642 -> 1.968266003 | CG21: ='TC5'!F642 -> 1.761080108 | CH21: ='TC5'!G642 -> 1.553894213 | CI21: ='TC5'!H642 -> 1.346708318 | CJ21: ='TC5'!I642 -> 1.139522423 | CL21: =Output!BK21 -> 150W Sodium - STANDARD | CM21: ='TC5'!K177 -> 454.6966525 | CN21: ='TC5'!L177 -> 411.5045024 | CO21: ='TC5'!M177 -> 371.3157478 | CP21: ='TC5'!N177 -> 333.9215456 | CQ21: ='TC5'!O177 -> 299.1345044 | CR21: ='TC5'!P177 -> 266.9017812 | CS21: ='TC5'!Q177 -> 237.0358194 | CT21: ='TC5'!R177 -> 209.362834 | CU21: ='TC5'!S177 -> 183.7218009 | CV21: ='TC5'!T177 -> 159.9635193 | CW21: ='TC5'!U177 -> 137.9497437 | CX21: ='TC5'!V177 -> 117.55238 | CY21: ='TC5'!W177 -> 98.65273929 | CZ21: ='TC5'!X177 -> 81.14084791 | DA21: ='TC5'!Y177 -> 64.91480719 | DB21: ='TC5'!Z177 -> 49.88020059 | DC21: ='TC5'!AA177 -> 35.94954434 | DD21: ='TC5'!AB177 -> 23.04177837 | DE21: ='TC5'!AC177 -> 11.08179461 | DF21: ='TC5'!AD177 -> 0 | DG21: ='TC5'!AE177 -> 0 | DH21: ='TC5'!AF177 -> 0 | DI21: ='TC5'!AG177 -> 0 | DJ21: ='TC5'!AH177 -> 0 | DK21: ='TC5'!AI177 -> 0 | DL21: ='TC5'!AJ177 -> 0 | DM21: ='TC5'!AK177 -> 0 | DN21: ='TC5'!AL177 -> 0 | DO21: ='TC5'!AM177 -> 0 | DP21: ='TC5'!AN177 -> 0 | DQ21: ='TC5'!AO177 -> 0 | DR21: ='TC5'!AP177 -> 0 | DS21: ='TC5'!AQ177 -> 0 | DT21: ='TC5'!AR177 -> 0 | DU21: ='TC5'!AS177 -> 0 | DV21: ='TC5'!AT177 -> 0 | DW21: ='TC5'!AU177 -> 0 | DX21: ='TC5'!AV177 -> 0 | DY21: ='TC5'!AW177 -> 0 | DZ21: ='TC5'!AX177 -> 0 | EA21: ='TC5'!AY177 -> 0 | EB21: ='TC5'!AZ177 -> 0 | EC21: ='TC5'!BA177 -> 0 | ED21: ='TC5'!BB177 -> 0 | EE21: ='TC5'!BC177 -> 0 | EF21: ='TC5'!BD177 -> 0 | EG21: ='TC5'!BE177 -> 0 | EH21: ='TC5'!BF177 -> 0 | EI21: ='TC5'!BG177 -> 0 | EJ21: ='TC5'!BH177 -> 0 | EL21: 150W Sodium - STANDARD | EM21: ='TC5'!K485 -> 73.46646449 | EN21: ='TC5'!L485 -> 66.4878018 | EO21: ='TC5'!M485 -> 59.99440517 | EP21: ='TC5'!N485 -> 53.9525313 | EQ21: ='TC5'!O485 -> 48.33190287 | ER21: ='TC5'!P485 -> 43.12398194 | ES21: ='TC5'!Q485 -> 38.29846451 | ET21: ='TC5'!R485 -> 33.82727172 | EU21: ='TC5'!S485 -> 29.68438648 | EV21: ='TC5'!T485 -> 25.84570206 | EW21: ='TC5'!U485 -> 22.28888182 | EX21: ='TC5'!V485 -> 18.99322923 | EY21: ='TC5'!W485 -> 15.93956746 | EZ21: ='TC5'!X485 -> 13.1101278 | FA21: ='TC5'!Y485 -> 10.4884462 | FB21: ='TC5'!Z485 -> 8.05926757 | FC21: ='TC5'!AA485 -> 5.808456931 | FD21: ='TC5'!AB485 -> 3.722917208 | FE21: ='TC5'!AC485 -> 1.790513007 | FF21: ='TC5'!AD485 -> 0 | FG21: ='TC5'!AE485 -> 0 | FH21: ='TC5'!AF485 -> 0 | FI21: ='TC5'!AG485 -> 0 | FJ21: ='TC5'!AH485 -> 0 | FK21: ='TC5'!AI485 -> 0 | FL21: ='TC5'!AJ485 -> 0 | FM21: ='TC5'!AK485 -> 0 | FN21: ='TC5'!AL485 -> 0 | FO21: ='TC5'!AM485 -> 0 | FP21: ='TC5'!AN485 -> 0 | FQ21: ='TC5'!AO485 -> 0 | FR21: ='TC5'!AP485 -> 0 | FS21: ='TC5'!AQ485 -> 0 | FT21: ='TC5'!AR485 -> 0 | FU21: ='TC5'!AS485 -> 0 | FV21: ='TC5'!AT485 -> 0 | FW21: ='TC5'!AU485 -> 0 | FX21: ='TC5'!AV485 -> 0 | FY21: ='TC5'!AW485 -> 0 | FZ21: ='TC5'!AX485 -> 0 | GA21: ='TC5'!AY485 -> 0 | GB21: ='TC5'!AZ485 -> 0 | GC21: ='TC5'!BA485 -> 0 | GD21: ='TC5'!BB485 -> 0 | GE21: ='TC5'!BC485 -> 0 | GF21: ='TC5'!BD485 -> 0 | GG21: ='TC5'!BE485 -> 0 | GH21: ='TC5'!BF485 -> 0 | GI21: ='TC5'!BG485 -> 0 | GJ21: ='TC5'!BH485 -> 0
B22: 0 | C22: 12 | D22: 250W Mercury | E22: 5.787082436 | F22: 5.515231891 | G22: 5.243896536 | H22: 4.973063806 | I22: 4.702721442 | K22: 12 | L22: 52.97366638 | M22: 52.97366638 | N22: 52.97366638 | O22: 52.97366638 | P22: 52.97366638 | R22: 58.76074881 | S22: 58.48889827 | T22: 58.21756291 | U22: 57.94673018 | V22: 57.67638782 | X22: 250W Mercury | Y22: ='Tariff Smoothing - real'!N22 -> 14.5 | Z22: ='Tariff Smoothing - real'!O22 -> 4.112264858 | AA22: ='Tariff Smoothing - real'!P22 -> 4.112264858 | AB22: ='Tariff Smoothing - real'!Q22 -> 4.112264858 | AC22: ='Tariff Smoothing - real'!R22 -> 4.112264858 | AE22: ='Tariff Smoothing - real'!AE22 -> 44.22727273 | AF22: ='Tariff Smoothing - real'!AF22 -> 42.46140723 | AG22: ='Tariff Smoothing - real'!AG22 -> 42.46140723 | AH22: ='Tariff Smoothing - real'!AH22 -> 42.46140723 | AI22: ='Tariff Smoothing - real'!AI22 -> 42.46140723 | AK22: 58.72727273 | AL22: 46.57367209 | AM22: 46.57367209 | AN22: 46.57367209 | AO22: 46.57367209 | AQ22: =Annuity!C35 -> 150W Metal Halide - STANDARD | AR22: ='TC3'!K31+'TC3'!K188 -> 54.63222316 | AS22: ='TC3'!L31+'TC3'!L188 -> 54.80704628 | AT22: ='TC3'!M31+'TC3'!M188 -> 55.03723587 | AU22: ='TC3'!N31+'TC3'!N188 -> 55.26839226 | AV22: ='TC3'!O31+'TC3'!O188 -> 55.48946583 | AX22: ='TC3'!K346 -> 33.27964839 | AY22: ='TC3'!L346 -> 32.9754724 | AZ22: ='TC3'!M346 -> 32.70870083 | BA22: ='TC3'!N346 -> 32.44408744 | BB22: ='TC3'!O346 -> 32.17480152 | BD22: 101.7240814 | BE22: 87.91187155 | BF22: 87.78251868 | BG22: 87.7459367 | BH22: 87.7124797 | BI22: 87.66426735 | BK22: 150W Metal Halide - STANDARD | BL22: ='TC4'!L28 -> 8.827063629 | BM22: ='TC4'!M28 -> 8.855310232 | BN22: ='TC4'!N28 -> 8.892502535 | BO22: ='TC4'!O28 -> 8.929851046 | BP22: ='TC4'!P28 -> 8.96557045 | BR22: 33.27964839 | BS22: 32.9754724 | BT22: 32.70870083 | BU22: 32.44408744 | BV22: 32.17480152 | BX22: 66.33649684 | BY22: 42.10671202 | BZ22: 41.83078264 | CA22: 41.60120337 | CB22: 41.37393849 | CC22: 41.14037197 | CE22: 250W Mercury | CF22: ='TC5'!E643 -> 42.23494029 | CG22: ='TC5'!F643 -> 37.7492939 | CH22: ='TC5'!G643 -> 33.25664374 | CI22: ='TC5'!H643 -> 28.75677989 | CJ22: ='TC5'!I643 -> 24.24949538 | CL22: =Output!BK22 -> 150W Metal Halide - STANDARD | CM22: ='TC5'!K178 -> 495.3502019 | CN22: ='TC5'!L178 -> 448.296325 | CO22: ='TC5'!M178 -> 404.5143716 | CP22: ='TC5'!N178 -> 363.776826 | CQ22: ='TC5'!O178 -> 325.8795426 | CR22: ='TC5'!P178 -> 290.7649539 | CS22: ='TC5'!Q178 -> 258.2287341 | CT22: ='TC5'!R178 -> 228.0815606 | CU22: ='TC5'!S178 -> 200.1480123 | CV22: ='TC5'!T178 -> 174.2655485 | CW22: ='TC5'!U178 -> 150.2835639 | CX22: ='TC5'!V178 -> 128.0625112 | CY22: ='TC5'!W178 -> 107.4730902 | CZ22: ='TC5'!X178 -> 88.39549439 | DA22: ='TC5'!Y178 -> 70.71871471 | DB22: ='TC5'!Z178 -> 54.33989297 | DC22: ='TC5'!AA178 -> 39.16372366 | DD22: ='TC5'!AB178 -> 25.10189926 | DE22: ='TC5'!AC178 -> 12.07259646 | DF22: ='TC5'!AD178 -> 0 | DG22: ='TC5'!AE178 -> 0 | DH22: ='TC5'!AF178 -> 0 | DI22: ='TC5'!AG178 -> 0 | DJ22: ='TC5'!AH178 -> 0 | DK22: ='TC5'!AI178 -> 0 | DL22: ='TC5'!AJ178 -> 0 | DM22: ='TC5'!AK178 -> 0 | DN22: ='TC5'!AL178 -> 0 | DO22: ='TC5'!AM178 -> 0 | DP22: ='TC5'!AN178 -> 0 | DQ22: ='TC5'!AO178 -> 0 | DR22: ='TC5'!AP178 -> 0 | DS22: ='TC5'!AQ178 -> 0 | DT22: ='TC5'!AR178 -> 0 | DU22: ='TC5'!AS178 -> 0 | DV22: ='TC5'!AT178 -> 0 | DW22: ='TC5'!AU178 -> 0 | DX22: ='TC5'!AV178 -> 0 | DY22: ='TC5'!AW178 -> 0 | DZ22: ='TC5'!AX178 -> 0 | EA22: ='TC5'!AY178 -> 0 | EB22: ='TC5'!AZ178 -> 0 | EC22: ='TC5'!BA178 -> 0 | ED22: ='TC5'!BB178 -> 0 | EE22: ='TC5'!BC178 -> 0 | EF22: ='TC5'!BD178 -> 0 | EG22: ='TC5'!BE178 -> 0 | EH22: ='TC5'!BF178 -> 0 | EI22: ='TC5'!BG178 -> 0 | EJ22: ='TC5'!BH178 -> 0 | EL22: 150W Metal Halide - STANDARD | EM22: ='TC5'!K486 -> 80.03495917 | EN22: ='TC5'!L486 -> 72.43234774 | EO22: ='TC5'!M486 -> 65.35838906 | EP22: ='TC5'!N486 -> 58.7763229 | EQ22: ='TC5'!O486 -> 52.65316495 | ER22: ='TC5'!P486 -> 46.97961387 | ES22: ='TC5'!Q486 -> 41.72265624 | ET22: ='TC5'!R486 -> 36.85170274 | EU22: ='TC5'!S486 -> 32.33841014 | EV22: ='TC5'!T486 -> 28.15651636 | EW22: ='TC5'!U486 -> 24.28168769 | EX22: ='TC5'!V486 -> 20.69137717 | EY22: ='TC5'!W486 -> 17.3646934 | EZ22: ='TC5'!X486 -> 14.282279 | FA22: ='TC5'!Y486 -> 11.42619792 | FB22: ='TC5'!Z486 -> 8.779831116 | FC22: ='TC5'!AA486 -> 6.327779846 | FD22: ='TC5'!AB486 -> 4.055776045 | FE22: ='TC5'!AC486 -> 1.950599316 | FF22: ='TC5'!AD486 -> 0 | FG22: ='TC5'!AE486 -> 0 | FH22: ='TC5'!AF486 -> 0 | FI22: ='TC5'!AG486 -> 0 | FJ22: ='TC5'!AH486 -> 0 | FK22: ='TC5'!AI486 -> 0 | FL22: ='TC5'!AJ486 -> 0 | FM22: ='TC5'!AK486 -> 0 | FN22: ='TC5'!AL486 -> 0 | FO22: ='TC5'!AM486 -> 0 | FP22: ='TC5'!AN486 -> 0 | FQ22: ='TC5'!AO486 -> 0 | FR22: ='TC5'!AP486 -> 0 | FS22: ='TC5'!AQ486 -> 0 | FT22: ='TC5'!AR486 -> 0 | FU22: ='TC5'!AS486 -> 0 | FV22: ='TC5'!AT486 -> 0 | FW22: ='TC5'!AU486 -> 0 | FX22: ='TC5'!AV486 -> 0 | FY22: ='TC5'!AW486 -> 0 | FZ22: ='TC5'!AX486 -> 0 | GA22: ='TC5'!AY486 -> 0 | GB22: ='TC5'!AZ486 -> 0 | GC22: ='TC5'!BA486 -> 0 | GD22: ='TC5'!BB486 -> 0 | GE22: ='TC5'!BC486 -> 0 | GF22: ='TC5'!BD486 -> 0 | GG22: ='TC5'!BE486 -> 0 | GH22: ='TC5'!BF486 -> 0 | GI22: ='TC5'!BG486 -> 0 | GJ22: ='TC5'!BH486 -> 0
B23: 0 | C23: 13 | D23: 2 x 250W Mercury | E23: 0 | F23: 0 | G23: 0 | H23: 0 | I23: 0 | K23: 13 | L23: 54.27366638 | M23: 54.27366638 | N23: 54.27366638 | O23: 54.27366638 | P23: 54.27366638 | R23: 54.27366638 | S23: 54.27366638 | T23: 54.27366638 | U23: 54.27366638 | V23: 54.27366638 | X23: 2 x 250W Mercury | Y23: ='Tariff Smoothing - real'!N23 -> 117.5363636 | Z23: ='Tariff Smoothing - real'!O23 -> 0 | AA23: ='Tariff Smoothing - real'!P23 -> 0 | AB23: ='Tariff Smoothing - real'!Q23 -> 0 | AC23: ='Tariff Smoothing - real'!R23 -> 0 | AE23: ='Tariff Smoothing - real'!AE23 -> 0 | AF23: ='Tariff Smoothing - real'!AF23 -> 43.50343119 | AG23: ='Tariff Smoothing - real'!AG23 -> 43.50343119 | AH23: ='Tariff Smoothing - real'!AH23 -> 43.50343119 | AI23: ='Tariff Smoothing - real'!AI23 -> 43.50343119 | AK23: 117.5363636 | AL23: 43.50343119 | AM23: 43.50343119 | AN23: 43.50343119 | AO23: 43.50343119 | AQ23: =Annuity!C36 -> 250W Sodium - STANDARD | AR23: ='TC3'!K32+'TC3'!K189 -> 50.88594243 | AS23: ='TC3'!L32+'TC3'!L189 -> 51.04877745 | AT23: ='TC3'!M32+'TC3'!M189 -> 51.26318231 | AU23: ='TC3'!N32+'TC3'!N189 -> 51.47848768 | AV23: ='TC3'!O32+'TC3'!O189 -> 51.68440163 | AX23: ='TC3'!K347 -> 35.71757264 | AY23: ='TC3'!L347 -> 35.39111403 | AZ23: ='TC3'!M347 -> 35.10479991 | BA23: ='TC3'!N347 -> 34.82080208 | BB23: ='TC3'!O347 -> 34.53178943 | BD23: 95.27600967 | BE23: 86.60351507 | BF23: 86.43989147 | BG23: 86.36798223 | BH23: 86.29928976 | BI23: 86.21619105 | BK23: 250W Sodium - STANDARD | BL23: ='TC4'!L29 -> 8.221767771 | BM23: ='TC4'!M29 -> 8.248077428 | BN23: ='TC4'!N29 -> 8.282719353 | BO23: ='TC4'!O29 -> 8.317506774 | BP23: ='TC4'!P29 -> 8.350776801 | BR23: 35.71757264 | BS23: 35.39111403 | BT23: 35.10479991 | BU23: 34.82080208 | BV23: 34.53178943 | BX23: 59.97210605 | BY23: 43.93934041 | BZ23: 43.63919145 | CA23: 43.38751927 | CB23: 43.13830886 | CC23: 42.88256623 | CE23: 2 x 250W Mercury | CF23: ='TC5'!E644 -> 0 | CG23: ='TC5'!F644 -> 0 | CH23: ='TC5'!G644 -> 0 | CI23: ='TC5'!H644 -> 0 | CJ23: ='TC5'!I644 -> 0 | CL23: =Output!BK23 -> 250W Sodium - STANDARD | CM23: ='TC5'!K179 -> 461.3826858 | CN23: ='TC5'!L179 -> 417.5554218 | CO23: ='TC5'!M179 -> 376.7757165 | CP23: ='TC5'!N179 -> 338.8316556 | CQ23: ='TC5'!O179 -> 303.5330925 | CR23: ='TC5'!P179 -> 270.826407 | CS23: ='TC5'!Q179 -> 240.5212846 | CT23: ='TC5'!R179 -> 212.4413852 | CU23: ='TC5'!S179 -> 186.4233165 | CV23: ='TC5'!T179 -> 162.315684 | CW23: ='TC5'!U179 -> 139.9782095 | CX23: ='TC5'!V179 -> 119.2809151 | CY23: ='TC5'!W179 -> 100.1033669 | CZ23: ='TC5'!X179 -> 82.33397396 | DA23: ='TC5'!Y179 -> 65.86933932 | DB23: ='TC5'!Z179 -> 50.61365812 | DC23: ='TC5'!AA179 -> 36.47816018 | DD23: ='TC5'!AB179 -> 23.38059348 | DE23: ='TC5'!AC179 -> 11.24474555 | DF23: ='TC5'!AD179 -> 0 | DG23: ='TC5'!AE179 -> 0 | DH23: ='TC5'!AF179 -> 0 | DI23: ='TC5'!AG179 -> 0 | DJ23: ='TC5'!AH179 -> 0 | DK23: ='TC5'!AI179 -> 0 | DL23: ='TC5'!AJ179 -> 0 | DM23: ='TC5'!AK179 -> 0 | DN23: ='TC5'!AL179 -> 0 | DO23: ='TC5'!AM179 -> 0 | DP23: ='TC5'!AN179 -> 0 | DQ23: ='TC5'!AO179 -> 0 | DR23: ='TC5'!AP179 -> 0 | DS23: ='TC5'!AQ179 -> 0 | DT23: ='TC5'!AR179 -> 0 | DU23: ='TC5'!AS179 -> 0 | DV23: ='TC5'!AT179 -> 0 | DW23: ='TC5'!AU179 -> 0 | DX23: ='TC5'!AV179 -> 0 | DY23: ='TC5'!AW179 -> 0 | DZ23: ='TC5'!AX179 -> 0 | EA23: ='TC5'!AY179 -> 0 | EB23: ='TC5'!AZ179 -> 0 | EC23: ='TC5'!BA179 -> 0 | ED23: ='TC5'!BB179 -> 0 | EE23: ='TC5'!BC179 -> 0 | EF23: ='TC5'!BD179 -> 0 | EG23: ='TC5'!BE179 -> 0 | EH23: ='TC5'!BF179 -> 0 | EI23: ='TC5'!BG179 -> 0 | EJ23: ='TC5'!BH179 -> 0 | EL23: 250W Sodium - STANDARD | EM23: ='TC5'!K487 -> 74.54674346 | EN23: ='TC5'!L487 -> 67.46546385 | EO23: ='TC5'!M487 -> 60.87658584 | EP23: ='TC5'!N487 -> 54.74586994 | EQ23: ='TC5'!O487 -> 49.04259365 | ER23: ='TC5'!P487 -> 43.75809346 | ES23: ='TC5'!Q487 -> 38.86161977 | ET23: ='TC5'!R487 -> 34.32468085 | EU23: ='TC5'!S487 -> 30.12087705 | EV23: ='TC5'!T487 -> 26.22574714 | EW23: ='TC5'!U487 -> 22.61662605 | EX23: ='TC5'!V487 -> 19.27251293 | EY23: ='TC5'!W487 -> 16.17394896 | EZ23: ='TC5'!X487 -> 13.30290413 | FA23: ='TC5'!Y487 -> 10.64267232 | FB23: ='TC5'!Z487 -> 8.17777412 | FC23: ='TC5'!AA487 -> 5.893866702 | FD23: ='TC5'!AB487 -> 3.777660406 | FE23: ='TC5'!AC487 -> 1.816841394 | FF23: ='TC5'!AD487 -> 0 | FG23: ='TC5'!AE487 -> 0 | FH23: ='TC5'!AF487 -> 0 | FI23: ='TC5'!AG487 -> 0 | FJ23: ='TC5'!AH487 -> 0 | FK23: ='TC5'!AI487 -> 0 | FL23: ='TC5'!AJ487 -> 0 | FM23: ='TC5'!AK487 -> 0 | FN23: ='TC5'!AL487 -> 0 | FO23: ='TC5'!AM487 -> 0 | FP23: ='TC5'!AN487 -> 0 | FQ23: ='TC5'!AO487 -> 0 | FR23: ='TC5'!AP487 -> 0 | FS23: ='TC5'!AQ487 -> 0 | FT23: ='TC5'!AR487 -> 0 | FU23: ='TC5'!AS487 -> 0 | FV23: ='TC5'!AT487 -> 0 | FW23: ='TC5'!AU487 -> 0 | FX23: ='TC5'!AV487 -> 0 | FY23: ='TC5'!AW487 -> 0 | FZ23: ='TC5'!AX487 -> 0 | GA23: ='TC5'!AY487 -> 0 | GB23: ='TC5'!AZ487 -> 0 | GC23: ='TC5'!BA487 -> 0 | GD23: ='TC5'!BB487 -> 0 | GE23: ='TC5'!BC487 -> 0 | GF23: ='TC5'!BD487 -> 0 | GG23: ='TC5'!BE487 -> 0 | GH23: ='TC5'!BF487 -> 0 | GI23: ='TC5'!BG487 -> 0 | GJ23: ='TC5'!BH487 -> 0
B24: 0 | C24: 14 | D24: 400 W Mercury | E24: 6.98062124 | F24: 6.53094 | G24: 6.087720605 | H24: 5.65080545 | I24: 5.220040773 | K24: 14 | L24: 52.97366638 | M24: 52.97366638 | N24: 52.97366638 | O24: 52.97366638 | P24: 52.97366638 | R24: 59.95428762 | S24: 59.50460638 | T24: 59.06138698 | U24: 58.62447183 | V24: 58.19370715 | X24: 400 W Mercury | Y24: ='Tariff Smoothing - real'!N24 -> 17.85454545 | Z24: ='Tariff Smoothing - real'!O24 -> 4.735005686 | AA24: ='Tariff Smoothing - real'!P24 -> 4.735005686 | AB24: ='Tariff Smoothing - real'!Q24 -> 4.735005686 | AC24: ='Tariff Smoothing - real'!R24 -> 4.735005686 | AE24: ='Tariff Smoothing - real'!AE24 -> 44.85454545 | AF24: ='Tariff Smoothing - real'!AF24 -> 42.46140723 | AG24: ='Tariff Smoothing - real'!AG24 -> 42.46140723 | AH24: ='Tariff Smoothing - real'!AH24 -> 42.46140723 | AI24: ='Tariff Smoothing - real'!AI24 -> 42.46140723 | AK24: 62.70909091 | AL24: 47.19641292 | AM24: 47.19641292 | AN24: 47.19641292 | AO24: 47.19641292 | AQ24: =Annuity!C37 -> 250W Metal Halide - STANDARD | AR24: ='TC3'!K33+'TC3'!K190 -> 51.67775228 | AS24: ='TC3'!L33+'TC3'!L190 -> 51.84312109 | AT24: ='TC3'!M33+'TC3'!M190 -> 52.0608622 | AU24: ='TC3'!N33+'TC3'!N190 -> 52.27951782 | AV24: ='TC3'!O33+'TC3'!O190 -> 52.48863589 | AX24: ='TC3'!K348 -> 39.21976839 | AY24: ='TC3'!L348 -> 38.86129971 | AZ24: ='TC3'!M348 -> 38.54691179 | BA24: ='TC3'!N348 -> 38.23506728 | BB24: ='TC3'!O348 -> 37.91771622 | BD24: 109.8729596 | BE24: 90.89752068 | BF24: 90.7044208 | BG24: 90.60777399 | BH24: 90.5145851 | BI24: 90.40635211 | BK24: 250W Metal Halide - STANDARD | BL24: ='TC4'!L30 -> 8.34970245 | BM24: ='TC4'!M30 -> 8.376421498 | BN24: ='TC4'!N30 -> 8.411602468 | BO24: ='TC4'!O30 -> 8.446931199 | BP24: ='TC4'!P30 -> 8.480718923 | BR24: 39.21976839 | BS24: 38.86129971 | BT24: 38.54691179 | BU24: 38.23506728 | BV24: 37.91771622 | BX24: 74.56905599 | BY24: 47.56947084 | BZ24: 47.23772121 | CA24: 46.95851426 | CB24: 46.68199848 | CC24: 46.39843514 | CE24: 400 W Mercury | CF24: ='TC5'!E645 -> 50.0429535 | CG24: ='TC5'!F645 -> 44.39758427 | CH24: ='TC5'!G645 -> 38.64507989 | CI24: ='TC5'!H645 -> 32.77792541 | CJ24: ='TC5'!I645 -> 26.78813514 | CL24: =Output!BK24 -> 250W Metal Halide - STANDARD | CM24: ='TC5'!K180 -> 468.5620234 | CN24: ='TC5'!L180 -> 424.052786 | CO24: ='TC5'!M180 -> 382.6385287 | CP24: ='TC5'!N180 -> 344.1040399 | CQ24: ='TC5'!O180 -> 308.2562141 | CR24: ='TC5'!P180 -> 275.0405968 | CS24: ='TC5'!Q180 -> 244.2639121 | CT24: ='TC5'!R180 -> 215.7470758 | CU24: ='TC5'!S180 -> 189.3241534 | CV24: ='TC5'!T180 -> 164.8413945 | CW24: ='TC5'!U180 -> 142.1563381 | CX24: ='TC5'!V180 -> 121.1369838 | CY24: ='TC5'!W180 -> 101.6610236 | CZ24: ='TC5'!X180 -> 83.61513038 | DA24: ='TC5'!Y180 -> 66.89429807 | DB24: ='TC5'!Z180 -> 51.4012311 | DC24: ='TC5'!AA180 -> 37.04577798 | DD24: ='TC5'!AB180 -> 23.74440681 | DE24: ='TC5'!AC180 -> 11.41971923 | DF24: ='TC5'!AD180 -> 0 | DG24: ='TC5'!AE180 -> 0 | DH24: ='TC5'!AF180 -> 0 | DI24: ='TC5'!AG180 -> 0 | DJ24: ='TC5'!AH180 -> 0 | DK24: ='TC5'!AI180 -> 0 | DL24: ='TC5'!AJ180 -> 0 | DM24: ='TC5'!AK180 -> 0 | DN24: ='TC5'!AL180 -> 0 | DO24: ='TC5'!AM180 -> 0 | DP24: ='TC5'!AN180 -> 0 | DQ24: ='TC5'!AO180 -> 0 | DR24: ='TC5'!AP180 -> 0 | DS24: ='TC5'!AQ180 -> 0 | DT24: ='TC5'!AR180 -> 0 | DU24: ='TC5'!AS180 -> 0 | DV24: ='TC5'!AT180 -> 0 | DW24: ='TC5'!AU180 -> 0 | DX24: ='TC5'!AV180 -> 0 | DY24: ='TC5'!AW180 -> 0 | DZ24: ='TC5'!AX180 -> 0 | EA24: ='TC5'!AY180 -> 0 | EB24: ='TC5'!AZ180 -> 0 | EC24: ='TC5'!BA180 -> 0 | ED24: ='TC5'!BB180 -> 0 | EE24: ='TC5'!BC180 -> 0 | EF24: ='TC5'!BD180 -> 0 | EG24: ='TC5'!BE180 -> 0 | EH24: ='TC5'!BF180 -> 0 | EI24: ='TC5'!BG180 -> 0 | EJ24: ='TC5'!BH180 -> 0 | EL24: 250W Metal Halide - STANDARD | EM24: ='TC5'!K488 -> 75.70672681 | EN24: ='TC5'!L488 -> 68.51525907 | EO24: ='TC5'!M488 -> 61.82385493 | EP24: ='TC5'!N488 -> 55.59774213 | EQ24: ='TC5'!O488 -> 49.8057201 | ER24: ='TC5'!P488 -> 44.43899053 | ES24: ='TC5'!Q488 -> 39.46632535 | ET24: ='TC5'!R488 -> 34.85878947 | EU24: ='TC5'!S488 -> 30.58957245 | EV24: ='TC5'!T488 -> 26.63383244 | EW24: ='TC5'!U488 -> 22.96855168 | EX24: ='TC5'!V488 -> 19.57240254 | EY24: ='TC5'!W488 -> 16.42562342 | EZ24: ='TC5'!X488 -> 13.50990374 | FA24: ='TC5'!Y488 -> 10.80827745 | FB24: ='TC5'!Z488 -> 8.305024237 | FC24: ='TC5'!AA488 -> 5.985578116 | FD24: ='TC5'!AB488 -> 3.836442627 | FE24: ='TC5'!AC488 -> 1.845112324 | FF24: ='TC5'!AD488 -> 0 | FG24: ='TC5'!AE488 -> 0 | FH24: ='TC5'!AF488 -> 0 | FI24: ='TC5'!AG488 -> 0 | FJ24: ='TC5'!AH488 -> 0 | FK24: ='TC5'!AI488 -> 0 | FL24: ='TC5'!AJ488 -> 0 | FM24: ='TC5'!AK488 -> 0 | FN24: ='TC5'!AL488 -> 0 | FO24: ='TC5'!AM488 -> 0 | FP24: ='TC5'!AN488 -> 0 | FQ24: ='TC5'!AO488 -> 0 | FR24: ='TC5'!AP488 -> 0 | FS24: ='TC5'!AQ488 -> 0 | FT24: ='TC5'!AR488 -> 0 | FU24: ='TC5'!AS488 -> 0 | FV24: ='TC5'!AT488 -> 0 | FW24: ='TC5'!AU488 -> 0 | FX24: ='TC5'!AV488 -> 0 | FY24: ='TC5'!AW488 -> 0 | FZ24: ='TC5'!AX488 -> 0 | GA24: ='TC5'!AY488 -> 0 | GB24: ='TC5'!AZ488 -> 0 | GC24: ='TC5'!BA488 -> 0 | GD24: ='TC5'!BB488 -> 0 | GE24: ='TC5'!BC488 -> 0 | GF24: ='TC5'!BD488 -> 0 | GG24: ='TC5'!BE488 -> 0 | GH24: ='TC5'!BF488 -> 0 | GI24: ='TC5'!BG488 -> 0 | GJ24: ='TC5'!BH488 -> 0
B25: 0 | C25: 15 | D25: 700 W Mercury | E25: 0 | F25: 0 | G25: 0 | H25: 0 | I25: 0 | K25: 15 | L25: 0 | M25: 0 | N25: 0 | O25: 0 | P25: 0 | R25: 0 | S25: 0 | T25: 0 | U25: 0 | V25: 0 | X25: 700 W Mercury | Y25: ='Tariff Smoothing - real'!N25 -> 62.70909091 | Z25: ='Tariff Smoothing - real'!O25 -> 0 | AA25: ='Tariff Smoothing - real'!P25 -> 0 | AB25: ='Tariff Smoothing - real'!Q25 -> 0 | AC25: ='Tariff Smoothing - real'!R25 -> 0 | AE25: ='Tariff Smoothing - real'!AE25 -> 0 | AF25: ='Tariff Smoothing - real'!AF25 -> 0 | AG25: ='Tariff Smoothing - real'!AG25 -> 0 | AH25: ='Tariff Smoothing - real'!AH25 -> 0 | AI25: ='Tariff Smoothing - real'!AI25 -> 0 | AK25: 62.70909091 | AL25: 0 | AM25: 0 | AN25: 0 | AO25: 0 | AQ25: =Annuity!C38 -> 400W Sodium - STANDARD | AR25: ='TC3'!K34+'TC3'!K191 -> 54.75075175 | AS25: ='TC3'!L34+'TC3'!L191 -> 54.92595416 | AT25: ='TC3'!M34+'TC3'!M191 -> 55.15664317 | AU25: ='TC3'!N34+'TC3'!N191 -> 55.38830107 | AV25: ='TC3'!O34+'TC3'!O191 -> 55.60985427 | AX25: ='TC3'!K349 -> 35.97745289 | AY25: ='TC3'!L349 -> 35.64861897 | AZ25: ='TC3'!M349 -> 35.36022164 | BA25: ='TC3'!N349 -> 35.07415745 | BB25: ='TC3'!O349 -> 34.78304194 | BD25: 103.993512 | BE25: 90.72820464 | BF25: 90.57457313 | BG25: 90.51686481 | BH25: 90.46245852 | BI25: 90.39289622 | BK25: 400W Sodium - STANDARD | BL25: ='TC4'!L31 -> 8.846214587 | BM25: ='TC4'!M31 -> 8.874522473 | BN25: ='TC4'!N31 -> 8.911795468 | BO25: ='TC4'!O31 -> 8.949225009 | BP25: ='TC4'!P31 -> 8.985021909 | BR25: 35.97745289 | BS25: 35.64861897 | BT25: 35.36022164 | BU25: 35.07415745 | BV25: 34.78304194 | BX25: 68.56210871 | BY25: 44.82366748 | BZ25: 44.52314144 | CA25: 44.27201711 | CB25: 44.02338246 | CC25: 43.76806385 | CE25: 700 W Mercury | CF25: ='TC5'!E646 -> 0 | CG25: ='TC5'!F646 -> 0 | CH25: ='TC5'!G646 -> 0 | CI25: ='TC5'!H646 -> 0 | CJ25: ='TC5'!I646 -> 0 | CL25: =Output!BK25 -> 400W Sodium - STANDARD | CM25: ='TC5'!K181 -> 496.4249002 | CN25: ='TC5'!L181 -> 449.2689366 | CO25: ='TC5'!M181 -> 405.391995 | CP25: ='TC5'!N181 -> 364.5660663 | CQ25: ='TC5'!O181 -> 326.586562 | CR25: ='TC5'!P181 -> 291.3957897 | CS25: ='TC5'!Q181 -> 258.7889802 | CT25: ='TC5'!R181 -> 228.5764002 | CU25: ='TC5'!S181 -> 200.582248 | CV25: ='TC5'!T181 -> 174.6436303 | CW25: ='TC5'!U181 -> 150.609615 | CX25: ='TC5'!V181 -> 128.3403522 | CY25: ='TC5'!W181 -> 107.7062609 | CZ25: ='TC5'!X181 -> 88.58727487 | DA25: ='TC5'!Y181 -> 70.87214412 | DB25: ='TC5'!Z181 -> 54.45778733 | DC25: ='TC5'!AA181 -> 39.24869221 | DD25: ='TC5'!AB181 -> 25.15635966 | DE25: ='TC5'!AC181 -> 12.09878884 | DF25: ='TC5'!AD181 -> 0 | DG25: ='TC5'!AE181 -> 0 | DH25: ='TC5'!AF181 -> 0 | DI25: ='TC5'!AG181 -> 0 | DJ25: ='TC5'!AH181 -> 0 | DK25: ='TC5'!AI181 -> 0 | DL25: ='TC5'!AJ181 -> 0 | DM25: ='TC5'!AK181 -> 0 | DN25: ='TC5'!AL181 -> 0 | DO25: ='TC5'!AM181 -> 0 | DP25: ='TC5'!AN181 -> 0 | DQ25: ='TC5'!AO181 -> 0 | DR25: ='TC5'!AP181 -> 0 | DS25: ='TC5'!AQ181 -> 0 | DT25: ='TC5'!AR181 -> 0 | DU25: ='TC5'!AS181 -> 0 | DV25: ='TC5'!AT181 -> 0 | DW25: ='TC5'!AU181 -> 0 | DX25: ='TC5'!AV181 -> 0 | DY25: ='TC5'!AW181 -> 0 | DZ25: ='TC5'!AX181 -> 0 | EA25: ='TC5'!AY181 -> 0 | EB25: ='TC5'!AZ181 -> 0 | EC25: ='TC5'!BA181 -> 0 | ED25: ='TC5'!BB181 -> 0 | EE25: ='TC5'!BC181 -> 0 | EF25: ='TC5'!BD181 -> 0 | EG25: ='TC5'!BE181 -> 0 | EH25: ='TC5'!BF181 -> 0 | EI25: ='TC5'!BG181 -> 0 | EJ25: ='TC5'!BH181 -> 0 | EL25: 400W Sodium - STANDARD | EM25: ='TC5'!K489 -> 80.20860085 | EN25: ='TC5'!L489 -> 72.58949499 | EO25: ='TC5'!M489 -> 65.50018885 | EP25: ='TC5'!N489 -> 58.90384242 | EQ25: ='TC5'!O489 -> 52.76739983 | ER25: ='TC5'!P489 -> 47.08153957 | ES25: ='TC5'!Q489 -> 41.81317659 | ET25: ='TC5'!R489 -> 36.9316552 | EU25: ='TC5'!S489 -> 32.40857068 | EV25: ='TC5'!T489 -> 28.21760397 | EW25: ='TC5'!U489 -> 24.33436858 | EX25: ='TC5'!V489 -> 20.73626862 | EY25: ='TC5'!W489 -> 17.40236737 | EZ25: ='TC5'!X489 -> 14.31326544 | FA25: ='TC5'!Y489 -> 11.45098789 | FB25: ='TC5'!Z489 -> 8.798879599 | FC25: ='TC5'!AA489 -> 6.341508426 | FD25: ='TC5'!AB489 -> 4.064575347 | FE25: ='TC5'!AC489 -> 1.954831283 | FF25: ='TC5'!AD489 -> 0 | FG25: ='TC5'!AE489 -> 0 | FH25: ='TC5'!AF489 -> 0 | FI25: ='TC5'!AG489 -> 0 | FJ25: ='TC5'!AH489 -> 0 | FK25: ='TC5'!AI489 -> 0 | FL25: ='TC5'!AJ489 -> 0 | FM25: ='TC5'!AK489 -> 0 | FN25: ='TC5'!AL489 -> 0 | FO25: ='TC5'!AM489 -> 0 | FP25: ='TC5'!AN489 -> 0 | FQ25: ='TC5'!AO489 -> 0 | FR25: ='TC5'!AP489 -> 0 | FS25: ='TC5'!AQ489 -> 0 | FT25: ='TC5'!AR489 -> 0 | FU25: ='TC5'!AS489 -> 0 | FV25: ='TC5'!AT489 -> 0 | FW25: ='TC5'!AU489 -> 0 | FX25: ='TC5'!AV489 -> 0 | FY25: ='TC5'!AW489 -> 0 | FZ25: ='TC5'!AX489 -> 0 | GA25: ='TC5'!AY489 -> 0 | GB25: ='TC5'!AZ489 -> 0 | GC25: ='TC5'!BA489 -> 0 | GD25: ='TC5'!BB489 -> 0 | GE25: ='TC5'!BC489 -> 0 | GF25: ='TC5'!BD489 -> 0 | GG25: ='TC5'!BE489 -> 0 | GH25: ='TC5'!BF489 -> 0 | GI25: ='TC5'!BG489 -> 0 | GJ25: ='TC5'!BH489 -> 0
B26: 0 | C26: 16 | D26: 50W Sodium | E26: 0 | F26: 0 | G26: 0 | H26: 0 | I26: 0 | K26: 16 | L26: 54.06116638 | M26: 54.06116638 | N26: 54.06116638 | O26: 54.06116638 | P26: 54.06116638 | R26: 54.06116638 | S26: 54.06116638 | T26: 54.06116638 | U26: 54.06116638 | V26: 54.06116638 | X26: 50W Sodium | Y26: ='Tariff Smoothing - real'!N26 -> 15.6195122 | Z26: ='Tariff Smoothing - real'!O26 -> 0 | AA26: ='Tariff Smoothing - real'!P26 -> 0 | AB26: ='Tariff Smoothing - real'!Q26 -> 0 | AC26: ='Tariff Smoothing - real'!R26 -> 0 | AE26: ='Tariff Smoothing - real'!AE26 -> 44.41818182 | AF26: ='Tariff Smoothing - real'!AF26 -> 43.33310035 | AG26: ='Tariff Smoothing - real'!AG26 -> 43.33310035 | AH26: ='Tariff Smoothing - real'!AH26 -> 43.33310035 | AI26: ='Tariff Smoothing - real'!AI26 -> 43.33310035 | AK26: 60.03769402 | AL26: 43.33310035 | AM26: 43.33310035 | AN26: 43.33310035 | AO26: 43.33310035 | AQ26: =Annuity!C39 -> 80W Mercury - AEROSCREEN | AR26: ='TC3'!K35+'TC3'!K192 -> 40.82461379 | AS26: ='TC3'!L35+'TC3'!L192 -> 40.95525255 | AT26: ='TC3'!M35+'TC3'!M192 -> 41.12726461 | AU26: ='TC3'!N35+'TC3'!N192 -> 41.29999912 | AV26: ='TC3'!O35+'TC3'!O192 -> 41.46519912 | AX26: ='TC3'!K350 -> 34.56667439 | AY26: ='TC3'!L350 -> 34.25073499 | AZ26: ='TC3'!M350 -> 33.97364654 | BA26: ='TC3'!N350 -> 33.69879974 | BB26: ='TC3'!O350 -> 33.4190997 | BD26: 78.5154771 | BE26: 75.39128818 | BF26: 75.20598754 | BG26: 75.10091115 | BH26: 74.99879886 | BI26: 74.88429882 | BK26: 80W Mercury - AEROSCREEN | BL26: ='TC4'!L32 -> 6.596133978 | BM26: ='TC4'!M32 -> 6.617241607 | BN26: ='TC4'!N32 -> 6.645034022 | BO26: ='TC4'!O32 -> 6.672943165 | BP26: ='TC4'!P32 -> 6.699634937 | BR26: 34.56667439 | BS26: 34.25073499 | BT26: 33.97364654 | BU26: 33.69879974 | BV26: 33.4190997 | BX26: 49.53322876 | BY26: 41.16280837 | BZ26: 40.86797659 | CA26: 40.61868056 | CB26: 40.37174291 | CC26: 40.11873464 | CE26: 50W Sodium | CF26: ='TC5'!E647 -> 0 | CG26: ='TC5'!F647 -> 0 | CH26: ='TC5'!G647 -> 0 | CI26: ='TC5'!H647 -> 0 | CJ26: ='TC5'!I647 -> 0 | CL26: =Output!BK26 -> 80W Mercury - AEROSCREEN | CM26: ='TC5'!K182 -> 370.1566495 | CN26: ='TC5'!L182 -> 334.99505 | CO26: ='TC5'!M182 -> 302.2784363 | CP26: ='TC5'!N182 -> 271.8367946 | CQ26: ='TC5'!O182 -> 243.5175744 | CR26: ='TC5'!P182 -> 217.2777577 | CS26: ='TC5'!Q182 -> 192.9646595 | CT26: ='TC5'!R182 -> 170.4368061 | CU26: ='TC5'!S182 -> 149.5631118 | CV26: ='TC5'!T182 -> 130.2221162 | CW26: ='TC5'!U182 -> 112.3012775 | CX26: ='TC5'!V182 -> 95.69631727 | CY26: ='TC5'!W182 -> 80.31061421 | CZ26: ='TC5'!X182 -> 66.05464157 | DA26: ='TC5'!Y182 -> 52.8454463 | DB26: ='TC5'!Z182 -> 40.60616639 | DC26: ='TC5'!AA182 -> 29.26558357 | DD26: ='TC5'!AB182 -> 18.75770897 | DE26: ='TC5'!AC182 -> 9.021399084 | DF26: ='TC5'!AD182 -> 0 | DG26: ='TC5'!AE182 -> 0 | DH26: ='TC5'!AF182 -> 0 | DI26: ='TC5'!AG182 -> 0 | DJ26: ='TC5'!AH182 -> 0 | DK26: ='TC5'!AI182 -> 0 | DL26: ='TC5'!AJ182 -> 0 | DM26: ='TC5'!AK182 -> 0 | DN26: ='TC5'!AL182 -> 0 | DO26: ='TC5'!AM182 -> 0 | DP26: ='TC5'!AN182 -> 0 | DQ26: ='TC5'!AO182 -> 0 | DR26: ='TC5'!AP182 -> 0 | DS26: ='TC5'!AQ182 -> 0 | DT26: ='TC5'!AR182 -> 0 | DU26: ='TC5'!AS182 -> 0 | DV26: ='TC5'!AT182 -> 0 | DW26: ='TC5'!AU182 -> 0 | DX26: ='TC5'!AV182 -> 0 | DY26: ='TC5'!AW182 -> 0 | DZ26: ='TC5'!AX182 -> 0 | EA26: ='TC5'!AY182 -> 0 | EB26: ='TC5'!AZ182 -> 0 | EC26: ='TC5'!BA182 -> 0 | ED26: ='TC5'!BB182 -> 0 | EE26: ='TC5'!BC182 -> 0 | EF26: ='TC5'!BD182 -> 0 | EG26: ='TC5'!BE182 -> 0 | EH26: ='TC5'!BF182 -> 0 | EI26: ='TC5'!BG182 -> 0 | EJ26: ='TC5'!BH182 -> 0 | EL26: 80W Mercury - AEROSCREEN | EM26: ='TC5'!K490 -> 59.80712679 | EN26: ='TC5'!L490 -> 54.12598007 | EO26: ='TC5'!M490 -> 48.83987575 | EP26: ='TC5'!N490 -> 43.92134428 | EQ26: ='TC5'!O490 -> 39.34573773 | ER26: ='TC5'!P490 -> 35.10610554 | ES26: ='TC5'!Q490 -> 31.17777803 | ET26: ='TC5'!R490 -> 27.53789696 | EU26: ='TC5'!S490 -> 24.16528246 | EV26: ='TC5'!T490 -> 21.0403099 | EW26: ='TC5'!U490 -> 18.14479559 | EX26: ='TC5'!V490 -> 15.46189104 | EY26: ='TC5'!W490 -> 12.97598488 | EZ26: ='TC5'!X490 -> 10.67261207 | FA26: ='TC5'!Y490 -> 8.538369665 | FB26: ='TC5'!Z490 -> 6.560838891 | FC26: ='TC5'!AA490 -> 4.728512833 | FD26: ='TC5'!AB490 -> 3.030729505 | FE26: ='TC5'!AC490 -> 1.457609797 | FF26: ='TC5'!AD490 -> 0 | FG26: ='TC5'!AE490 -> 0 | FH26: ='TC5'!AF490 -> 0 | FI26: ='TC5'!AG490 -> 0 | FJ26: ='TC5'!AH490 -> 0 | FK26: ='TC5'!AI490 -> 0 | FL26: ='TC5'!AJ490 -> 0 | FM26: ='TC5'!AK490 -> 0 | FN26: ='TC5'!AL490 -> 0 | FO26: ='TC5'!AM490 -> 0 | FP26: ='TC5'!AN490 -> 0 | FQ26: ='TC5'!AO490 -> 0 | FR26: ='TC5'!AP490 -> 0 | FS26: ='TC5'!AQ490 -> 0 | FT26: ='TC5'!AR490 -> 0 | FU26: ='TC5'!AS490 -> 0 | FV26: ='TC5'!AT490 -> 0 | FW26: ='TC5'!AU490 -> 0 | FX26: ='TC5'!AV490 -> 0 | FY26: ='TC5'!AW490 -> 0 | FZ26: ='TC5'!AX490 -> 0 | GA26: ='TC5'!AY490 -> 0 | GB26: ='TC5'!AZ490 -> 0 | GC26: ='TC5'!BA490 -> 0 | GD26: ='TC5'!BB490 -> 0 | GE26: ='TC5'!BC490 -> 0 | GF26: ='TC5'!BD490 -> 0 | GG26: ='TC5'!BE490 -> 0 | GH26: ='TC5'!BF490 -> 0 | GI26: ='TC5'!BG490 -> 0 | GJ26: ='TC5'!BH490 -> 0
B27: 0 | C27: 17 | D27: 70W Sodium | E27: 0 | F27: 0 | G27: 0 | H27: 0 | I27: 0 | K27: 17 | L27: 54.06116638 | M27: 54.06116638 | N27: 54.06116638 | O27: 54.06116638 | P27: 54.06116638 | R27: 54.06116638 | S27: 54.06116638 | T27: 54.06116638 | U27: 54.06116638 | V27: 54.06116638 | X27: 70W Sodium | Y27: ='Tariff Smoothing - real'!N27 -> 15.61818182 | Z27: ='Tariff Smoothing - real'!O27 -> 0 | AA27: ='Tariff Smoothing - real'!P27 -> 0 | AB27: ='Tariff Smoothing - real'!Q27 -> 0 | AC27: ='Tariff Smoothing - real'!R27 -> 0 | AE27: ='Tariff Smoothing - real'!AE27 -> 44.41818182 | AF27: ='Tariff Smoothing - real'!AF27 -> 43.33310035 | AG27: ='Tariff Smoothing - real'!AG27 -> 43.33310035 | AH27: ='Tariff Smoothing - real'!AH27 -> 43.33310035 | AI27: ='Tariff Smoothing - real'!AI27 -> 43.33310035 | AK27: 60.03636364 | AL27: 43.33310035 | AM27: 43.33310035 | AN27: 43.33310035 | AO27: 43.33310035 | AQ27: =Annuity!C40 -> Urban A/Screen 42W CFL c/w D2 PECB | AR27: ='TC3'!K36+'TC3'!K193 -> 52.99322534 | AS27: ='TC3'!L36+'TC3'!L193 -> 53.16280366 | AT27: ='TC3'!M36+'TC3'!M193 -> 53.38608744 | AU27: ='TC3'!N36+'TC3'!N193 -> 53.61030901 | AV27: ='TC3'!O36+'TC3'!O193 -> 53.82475024 | AX27: ='TC3'!K351 -> 35.01218339 | AY27: ='TC3'!L351 -> 34.69217203 | AZ27: ='TC3'!M351 -> 34.41151236 | BA27: ='TC3'!N351 -> 34.13312323 | BB27: ='TC3'!O351 -> 33.84981831 | BD27: 102.289245 | BE27: 88.00540873 | BF27: 87.8549757 | BG27: 87.7975998 | BH27: 87.74343223 | BI27: 87.67456855 | BK27: Urban A/Screen 42W CFL c/w D2 PECB | BL27: ='TC4'!L33 -> 8.562246691 | BM27: ='TC4'!M33 -> 8.58964588 | BN27: ='TC4'!N33 -> 8.625722393 | BO27: ='TC4'!O33 -> 8.661950427 | BP27: ='TC4'!P33 -> 8.696598229 | BR27: 35.01218339 | BS27: 34.69217203 | BT27: 34.41151236 | BU27: 34.13312323 | BV27: 33.84981831 | BX27: 64.90081168 | BY27: 43.57443008 | BZ27: 43.28181791 | CA27: 43.03723476 | CB27: 42.79507365 | CC27: 42.54641653 | CE27: 70W Sodium | CF27: ='TC5'!E648 -> 0 | CG27: ='TC5'!F648 -> 0 | CH27: ='TC5'!G648 -> 0 | CI27: ='TC5'!H648 -> 0 | CJ27: ='TC5'!I648 -> 0 | CL27: =Output!BK27 -> Urban A/Screen 42W CFL c/w D2 PECB | CM27: ='TC5'!K183 -> 480.4894136 | CN27: ='TC5'!L183 -> 434.8471799 | CO27: ='TC5'!M183 -> 392.37871 | CP27: ='TC5'!N183 -> 352.863314 | CQ27: ='TC5'!O183 -> 316.1029707 | CR27: ='TC5'!P183 -> 282.0418396 | CS27: ='TC5'!Q183 -> 250.481725 | CT27: ='TC5'!R183 -> 221.2389839 | CU27: ='TC5'!S183 -> 194.1434579 | CV27: ='TC5'!T183 -> 169.0374828 | CW27: ='TC5'!U183 -> 145.7749713 | CX27: ='TC5'!V183 -> 124.2205629 | CY27: ='TC5'!W183 -> 104.2488362 | CZ27: ='TC5'!X183 -> 85.7435792 | DA27: ='TC5'!Y183 -> 68.59711298 | DB27: ='TC5'!Z183 -> 52.70966522 | DC27: ='TC5'!AA183 -> 37.98878964 | DD27: ='TC5'!AB183 -> 24.34882798 | DE27: ='TC5'!AC183 -> 11.71041169 | DF27: ='TC5'!AD183 -> 0 | DG27: ='TC5'!AE183 -> 0 | DH27: ='TC5'!AF183 -> 0 | DI27: ='TC5'!AG183 -> 0 | DJ27: ='TC5'!AH183 -> 0 | DK27: ='TC5'!AI183 -> 0 | DL27: ='TC5'!AJ183 -> 0 | DM27: ='TC5'!AK183 -> 0 | DN27: ='TC5'!AL183 -> 0 | DO27: ='TC5'!AM183 -> 0 | DP27: ='TC5'!AN183 -> 0 | DQ27: ='TC5'!AO183 -> 0 | DR27: ='TC5'!AP183 -> 0 | DS27: ='TC5'!AQ183 -> 0 | DT27: ='TC5'!AR183 -> 0 | DU27: ='TC5'!AS183 -> 0 | DV27: ='TC5'!AT183 -> 0 | DW27: ='TC5'!AU183 -> 0 | DX27: ='TC5'!AV183 -> 0 | DY27: ='TC5'!AW183 -> 0 | DZ27: ='TC5'!AX183 -> 0 | EA27: ='TC5'!AY183 -> 0 | EB27: ='TC5'!AZ183 -> 0 | EC27: ='TC5'!BA183 -> 0 | ED27: ='TC5'!BB183 -> 0 | EE27: ='TC5'!BC183 -> 0 | EF27: ='TC5'!BD183 -> 0 | EG27: ='TC5'!BE183 -> 0 | EH27: ='TC5'!BF183 -> 0 | EI27: ='TC5'!BG183 -> 0 | EJ27: ='TC5'!BH183 -> 0 | EL27: Urban A/Screen 42W CFL c/w D2 PECB | EM27: ='TC5'!K491 -> 77.6338648 | EN27: ='TC5'!L491 -> 70.25933604 | EO27: ='TC5'!M491 -> 63.39760015 | EP27: ='TC5'!N491 -> 57.01299973 | EQ27: ='TC5'!O491 -> 51.07354001 | ER27: ='TC5'!P491 -> 45.57019869 | ES27: ='TC5'!Q491 -> 40.47095278 | ET27: ='TC5'!R491 -> 35.74613067 | EU27: ='TC5'!S491 -> 31.36823941 | EV27: ='TC5'!T491 -> 27.31180483 | EW27: ='TC5'!U491 -> 23.55322322 | EX27: ='TC5'!V491 -> 20.07062406 | EY27: ='TC5'!W491 -> 16.84374271 | EZ27: ='TC5'!X491 -> 13.85380249 | FA27: ='TC5'!Y491 -> 11.08340547 | FB27: ='TC5'!Z491 -> 8.51643118 | FC27: ='TC5'!AA491 -> 6.137942845 | FD27: ='TC5'!AB491 -> 3.934100453 | FE27: ='TC5'!AC491 -> 1.892080225 | FF27: ='TC5'!AD491 -> 0 | FG27: ='TC5'!AE491 -> 0 | FH27: ='TC5'!AF491 -> 0 | FI27: ='TC5'!AG491 -> 0 | FJ27: ='TC5'!AH491 -> 0 | FK27: ='TC5'!AI491 -> 0 | FL27: ='TC5'!AJ491 -> 0 | FM27: ='TC5'!AK491 -> 0 | FN27: ='TC5'!AL491 -> 0 | FO27: ='TC5'!AM491 -> 0 | FP27: ='TC5'!AN491 -> 0 | FQ27: ='TC5'!AO491 -> 0 | FR27: ='TC5'!AP491 -> 0 | FS27: ='TC5'!AQ491 -> 0 | FT27: ='TC5'!AR491 -> 0 | FU27: ='TC5'!AS491 -> 0 | FV27: ='TC5'!AT491 -> 0 | FW27: ='TC5'!AU491 -> 0 | FX27: ='TC5'!AV491 -> 0 | FY27: ='TC5'!AW491 -> 0 | FZ27: ='TC5'!AX491 -> 0 | GA27: ='TC5'!AY491 -> 0 | GB27: ='TC5'!AZ491 -> 0 | GC27: ='TC5'!BA491 -> 0 | GD27: ='TC5'!BB491 -> 0 | GE27: ='TC5'!BC491 -> 0 | GF27: ='TC5'!BD491 -> 0 | GG27: ='TC5'!BE491 -> 0 | GH27: ='TC5'!BF491 -> 0 | GI27: ='TC5'!BG491 -> 0 | GJ27: ='TC5'!BH491 -> 0
B28: 0 | C28: 18 | D28: 90W Sodium | E28: 0 | F28: 0 | G28: 0 | H28: 0 | I28: 0 | K28: 18 | L28: 54.87366638 | M28: 54.87366638 | N28: 54.87366638 | O28: 54.87366638 | P28: 54.87366638 | R28: 54.87366638 | S28: 54.87366638 | T28: 54.87366638 | U28: 54.87366638 | V28: 54.87366638 | X28: 90W Sodium | Y28: ='Tariff Smoothing - real'!N28 -> 60.03636364 | Z28: ='Tariff Smoothing - real'!O28 -> 0 | AA28: ='Tariff Smoothing - real'!P28 -> 0 | AB28: ='Tariff Smoothing - real'!Q28 -> 0 | AC28: ='Tariff Smoothing - real'!R28 -> 0 | AE28: ='Tariff Smoothing - real'!AE28 -> 0 | AF28: ='Tariff Smoothing - real'!AF28 -> 43.98436532 | AG28: ='Tariff Smoothing - real'!AG28 -> 43.98436532 | AH28: ='Tariff Smoothing - real'!AH28 -> 43.98436532 | AI28: ='Tariff Smoothing - real'!AI28 -> 43.98436532 | AK28: 60.03636364 | AL28: 43.98436532 | AM28: 43.98436532 | AN28: 43.98436532 | AO28: 43.98436532 | AQ28: =Annuity!C41 -> 150W Sodium - AEROSCREEN | AR28: ='TC3'!K37+'TC3'!K194 -> 53.78017747 | AS28: ='TC3'!L37+'TC3'!L194 -> 53.95227403 | AT28: ='TC3'!M37+'TC3'!M194 -> 54.17887359 | AU28: ='TC3'!N37+'TC3'!N194 -> 54.40642485 | AV28: ='TC3'!O37+'TC3'!O194 -> 54.62405055 | AX28: ='TC3'!K352 -> 35.44531714 | AY28: ='TC3'!L352 -> 35.12134694 | AZ28: ='TC3'!M352 -> 34.83721525 | BA28: ='TC3'!N352 -> 34.55538217 | BB28: ='TC3'!O352 -> 34.2685725 | BD28: 99.81738845 | BE28: 89.22549461 | BF28: 89.07362098 | BG28: 89.01608883 | BH28: 88.96180703 | BI28: 88.89262306 | BK28: 150W Sodium - AEROSCREEN | BL28: ='TC4'!L34 -> 8.689396495 | BM28: ='TC4'!M34 -> 8.717202564 | BN28: ='TC4'!N34 -> 8.753814814 | BO28: ='TC4'!O34 -> 8.790580837 | BP28: ='TC4'!P34 -> 8.82574316 | BR28: 35.44531714 | BS28: 35.12134694 | BT28: 34.83721525 | BU28: 34.55538217 | BV28: 34.2685725 | BX28: 57.50713468 | BY28: 44.13471364 | BZ28: 43.83854951 | CA28: 43.59103006 | CB28: 43.34596301 | CC28: 43.09431566 | CE28: 90W Sodium | CF28: ='TC5'!E649 -> 0 | CG28: ='TC5'!F649 -> 0 | CH28: ='TC5'!G649 -> 0 | CI28: ='TC5'!H649 -> 0 | CJ28: ='TC5'!I649 -> 0 | CL28: =Output!BK28 -> 150W Sodium - AEROSCREEN | CM28: ='TC5'!K184 -> 487.6247061 | CN28: ='TC5'!L184 -> 441.3046829 | CO28: ='TC5'!M184 -> 398.205554 | CP28: ='TC5'!N184 -> 358.1033523 | CQ28: ='TC5'!O184 -> 320.7971161 | CR28: ='TC5'!P184 -> 286.2301755 | CS28: ='TC5'!Q184 -> 254.2013915 | CT28: ='TC5'!R184 -> 224.5243942 | CU28: ='TC5'!S184 -> 197.0264982 | CV28: ='TC5'!T184 -> 171.5476981 | CW28: ='TC5'!U184 -> 147.9397371 | CX28: ='TC5'!V184 -> 126.0652447 | CY28: ='TC5'!W184 -> 105.7969368 | CZ28: ='TC5'!X184 -> 87.01687577 | DA28: ='TC5'!Y184 -> 69.61578364 | DB28: ='TC5'!Z184 -> 53.49240647 | DC28: ='TC5'!AA184 -> 38.55292512 | DD28: ='TC5'!AB184 -> 24.71040933 | DE28: ='TC5'!AC184 -> 11.88431191 | DF28: ='TC5'!AD184 -> 0 | DG28: ='TC5'!AE184 -> 0 | DH28: ='TC5'!AF184 -> 0 | DI28: ='TC5'!AG184 -> 0 | DJ28: ='TC5'!AH184 -> 0 | DK28: ='TC5'!AI184 -> 0 | DL28: ='TC5'!AJ184 -> 0 | DM28: ='TC5'!AK184 -> 0 | DN28: ='TC5'!AL184 -> 0 | DO28: ='TC5'!AM184 -> 0 | DP28: ='TC5'!AN184 -> 0 | DQ28: ='TC5'!AO184 -> 0 | DR28: ='TC5'!AP184 -> 0 | DS28: ='TC5'!AQ184 -> 0 | DT28: ='TC5'!AR184 -> 0 | DU28: ='TC5'!AS184 -> 0 | DV28: ='TC5'!AT184 -> 0 | DW28: ='TC5'!AU184 -> 0 | DX28: ='TC5'!AV184 -> 0 | DY28: ='TC5'!AW184 -> 0 | DZ28: ='TC5'!AX184 -> 0 | EA28: ='TC5'!AY184 -> 0 | EB28: ='TC5'!AZ184 -> 0 | EC28: ='TC5'!BA184 -> 0 | ED28: ='TC5'!BB184 -> 0 | EE28: ='TC5'!BC184 -> 0 | EF28: ='TC5'!BD184 -> 0 | EG28: ='TC5'!BE184 -> 0 | EH28: ='TC5'!BF184 -> 0 | EI28: ='TC5'!BG184 -> 0 | EJ28: ='TC5'!BH184 -> 0 | EL28: 150W Sodium - AEROSCREEN | EM28: ='TC5'!K492 -> 78.78673169 | EN28: ='TC5'!L492 -> 71.30269079 | EO28: ='TC5'!M492 -> 64.33905777 | EP28: ='TC5'!N492 -> 57.85964571 | EQ28: ='TC5'!O492 -> 51.83198471 | ER28: ='TC5'!P492 -> 46.24691848 | ES28: ='TC5'!Q492 -> 41.07194852 | ET28: ='TC5'!R492 -> 36.27696255 | EU28: ='TC5'!S492 -> 31.83405938 | EV28: ='TC5'!T492 -> 27.71738653 | EW28: ='TC5'!U492 -> 23.9029898 | EX28: ='TC5'!V492 -> 20.36867386 | EY28: ='TC5'!W492 -> 17.09387315 | EZ28: ='TC5'!X492 -> 14.05953217 | FA28: ='TC5'!Y492 -> 11.24799461 | FB28: ='TC5'!Z492 -> 8.642900622 | FC28: ='TC5'!AA492 -> 6.229091613 | FD28: ='TC5'!AB492 -> 3.992522047 | FE28: ='TC5'!AC492 -> 1.920177714 | FF28: ='TC5'!AD492 -> 0 | FG28: ='TC5'!AE492 -> 0 | FH28: ='TC5'!AF492 -> 0 | FI28: ='TC5'!AG492 -> 0 | FJ28: ='TC5'!AH492 -> 0 | FK28: ='TC5'!AI492 -> 0 | FL28: ='TC5'!AJ492 -> 0 | FM28: ='TC5'!AK492 -> 0 | FN28: ='TC5'!AL492 -> 0 | FO28: ='TC5'!AM492 -> 0 | FP28: ='TC5'!AN492 -> 0 | FQ28: ='TC5'!AO492 -> 0 | FR28: ='TC5'!AP492 -> 0 | FS28: ='TC5'!AQ492 -> 0 | FT28: ='TC5'!AR492 -> 0 | FU28: ='TC5'!AS492 -> 0 | FV28: ='TC5'!AT492 -> 0 | FW28: ='TC5'!AU492 -> 0 | FX28: ='TC5'!AV492 -> 0 | FY28: ='TC5'!AW492 -> 0 | FZ28: ='TC5'!AX492 -> 0 | GA28: ='TC5'!AY492 -> 0 | GB28: ='TC5'!AZ492 -> 0 | GC28: ='TC5'!BA492 -> 0 | GD28: ='TC5'!BB492 -> 0 | GE28: ='TC5'!BC492 -> 0 | GF28: ='TC5'!BD492 -> 0 | GG28: ='TC5'!BE492 -> 0 | GH28: ='TC5'!BF492 -> 0 | GI28: ='TC5'!BG492 -> 0 | GJ28: ='TC5'!BH492 -> 0
B29: 0 | C29: 19 | D29: 100W Sodium | E29: 36.70741161 | F29: 35.49644793 | G29: 34.28548425 | H29: 33.07452058 | I29: 31.8635569 | K29: 19 | L29: 54.87366638 | M29: 54.87366638 | N29: 54.87366638 | O29: 54.87366638 | P29: 54.87366638 | R29: 91.58107798 | S29: 90.37011431 | T29: 89.15915063 | U29: 87.94818695 | V29: 86.73722327 | X29: 100W Sodium | Y29: ='Tariff Smoothing - real'!N29 -> 15.61818182 | Z29: ='Tariff Smoothing - real'!O29 -> 27.07391488 | AA29: ='Tariff Smoothing - real'!P29 -> 27.07391488 | AB29: ='Tariff Smoothing - real'!Q29 -> 27.07391488 | AC29: ='Tariff Smoothing - real'!R29 -> 27.07391488 | AE29: ='Tariff Smoothing - real'!AE29 -> 44.41818182 | AF29: ='Tariff Smoothing - real'!AF29 -> 43.98436532 | AG29: ='Tariff Smoothing - real'!AG29 -> 43.98436532 | AH29: ='Tariff Smoothing - real'!AH29 -> 43.98436532 | AI29: ='Tariff Smoothing - real'!AI29 -> 43.98436532 | AK29: 60.03636364 | AL29: 71.05828021 | AM29: 71.05828021 | AN29: 71.05828021 | AO29: 71.05828021 | AQ29: =Annuity!C42 -> 150W Metal Halide - AEROSCREEN | AR29: ='TC3'!K38+'TC3'!K195 -> 58.26386148 | AS29: ='TC3'!L38+'TC3'!L195 -> 58.45030584 | AT29: ='TC3'!M38+'TC3'!M195 -> 58.69579713 | AU29: ='TC3'!N38+'TC3'!N195 -> 58.94231947 | AV29: ='TC3'!O38+'TC3'!O195 -> 59.17808875 | AX29: ='TC3'!K353 -> 51.39701439 | AY29: ='TC3'!L353 -> 50.92724568 | AZ29: ='TC3'!M353 -> 50.51524426 | BA29: ='TC3'!N353 -> 50.10657594 | BB29: ='TC3'!O353 -> 49.69069136 | BD29: 111.3580838 | BE29: 109.6608759 | BF29: 109.3775515 | BG29: 109.2110414 | BH29: 109.0488954 | BI29: 108.8687801 | BK29: 150W Metal Halide - AEROSCREEN | BL29: ='TC4'!L35 -> 9.413836428 | BM29: ='TC4'!M35 -> 9.443960705 | BN29: ='TC4'!N35 -> 9.48362534 | BO29: ='TC4'!O35 -> 9.523456566 | BP29: ='TC4'!P35 -> 9.561550393 | BR29: 51.39701439 | BS29: 50.92724568 | BT29: 50.51524426 | BU29: 50.10657594 | BV29: 49.69069136 | BX29: 69.04783001 | BY29: 60.81085082 | BZ29: 60.37120638 | CA29: 59.9988696 | CB29: 59.6300325 | CC29: 59.25224175 | CE29: 100W Sodium | CF29: ='TC5'!E650 -> 297.868728 | CG29: ='TC5'!F650 -> 277.3260571 | CH29: ='TC5'!G650 -> 256.7833862 | CI29: ='TC5'!H650 -> 236.2407153 | CJ29: ='TC5'!I650 -> 215.6980444 | CL29: =Output!BK29 -> 150W Metal Halide - AEROSCREEN | CM29: ='TC5'!K185 -> 528.2782555 | CN29: ='TC5'!L185 -> 478.0965056 | CO29: ='TC5'!M185 -> 431.4041778 | CP29: ='TC5'!N185 -> 387.9586327 | CQ29: ='TC5'!O185 -> 347.5421543 | CR29: ='TC5'!P185 -> 310.0933482 | CS29: ='TC5'!Q185 -> 275.3943062 | CT29: ='TC5'!R185 -> 243.2431208 | CU29: ='TC5'!S185 -> 213.4527096 | CV29: ='TC5'!T185 -> 185.8497274 | CW29: ='TC5'!U185 -> 160.2735573 | CX29: ='TC5'!V185 -> 136.5753759 | CY29: ='TC5'!W185 -> 114.6172877 | CZ29: ='TC5'!X185 -> 94.27152225 | DA29: ='TC5'!Y185 -> 75.41969116 | DB29: ='TC5'!Z185 -> 57.95209885 | DC29: ='TC5'!AA185 -> 41.76710444 | DD29: ='TC5'!AB185 -> 26.77053023 | DE29: ='TC5'!AC185 -> 12.87511376 | DF29: ='TC5'!AD185 -> 0 | DG29: ='TC5'!AE185 -> 0 | DH29: ='TC5'!AF185 -> 0 | DI29: ='TC5'!AG185 -> 0 | DJ29: ='TC5'!AH185 -> 0 | DK29: ='TC5'!AI185 -> 0 | DL29: ='TC5'!AJ185 -> 0 | DM29: ='TC5'!AK185 -> 0 | DN29: ='TC5'!AL185 -> 0 | DO29: ='TC5'!AM185 -> 0 | DP29: ='TC5'!AN185 -> 0 | DQ29: ='TC5'!AO185 -> 0 | DR29: ='TC5'!AP185 -> 0 | DS29: ='TC5'!AQ185 -> 0 | DT29: ='TC5'!AR185 -> 0 | DU29: ='TC5'!AS185 -> 0 | DV29: ='TC5'!AT185 -> 0 | DW29: ='TC5'!AU185 -> 0 | DX29: ='TC5'!AV185 -> 0 | DY29: ='TC5'!AW185 -> 0 | DZ29: ='TC5'!AX185 -> 0 | EA29: ='TC5'!AY185 -> 0 | EB29: ='TC5'!AZ185 -> 0 | EC29: ='TC5'!BA185 -> 0 | ED29: ='TC5'!BB185 -> 0 | EE29: ='TC5'!BC185 -> 0 | EF29: ='TC5'!BD185 -> 0 | EG29: ='TC5'!BE185 -> 0 | EH29: ='TC5'!BF185 -> 0 | EI29: ='TC5'!BG185 -> 0 | EJ29: ='TC5'!BH185 -> 0 | EL29: 150W Metal Halide - AEROSCREEN | EM29: ='TC5'!K493 -> 85.35522637 | EN29: ='TC5'!L493 -> 77.24723673 | EO29: ='TC5'!M493 -> 69.70304166 | EP29: ='TC5'!N493 -> 62.68343732 | EQ29: ='TC5'!O493 -> 56.15324678 | ER29: ='TC5'!P493 -> 50.10255041 | ES29: ='TC5'!Q493 -> 44.49614025 | ET29: ='TC5'!R493 -> 39.30139357 | EU29: ='TC5'!S493 -> 34.48808304 | EV29: ='TC5'!T493 -> 30.02820083 | EW29: ='TC5'!U493 -> 25.89579567 | EX29: ='TC5'!V493 -> 22.0668218 | EY29: ='TC5'!W493 -> 18.51899909 | EZ29: ='TC5'!X493 -> 15.23168337 | FA29: ='TC5'!Y493 -> 12.18574633 | FB29: ='TC5'!Z493 -> 9.363464168 | FC29: ='TC5'!AA493 -> 6.748414527 | FD29: ='TC5'!AB493 -> 4.325380884 | FE29: ='TC5'!AC493 -> 2.080264023 | FF29: ='TC5'!AD493 -> 0 | FG29: ='TC5'!AE493 -> 0 | FH29: ='TC5'!AF493 -> 0 | FI29: ='TC5'!AG493 -> 0 | FJ29: ='TC5'!AH493 -> 0 | FK29: ='TC5'!AI493 -> 0 | FL29: ='TC5'!AJ493 -> 0 | FM29: ='TC5'!AK493 -> 0 | FN29: ='TC5'!AL493 -> 0 | FO29: ='TC5'!AM493 -> 0 | FP29: ='TC5'!AN493 -> 0 | FQ29: ='TC5'!AO493 -> 0 | FR29: ='TC5'!AP493 -> 0 | FS29: ='TC5'!AQ493 -> 0 | FT29: ='TC5'!AR493 -> 0 | FU29: ='TC5'!AS493 -> 0 | FV29: ='TC5'!AT493 -> 0 | FW29: ='TC5'!AU493 -> 0 | FX29: ='TC5'!AV493 -> 0 | FY29: ='TC5'!AW493 -> 0 | FZ29: ='TC5'!AX493 -> 0 | GA29: ='TC5'!AY493 -> 0 | GB29: ='TC5'!AZ493 -> 0 | GC29: ='TC5'!BA493 -> 0 | GD29: ='TC5'!BB493 -> 0 | GE29: ='TC5'!BC493 -> 0 | GF29: ='TC5'!BD493 -> 0 | GG29: ='TC5'!BE493 -> 0 | GH29: ='TC5'!BF493 -> 0 | GI29: ='TC5'!BG493 -> 0 | GJ29: ='TC5'!BH493 -> 0
B30: 0 | C30: 20 | D30: 120W Sodium | E30: 176.4148434 | F30: 171.0706402 | G30: 165.726437 | H30: 160.3822338 | I30: 155.0380305 | K30: 20 | L30: 53.86116638 | M30: 53.86116638 | N30: 53.86116638 | O30: 53.86116638 | P30: 53.86116638 | R30: 230.2760098 | S30: 224.9318066 | T30: 219.5876033 | U30: 214.2434001 | V30: 208.8991969 | X30: 120W Sodium | Y30: ='Tariff Smoothing - real'!N30 -> 60.03636364 | Z30: ='Tariff Smoothing - real'!O30 -> 131.0392456 | AA30: ='Tariff Smoothing - real'!P30 -> 131.0392456 | AB30: ='Tariff Smoothing - real'!Q30 -> 131.0392456 | AC30: ='Tariff Smoothing - real'!R30 -> 131.0392456 | AE30: ='Tariff Smoothing - real'!AE30 -> 0 | AF30: ='Tariff Smoothing - real'!AF30 -> 43.17278897 | AG30: ='Tariff Smoothing - real'!AG30 -> 43.17278897 | AH30: ='Tariff Smoothing - real'!AH30 -> 43.17278897 | AI30: ='Tariff Smoothing - real'!AI30 -> 43.17278897 | AK30: 60.03636364 | AL30: 174.2120346 | AM30: 174.2120346 | AN30: 174.2120346 | AO30: 174.2120346 | AQ30: =Annuity!C43 -> 250W Sodium (w/o PECB) - AEROSCREEN | AR30: ='TC3'!K39+'TC3'!K196 -> 53.77726283 | AS30: ='TC3'!L39+'TC3'!L196 -> 53.94935007 | AT30: ='TC3'!M39+'TC3'!M196 -> 54.17593734 | AU30: ='TC3'!N39+'TC3'!N196 -> 54.40347628 | AV30: ='TC3'!O39+'TC3'!O196 -> 54.62109018 | AX30: ='TC3'!K354 -> 35.71757264 | AY30: ='TC3'!L354 -> 35.39111403 | AZ30: ='TC3'!M354 -> 35.10479991 | BA30: ='TC3'!N354 -> 34.82080208 | BB30: ='TC3'!O354 -> 34.53178943 | BD30: 107.6621535 | BE30: 89.49483547 | BF30: 89.3404641 | BG30: 89.28073726 | BH30: 89.22427836 | BI30: 89.15287961 | BK30: 250W Sodium (w/o PECB) - AEROSCREEN | BL30: ='TC4'!L36 -> 8.68892557 | BM30: ='TC4'!M36 -> 8.716730132 | BN30: ='TC4'!N36 -> 8.753340398 | BO30: ='TC4'!O36 -> 8.790104428 | BP30: ='TC4'!P36 -> 8.825264845 | BR30: 35.71757264 | BS30: 35.39111403 | BT30: 35.10479991 | BU30: 34.82080208 | BV30: 34.53178943 | BX30: 63.45798722 | BY30: 44.40649821 | BZ30: 44.10784416 | CA30: 43.85814031 | CB30: 43.61090651 | CC30: 43.35705427 | CE30: 120W Sodium | CF30: ='TC5'!E651 -> 1314.548936 | CG30: ='TC5'!F651 -> 1223.890389 | CH30: ='TC5'!G651 -> 1133.231841 | CI30: ='TC5'!H651 -> 1042.573294 | CJ30: ='TC5'!I651 -> 951.9147467 | CL30: =Output!BK30 -> 250W Sodium (w/o PECB) - AEROSCREEN | CM30: ='TC5'!K186 -> 487.5982791 | CN30: ='TC5'!L186 -> 441.2807662 | CO30: ='TC5'!M186 -> 398.1839731 | CP30: ='TC5'!N186 -> 358.0839448 | CQ30: ='TC5'!O186 -> 320.7797303 | CR30: ='TC5'!P186 -> 286.2146631 | CS30: ='TC5'!Q186 -> 254.1876149 | CT30: ='TC5'!R186 -> 224.512226 | CU30: ='TC5'!S186 -> 197.0158203 | CV30: ='TC5'!T186 -> 171.538401 | CW30: ='TC5'!U186 -> 147.9317195 | CX30: ='TC5'!V186 -> 126.0584125 | CY30: ='TC5'!W186 -> 105.7912031 | CZ30: ='TC5'!X186 -> 87.01215985 | DA30: ='TC5'!Y186 -> 69.61201078 | DB30: ='TC5'!Z186 -> 53.48950743 | DC30: ='TC5'!AA186 -> 38.55083573 | DD30: ='TC5'!AB186 -> 24.70907014 | DE30: ='TC5'!AC186 -> 11.88366783 | DF30: ='TC5'!AD186 -> 0 | DG30: ='TC5'!AE186 -> 0 | DH30: ='TC5'!AF186 -> 0 | DI30: ='TC5'!AG186 -> 0 | DJ30: ='TC5'!AH186 -> 0 | DK30: ='TC5'!AI186 -> 0 | DL30: ='TC5'!AJ186 -> 0 | DM30: ='TC5'!AK186 -> 0 | DN30: ='TC5'!AL186 -> 0 | DO30: ='TC5'!AM186 -> 0 | DP30: ='TC5'!AN186 -> 0 | DQ30: ='TC5'!AO186 -> 0 | DR30: ='TC5'!AP186 -> 0 | DS30: ='TC5'!AQ186 -> 0 | DT30: ='TC5'!AR186 -> 0 | DU30: ='TC5'!AS186 -> 0 | DV30: ='TC5'!AT186 -> 0 | DW30: ='TC5'!AU186 -> 0 | DX30: ='TC5'!AV186 -> 0 | DY30: ='TC5'!AW186 -> 0 | DZ30: ='TC5'!AX186 -> 0 | EA30: ='TC5'!AY186 -> 0 | EB30: ='TC5'!AZ186 -> 0 | EC30: ='TC5'!BA186 -> 0 | ED30: ='TC5'!BB186 -> 0 | EE30: ='TC5'!BC186 -> 0 | EF30: ='TC5'!BD186 -> 0 | EG30: ='TC5'!BE186 -> 0 | EH30: ='TC5'!BF186 -> 0 | EI30: ='TC5'!BG186 -> 0 | EJ30: ='TC5'!BH186 -> 0 | EL30: 250W Sodium (w/o PECB) - AEROSCREEN | EM30: ='TC5'!K494 -> 78.78246181 | EN30: ='TC5'!L494 -> 71.29882652 | EO30: ='TC5'!M494 -> 64.33557089 | EP30: ='TC5'!N494 -> 57.85650999 | EQ30: ='TC5'!O494 -> 51.82917565 | ER30: ='TC5'!P494 -> 46.24441212 | ES30: ='TC5'!Q494 -> 41.06972261 | ET30: ='TC5'!R494 -> 36.2749965 | EU30: ='TC5'!S494 -> 31.83233412 | EV30: ='TC5'!T494 -> 27.71588438 | EW30: ='TC5'!U494 -> 23.90169437 | EX30: ='TC5'!V494 -> 20.36756998 | EY30: ='TC5'!W494 -> 17.09294675 | EZ30: ='TC5'!X494 -> 14.05877021 | FA30: ='TC5'!Y494 -> 11.24738502 | FB30: ='TC5'!Z494 -> 8.642432216 | FC30: ='TC5'!AA494 -> 6.228754025 | FD30: ='TC5'!AB494 -> 3.992305671 | FE30: ='TC5'!AC494 -> 1.920073649 | FF30: ='TC5'!AD494 -> 0 | FG30: ='TC5'!AE494 -> 0 | FH30: ='TC5'!AF494 -> 0 | FI30: ='TC5'!AG494 -> 0 | FJ30: ='TC5'!AH494 -> 0 | FK30: ='TC5'!AI494 -> 0 | FL30: ='TC5'!AJ494 -> 0 | FM30: ='TC5'!AK494 -> 0 | FN30: ='TC5'!AL494 -> 0 | FO30: ='TC5'!AM494 -> 0 | FP30: ='TC5'!AN494 -> 0 | FQ30: ='TC5'!AO494 -> 0 | FR30: ='TC5'!AP494 -> 0 | FS30: ='TC5'!AQ494 -> 0 | FT30: ='TC5'!AR494 -> 0 | FU30: ='TC5'!AS494 -> 0 | FV30: ='TC5'!AT494 -> 0 | FW30: ='TC5'!AU494 -> 0 | FX30: ='TC5'!AV494 -> 0 | FY30: ='TC5'!AW494 -> 0 | FZ30: ='TC5'!AX494 -> 0 | GA30: ='TC5'!AY494 -> 0 | GB30: ='TC5'!AZ494 -> 0 | GC30: ='TC5'!BA494 -> 0 | GD30: ='TC5'!BB494 -> 0 | GE30: ='TC5'!BC494 -> 0 | GF30: ='TC5'!BD494 -> 0 | GG30: ='TC5'!BE494 -> 0 | GH30: ='TC5'!BF494 -> 0 | GI30: ='TC5'!BG494 -> 0 | GJ30: ='TC5'!BH494 -> 0
B31: 0 | C31: 21 | D31: 150W Sodium | E31: 8.479540659 | F31: 8.069558672 | G31: 7.661908021 | H31: 7.256531846 | I31: 6.853374671 | K31: 21 | L31: 53.86116638 | M31: 53.86116638 | N31: 53.86116638 | O31: 53.86116638 | P31: 53.86116638 | R31: 62.34070703 | S31: 61.93072505 | T31: 61.5230744 | U31: 61.11769822 | V31: 60.71454105 | X31: 150W Sodium | Y31: ='Tariff Smoothing - real'!N31 -> 15.61818182 | Z31: ='Tariff Smoothing - real'!O31 -> 6.00582826 | AA31: ='Tariff Smoothing - real'!P31 -> 6.00582826 | AB31: ='Tariff Smoothing - real'!Q31 -> 6.00582826 | AC31: ='Tariff Smoothing - real'!R31 -> 6.00582826 | AE31: ='Tariff Smoothing - real'!AE31 -> 44.41818182 | AF31: ='Tariff Smoothing - real'!AF31 -> 43.17278897 | AG31: ='Tariff Smoothing - real'!AG31 -> 43.17278897 | AH31: ='Tariff Smoothing - real'!AH31 -> 43.17278897 | AI31: ='Tariff Smoothing - real'!AI31 -> 43.17278897 | AK31: 60.03636364 | AL31: 49.17861723 | AM31: 49.17861723 | AN31: 49.17861723 | AO31: 49.17861723 | AQ31: =Annuity!C44 -> 250W Metal Halide - AEROSCREEN | AR31: ='TC3'!K40+'TC3'!K197 -> 54.56907268 | AS31: ='TC3'!L40+'TC3'!L197 -> 54.74369372 | AT31: ='TC3'!M40+'TC3'!M197 -> 54.97361723 | AU31: ='TC3'!N40+'TC3'!N197 -> 55.20450642 | AV31: ='TC3'!O40+'TC3'!O197 -> 55.42532445 | AX31: ='TC3'!K355 -> 39.21976839 | AY31: ='TC3'!L355 -> 38.86129971 | AZ31: ='TC3'!M355 -> 38.54691179 | BA31: ='TC3'!N355 -> 38.23506728 | BB31: ='TC3'!O355 -> 37.91771622 | BD31: 122.2591034 | BE31: 93.78884107 | BF31: 93.60499342 | BG31: 93.52052902 | BH31: 93.4395737 | BI31: 93.34304067 | BK31: 250W Metal Halide - AEROSCREEN | BL31: ='TC4'!L37 -> 8.816860249 | BM31: ='TC4'!M37 -> 8.845074202 | BN31: ='TC4'!N37 -> 8.882223514 | BO31: ='TC4'!O37 -> 8.919528852 | BP31: ='TC4'!P37 -> 8.955206968 | BR31: 39.21976839 | BS31: 38.86129971 | BT31: 38.54691179 | BU31: 38.23506728 | BV31: 37.91771622 | BX31: 78.05493716 | BY31: 48.03662864 | BZ31: 47.70637391 | CA31: 47.42913531 | CB31: 47.15459613 | CC31: 46.87292319 | CE31: 150W Sodium | CF31: ='TC5'!E652 -> 65.20427285 | CG31: ='TC5'!F652 -> 58.78363611 | CH31: ='TC5'!G652 -> 52.34362622 | CI31: ='TC5'!H652 -> 45.88320207 | CJ31: ='TC5'!I652 -> 39.40132516 | CL31: =Output!BK31 -> 250W Metal Halide - AEROSCREEN | CM31: ='TC5'!K187 -> 494.7776167 | CN31: ='TC5'!L187 -> 447.7781304 | CO31: ='TC5'!M187 -> 404.0467853 | CP31: ='TC5'!N187 -> 363.3563291 | CQ31: ='TC5'!O187 -> 325.5028519 | CR31: ='TC5'!P187 -> 290.4288529 | CS31: ='TC5'!Q187 -> 257.9302424 | CT31: ='TC5'!R187 -> 227.8179166 | CU31: ='TC5'!S187 -> 199.9166572 | CV31: ='TC5'!T187 -> 174.0641115 | CW31: ='TC5'!U187 -> 150.1098481 | CX31: ='TC5'!V187 -> 127.9144812 | CY31: ='TC5'!W187 -> 107.3488599 | CZ31: ='TC5'!X187 -> 88.29331628 | DA31: ='TC5'!Y187 -> 70.63696953 | DB31: ='TC5'!Z187 -> 54.2770804 | DC31: ='TC5'!AA187 -> 39.11845353 | DD31: ='TC5'!AB187 -> 25.07288347 | DE31: ='TC5'!AC187 -> 12.05864151 | DF31: ='TC5'!AD187 -> 0 | DG31: ='TC5'!AE187 -> 0 | DH31: ='TC5'!AF187 -> 0 | DI31: ='TC5'!AG187 -> 0 | DJ31: ='TC5'!AH187 -> 0 | DK31: ='TC5'!AI187 -> 0 | DL31: ='TC5'!AJ187 -> 0 | DM31: ='TC5'!AK187 -> 0 | DN31: ='TC5'!AL187 -> 0 | DO31: ='TC5'!AM187 -> 0 | DP31: ='TC5'!AN187 -> 0 | DQ31: ='TC5'!AO187 -> 0 | DR31: ='TC5'!AP187 -> 0 | DS31: ='TC5'!AQ187 -> 0 | DT31: ='TC5'!AR187 -> 0 | DU31: ='TC5'!AS187 -> 0 | DV31: ='TC5'!AT187 -> 0 | DW31: ='TC5'!AU187 -> 0 | DX31: ='TC5'!AV187 -> 0 | DY31: ='TC5'!AW187 -> 0 | DZ31: ='TC5'!AX187 -> 0 | EA31: ='TC5'!AY187 -> 0 | EB31: ='TC5'!AZ187 -> 0 | EC31: ='TC5'!BA187 -> 0 | ED31: ='TC5'!BB187 -> 0 | EE31: ='TC5'!BC187 -> 0 | EF31: ='TC5'!BD187 -> 0 | EG31: ='TC5'!BE187 -> 0 | EH31: ='TC5'!BF187 -> 0 | EI31: ='TC5'!BG187 -> 0 | EJ31: ='TC5'!BH187 -> 0 | EL31: 250W Metal Halide - AEROSCREEN | EM31: ='TC5'!K495 -> 79.94244516 | EN31: ='TC5'!L495 -> 72.34862174 | EO31: ='TC5'!M495 -> 65.28283999 | EP31: ='TC5'!N495 -> 58.70838218 | EQ31: ='TC5'!O495 -> 52.59230211 | ER31: ='TC5'!P495 -> 46.92530919 | ES31: ='TC5'!Q495 -> 41.67442819 | ET31: ='TC5'!R495 -> 36.80910512 | EU31: ='TC5'!S495 -> 32.30102952 | EV31: ='TC5'!T495 -> 28.12396968 | EW31: ='TC5'!U495 -> 24.25362 | EX31: ='TC5'!V495 -> 20.66745959 | EY31: ='TC5'!W495 -> 17.34462121 | EZ31: ='TC5'!X495 -> 14.26576983 | FA31: ='TC5'!Y495 -> 11.41299015 | FB31: ='TC5'!Z495 -> 8.769682333 | FC31: ='TC5'!AA495 -> 6.320465439 | FD31: ='TC5'!AB495 -> 4.051087892 | FE31: ='TC5'!AC495 -> 1.948344579 | FF31: ='TC5'!AD495 -> 0 | FG31: ='TC5'!AE495 -> 0 | FH31: ='TC5'!AF495 -> 0 | FI31: ='TC5'!AG495 -> 0 | FJ31: ='TC5'!AH495 -> 0 | FK31: ='TC5'!AI495 -> 0 | FL31: ='TC5'!AJ495 -> 0 | FM31: ='TC5'!AK495 -> 0 | FN31: ='TC5'!AL495 -> 0 | FO31: ='TC5'!AM495 -> 0 | FP31: ='TC5'!AN495 -> 0 | FQ31: ='TC5'!AO495 -> 0 | FR31: ='TC5'!AP495 -> 0 | FS31: ='TC5'!AQ495 -> 0 | FT31: ='TC5'!AR495 -> 0 | FU31: ='TC5'!AS495 -> 0 | FV31: ='TC5'!AT495 -> 0 | FW31: ='TC5'!AU495 -> 0 | FX31: ='TC5'!AV495 -> 0 | FY31: ='TC5'!AW495 -> 0 | FZ31: ='TC5'!AX495 -> 0 | GA31: ='TC5'!AY495 -> 0 | GB31: ='TC5'!AZ495 -> 0 | GC31: ='TC5'!BA495 -> 0 | GD31: ='TC5'!BB495 -> 0 | GE31: ='TC5'!BC495 -> 0 | GF31: ='TC5'!BD495 -> 0 | GG31: ='TC5'!BE495 -> 0 | GH31: ='TC5'!BF495 -> 0 | GI31: ='TC5'!BG495 -> 0 | GJ31: ='TC5'!BH495 -> 0
B32: 0 | C32: 22 | D32: 250W Sodium | E32: 8.02700579 | F32: 7.632656087 | G32: 7.240860682 | H32: 6.851557275 | I32: 6.464685086 | K32: 22 | L32: 54.13616638 | M32: 54.13616638 | N32: 54.13616638 | O32: 54.13616638 | P32: 54.13616638 | R32: 62.16317217 | S32: 61.76882246 | T32: 61.37702706 | U32: 60.98772365 | V32: 60.60085146 | X32: 250W Sodium | Y32: ='Tariff Smoothing - real'!N32 -> 16.06363636 | Z32: ='Tariff Smoothing - real'!O32 -> 5.673834547 | AA32: ='Tariff Smoothing - real'!P32 -> 5.673834547 | AB32: ='Tariff Smoothing - real'!Q32 -> 5.673834547 | AC32: ='Tariff Smoothing - real'!R32 -> 5.673834547 | AE32: ='Tariff Smoothing - real'!AE32 -> 46.3 | AF32: ='Tariff Smoothing - real'!AF32 -> 43.39321712 | AG32: ='Tariff Smoothing - real'!AG32 -> 43.39321712 | AH32: ='Tariff Smoothing - real'!AH32 -> 43.39321712 | AI32: ='Tariff Smoothing - real'!AI32 -> 43.39321712 | AK32: 62.36363636 | AL32: 49.06705166 | AM32: 49.06705166 | AN32: 49.06705166 | AO32: 49.06705166 | AQ32: =Annuity!C45 -> 400W Sodium - AEROSCREEN | AR32: ='TC3'!K41+'TC3'!K198 -> 57.9228489 | AS32: ='TC3'!L41+'TC3'!L198 -> 58.10820201 | AT32: ='TC3'!M41+'TC3'!M198 -> 58.35225646 | AU32: ='TC3'!N41+'TC3'!N198 -> 58.59733594 | AV32: ='TC3'!O41+'TC3'!O198 -> 58.83172528 | AX32: ='TC3'!K356 -> 35.97745289 | AY32: ='TC3'!L356 -> 35.64861897 | AZ32: ='TC3'!M356 -> 35.36022164 | BA32: ='TC3'!N356 -> 35.07415745 | BB32: ='TC3'!O356 -> 34.78304194 | BD32: 112.3285696 | BE32: 93.90030179 | BF32: 93.75682099 | BG32: 93.71247811 | BH32: 93.67149339 | BI32: 93.61476723 | BK32: 400W Sodium - AEROSCREEN | BL32: ='TC4'!L38 -> 9.35873818 | BM32: ='TC4'!M38 -> 9.388686142 | BN32: ='TC4'!N38 -> 9.428118624 | BO32: ='TC4'!O38 -> 9.467716722 | BP32: ='TC4'!P38 -> 9.505587589 | BR32: 35.97745289 | BS32: 35.64861897 | BT32: 35.36022164 | BU32: 35.07415745 | BV32: 34.78304194 | BX32: 70.90787674 | BY32: 45.33619107 | BZ32: 45.03730511 | CA32: 44.78834027 | CB32: 44.54187417 | CC32: 44.28862953 | CE32: 250W Sodium | CF32: ='TC5'!E653 -> 61.58276229 | CG32: ='TC5'!F653 -> 55.64811542 | CH32: ='TC5'!G653 -> 49.65865707 | CI32: ='TC5'!H653 -> 43.61222849 | CJ32: ='TC5'!I653 -> 37.5066256 | CL32: =Output!BK32 -> 400W Sodium - AEROSCREEN | CM32: ='TC5'!K188 -> 525.1862954 | CN32: ='TC5'!L188 -> 475.2982543 | CO32: ='TC5'!M188 -> 428.879212 | CP32: ='TC5'!N188 -> 385.6879494 | CQ32: ='TC5'!O188 -> 345.5080246 | CR32: ='TC5'!P188 -> 308.2784026 | CS32: ='TC5'!Q188 -> 273.7824507 | CT32: ='TC5'!R188 -> 241.819443 | CU32: ='TC5'!S188 -> 212.2033921 | CV32: ='TC5'!T188 -> 184.7619674 | CW32: ='TC5'!U188 -> 159.3354921 | CX32: ='TC5'!V188 -> 135.7760138 | CY32: ='TC5'!W188 -> 113.9464441 | CZ32: ='TC5'!X188 -> 93.7197604 | DA32: ='TC5'!Y188 -> 74.97826721 | DB32: ='TC5'!Z188 -> 57.61291098 | DC32: ='TC5'!AA188 -> 41.52264573 | DD32: ='TC5'!AB188 -> 26.61384498 | DE32: ='TC5'!AC188 -> 12.799757 | DF32: ='TC5'!AD188 -> 0 | DG32: ='TC5'!AE188 -> 0 | DH32: ='TC5'!AF188 -> 0 | DI32: ='TC5'!AG188 -> 0 | DJ32: ='TC5'!AH188 -> 0 | DK32: ='TC5'!AI188 -> 0 | DL32: ='TC5'!AJ188 -> 0 | DM32: ='TC5'!AK188 -> 0 | DN32: ='TC5'!AL188 -> 0 | DO32: ='TC5'!AM188 -> 0 | DP32: ='TC5'!AN188 -> 0 | DQ32: ='TC5'!AO188 -> 0 | DR32: ='TC5'!AP188 -> 0 | DS32: ='TC5'!AQ188 -> 0 | DT32: ='TC5'!AR188 -> 0 | DU32: ='TC5'!AS188 -> 0 | DV32: ='TC5'!AT188 -> 0 | DW32: ='TC5'!AU188 -> 0 | DX32: ='TC5'!AV188 -> 0 | DY32: ='TC5'!AW188 -> 0 | DZ32: ='TC5'!AX188 -> 0 | EA32: ='TC5'!AY188 -> 0 | EB32: ='TC5'!AZ188 -> 0 | EC32: ='TC5'!BA188 -> 0 | ED32: ='TC5'!BB188 -> 0 | EE32: ='TC5'!BC188 -> 0 | EF32: ='TC5'!BD188 -> 0 | EG32: ='TC5'!BE188 -> 0 | EH32: ='TC5'!BF188 -> 0 | EI32: ='TC5'!BG188 -> 0 | EJ32: ='TC5'!BH188 -> 0 | EL32: 400W Sodium - AEROSCREEN | EM32: ='TC5'!K496 -> 84.85565072 | EN32: ='TC5'!L496 -> 76.79511633 | EO32: ='TC5'!M496 -> 69.29507668 | EP32: ='TC5'!N496 -> 62.3165574 | EQ32: ='TC5'!O496 -> 55.82458741 | ER32: ='TC5'!P496 -> 49.80930517 | ES32: ='TC5'!Q496 -> 44.23570877 | ET32: ='TC5'!R496 -> 39.07136642 | EU32: ='TC5'!S496 -> 34.28622772 | EV32: ='TC5'!T496 -> 29.85244876 | EW32: ='TC5'!U496 -> 25.74423015 | EX32: ='TC5'!V496 -> 21.93766689 | EY32: ='TC5'!W496 -> 18.41060923 | EZ32: ='TC5'!X496 -> 15.14253385 | FA32: ='TC5'!Y496 -> 12.11442436 | FB32: ='TC5'!Z496 -> 9.308660743 | FC32: ='TC5'!AA496 -> 6.708916728 | FD32: ='TC5'!AB496 -> 4.300064859 | FE32: ='TC5'!AC496 -> 2.068088445 | FF32: ='TC5'!AD496 -> 0 | FG32: ='TC5'!AE496 -> 0 | FH32: ='TC5'!AF496 -> 0 | FI32: ='TC5'!AG496 -> 0 | FJ32: ='TC5'!AH496 -> 0 | FK32: ='TC5'!AI496 -> 0 | FL32: ='TC5'!AJ496 -> 0 | FM32: ='TC5'!AK496 -> 0 | FN32: ='TC5'!AL496 -> 0 | FO32: ='TC5'!AM496 -> 0 | FP32: ='TC5'!AN496 -> 0 | FQ32: ='TC5'!AO496 -> 0 | FR32: ='TC5'!AP496 -> 0 | FS32: ='TC5'!AQ496 -> 0 | FT32: ='TC5'!AR496 -> 0 | FU32: ='TC5'!AS496 -> 0 | FV32: ='TC5'!AT496 -> 0 | FW32: ='TC5'!AU496 -> 0 | FX32: ='TC5'!AV496 -> 0 | FY32: ='TC5'!AW496 -> 0 | FZ32: ='TC5'!AX496 -> 0 | GA32: ='TC5'!AY496 -> 0 | GB32: ='TC5'!AZ496 -> 0 | GC32: ='TC5'!BA496 -> 0 | GD32: ='TC5'!BB496 -> 0 | GE32: ='TC5'!BC496 -> 0 | GF32: ='TC5'!BD496 -> 0 | GG32: ='TC5'!BE496 -> 0 | GH32: ='TC5'!BF496 -> 0 | GI32: ='TC5'!BG496 -> 0 | GJ32: ='TC5'!BH496 -> 0
B33: 0 | C33: 23 | D33: 2 x 250W Sodium | E33: 0 | F33: 0 | G33: 0 | H33: 0 | I33: 0 | K33: 23 | L33: 56.59866638 | M33: 56.59866638 | N33: 56.59866638 | O33: 56.59866638 | P33: 56.59866638 | R33: 56.59866638 | S33: 56.59866638 | T33: 56.59866638 | U33: 56.59866638 | V33: 56.59866638 | X33: 2 x 250W Sodium | Y33: ='Tariff Smoothing - real'!N33 -> 32.11818182 | Z33: ='Tariff Smoothing - real'!O33 -> 0 | AA33: ='Tariff Smoothing - real'!P33 -> 0 | AB33: ='Tariff Smoothing - real'!Q33 -> 0 | AC33: ='Tariff Smoothing - real'!R33 -> 0 | AE33: ='Tariff Smoothing - real'!AE33 -> 92.6 | AF33: ='Tariff Smoothing - real'!AF33 -> 45.36705096 | AG33: ='Tariff Smoothing - real'!AG33 -> 45.36705096 | AH33: ='Tariff Smoothing - real'!AH33 -> 45.36705096 | AI33: ='Tariff Smoothing - real'!AI33 -> 45.36705096 | AK33: 124.7181818 | AL33: 45.36705096 | AM33: 45.36705096 | AN33: 45.36705096 | AO33: 45.36705096 | AQ33: =Annuity!C46 -> 400W Metal Halide - AEROSCREEN | AR33: ='TC3'!K42+'TC3'!K199 -> 58.61264644 | AS33: ='TC3'!L42+'TC3'!L199 -> 58.80020691 | AT33: ='TC3'!M42+'TC3'!M199 -> 59.04716778 | AU33: ='TC3'!N42+'TC3'!N199 -> 59.29516588 | AV33: ='TC3'!O42+'TC3'!O199 -> 59.53234654 | AX33: ='TC3'!K357 -> 39.21976839 | AY33: ='TC3'!L357 -> 38.86129971 | AZ33: ='TC3'!M357 -> 38.54691179 | BA33: ='TC3'!N357 -> 38.23506728 | BB33: ='TC3'!O357 -> 37.91771622 | BD33: 123.7253599 | BE33: 97.83241483 | BF33: 97.66150662 | BG33: 97.59407957 | BH33: 97.53023316 | BI33: 97.45006276 | BK33: 400W Metal Halide - AEROSCREEN | BL33: ='TC4'!L39 -> 9.470190477 | BM33: ='TC4'!M39 -> 9.500495087 | BN33: ='TC4'!N39 -> 9.540397166 | BO33: ='TC4'!O39 -> 9.580466834 | BP33: ='TC4'!P39 -> 9.618788702 | BR33: 39.21976839 | BS33: 38.86129971 | BT33: 38.54691179 | BU33: 38.23506728 | BV33: 37.91771622 | BX33: 82.30466705 | BY33: 48.68995887 | BZ33: 48.36179479 | CA33: 48.08730896 | CB33: 47.81553411 | CC33: 47.53650492 | CE33: 2 x 250W Sodium | CF33: ='TC5'!E654 -> 0 | CG33: ='TC5'!F654 -> 0 | CH33: ='TC5'!G654 -> 0 | CI33: ='TC5'!H654 -> 0 | CJ33: ='TC5'!I654 -> 0 | CL33: =Output!BK33 -> 400W Metal Halide - AEROSCREEN | CM33: ='TC5'!K189 -> 531.4406877 | CN33: ='TC5'!L189 -> 480.9585347 | CO33: ='TC5'!M189 -> 433.9866926 | CP33: ='TC5'!N189 -> 390.2810695 | CQ33: ='TC5'!O189 -> 349.6226459 | CR33: ='TC5'!P189 -> 311.94966 | CS33: ='TC5'!Q189 -> 277.0428992 | CT33: ='TC5'!R189 -> 244.699247 | CU33: ='TC5'!S189 -> 214.7305015 | CV33: ='TC5'!T189 -> 186.9622796 | CW33: ='TC5'!U189 -> 161.2330029 | CX33: ='TC5'!V189 -> 137.3929571 | CY33: ='TC5'!W189 -> 115.3034211 | CZ33: ='TC5'!X189 -> 94.83585986 | DA33: ='TC5'!Y189 -> 75.87117605 | DB33: ='TC5'!Z189 -> 58.2990175 | DC33: ='TC5'!AA189 -> 42.01713485 | DD33: ='TC5'!AB189 -> 26.93078665 | DE33: ='TC5'!AC189 -> 12.95218805 | DF33: ='TC5'!AD189 -> 0 | DG33: ='TC5'!AE189 -> 0 | DH33: ='TC5'!AF189 -> 0 | DI33: ='TC5'!AG189 -> 0 | DJ33: ='TC5'!AH189 -> 0 | DK33: ='TC5'!AI189 -> 0 | DL33: ='TC5'!AJ189 -> 0 | DM33: ='TC5'!AK189 -> 0 | DN33: ='TC5'!AL189 -> 0 | DO33: ='TC5'!AM189 -> 0 | DP33: ='TC5'!AN189 -> 0 | DQ33: ='TC5'!AO189 -> 0 | DR33: ='TC5'!AP189 -> 0 | DS33: ='TC5'!AQ189 -> 0 | DT33: ='TC5'!AR189 -> 0 | DU33: ='TC5'!AS189 -> 0 | DV33: ='TC5'!AT189 -> 0 | DW33: ='TC5'!AU189 -> 0 | DX33: ='TC5'!AV189 -> 0 | DY33: ='TC5'!AW189 -> 0 | DZ33: ='TC5'!AX189 -> 0 | EA33: ='TC5'!AY189 -> 0 | EB33: ='TC5'!AZ189 -> 0 | EC33: ='TC5'!BA189 -> 0 | ED33: ='TC5'!BB189 -> 0 | EE33: ='TC5'!BC189 -> 0 | EF33: ='TC5'!BD189 -> 0 | EG33: ='TC5'!BE189 -> 0 | EH33: ='TC5'!BF189 -> 0 | EI33: ='TC5'!BG189 -> 0 | EJ33: ='TC5'!BH189 -> 0 | EL33: 400W Metal Halide - AEROSCREEN | EM33: ='TC5'!K497 -> 85.86618836 | EN33: ='TC5'!L497 -> 77.70966186 | EO33: ='TC5'!M497 -> 70.12030497 | EP33: ='TC5'!N497 -> 63.05867918 | EQ33: ='TC5'!O497 -> 56.48939696 | ER33: ='TC5'!P497 -> 50.40247931 | ES33: ='TC5'!Q497 -> 44.7625075 | ET33: ='TC5'!R497 -> 39.5366635 | EU33: ='TC5'!S497 -> 34.69453905 | EV33: ='TC5'!T497 -> 30.20795865 | EW33: ='TC5'!U497 -> 26.05081567 | EX33: ='TC5'!V497 -> 22.19892042 | EY33: ='TC5'!W497 -> 18.62985938 | EZ33: ='TC5'!X497 -> 15.3228648 | FA33: ='TC5'!Y497 -> 12.25869386 | FB33: ='TC5'!Z497 -> 9.419516673 | FC33: ='TC5'!AA497 -> 6.788812561 | FD33: ='TC5'!AB497 -> 4.351273911 | FE33: ='TC5'!AC497 -> 2.092717108 | FF33: ='TC5'!AD497 -> 0 | FG33: ='TC5'!AE497 -> 0 | FH33: ='TC5'!AF497 -> 0 | FI33: ='TC5'!AG497 -> 0 | FJ33: ='TC5'!AH497 -> 0 | FK33: ='TC5'!AI497 -> 0 | FL33: ='TC5'!AJ497 -> 0 | FM33: ='TC5'!AK497 -> 0 | FN33: ='TC5'!AL497 -> 0 | FO33: ='TC5'!AM497 -> 0 | FP33: ='TC5'!AN497 -> 0 | FQ33: ='TC5'!AO497 -> 0 | FR33: ='TC5'!AP497 -> 0 | FS33: ='TC5'!AQ497 -> 0 | FT33: ='TC5'!AR497 -> 0 | FU33: ='TC5'!AS497 -> 0 | FV33: ='TC5'!AT497 -> 0 | FW33: ='TC5'!AU497 -> 0 | FX33: ='TC5'!AV497 -> 0 | FY33: ='TC5'!AW497 -> 0 | FZ33: ='TC5'!AX497 -> 0 | GA33: ='TC5'!AY497 -> 0 | GB33: ='TC5'!AZ497 -> 0 | GC33: ='TC5'!BA497 -> 0 | GD33: ='TC5'!BB497 -> 0 | GE33: ='TC5'!BC497 -> 0 | GF33: ='TC5'!BD497 -> 0 | GG33: ='TC5'!BE497 -> 0 | GH33: ='TC5'!BF497 -> 0 | GI33: ='TC5'!BG497 -> 0 | GJ33: ='TC5'!BH497 -> 0
B34: 0 | C34: 24 | D34: 310W Sodium | E34: 0 | F34: 0 | G34: 0 | H34: 0 | I34: 0 | K34: 24 | L34: 54.13616638 | M34: 54.13616638 | N34: 54.13616638 | O34: 54.13616638 | P34: 54.13616638 | R34: 54.13616638 | S34: 54.13616638 | T34: 54.13616638 | U34: 54.13616638 | V34: 54.13616638 | X34: 310W Sodium | Y34: ='Tariff Smoothing - real'!N34 -> 62.36363636 | Z34: ='Tariff Smoothing - real'!O34 -> 0 | AA34: ='Tariff Smoothing - real'!P34 -> 0 | AB34: ='Tariff Smoothing - real'!Q34 -> 0 | AC34: ='Tariff Smoothing - real'!R34 -> 0 | AE34: ='Tariff Smoothing - real'!AE34 -> 0 | AF34: ='Tariff Smoothing - real'!AF34 -> 43.39321712 | AG34: ='Tariff Smoothing - real'!AG34 -> 43.39321712 | AH34: ='Tariff Smoothing - real'!AH34 -> 43.39321712 | AI34: ='Tariff Smoothing - real'!AI34 -> 43.39321712 | AK34: 62.36363636 | AL34: 43.39321712 | AM34: 43.39321712 | AN34: 43.39321712 | AO34: 43.39321712 | AQ34: =Annuity!C47 -> Roadster A/Screen 100W HPS c/w PECB | AR34: ='TC3'!K43+'TC3'!K200 -> 49.68851219 | AS34: ='TC3'!L43+'TC3'!L200 -> 49.84751543 | AT34: ='TC3'!M43+'TC3'!M200 -> 50.056875 | AU34: ='TC3'!N43+'TC3'!N200 -> 50.26711387 | AV34: ='TC3'!O43+'TC3'!O200 -> 50.46818233 | AX34: ='TC3'!K358 -> 36.44771239 | AY34: ='TC3'!L358 -> 36.1145803 | AZ34: ='TC3'!M358 -> 35.82241335 | BA34: ='TC3'!N358 -> 35.53261002 | BB34: ='TC3'!O358 -> 35.23768936 | BD34: 108.5198895 | BE34: 86.13622458 | BF34: 85.96209573 | BG34: 85.87928834 | BH34: 85.79972389 | BI34: 85.70587168 | BK34: Roadster A/Screen 100W HPS c/w PECB | BL34: ='TC4'!L40 -> 8.028296001 | BM34: ='TC4'!M40 -> 8.053986548 | BN34: ='TC4'!N40 -> 8.087813292 | BO34: ='TC4'!O40 -> 8.121782107 | BP34: ='TC4'!P40 -> 8.154269236 | BR34: 36.44771239 | BS34: 36.1145803 | BT34: 35.82241335 | BU34: 35.53261002 | BV34: 35.23768936 | BX34: 70.96861481 | BY34: 44.47600839 | BZ34: 44.16856685 | CA34: 43.91022664 | CB34: 43.65439213 | CC34: 43.39195859 | CE34: 310W Sodium | CF34: ='TC5'!E655 -> 0 | CG34: ='TC5'!F655 -> 0 | CH34: ='TC5'!G655 -> 0 | CI34: ='TC5'!H655 -> 0 | CJ34: ='TC5'!I655 -> 0 | CL34: =Output!BK34 -> Roadster A/Screen 100W HPS c/w PECB | CM34: ='TC5'!K190 -> 450.5255895 | CN34: ='TC5'!L190 -> 407.7296534 | CO34: ='TC5'!M190 -> 367.9095618 | CP34: ='TC5'!N190 -> 330.8583874 | CQ34: ='TC5'!O190 -> 296.3904577 | CR34: ='TC5'!P190 -> 264.4534145 | CS34: ='TC5'!Q190 -> 234.8614217 | CT34: ='TC5'!R190 -> 207.4422886 | CU34: ='TC5'!S190 -> 182.0364681 | CV34: ='TC5'!T190 -> 158.496128 | CW34: ='TC5'!U190 -> 136.6842911 | CX34: ='TC5'!V190 -> 116.4740382 | CY34: ='TC5'!W190 -> 97.74776938 | CZ34: ='TC5'!X190 -> 80.39651961 | DA34: ='TC5'!Y190 -> 64.31932502 | DB34: ='TC5'!Z190 -> 49.42263518 | DC34: ='TC5'!AA190 -> 35.61976884 | DD34: ='TC5'!AB190 -> 22.83040952 | DE34: ='TC5'!AC190 -> 10.98013813 | DF34: ='TC5'!AD190 -> 0 | DG34: ='TC5'!AE190 -> 0 | DH34: ='TC5'!AF190 -> 0 | DI34: ='TC5'!AG190 -> 0 | DJ34: ='TC5'!AH190 -> 0 | DK34: ='TC5'!AI190 -> 0 | DL34: ='TC5'!AJ190 -> 0 | DM34: ='TC5'!AK190 -> 0 | DN34: ='TC5'!AL190 -> 0 | DO34: ='TC5'!AM190 -> 0 | DP34: ='TC5'!AN190 -> 0 | DQ34: ='TC5'!AO190 -> 0 | DR34: ='TC5'!AP190 -> 0 | DS34: ='TC5'!AQ190 -> 0 | DT34: ='TC5'!AR190 -> 0 | DU34: ='TC5'!AS190 -> 0 | DV34: ='TC5'!AT190 -> 0 | DW34: ='TC5'!AU190 -> 0 | DX34: ='TC5'!AV190 -> 0 | DY34: ='TC5'!AW190 -> 0 | DZ34: ='TC5'!AX190 -> 0 | EA34: ='TC5'!AY190 -> 0 | EB34: ='TC5'!AZ190 -> 0 | EC34: ='TC5'!BA190 -> 0 | ED34: ='TC5'!BB190 -> 0 | EE34: ='TC5'!BC190 -> 0 | EF34: ='TC5'!BD190 -> 0 | EG34: ='TC5'!BE190 -> 0 | EH34: ='TC5'!BF190 -> 0 | EI34: ='TC5'!BG190 -> 0 | EJ34: ='TC5'!BH190 -> 0 | EL34: Roadster A/Screen 100W HPS c/w PECB | EM34: ='TC5'!K498 -> 72.79253551 | EN34: ='TC5'!L498 -> 65.8778901 | EO34: ='TC5'!M498 -> 59.44405927 | EP34: ='TC5'!N498 -> 53.45760923 | EQ34: ='TC5'!O498 -> 47.88854045 | ER34: ='TC5'!P498 -> 42.72839327 | ES34: ='TC5'!Q498 -> 37.94714169 | ET34: ='TC5'!R498 -> 33.51696444 | EU34: ='TC5'!S498 -> 29.41208308 | EV34: ='TC5'!T498 -> 25.60861201 | EW34: ='TC5'!U498 -> 22.0844195 | EX34: ='TC5'!V498 -> 18.81899888 | EY34: ='TC5'!W498 -> 15.79334923 | EZ34: ='TC5'!X498 -> 12.98986483 | FA34: ='TC5'!Y498 -> 10.39223267 | FB34: ='TC5'!Z498 -> 7.985337594 | FC34: ='TC5'!AA498 -> 5.755174288 | FD34: ='TC5'!AB498 -> 3.68876582 | FE34: ='TC5'!AC498 -> 1.774088117 | FF34: ='TC5'!AD498 -> 0 | FG34: ='TC5'!AE498 -> 0 | FH34: ='TC5'!AF498 -> 0 | FI34: ='TC5'!AG498 -> 0 | FJ34: ='TC5'!AH498 -> 0 | FK34: ='TC5'!AI498 -> 0 | FL34: ='TC5'!AJ498 -> 0 | FM34: ='TC5'!AK498 -> 0 | FN34: ='TC5'!AL498 -> 0 | FO34: ='TC5'!AM498 -> 0 | FP34: ='TC5'!AN498 -> 0 | FQ34: ='TC5'!AO498 -> 0 | FR34: ='TC5'!AP498 -> 0 | FS34: ='TC5'!AQ498 -> 0 | FT34: ='TC5'!AR498 -> 0 | FU34: ='TC5'!AS498 -> 0 | FV34: ='TC5'!AT498 -> 0 | FW34: ='TC5'!AU498 -> 0 | FX34: ='TC5'!AV498 -> 0 | FY34: ='TC5'!AW498 -> 0 | FZ34: ='TC5'!AX498 -> 0 | GA34: ='TC5'!AY498 -> 0 | GB34: ='TC5'!AZ498 -> 0 | GC34: ='TC5'!BA498 -> 0 | GD34: ='TC5'!BB498 -> 0 | GE34: ='TC5'!BC498 -> 0 | GF34: ='TC5'!BD498 -> 0 | GG34: ='TC5'!BE498 -> 0 | GH34: ='TC5'!BF498 -> 0 | GI34: ='TC5'!BG498 -> 0 | GJ34: ='TC5'!BH498 -> 0
B35: 0 | C35: 25 | D35: 400 W Sodium | E35: 3.188350744 | F35: 3.121411245 | G35: 3.057718192 | H35: 2.997192401 | I35: 2.939756623 | K35: 25 | L35: 54.39866638 | M35: 54.39866638 | N35: 54.39866638 | O35: 54.39866638 | P35: 54.39866638 | R35: 57.58701712 | S35: 57.52007762 | T35: 57.45638457 | U35: 57.39585878 | V35: 57.338423 | X35: 400 W Sodium | Y35: ='Tariff Smoothing - real'!N35 -> 19.79090909 | Z35: ='Tariff Smoothing - real'!O35 -> 2.431807994 | AA35: ='Tariff Smoothing - real'!P35 -> 2.431807994 | AB35: ='Tariff Smoothing - real'!Q35 -> 2.431807994 | AC35: ='Tariff Smoothing - real'!R35 -> 2.431807994 | AE35: ='Tariff Smoothing - real'!AE35 -> 54.72727273 | AF35: ='Tariff Smoothing - real'!AF35 -> 43.6036258 | AG35: ='Tariff Smoothing - real'!AG35 -> 43.6036258 | AH35: ='Tariff Smoothing - real'!AH35 -> 43.6036258 | AI35: ='Tariff Smoothing - real'!AI35 -> 43.6036258 | AK35: 74.51818182 | AL35: 46.03543379 | AM35: 46.03543379 | AN35: 46.03543379 | AO35: 46.03543379 | AQ35: =Annuity!C48 -> 80W Mercury - POST TOP | AR35: ='TC3'!K44+'TC3'!K201 -> 48.2715126 | AS35: ='TC3'!L44+'TC3'!L201 -> 48.42598144 | AT35: ='TC3'!M44+'TC3'!M201 -> 48.62937056 | AU35: ='TC3'!N44+'TC3'!N201 -> 48.83361391 | AV35: ='TC3'!O44+'TC3'!O201 -> 49.02894837 | AX35: ='TC3'!K359 -> 34.56667439 | AY35: ='TC3'!L359 -> 34.25073499 | AZ35: ='TC3'!M359 -> 33.97364654 | BA35: ='TC3'!N359 -> 33.69879974 | BB35: ='TC3'!O359 -> 33.4190997 | BD35: 88.12803298 | BE35: 82.83818699 | BF35: 82.67671642 | BG35: 82.6030171 | BH35: 82.53241365 | BI35: 82.44804807 | BK35: 80W Mercury - POST TOP | BL35: ='TC4'!L41 -> 7.799347866 | BM35: ='TC4'!M41 -> 7.824305779 | BN35: ='TC4'!N41 -> 7.857167863 | BO35: ='TC4'!O41 -> 7.890167968 | BP35: ='TC4'!P41 -> 7.92172864 | BR35: 34.56667439 | BS35: 34.25073499 | BT35: 33.97364654 | BU35: 33.69879974 | BV35: 33.4190997 | BX35: 52.23852817 | BY35: 42.36602226 | BZ35: 42.07504077 | CA35: 41.8308144 | CB35: 41.58896771 | CC35: 41.34082834 | CE35: 400 W Sodium | CF35: ='TC5'!E656 -> 53.55360802 | CG35: ='TC5'!F656 -> 53.54542941 | CH35: ='TC5'!G656 -> 53.57791673 | CI35: ='TC5'!H656 -> 53.65127604 | CJ35: ='TC5'!I656 -> 53.76574639 | CL35: =Output!BK35 -> 80W Mercury - POST TOP | CM35: ='TC5'!K191 -> 437.6776584 | CN35: ='TC5'!L191 -> 396.1021618 | CO35: ='TC5'!M191 -> 357.4176457 | CP35: ='TC5'!N191 -> 321.4230837 | CQ35: ='TC5'!O191 -> 287.9380984 | CR35: ='TC5'!P191 -> 256.9118246 | CS35: ='TC5'!Q191 -> 228.1637259 | CT35: ='TC5'!R191 -> 201.5265221 | CU35: ='TC5'!S191 -> 176.8452158 | CV35: ='TC5'!T191 -> 153.9761909 | CW35: ='TC5'!U191 -> 132.7863763 | CX35: ='TC5'!V191 -> 113.1524724 | CY35: ='TC5'!W191 -> 94.96023271 | CZ35: ='TC5'!X191 -> 78.10379981 | DA35: ='TC5'!Y191 -> 62.48508902 | DB35: ='TC5'!Z191 -> 48.01321777 | DC35: ='TC5'!AA191 -> 34.60397674 | DD35: ='TC5'!AB191 -> 22.17933989 | DE35: ='TC5'!AC191 -> 10.66701039 | DF35: ='TC5'!AD191 -> 0 | DG35: ='TC5'!AE191 -> 0 | DH35: ='TC5'!AF191 -> 0 | DI35: ='TC5'!AG191 -> 0 | DJ35: ='TC5'!AH191 -> 0 | DK35: ='TC5'!AI191 -> 0 | DL35: ='TC5'!AJ191 -> 0 | DM35: ='TC5'!AK191 -> 0 | DN35: ='TC5'!AL191 -> 0 | DO35: ='TC5'!AM191 -> 0 | DP35: ='TC5'!AN191 -> 0 | DQ35: ='TC5'!AO191 -> 0 | DR35: ='TC5'!AP191 -> 0 | DS35: ='TC5'!AQ191 -> 0 | DT35: ='TC5'!AR191 -> 0 | DU35: ='TC5'!AS191 -> 0 | DV35: ='TC5'!AT191 -> 0 | DW35: ='TC5'!AU191 -> 0 | DX35: ='TC5'!AV191 -> 0 | DY35: ='TC5'!AW191 -> 0 | DZ35: ='TC5'!AX191 -> 0 | EA35: ='TC5'!AY191 -> 0 | EB35: ='TC5'!AZ191 -> 0 | EC35: ='TC5'!BA191 -> 0 | ED35: ='TC5'!BB191 -> 0 | EE35: ='TC5'!BC191 -> 0 | EF35: ='TC5'!BD191 -> 0 | EG35: ='TC5'!BE191 -> 0 | EH35: ='TC5'!BF191 -> 0 | EI35: ='TC5'!BG191 -> 0 | EJ35: ='TC5'!BH191 -> 0 | EL35: 80W Mercury - POST TOP | EM35: ='TC5'!K499 -> 70.71666347 | EN35: ='TC5'!L499 -> 63.99920749 | EO35: ='TC5'!M499 -> 57.74885439 | EP35: ='TC5'!N499 -> 51.93312384 | EQ35: ='TC5'!O499 -> 46.52287182 | ER35: ='TC5'!P499 -> 41.50987991 | ES35: ='TC5'!Q499 -> 36.86497839 | ET35: ='TC5'!R499 -> 32.56113938 | EU35: ='TC5'!S499 -> 28.57331959 | EV35: ='TC5'!T499 -> 24.87831458 | EW35: ='TC5'!U499 -> 21.45462376 | EX35: ='TC5'!V499 -> 18.28232526 | EY35: ='TC5'!W499 -> 15.34296003 | EZ35: ='TC5'!X499 -> 12.61942441 | FA35: ='TC5'!Y499 -> 10.09587062 | FB35: ='TC5'!Z499 -> 7.757614531 | FC35: ='TC5'!AA499 -> 5.591050242 | FD35: ='TC5'!AB499 -> 3.583570887 | FE35: ='TC5'!AC499 -> 1.723495293 | FF35: ='TC5'!AD499 -> 0 | FG35: ='TC5'!AE499 -> 0 | FH35: ='TC5'!AF499 -> 0 | FI35: ='TC5'!AG499 -> 0 | FJ35: ='TC5'!AH499 -> 0 | FK35: ='TC5'!AI499 -> 0 | FL35: ='TC5'!AJ499 -> 0 | FM35: ='TC5'!AK499 -> 0 | FN35: ='TC5'!AL499 -> 0 | FO35: ='TC5'!AM499 -> 0 | FP35: ='TC5'!AN499 -> 0 | FQ35: ='TC5'!AO499 -> 0 | FR35: ='TC5'!AP499 -> 0 | FS35: ='TC5'!AQ499 -> 0 | FT35: ='TC5'!AR499 -> 0 | FU35: ='TC5'!AS499 -> 0 | FV35: ='TC5'!AT499 -> 0 | FW35: ='TC5'!AU499 -> 0 | FX35: ='TC5'!AV499 -> 0 | FY35: ='TC5'!AW499 -> 0 | FZ35: ='TC5'!AX499 -> 0 | GA35: ='TC5'!AY499 -> 0 | GB35: ='TC5'!AZ499 -> 0 | GC35: ='TC5'!BA499 -> 0 | GD35: ='TC5'!BB499 -> 0 | GE35: ='TC5'!BC499 -> 0 | GF35: ='TC5'!BD499 -> 0 | GG35: ='TC5'!BE499 -> 0 | GH35: ='TC5'!BF499 -> 0 | GI35: ='TC5'!BG499 -> 0 | GJ35: ='TC5'!BH499 -> 0
B36: 0 | C36: 26 | D36: 2 x 400 W Sodium | E36: 15.10825247 | F36: 14.76903983 | G36: 14.4298272 | H36: 14.09061456 | I36: 13.75140192 | K36: 26 | L36: 57.12366638 | M36: 57.12366638 | N36: 57.12366638 | O36: 57.12366638 | P36: 57.12366638 | R36: 72.23191885 | S36: 71.89270621 | T36: 71.55349357 | U36: 71.21428094 | V36: 70.8750683 | X36: 2 x 400 W Sodium | Y36: ='Tariff Smoothing - real'!N36 -> 39.56363636 | Z36: ='Tariff Smoothing - real'!O36 -> 11.45208096 | AA36: ='Tariff Smoothing - real'!P36 -> 11.45208096 | AB36: ='Tariff Smoothing - real'!Q36 -> 11.45208096 | AC36: ='Tariff Smoothing - real'!R36 -> 11.45208096 | AE36: ='Tariff Smoothing - real'!AE36 -> 109.4727273 | AF36: ='Tariff Smoothing - real'!AF36 -> 45.78786832 | AG36: ='Tariff Smoothing - real'!AG36 -> 45.78786832 | AH36: ='Tariff Smoothing - real'!AH36 -> 45.78786832 | AI36: ='Tariff Smoothing - real'!AI36 -> 45.78786832 | AK36: 149.0363636 | AL36: 57.23994928 | AM36: 57.23994928 | AN36: 57.23994928 | AO36: 57.23994928 | AQ36: =Annuity!C49 -> B2001 42WCFL c/w D2 PECB green - PT | AR36: ='TC3'!K45+'TC3'!K202 -> 77.20026131 | AS36: ='TC3'!L45+'TC3'!L202 -> 77.44730215 | AT36: ='TC3'!M45+'TC3'!M202 -> 77.77258082 | AU36: ='TC3'!N45+'TC3'!N202 -> 78.09922565 | AV36: ='TC3'!O45+'TC3'!O202 -> 78.41162256 | AX36: ='TC3'!K360 -> 33.27964839 | AY36: ='TC3'!L360 -> 32.9754724 | AZ36: ='TC3'!M360 -> 32.70870083 | BA36: ='TC3'!N360 -> 32.44408744 | BB36: ='TC3'!O360 -> 32.17480152 | BD36: 102.289245 | BE36: 110.4799097 | BF36: 110.4227746 | BG36: 110.4812816 | BH36: 110.5433131 | BI36: 110.5864241 | BK36: B2001 42WCFL c/w D2 PECB green - PT | BL36: ='TC4'!L42 -> 12.47343746 | BM36: ='TC4'!M42 -> 12.51335246 | BN36: ='TC4'!N42 -> 12.56590854 | BO36: ='TC4'!O42 -> 12.61868535 | BP36: ='TC4'!P42 -> 12.66916009 | BR36: 33.27964839 | BS36: 32.9754724 | BT36: 32.70870083 | BU36: 32.44408744 | BV36: 32.17480152 | BX36: 64.90081168 | BY36: 45.75308585 | BZ36: 45.48882486 | CA36: 45.27460937 | CB36: 45.0627728 | CC36: 44.84396161 | CE36: 2 x 400 W Sodium | CF36: ='TC5'!E657 -> 83.43837127 | CG36: ='TC5'!F657 -> 77.68400084 | CH36: ='TC5'!G657 -> 71.92963041 | CI36: ='TC5'!H657 -> 66.17525997 | CJ36: ='TC5'!I657 -> 60.42088954 | CL36: =Output!BK36 -> B2001 42WCFL c/w D2 PECB green - PT | CM36: ='TC5'!K192 -> 699.9745354 | CN36: ='TC5'!L192 -> 633.4831613 | CO36: ='TC5'!M192 -> 571.6153102 | CP36: ='TC5'!N192 -> 514.0494821 | CQ36: ='TC5'!O192 -> 460.4972009 | CR36: ='TC5'!P192 -> 410.8771183 | CS36: ='TC5'!Q192 -> 364.9005037 | CT36: ='TC5'!R192 -> 322.2998271 | CU36: ='TC5'!S192 -> 282.8272026 | CV36: ='TC5'!T192 -> 246.2529457 | CW36: ='TC5'!U192 -> 212.3642372 | CX36: ='TC5'!V192 -> 180.9638846 | CY36: ='TC5'!W192 -> 151.8691747 | CZ36: ='TC5'!X192 -> 124.9108103 | DA36: ='TC5'!Y192 -> 99.9319255 | DB36: ='TC5'!Z192 -> 76.78717237 | DC36: ='TC5'!AA192 -> 55.34187564 | DD36: ='TC5'!AB192 -> 35.47124884 | DE36: ='TC5'!AC192 -> 17.05966823 | DF36: ='TC5'!AD192 -> 0 | DG36: ='TC5'!AE192 -> 0 | DH36: ='TC5'!AF192 -> 0 | DI36: ='TC5'!AG192 -> 0 | DJ36: ='TC5'!AH192 -> 0 | DK36: ='TC5'!AI192 -> 0 | DL36: ='TC5'!AJ192 -> 0 | DM36: ='TC5'!AK192 -> 0 | DN36: ='TC5'!AL192 -> 0 | DO36: ='TC5'!AM192 -> 0 | DP36: ='TC5'!AN192 -> 0 | DQ36: ='TC5'!AO192 -> 0 | DR36: ='TC5'!AP192 -> 0 | DS36: ='TC5'!AQ192 -> 0 | DT36: ='TC5'!AR192 -> 0 | DU36: ='TC5'!AS192 -> 0 | DV36: ='TC5'!AT192 -> 0 | DW36: ='TC5'!AU192 -> 0 | DX36: ='TC5'!AV192 -> 0 | DY36: ='TC5'!AW192 -> 0 | DZ36: ='TC5'!AX192 -> 0 | EA36: ='TC5'!AY192 -> 0 | EB36: ='TC5'!AZ192 -> 0 | EC36: ='TC5'!BA192 -> 0 | ED36: ='TC5'!BB192 -> 0 | EE36: ='TC5'!BC192 -> 0 | EF36: ='TC5'!BD192 -> 0 | EG36: ='TC5'!BE192 -> 0 | EH36: ='TC5'!BF192 -> 0 | EI36: ='TC5'!BG192 -> 0 | EJ36: ='TC5'!BH192 -> 0 | EL36: B2001 42WCFL c/w D2 PECB green - PT | EM36: ='TC5'!K500 -> 113.0966196 | EN36: ='TC5'!L500 -> 102.3534436 | EO36: ='TC5'!M500 -> 92.35730164 | EP36: ='TC5'!N500 -> 83.05624821 | EQ36: ='TC5'!O500 -> 74.40367347 | ER36: ='TC5'!P500 -> 66.38643381 | ES36: ='TC5'!Q500 -> 58.9578783 | ET36: ='TC5'!R500 -> 52.07478145 | EU36: ='TC5'!S500 -> 45.69709172 | EV36: ='TC5'!T500 -> 39.78769844 | EW36: ='TC5'!U500 -> 34.31221587 | EX36: ='TC5'!V500 -> 29.23878312 | EY36: ='TC5'!W500 -> 24.53787876 | EZ36: ='TC5'!X500 -> 20.18214905 | FA36: ='TC5'!Y500 -> 16.14624875 | FB36: ='TC5'!Z500 -> 12.40669365 | FC36: ='TC5'!AA500 -> 8.941723938 | FD36: ='TC5'!AB500 -> 5.731177543 | FE36: ='TC5'!AC500 -> 2.756372855 | FF36: ='TC5'!AD500 -> 0 | FG36: ='TC5'!AE500 -> 0 | FH36: ='TC5'!AF500 -> 0 | FI36: ='TC5'!AG500 -> 0 | FJ36: ='TC5'!AH500 -> 0 | FK36: ='TC5'!AI500 -> 0 | FL36: ='TC5'!AJ500 -> 0 | FM36: ='TC5'!AK500 -> 0 | FN36: ='TC5'!AL500 -> 0 | FO36: ='TC5'!AM500 -> 0 | FP36: ='TC5'!AN500 -> 0 | FQ36: ='TC5'!AO500 -> 0 | FR36: ='TC5'!AP500 -> 0 | FS36: ='TC5'!AQ500 -> 0 | FT36: ='TC5'!AR500 -> 0 | FU36: ='TC5'!AS500 -> 0 | FV36: ='TC5'!AT500 -> 0 | FW36: ='TC5'!AU500 -> 0 | FX36: ='TC5'!AV500 -> 0 | FY36: ='TC5'!AW500 -> 0 | FZ36: ='TC5'!AX500 -> 0 | GA36: ='TC5'!AY500 -> 0 | GB36: ='TC5'!AZ500 -> 0 | GC36: ='TC5'!BA500 -> 0 | GD36: ='TC5'!BB500 -> 0 | GE36: ='TC5'!BC500 -> 0 | GF36: ='TC5'!BD500 -> 0 | GG36: ='TC5'!BE500 -> 0 | GH36: ='TC5'!BF500 -> 0 | GI36: ='TC5'!BG500 -> 0 | GJ36: ='TC5'!BH500 -> 0
B37: 0 | C37: 27 | D37: 4 x 600W Sodium | E37: 0 | F37: 0 | G37: 0 | H37: 0 | I37: 0 | K37: 27 | L37: 62.57366638 | M37: 62.57366638 | N37: 62.57366638 | O37: 62.57366638 | P37: 62.57366638 | R37: 62.57366638 | S37: 62.57366638 | T37: 62.57366638 | U37: 62.57366638 | V37: 62.57366638 | X37: 4 x 600W Sodium | Y37: ='Tariff Smoothing - real'!N37 -> 342.1909091 | Z37: ='Tariff Smoothing - real'!O37 -> 0 | AA37: ='Tariff Smoothing - real'!P37 -> 0 | AB37: ='Tariff Smoothing - real'!Q37 -> 0 | AC37: ='Tariff Smoothing - real'!R37 -> 0 | AE37: ='Tariff Smoothing - real'!AE37 -> 0 | AF37: ='Tariff Smoothing - real'!AF37 -> 50.15635337 | AG37: ='Tariff Smoothing - real'!AG37 -> 50.15635337 | AH37: ='Tariff Smoothing - real'!AH37 -> 50.15635337 | AI37: ='Tariff Smoothing - real'!AI37 -> 50.15635337 | AK37: 342.1909091 | AL37: 50.15635337 | AM37: 50.15635337 | AN37: 50.15635337 | AO37: 50.15635337 | AQ37: =Annuity!C50 -> 250W Sodium - FLOODLIGHT | AR37: ='TC3'!K46+'TC3'!K203 -> 73.39957401 | AS37: ='TC3'!L46+'TC3'!L203 -> 73.63445265 | AT37: ='TC3'!M46+'TC3'!M203 -> 73.94371735 | AU37: ='TC3'!N46+'TC3'!N203 -> 74.25428096 | AV37: ='TC3'!O46+'TC3'!O203 -> 74.55129809 | AX37: ='TC3'!K361 -> 35.71757264 | AY37: ='TC3'!L361 -> 35.39111403 | AZ37: ='TC3'!M361 -> 35.10479991 | BA37: ='TC3'!N361 -> 34.82080208 | BB37: ='TC3'!O361 -> 34.53178943 | BD37: 124.7770651 | BE37: 109.1171467 | BF37: 109.0255667 | BG37: 109.0485173 | BH37: 109.075083 | BI37: 109.0830875 | BK37: 250W Sodium - FLOODLIGHT | BL37: ='TC4'!L43 -> 11.859351 | BM37: ='TC4'!M43 -> 11.89730092 | BN37: ='TC4'!N43 -> 11.94726958 | BO37: ='TC4'!O43 -> 11.99744811 | BP37: ='TC4'!P43 -> 12.04543791 | BR37: 35.71757264 | BS37: 35.39111403 | BT37: 35.10479991 | BU37: 34.82080208 | BV37: 34.53178943 | BX37: 68.2747041 | BY37: 47.57692364 | BZ37: 47.28841495 | CA37: 47.0520695 | CB37: 46.8182502 | CC37: 46.57722733 | CE37: 4 x 600W Sodium | CF37: ='TC5'!E658 -> 0 | CG37: ='TC5'!F658 -> 0 | CH37: ='TC5'!G658 -> 0 | CI37: ='TC5'!H658 -> 0 | CJ37: ='TC5'!I658 -> 0 | CL37: =Output!BK37 -> 250W Sodium - FLOODLIGHT | CM37: ='TC5'!K193 -> 665.5137152 | CN37: ='TC5'!L193 -> 602.2958134 | CO37: ='TC5'!M193 -> 543.4738115 | CP37: ='TC5'!N193 -> 488.7420375 | CQ37: ='TC5'!O193 -> 437.8262173 | CR37: ='TC5'!P193 -> 390.6490075 | CS37: ='TC5'!Q193 -> 346.9358921 | CT37: ='TC5'!R193 -> 306.4325122 | CU37: ='TC5'!S193 -> 268.9031855 | CV37: ='TC5'!T193 -> 234.1295354 | CW37: ='TC5'!U193 -> 201.90922 | CX37: ='TC5'!V193 -> 172.054755 | CY37: ='TC5'!W193 -> 144.3924222 | CZ37: ='TC5'!X193 -> 118.7612595 | DA37: ='TC5'!Y193 -> 95.0121235 | DB37: ='TC5'!Z193 -> 73.00682208 | DC37: ='TC5'!AA193 -> 52.6173102 | DD37: ='TC5'!AB193 -> 33.72494484 | DE37: ='TC5'!AC193 -> 16.21979459 | DF37: ='TC5'!AD193 -> 0 | DG37: ='TC5'!AE193 -> 0 | DH37: ='TC5'!AF193 -> 0 | DI37: ='TC5'!AG193 -> 0 | DJ37: ='TC5'!AH193 -> 0 | DK37: ='TC5'!AI193 -> 0 | DL37: ='TC5'!AJ193 -> 0 | DM37: ='TC5'!AK193 -> 0 | DN37: ='TC5'!AL193 -> 0 | DO37: ='TC5'!AM193 -> 0 | DP37: ='TC5'!AN193 -> 0 | DQ37: ='TC5'!AO193 -> 0 | DR37: ='TC5'!AP193 -> 0 | DS37: ='TC5'!AQ193 -> 0 | DT37: ='TC5'!AR193 -> 0 | DU37: ='TC5'!AS193 -> 0 | DV37: ='TC5'!AT193 -> 0 | DW37: ='TC5'!AU193 -> 0 | DX37: ='TC5'!AV193 -> 0 | DY37: ='TC5'!AW193 -> 0 | DZ37: ='TC5'!AX193 -> 0 | EA37: ='TC5'!AY193 -> 0 | EB37: ='TC5'!AZ193 -> 0 | EC37: ='TC5'!BA193 -> 0 | ED37: ='TC5'!BB193 -> 0 | EE37: ='TC5'!BC193 -> 0 | EF37: ='TC5'!BD193 -> 0 | EG37: ='TC5'!BE193 -> 0 | EH37: ='TC5'!BF193 -> 0 | EI37: ='TC5'!BG193 -> 0 | EJ37: ='TC5'!BH193 -> 0 | EL37: 250W Sodium - FLOODLIGHT | EM37: ='TC5'!K501 -> 107.5286995 | EN37: ='TC5'!L501 -> 97.31442656 | EO37: ='TC5'!M501 -> 87.81041 | EP37: ='TC5'!N501 -> 78.96726169 | EQ37: ='TC5'!O501 -> 70.74066648 | ER37: ='TC5'!P501 -> 63.11812783 | ES37: ='TC5'!Q501 -> 56.0552915 | ET37: ='TC5'!R501 -> 49.51106007 | EU37: ='TC5'!S501 -> 43.4473538 | EV37: ='TC5'!T501 -> 37.82888901 | EW37: ='TC5'!U501 -> 32.62297284 | EX37: ='TC5'!V501 -> 27.79931297 | EY37: ='TC5'!W501 -> 23.32984134 | EZ37: ='TC5'!X501 -> 19.18855089 | FA37: ='TC5'!Y501 -> 15.35134415 | FB37: ='TC5'!Z501 -> 11.79589309 | FC37: ='TC5'!AA501 -> 8.501509151 | FD37: ='TC5'!AB501 -> 5.44902288 | FE37: ='TC5'!AC501 -> 2.62067239 | FF37: ='TC5'!AD501 -> 0 | FG37: ='TC5'!AE501 -> 0 | FH37: ='TC5'!AF501 -> 0 | FI37: ='TC5'!AG501 -> 0 | FJ37: ='TC5'!AH501 -> 0 | FK37: ='TC5'!AI501 -> 0 | FL37: ='TC5'!AJ501 -> 0 | FM37: ='TC5'!AK501 -> 0 | FN37: ='TC5'!AL501 -> 0 | FO37: ='TC5'!AM501 -> 0 | FP37: ='TC5'!AN501 -> 0 | FQ37: ='TC5'!AO501 -> 0 | FR37: ='TC5'!AP501 -> 0 | FS37: ='TC5'!AQ501 -> 0 | FT37: ='TC5'!AR501 -> 0 | FU37: ='TC5'!AS501 -> 0 | FV37: ='TC5'!AT501 -> 0 | FW37: ='TC5'!AU501 -> 0 | FX37: ='TC5'!AV501 -> 0 | FY37: ='TC5'!AW501 -> 0 | FZ37: ='TC5'!AX501 -> 0 | GA37: ='TC5'!AY501 -> 0 | GB37: ='TC5'!AZ501 -> 0 | GC37: ='TC5'!BA501 -> 0 | GD37: ='TC5'!BB501 -> 0 | GE37: ='TC5'!BC501 -> 0 | GF37: ='TC5'!BD501 -> 0 | GG37: ='TC5'!BE501 -> 0 | GH37: ='TC5'!BF501 -> 0 | GI37: ='TC5'!BG501 -> 0 | GJ37: ='TC5'!BH501 -> 0
B38: 0 | C38: 28 | D38: 60 W Incandescent | E38: 0 | F38: 0 | G38: 0 | H38: 0 | I38: 0 | K38: 28 | L38: 51.67366638 | M38: 51.67366638 | N38: 51.67366638 | O38: 51.67366638 | P38: 51.67366638 | R38: 51.67366638 | S38: 51.67366638 | T38: 51.67366638 | U38: 51.67366638 | V38: 51.67366638 | X38: 60 W Incandescent | Y38: ='Tariff Smoothing - real'!N38 -> 39.91818182 | Z38: ='Tariff Smoothing - real'!O38 -> 0 | AA38: ='Tariff Smoothing - real'!P38 -> 0 | AB38: ='Tariff Smoothing - real'!Q38 -> 0 | AC38: ='Tariff Smoothing - real'!R38 -> 0 | AE38: ='Tariff Smoothing - real'!AE38 -> 0 | AF38: ='Tariff Smoothing - real'!AF38 -> 41.41938328 | AG38: ='Tariff Smoothing - real'!AG38 -> 41.41938328 | AH38: ='Tariff Smoothing - real'!AH38 -> 41.41938328 | AI38: ='Tariff Smoothing - real'!AI38 -> 41.41938328 | AK38: 39.91818182 | AL38: 41.41938328 | AM38: 41.41938328 | AN38: 41.41938328 | AO38: 41.41938328 | AQ38: =Annuity!C51 -> 250W Metal Halide - FLOODLIGHT | AR38: ='TC3'!K47+'TC3'!K204 -> 74.19138387 | AS38: ='TC3'!L47+'TC3'!L204 -> 74.42879629 | AT38: ='TC3'!M47+'TC3'!M204 -> 74.74139724 | AU38: ='TC3'!N47+'TC3'!N204 -> 75.05531111 | AV38: ='TC3'!O47+'TC3'!O204 -> 75.35553235 | AX38: ='TC3'!K362 -> 39.21976839 | AY38: ='TC3'!L362 -> 38.86129971 | AZ38: ='TC3'!M362 -> 38.54691179 | BA38: ='TC3'!N362 -> 38.23506728 | BB38: ='TC3'!O362 -> 37.91771622 | BD38: 139.3740151 | BE38: 113.4111523 | BF38: 113.290096 | BG38: 113.288309 | BH38: 113.2903784 | BI38: 113.2732486 | BK38: 250W Metal Halide - FLOODLIGHT | BL38: ='TC4'!L44 -> 11.98728567 | BM38: ='TC4'!M44 -> 12.02564499 | BN38: ='TC4'!N44 -> 12.0761527 | BO38: ='TC4'!O44 -> 12.12687254 | BP38: ='TC4'!P44 -> 12.17538003 | BR38: 39.21976839 | BS38: 38.86129971 | BT38: 38.54691179 | BU38: 38.23506728 | BV38: 37.91771622 | BX38: 82.87165404 | BY38: 51.20705407 | BZ38: 50.8869447 | CA38: 50.62306449 | CB38: 50.36193982 | CC38: 50.09309625 | CE38: 60 W Incandescent | CF38: ='TC5'!E659 -> 0 | CG38: ='TC5'!F659 -> 0 | CH38: ='TC5'!G659 -> 0 | CI38: ='TC5'!H659 -> 0 | CJ38: ='TC5'!I659 -> 0 | CL38: =Output!BK38 -> 250W Metal Halide - FLOODLIGHT | CM38: ='TC5'!K194 -> 672.6930527 | CN38: ='TC5'!L194 -> 608.7931776 | CO38: ='TC5'!M194 -> 549.3366237 | CP38: ='TC5'!N194 -> 494.0144218 | CQ38: ='TC5'!O194 -> 442.5493389 | CR38: ='TC5'!P194 -> 394.8631972 | CS38: ='TC5'!Q194 -> 350.6785195 | CT38: ='TC5'!R194 -> 309.7382028 | CU38: ='TC5'!S194 -> 271.8040224 | CV38: ='TC5'!T194 -> 236.6552459 | CW38: ='TC5'!U194 -> 204.0873486 | CX38: ='TC5'!V194 -> 173.9108237 | CY38: ='TC5'!W194 -> 145.950079 | CZ38: ='TC5'!X194 -> 120.0424159 | DA38: ='TC5'!Y194 -> 96.03708225 | DB38: ='TC5'!Z194 -> 73.79439506 | DC38: ='TC5'!AA194 -> 53.184928 | DD38: ='TC5'!AB194 -> 34.08875817 | DE38: ='TC5'!AC194 -> 16.39476826 | DF38: ='TC5'!AD194 -> 0 | DG38: ='TC5'!AE194 -> 0 | DH38: ='TC5'!AF194 -> 0 | DI38: ='TC5'!AG194 -> 0 | DJ38: ='TC5'!AH194 -> 0 | DK38: ='TC5'!AI194 -> 0 | DL38: ='TC5'!AJ194 -> 0 | DM38: ='TC5'!AK194 -> 0 | DN38: ='TC5'!AL194 -> 0 | DO38: ='TC5'!AM194 -> 0 | DP38: ='TC5'!AN194 -> 0 | DQ38: ='TC5'!AO194 -> 0 | DR38: ='TC5'!AP194 -> 0 | DS38: ='TC5'!AQ194 -> 0 | DT38: ='TC5'!AR194 -> 0 | DU38: ='TC5'!AS194 -> 0 | DV38: ='TC5'!AT194 -> 0 | DW38: ='TC5'!AU194 -> 0 | DX38: ='TC5'!AV194 -> 0 | DY38: ='TC5'!AW194 -> 0 | DZ38: ='TC5'!AX194 -> 0 | EA38: ='TC5'!AY194 -> 0 | EB38: ='TC5'!AZ194 -> 0 | EC38: ='TC5'!BA194 -> 0 | ED38: ='TC5'!BB194 -> 0 | EE38: ='TC5'!BC194 -> 0 | EF38: ='TC5'!BD194 -> 0 | EG38: ='TC5'!BE194 -> 0 | EH38: ='TC5'!BF194 -> 0 | EI38: ='TC5'!BG194 -> 0 | EJ38: ='TC5'!BH194 -> 0 | EL38: 250W Metal Halide - FLOODLIGHT | EM38: ='TC5'!K502 -> 108.6886829 | EN38: ='TC5'!L502 -> 98.36422177 | EO38: ='TC5'!M502 -> 88.75767909 | EP38: ='TC5'!N502 -> 79.81913388 | EQ38: ='TC5'!O502 -> 71.50379294 | ER38: ='TC5'!P502 -> 63.79902491 | ES38: ='TC5'!Q502 -> 56.65999709 | ET38: ='TC5'!R502 -> 50.04516869 | EU38: ='TC5'!S502 -> 43.9160492 | EV38: ='TC5'!T502 -> 38.23697431 | EW38: ='TC5'!U502 -> 32.97489847 | EX38: ='TC5'!V502 -> 28.09920258 | EY38: ='TC5'!W502 -> 23.58151581 | EZ38: ='TC5'!X502 -> 19.39555051 | FA38: ='TC5'!Y502 -> 15.51694928 | FB38: ='TC5'!Z502 -> 11.92314321 | FC38: ='TC5'!AA502 -> 8.593220565 | FD38: ='TC5'!AB502 -> 5.507805101 | FE38: ='TC5'!AC502 -> 2.64894332 | FF38: ='TC5'!AD502 -> 0 | FG38: ='TC5'!AE502 -> 0 | FH38: ='TC5'!AF502 -> 0 | FI38: ='TC5'!AG502 -> 0 | FJ38: ='TC5'!AH502 -> 0 | FK38: ='TC5'!AI502 -> 0 | FL38: ='TC5'!AJ502 -> 0 | FM38: ='TC5'!AK502 -> 0 | FN38: ='TC5'!AL502 -> 0 | FO38: ='TC5'!AM502 -> 0 | FP38: ='TC5'!AN502 -> 0 | FQ38: ='TC5'!AO502 -> 0 | FR38: ='TC5'!AP502 -> 0 | FS38: ='TC5'!AQ502 -> 0 | FT38: ='TC5'!AR502 -> 0 | FU38: ='TC5'!AS502 -> 0 | FV38: ='TC5'!AT502 -> 0 | FW38: ='TC5'!AU502 -> 0 | FX38: ='TC5'!AV502 -> 0 | FY38: ='TC5'!AW502 -> 0 | FZ38: ='TC5'!AX502 -> 0 | GA38: ='TC5'!AY502 -> 0 | GB38: ='TC5'!AZ502 -> 0 | GC38: ='TC5'!BA502 -> 0 | GD38: ='TC5'!BB502 -> 0 | GE38: ='TC5'!BC502 -> 0 | GF38: ='TC5'!BD502 -> 0 | GG38: ='TC5'!BE502 -> 0 | GH38: ='TC5'!BF502 -> 0 | GI38: ='TC5'!BG502 -> 0 | GJ38: ='TC5'!BH502 -> 0
B39: 0 | C39: 29 | D39: 100 W Incandescent | E39: 0 | F39: 0 | G39: 0 | H39: 0 | I39: 0 | K39: 29 | L39: 51.67366638 | M39: 51.67366638 | N39: 51.67366638 | O39: 51.67366638 | P39: 51.67366638 | R39: 51.67366638 | S39: 51.67366638 | T39: 51.67366638 | U39: 51.67366638 | V39: 51.67366638 | X39: 100 W Incandescent | Y39: ='Tariff Smoothing - real'!N39 -> 39.03636364 | Z39: ='Tariff Smoothing - real'!O39 -> 0 | AA39: ='Tariff Smoothing - real'!P39 -> 0 | AB39: ='Tariff Smoothing - real'!Q39 -> 0 | AC39: ='Tariff Smoothing - real'!R39 -> 0 | AE39: ='Tariff Smoothing - real'!AE39 -> 0 | AF39: ='Tariff Smoothing - real'!AF39 -> 41.41938328 | AG39: ='Tariff Smoothing - real'!AG39 -> 41.41938328 | AH39: ='Tariff Smoothing - real'!AH39 -> 41.41938328 | AI39: ='Tariff Smoothing - real'!AI39 -> 41.41938328 | AK39: 39.03636364 | AL39: 41.41938328 | AM39: 41.41938328 | AN39: 41.41938328 | AO39: 41.41938328 | AQ39: =Annuity!C52 -> 400W Sodium - FLOODLIGHT | AR39: ='TC3'!K48+'TC3'!K205 -> 76.07618278 | AS39: ='TC3'!L48+'TC3'!L205 -> 76.31962657 | AT39: ='TC3'!M48+'TC3'!M205 -> 76.640169 | AU39: ='TC3'!N48+'TC3'!N205 -> 76.96205771 | AV39: ='TC3'!O48+'TC3'!O205 -> 77.26990594 | AX39: ='TC3'!K363 -> 35.97745289 | AY39: ='TC3'!L363 -> 35.64861897 | AZ39: ='TC3'!M363 -> 35.36022164 | BA39: ='TC3'!N363 -> 35.07415745 | BB39: ='TC3'!O363 -> 34.78304194 | BD39: 136.4159874 | BE39: 112.0536357 | BF39: 111.9682455 | BG39: 112.0003906 | BH39: 112.0362152 | BI39: 112.0529479 | BK39: 400W Sodium - FLOODLIGHT | BL39: ='TC4'!L45 -> 12.2918173 | BM39: ='TC4'!M45 -> 12.33115112 | BN39: ='TC4'!N45 -> 12.38294195 | BO39: ='TC4'!O45 -> 12.43495031 | BP39: ='TC4'!P45 -> 12.48469011 | BR39: 35.97745289 | BS39: 35.64861897 | BT39: 35.36022164 | BU39: 35.07415745 | BV39: 34.78304194 | BX39: 77.68689347 | BY39: 48.2692702 | BZ39: 47.97977009 | CA39: 47.7431636 | CB39: 47.50910776 | CC39: 47.26773206 | CE39: 100 W Incandescent | CF39: ='TC5'!E660 -> 0 | CG39: ='TC5'!F660 -> 0 | CH39: ='TC5'!G660 -> 0 | CI39: ='TC5'!H660 -> 0 | CJ39: ='TC5'!I660 -> 0 | CL39: =Output!BK39 -> 400W Sodium - FLOODLIGHT | CM39: ='TC5'!K195 -> 689.7825188 | CN39: ='TC5'!L195 -> 624.2592959 | CO39: ='TC5'!M195 -> 563.2922749 | CP39: ='TC5'!N195 -> 506.5646372 | CQ39: ='TC5'!O195 -> 453.7921068 | CR39: ='TC5'!P195 -> 404.8945201 | CS39: ='TC5'!Q195 -> 359.5873504 | CT39: ='TC5'!R195 -> 317.6069633 | CU39: ='TC5'!S195 -> 278.709082 | CV39: ='TC5'!T195 -> 242.6673665 | CW39: ='TC5'!U195 -> 209.2720964 | CX39: ='TC5'!V195 -> 178.3289503 | CY39: ='TC5'!W195 -> 149.6578755 | CZ39: ='TC5'!X195 -> 123.0920398 | DA39: ='TC5'!Y195 -> 98.47686136 | DB39: ='TC5'!Z195 -> 75.66910865 | DC39: ='TC5'!AA195 -> 54.53606731 | DD39: ='TC5'!AB195 -> 34.95476783 | DE39: ='TC5'!AC195 -> 16.81127001 | DF39: ='TC5'!AD195 -> 0 | DG39: ='TC5'!AE195 -> 0 | DH39: ='TC5'!AF195 -> 0 | DI39: ='TC5'!AG195 -> 0 | DJ39: ='TC5'!AH195 -> 0 | DK39: ='TC5'!AI195 -> 0 | DL39: ='TC5'!AJ195 -> 0 | DM39: ='TC5'!AK195 -> 0 | DN39: ='TC5'!AL195 -> 0 | DO39: ='TC5'!AM195 -> 0 | DP39: ='TC5'!AN195 -> 0 | DQ39: ='TC5'!AO195 -> 0 | DR39: ='TC5'!AP195 -> 0 | DS39: ='TC5'!AQ195 -> 0 | DT39: ='TC5'!AR195 -> 0 | DU39: ='TC5'!AS195 -> 0 | DV39: ='TC5'!AT195 -> 0 | DW39: ='TC5'!AU195 -> 0 | DX39: ='TC5'!AV195 -> 0 | DY39: ='TC5'!AW195 -> 0 | DZ39: ='TC5'!AX195 -> 0 | EA39: ='TC5'!AY195 -> 0 | EB39: ='TC5'!AZ195 -> 0 | EC39: ='TC5'!BA195 -> 0 | ED39: ='TC5'!BB195 -> 0 | EE39: ='TC5'!BC195 -> 0 | EF39: ='TC5'!BD195 -> 0 | EG39: ='TC5'!BE195 -> 0 | EH39: ='TC5'!BF195 -> 0 | EI39: ='TC5'!BG195 -> 0 | EJ39: ='TC5'!BH195 -> 0 | EL39: 400W Sodium - FLOODLIGHT | EM39: ='TC5'!K503 -> 111.4498703 | EN39: ='TC5'!L503 -> 100.8631208 | EO39: ='TC5'!M503 -> 91.01252822 | EP39: ='TC5'!N503 -> 81.84690327 | EQ39: ='TC5'!O503 -> 73.32031481 | ER39: ='TC5'!P503 -> 65.4198106 | ES39: ='TC5'!Q503 -> 58.09941896 | ET39: ='TC5'!R503 -> 51.31654382 | EU39: ='TC5'!S503 -> 45.03171678 | EV39: ='TC5'!T503 -> 39.20836753 | EW39: ='TC5'!U503 -> 33.81261102 | EX39: ='TC5'!V503 -> 28.81305025 | EY39: ='TC5'!W503 -> 24.18059366 | EZ39: ='TC5'!X503 -> 19.88828579 | FA39: ='TC5'!Y503 -> 15.91115043 | FB39: ='TC5'!Z503 -> 12.22604533 | FC39: ='TC5'!AA503 -> 8.811527489 | FD39: ='TC5'!AB503 -> 5.647728426 | FE39: ='TC5'!AC503 -> 2.71623854 | FF39: ='TC5'!AD503 -> 0 | FG39: ='TC5'!AE503 -> 0 | FH39: ='TC5'!AF503 -> 0 | FI39: ='TC5'!AG503 -> 0 | FJ39: ='TC5'!AH503 -> 0 | FK39: ='TC5'!AI503 -> 0 | FL39: ='TC5'!AJ503 -> 0 | FM39: ='TC5'!AK503 -> 0 | FN39: ='TC5'!AL503 -> 0 | FO39: ='TC5'!AM503 -> 0 | FP39: ='TC5'!AN503 -> 0 | FQ39: ='TC5'!AO503 -> 0 | FR39: ='TC5'!AP503 -> 0 | FS39: ='TC5'!AQ503 -> 0 | FT39: ='TC5'!AR503 -> 0 | FU39: ='TC5'!AS503 -> 0 | FV39: ='TC5'!AT503 -> 0 | FW39: ='TC5'!AU503 -> 0 | FX39: ='TC5'!AV503 -> 0 | FY39: ='TC5'!AW503 -> 0 | FZ39: ='TC5'!AX503 -> 0 | GA39: ='TC5'!AY503 -> 0 | GB39: ='TC5'!AZ503 -> 0 | GC39: ='TC5'!BA503 -> 0 | GD39: ='TC5'!BB503 -> 0 | GE39: ='TC5'!BC503 -> 0 | GF39: ='TC5'!BD503 -> 0 | GG39: ='TC5'!BE503 -> 0 | GH39: ='TC5'!BF503 -> 0 | GI39: ='TC5'!BG503 -> 0 | GJ39: ='TC5'!BH503 -> 0
B40: 0 | C40: 30 | D40: 500 W Incandescent | E40: 0.02485718383 | F40: 0.02393787185 | G40: 0.02301855988 | H40: 0.0220992479 | I40: 0.02117993593 | K40: 30 | L40: 51.67366638 | M40: 51.67366638 | N40: 51.67366638 | O40: 51.67366638 | P40: 51.67366638 | R40: 51.69852356 | S40: 51.69760425 | T40: 51.69668494 | U40: 51.69576562 | V40: 51.69484631 | X40: 500 W Incandescent | Y40: ='Tariff Smoothing - real'!N40 -> 41.96363636 | Z40: ='Tariff Smoothing - real'!O40 -> 0.018141062 | AA40: ='Tariff Smoothing - real'!P40 -> 0.018141062 | AB40: ='Tariff Smoothing - real'!Q40 -> 0.018141062 | AC40: ='Tariff Smoothing - real'!R40 -> 0.018141062 | AE40: ='Tariff Smoothing - real'!AE40 -> 0 | AF40: ='Tariff Smoothing - real'!AF40 -> 41.41938328 | AG40: ='Tariff Smoothing - real'!AG40 -> 41.41938328 | AH40: ='Tariff Smoothing - real'!AH40 -> 41.41938328 | AI40: ='Tariff Smoothing - real'!AI40 -> 41.41938328 | AK40: 41.96363636 | AL40: 41.43752434 | AM40: 41.43752434 | AN40: 41.43752434 | AO40: 41.43752434 | AQ40: =Annuity!C53 -> 400W Metal Halide - FLOODLIGHT | AR40: ='TC3'!K49+'TC3'!K206 -> 76.76598032 | AS40: ='TC3'!L49+'TC3'!L206 -> 77.01163146 | AT40: ='TC3'!M49+'TC3'!M206 -> 77.33508031 | AU40: ='TC3'!N49+'TC3'!N206 -> 77.65988765 | AV40: ='TC3'!O49+'TC3'!O206 -> 77.9705272 | AX40: ='TC3'!K364 -> 39.21976839 | AY40: ='TC3'!L364 -> 38.86129971 | AZ40: ='TC3'!M364 -> 38.54691179 | BA40: ='TC3'!N364 -> 38.23506728 | BB40: ='TC3'!O364 -> 37.91771622 | BD40: 147.8127777 | BE40: 115.9857487 | BF40: 115.8729312 | BG40: 115.8819921 | BH40: 115.8949549 | BI40: 115.8882434 | BK40: 400W Metal Halide - FLOODLIGHT | BL40: ='TC4'!L46 -> 12.4032696 | BM40: ='TC4'!M46 -> 12.44296006 | BN40: ='TC4'!N46 -> 12.4952205 | BO40: ='TC4'!O46 -> 12.54770042 | BP40: ='TC4'!P46 -> 12.59789122 | BR40: 39.21976839 | BS40: 38.86129971 | BT40: 38.54691179 | BU40: 38.23506728 | BV40: 37.91771622 | BX40: 89.08368377 | BY40: 51.62303799 | BZ40: 51.30425977 | CA40: 51.04213229 | CB40: 50.7827677 | CC40: 50.51560744 | CE40: 500 W Incandescent | CF40: ='TC5'!E661 -> 0.2261292337 | CG40: ='TC5'!F661 -> 0.2105341141 | CH40: ='TC5'!G661 -> 0.1949389946 | CI40: ='TC5'!H661 -> 0.179343875 | CJ40: ='TC5'!I661 -> 0.1637487554 | CL40: =Output!BK40 -> 400W Metal Halide - FLOODLIGHT | CM40: ='TC5'!K196 -> 696.036911 | CN40: ='TC5'!L196 -> 629.9195763 | CO40: ='TC5'!M196 -> 568.3997555 | CP40: ='TC5'!N196 -> 511.1577573 | CQ40: ='TC5'!O196 -> 457.9067281 | CR40: ='TC5'!P196 -> 408.5657774 | CS40: ='TC5'!Q196 -> 362.8477989 | CT40: ='TC5'!R196 -> 320.4867674 | CU40: ='TC5'!S196 -> 281.2361914 | CV40: ='TC5'!T196 -> 244.8676787 | CW40: ='TC5'!U196 -> 211.1696072 | CX40: ='TC5'!V196 -> 179.9458936 | CY40: ='TC5'!W196 -> 151.0148525 | CZ40: ='TC5'!X196 -> 124.2081393 | DA40: ='TC5'!Y196 -> 99.36977021 | DB40: ='TC5'!Z196 -> 76.35521517 | DC40: ='TC5'!AA196 -> 55.03055643 | DD40: ='TC5'!AB196 -> 35.2717095 | DE40: ='TC5'!AC196 -> 16.96370107 | DF40: ='TC5'!AD196 -> 0 | DG40: ='TC5'!AE196 -> 0 | DH40: ='TC5'!AF196 -> 0 | DI40: ='TC5'!AG196 -> 0 | DJ40: ='TC5'!AH196 -> 0 | DK40: ='TC5'!AI196 -> 0 | DL40: ='TC5'!AJ196 -> 0 | DM40: ='TC5'!AK196 -> 0 | DN40: ='TC5'!AL196 -> 0 | DO40: ='TC5'!AM196 -> 0 | DP40: ='TC5'!AN196 -> 0 | DQ40: ='TC5'!AO196 -> 0 | DR40: ='TC5'!AP196 -> 0 | DS40: ='TC5'!AQ196 -> 0 | DT40: ='TC5'!AR196 -> 0 | DU40: ='TC5'!AS196 -> 0 | DV40: ='TC5'!AT196 -> 0 | DW40: ='TC5'!AU196 -> 0 | DX40: ='TC5'!AV196 -> 0 | DY40: ='TC5'!AW196 -> 0 | DZ40: ='TC5'!AX196 -> 0 | EA40: ='TC5'!AY196 -> 0 | EB40: ='TC5'!AZ196 -> 0 | EC40: ='TC5'!BA196 -> 0 | ED40: ='TC5'!BB196 -> 0 | EE40: ='TC5'!BC196 -> 0 | EF40: ='TC5'!BD196 -> 0 | EG40: ='TC5'!BE196 -> 0 | EH40: ='TC5'!BF196 -> 0 | EI40: ='TC5'!BG196 -> 0 | EJ40: ='TC5'!BH196 -> 0 | EL40: 400W Metal Halide - FLOODLIGHT | EM40: ='TC5'!K504 -> 112.4604079 | EN40: ='TC5'!L504 -> 101.7776664 | EO40: ='TC5'!M504 -> 91.83775651 | EP40: ='TC5'!N504 -> 82.58902506 | EQ40: ='TC5'!O504 -> 73.98512436 | ER40: ='TC5'!P504 -> 66.01298474 | ES40: ='TC5'!Q504 -> 58.62621769 | ET40: ='TC5'!R504 -> 51.7818409 | EU40: ='TC5'!S504 -> 45.44002811 | EV40: ='TC5'!T504 -> 39.56387743 | EW40: ='TC5'!U504 -> 34.11919653 | EX40: ='TC5'!V504 -> 29.07430378 | EY40: ='TC5'!W504 -> 24.39984381 | EZ40: ='TC5'!X504 -> 20.06861674 | FA40: ='TC5'!Y504 -> 16.05541993 | FB40: ='TC5'!Z504 -> 12.33690126 | FC40: ='TC5'!AA504 -> 8.891423322 | FD40: ='TC5'!AB504 -> 5.698937478 | FE40: ='TC5'!AC504 -> 2.740867203 | FF40: ='TC5'!AD504 -> 0 | FG40: ='TC5'!AE504 -> 0 | FH40: ='TC5'!AF504 -> 0 | FI40: ='TC5'!AG504 -> 0 | FJ40: ='TC5'!AH504 -> 0 | FK40: ='TC5'!AI504 -> 0 | FL40: ='TC5'!AJ504 -> 0 | FM40: ='TC5'!AK504 -> 0 | FN40: ='TC5'!AL504 -> 0 | FO40: ='TC5'!AM504 -> 0 | FP40: ='TC5'!AN504 -> 0 | FQ40: ='TC5'!AO504 -> 0 | FR40: ='TC5'!AP504 -> 0 | FS40: ='TC5'!AQ504 -> 0 | FT40: ='TC5'!AR504 -> 0 | FU40: ='TC5'!AS504 -> 0 | FV40: ='TC5'!AT504 -> 0 | FW40: ='TC5'!AU504 -> 0 | FX40: ='TC5'!AV504 -> 0 | FY40: ='TC5'!AW504 -> 0 | FZ40: ='TC5'!AX504 -> 0 | GA40: ='TC5'!AY504 -> 0 | GB40: ='TC5'!AZ504 -> 0 | GC40: ='TC5'!BA504 -> 0 | GD40: ='TC5'!BB504 -> 0 | GE40: ='TC5'!BC504 -> 0 | GF40: ='TC5'!BD504 -> 0 | GG40: ='TC5'!BE504 -> 0 | GH40: ='TC5'!BF504 -> 0 | GI40: ='TC5'!BG504 -> 0 | GJ40: ='TC5'!BH504 -> 0
B41: 0 | C41: 31 | D41: 1000 W Incandescent | E41: 0 | F41: 0 | G41: 0 | H41: 0 | I41: 0 | K41: 31 | L41: 0 | M41: 0 | N41: 0 | O41: 0 | P41: 0 | R41: 0 | S41: 0 | T41: 0 | U41: 0 | V41: 0 | X41: 1000 W Incandescent | Y41: ='Tariff Smoothing - real'!N41 -> 39.02727273 | Z41: ='Tariff Smoothing - real'!O41 -> 0 | AA41: ='Tariff Smoothing - real'!P41 -> 0 | AB41: ='Tariff Smoothing - real'!Q41 -> 0 | AC41: ='Tariff Smoothing - real'!R41 -> 0 | AE41: ='Tariff Smoothing - real'!AE41 -> 0 | AF41: ='Tariff Smoothing - real'!AF41 -> 0 | AG41: ='Tariff Smoothing - real'!AG41 -> 0 | AH41: ='Tariff Smoothing - real'!AH41 -> 0 | AI41: ='Tariff Smoothing - real'!AI41 -> 0 | AK41: 39.02727273 | AL41: 0 | AM41: 0 | AN41: 0 | AO41: 0 | AQ41: =Annuity!C54 -> 150W Sodium - FLOODLIGHT | AR41: ='TC3'!K50+'TC3'!K207 -> 72.73017893 | AS41: ='TC3'!L50+'TC3'!L207 -> 72.96291551 | AT41: ='TC3'!M50+'TC3'!M207 -> 73.26935975 | AU41: ='TC3'!N50+'TC3'!N207 -> 73.57709106 | AV41: ='TC3'!O50+'TC3'!O207 -> 73.87139943 | AX41: ='TC3'!K365 -> 35.44531714 | AY41: ='TC3'!L365 -> 35.12134694 | AZ41: ='TC3'!M365 -> 34.83721525 | BA41: ='TC3'!N365 -> 34.55538217 | BB41: ='TC3'!O365 -> 34.2685725 | BD41: 116.7472334 | BE41: 108.1754961 | BF41: 108.0842624 | BG41: 108.106575 | BH41: 108.1324732 | BI41: 108.1399719 | BK41: 150W Sodium - FLOODLIGHT | BL41: ='TC4'!L47 -> 11.75119517 | BM41: ='TC4'!M47 -> 11.788799 | BN41: ='TC4'!N47 -> 11.83831195 | BO41: ='TC4'!O47 -> 11.88803286 | BP41: ='TC4'!P47 -> 11.935585 | BR41: 35.44531714 | BS41: 35.12134694 | BT41: 34.83721525 | BU41: 34.55538217 | BV41: 34.2685725 | BX41: 61.91223109 | BY41: 47.19651231 | BZ41: 46.91014594 | CA41: 46.6755272 | CB41: 46.44341504 | CC41: 46.2041575 | CE41: 1000 W Incandescent | CF41: ='TC5'!E662 -> 0 | CG41: ='TC5'!F662 -> 0 | CH41: ='TC5'!G662 -> 0 | CI41: ='TC5'!H662 -> 0 | CJ41: ='TC5'!I662 -> 0 | CL41: =Output!BK41 -> 150W Sodium - FLOODLIGHT | CM41: ='TC5'!K197 -> 659.444312 | CN41: ='TC5'!L197 -> 596.8029498 | CO41: ='TC5'!M197 -> 538.5173973 | CP41: ='TC5'!N197 -> 484.2847703 | CQ41: ='TC5'!O197 -> 433.8332961 | CR41: ='TC5'!P197 -> 387.0863366 | CS41: ='TC5'!Q197 -> 343.7718795 | CT41: ='TC5'!R197 -> 303.6378854 | CU41: ='TC5'!S197 -> 266.4508216 | CV41: ='TC5'!T197 -> 231.9943029 | CW41: ='TC5'!U197 -> 200.0678328 | CX41: ='TC5'!V197 -> 170.4856368 | CY41: ='TC5'!W197 -> 143.0755811 | CZ41: ='TC5'!X197 -> 117.6781715 | DA41: ='TC5'!Y197 -> 94.14562463 | DB41: ='TC5'!Z197 -> 72.34100885 | DC41: ='TC5'!AA197 -> 52.13744681 | DD41: ='TC5'!AB197 -> 33.4173775 | DE41: ='TC5'!AC197 -> 16.07187206 | DF41: ='TC5'!AD197 -> 0 | DG41: ='TC5'!AE197 -> 0 | DH41: ='TC5'!AF197 -> 0 | DI41: ='TC5'!AG197 -> 0 | DJ41: ='TC5'!AH197 -> 0 | DK41: ='TC5'!AI197 -> 0 | DL41: ='TC5'!AJ197 -> 0 | DM41: ='TC5'!AK197 -> 0 | DN41: ='TC5'!AL197 -> 0 | DO41: ='TC5'!AM197 -> 0 | DP41: ='TC5'!AN197 -> 0 | DQ41: ='TC5'!AO197 -> 0 | DR41: ='TC5'!AP197 -> 0 | DS41: ='TC5'!AQ197 -> 0 | DT41: ='TC5'!AR197 -> 0 | DU41: ='TC5'!AS197 -> 0 | DV41: ='TC5'!AT197 -> 0 | DW41: ='TC5'!AU197 -> 0 | DX41: ='TC5'!AV197 -> 0 | DY41: ='TC5'!AW197 -> 0 | DZ41: ='TC5'!AX197 -> 0 | EA41: ='TC5'!AY197 -> 0 | EB41: ='TC5'!AZ197 -> 0 | EC41: ='TC5'!BA197 -> 0 | ED41: ='TC5'!BB197 -> 0 | EE41: ='TC5'!BC197 -> 0 | EF41: ='TC5'!BD197 -> 0 | EG41: ='TC5'!BE197 -> 0 | EH41: ='TC5'!BF197 -> 0 | EI41: ='TC5'!BG197 -> 0 | EJ41: ='TC5'!BH197 -> 0 | EL41: 150W Sodium - FLOODLIGHT | EM41: ='TC5'!K505 -> 106.548051 | EN41: ='TC5'!L505 -> 96.42693097 | EO41: ='TC5'!M505 -> 87.00958987 | EP41: ='TC5'!N505 -> 78.24708999 | EQ41: ='TC5'!O505 -> 70.09552031 | ER41: ='TC5'!P505 -> 62.54249828 | ES41: ='TC5'!Q505 -> 55.54407415 | ET41: ='TC5'!R505 -> 49.0595253 | EU41: ='TC5'!S505 -> 43.05111928 | EV41: ='TC5'!T505 -> 37.4838942 | EW41: ='TC5'!U505 -> 32.32545535 | EX41: ='TC5'!V505 -> 27.54578666 | EY41: ='TC5'!W505 -> 23.11707606 | EZ41: ='TC5'!X505 -> 19.01355367 | FA41: ='TC5'!Y505 -> 15.21134178 | FB41: ='TC5'!Z505 -> 11.688316 | FC41: ='TC5'!AA505 -> 8.423976434 | FD41: ='TC5'!AB505 -> 5.399328462 | FE41: ='TC5'!AC505 -> 2.596772181 | FF41: ='TC5'!AD505 -> 0 | FG41: ='TC5'!AE505 -> 0 | FH41: ='TC5'!AF505 -> 0 | FI41: ='TC5'!AG505 -> 0 | FJ41: ='TC5'!AH505 -> 0 | FK41: ='TC5'!AI505 -> 0 | FL41: ='TC5'!AJ505 -> 0 | FM41: ='TC5'!AK505 -> 0 | FN41: ='TC5'!AL505 -> 0 | FO41: ='TC5'!AM505 -> 0 | FP41: ='TC5'!AN505 -> 0 | FQ41: ='TC5'!AO505 -> 0 | FR41: ='TC5'!AP505 -> 0 | FS41: ='TC5'!AQ505 -> 0 | FT41: ='TC5'!AR505 -> 0 | FU41: ='TC5'!AS505 -> 0 | FV41: ='TC5'!AT505 -> 0 | FW41: ='TC5'!AU505 -> 0 | FX41: ='TC5'!AV505 -> 0 | FY41: ='TC5'!AW505 -> 0 | FZ41: ='TC5'!AX505 -> 0 | GA41: ='TC5'!AY505 -> 0 | GB41: ='TC5'!AZ505 -> 0 | GC41: ='TC5'!BA505 -> 0 | GD41: ='TC5'!BB505 -> 0 | GE41: ='TC5'!BC505 -> 0 | GF41: ='TC5'!BD505 -> 0 | GG41: ='TC5'!BE505 -> 0 | GH41: ='TC5'!BF505 -> 0 | GI41: ='TC5'!BG505 -> 0 | GJ41: ='TC5'!BH505 -> 0
B42: 0 | C42: 32 | D42: 1500 W Incandescent | E42: 0 | F42: 0 | G42: 0 | H42: 0 | I42: 0 | K42: 32 | L42: 0 | M42: 0 | N42: 0 | O42: 0 | P42: 0 | R42: 0 | S42: 0 | T42: 0 | U42: 0 | V42: 0 | X42: 1500 W Incandescent | Y42: ='Tariff Smoothing - real'!N42 -> 0 | Z42: ='Tariff Smoothing - real'!O42 -> 0 | AA42: ='Tariff Smoothing - real'!P42 -> 0 | AB42: ='Tariff Smoothing - real'!Q42 -> 0 | AC42: ='Tariff Smoothing - real'!R42 -> 0 | AE42: ='Tariff Smoothing - real'!AE42 -> 0 | AF42: ='Tariff Smoothing - real'!AF42 -> 0 | AG42: ='Tariff Smoothing - real'!AG42 -> 0 | AH42: ='Tariff Smoothing - real'!AH42 -> 0 | AI42: ='Tariff Smoothing - real'!AI42 -> 0 | AK42: 0 | AL42: 0 | AM42: 0 | AN42: 0 | AO42: 0 | AQ42: =Annuity!C55 -> 150W Metal Halide - FLOODLIGHT | AR42: ='TC3'!K51+'TC3'!K208 -> 77.21386295 | AS42: ='TC3'!L51+'TC3'!L208 -> 77.46094731 | AT42: ='TC3'!M51+'TC3'!M208 -> 77.78628329 | AU42: ='TC3'!N51+'TC3'!N208 -> 78.11298568 | AV42: ='TC3'!O51+'TC3'!O208 -> 78.42543762 | AX42: ='TC3'!K366 -> 51.39701439 | AY42: ='TC3'!L366 -> 50.92724568 | AZ42: ='TC3'!M366 -> 50.51524426 | BA42: ='TC3'!N366 -> 50.10657594 | BB42: ='TC3'!O366 -> 49.69069136 | BD42: 121.0831725 | BE42: 128.6108773 | BF42: 128.388193 | BG42: 128.3015276 | BH42: 128.2195616 | BI42: 128.116129 | BK42: 150W Metal Halide - FLOODLIGHT | BL42: ='TC4'!L48 -> 12.47563511 | BM42: ='TC4'!M48 -> 12.51555714 | BN42: ='TC4'!N48 -> 12.56812248 | BO42: ='TC4'!O48 -> 12.62090859 | BP42: ='TC4'!P48 -> 12.67139223 | BR42: 51.39701439 | BS42: 50.92724568 | BT42: 50.51524426 | BU42: 50.10657594 | BV42: 49.69069136 | BX42: 66.24817024 | BY42: 63.8726495 | BZ42: 63.44280282 | CA42: 63.08336674 | CB42: 62.72748453 | CC42: 62.36208358 | CE42: 1500 W Incandescent | CF42: ='TC5'!E663 -> 0 | CG42: ='TC5'!F663 -> 0 | CH42: ='TC5'!G663 -> 0 | CI42: ='TC5'!H663 -> 0 | CJ42: ='TC5'!I663 -> 0 | CL42: =Output!BK42 -> 150W Metal Halide - FLOODLIGHT | CM42: ='TC5'!K198 -> 700.0978614 | CN42: ='TC5'!L198 -> 633.5947725 | CO42: ='TC5'!M198 -> 571.7160211 | CP42: ='TC5'!N198 -> 514.1400507 | CQ42: ='TC5'!O198 -> 460.5783343 | CR42: ='TC5'!P198 -> 410.9495093 | CS42: ='TC5'!Q198 -> 364.9647942 | CT42: ='TC5'!R198 -> 322.356612 | CU42: ='TC5'!S198 -> 282.8770329 | CV42: ='TC5'!T198 -> 246.2963321 | CW42: ='TC5'!U198 -> 212.4016529 | CX42: ='TC5'!V198 -> 180.995768 | CY42: ='TC5'!W198 -> 151.895932 | CZ42: ='TC5'!X198 -> 124.9328179 | DA42: ='TC5'!Y198 -> 99.94953215 | DB42: ='TC5'!Z198 -> 76.80070123 | DC42: ='TC5'!AA198 -> 55.35162613 | DD42: ='TC5'!AB198 -> 35.47749839 | DE42: ='TC5'!AC198 -> 17.06267391 | DF42: ='TC5'!AD198 -> 0 | DG42: ='TC5'!AE198 -> 0 | DH42: ='TC5'!AF198 -> 0 | DI42: ='TC5'!AG198 -> 0 | DJ42: ='TC5'!AH198 -> 0 | DK42: ='TC5'!AI198 -> 0 | DL42: ='TC5'!AJ198 -> 0 | DM42: ='TC5'!AK198 -> 0 | DN42: ='TC5'!AL198 -> 0 | DO42: ='TC5'!AM198 -> 0 | DP42: ='TC5'!AN198 -> 0 | DQ42: ='TC5'!AO198 -> 0 | DR42: ='TC5'!AP198 -> 0 | DS42: ='TC5'!AQ198 -> 0 | DT42: ='TC5'!AR198 -> 0 | DU42: ='TC5'!AS198 -> 0 | DV42: ='TC5'!AT198 -> 0 | DW42: ='TC5'!AU198 -> 0 | DX42: ='TC5'!AV198 -> 0 | DY42: ='TC5'!AW198 -> 0 | DZ42: ='TC5'!AX198 -> 0 | EA42: ='TC5'!AY198 -> 0 | EB42: ='TC5'!AZ198 -> 0 | EC42: ='TC5'!BA198 -> 0 | ED42: ='TC5'!BB198 -> 0 | EE42: ='TC5'!BC198 -> 0 | EF42: ='TC5'!BD198 -> 0 | EG42: ='TC5'!BE198 -> 0 | EH42: ='TC5'!BF198 -> 0 | EI42: ='TC5'!BG198 -> 0 | EJ42: ='TC5'!BH198 -> 0 | EL42: 150W Metal Halide - FLOODLIGHT | EM42: ='TC5'!K506 -> 113.1165457 | EN42: ='TC5'!L506 -> 102.3714769 | EO42: ='TC5'!M506 -> 92.37357375 | EP42: ='TC5'!N506 -> 83.0708816 | EQ42: ='TC5'!O506 -> 74.41678239 | ER42: ='TC5'!P506 -> 66.3981302 | ES42: ='TC5'!Q506 -> 58.96826588 | ET42: ='TC5'!R506 -> 52.08395633 | EU42: ='TC5'!S506 -> 45.70514293 | EV42: ='TC5'!T506 -> 39.7947085 | EW42: ='TC5'!U506 -> 34.31826122 | EX42: ='TC5'!V506 -> 29.24393459 | EY42: ='TC5'!W506 -> 24.542202 | EZ42: ='TC5'!X506 -> 20.18570487 | FA42: ='TC5'!Y506 -> 16.1490935 | FB42: ='TC5'!Z506 -> 12.40887955 | FC42: ='TC5'!AA506 -> 8.943299348 | FD42: ='TC5'!AB506 -> 5.732187298 | FE42: ='TC5'!AC506 -> 2.75685849 | FF42: ='TC5'!AD506 -> 0 | FG42: ='TC5'!AE506 -> 0 | FH42: ='TC5'!AF506 -> 0 | FI42: ='TC5'!AG506 -> 0 | FJ42: ='TC5'!AH506 -> 0 | FK42: ='TC5'!AI506 -> 0 | FL42: ='TC5'!AJ506 -> 0 | FM42: ='TC5'!AK506 -> 0 | FN42: ='TC5'!AL506 -> 0 | FO42: ='TC5'!AM506 -> 0 | FP42: ='TC5'!AN506 -> 0 | FQ42: ='TC5'!AO506 -> 0 | FR42: ='TC5'!AP506 -> 0 | FS42: ='TC5'!AQ506 -> 0 | FT42: ='TC5'!AR506 -> 0 | FU42: ='TC5'!AS506 -> 0 | FV42: ='TC5'!AT506 -> 0 | FW42: ='TC5'!AU506 -> 0 | FX42: ='TC5'!AV506 -> 0 | FY42: ='TC5'!AW506 -> 0 | FZ42: ='TC5'!AX506 -> 0 | GA42: ='TC5'!AY506 -> 0 | GB42: ='TC5'!AZ506 -> 0 | GC42: ='TC5'!BA506 -> 0 | GD42: ='TC5'!BB506 -> 0 | GE42: ='TC5'!BC506 -> 0 | GF42: ='TC5'!BD506 -> 0 | GG42: ='TC5'!BE506 -> 0 | GH42: ='TC5'!BF506 -> 0 | GI42: ='TC5'!BG506 -> 0 | GJ42: ='TC5'!BH506 -> 0
B43: =IF(AND(D43="Spare",AQ43="Spare"),TRUE,0) -> 0 | C43: 33 | D43: 100 W Metal Halide | E43: 1.485166598 | F43: 1.350010211 | G43: 1.218846291 | H43: 1.091577461 | I43: 0.9681087189 | K43: 33 | L43: 62.38366638 | M43: 62.38366638 | N43: 62.38366638 | O43: 62.38366638 | P43: 62.38366638 | R43: 63.86883297 | S43: 63.73367659 | T43: 63.60251267 | U43: 63.47524384 | V43: 63.35177509 | X43: 100 W Metal Halide | Y43: ='Tariff Smoothing - real'!N43 -> 29.32727273 | Z43: ='Tariff Smoothing - real'!O43 -> 0.9356576408 | AA43: ='Tariff Smoothing - real'!P43 -> 0.9356576408 | AB43: ='Tariff Smoothing - real'!Q43 -> 0.9356576408 | AC43: ='Tariff Smoothing - real'!R43 -> 0.9356576408 | AE43: ='Tariff Smoothing - real'!AE43 -> 57.96363636 | AF43: ='Tariff Smoothing - real'!AF43 -> 50.00405756 | AG43: ='Tariff Smoothing - real'!AG43 -> 50.00405756 | AH43: ='Tariff Smoothing - real'!AH43 -> 50.00405756 | AI43: ='Tariff Smoothing - real'!AI43 -> 50.00405756 | AK43: 87.29090909 | AL43: 50.9397152 | AM43: 50.9397152 | AN43: 50.9397152 | AO43: 50.9397152 | AQ43: =Annuity!C56 -> Bracket - Minor <=3m | AR43: ='TC3'!K52+'TC3'!K209 -> 9.704129164 | AS43: ='TC3'!L52+'TC3'!L209 -> 9.735182378 | AT43: ='TC3'!M52+'TC3'!M209 -> 9.776070144 | AU43: ='TC3'!N52+'TC3'!N209 -> 9.817129638 | AV43: ='TC3'!O52+'TC3'!O209 -> 9.856398157 | AX43: ='TC3'!K367 -> 8.319912098 | AY43: ='TC3'!L367 -> 8.243868101 | AZ43: ='TC3'!M367 -> 8.177175208 | BA43: ='TC3'!N367 -> 8.111021861 | BB43: ='TC3'!O367 -> 8.043700379 | BD43: 8.029858015 | BE43: =AR43+AX43 -> 18.02404126 | BF43: =AS43+AY43 -> 17.97905048 | BG43: =AT43+AZ43 -> 17.95324535 | BH43: =AU43+BA43 -> 17.9281515 | BI43: =AV43+BB43 -> 17.90009854 | BK43: =AQ43 -> Bracket - Minor <=3m | BL43: ='TC4'!L49 -> 2.019487619 | BM43: ='TC4'!M49 -> 2.025949979 | BN43: ='TC4'!N49 -> 2.034458969 | BO43: ='TC4'!O49 -> 2.043003697 | BP43: ='TC4'!P49 -> 2.051175712 | BR43: =AX43 -> 8.319912098 | BS43: =AY43 -> 8.243868101 | BT43: =AZ43 -> 8.177175208 | BU43: =BA43 -> 8.111021861 | BV43: =BB43 -> 8.043700379 | BX43: 2.975356505 | BY43: =BL43+BR43 -> 10.33939972 | BZ43: =BM43+BS43 -> 10.26981808 | CA43: =BN43+BT43 -> 10.21163418 | CB43: =BO43+BU43 -> 10.15402556 | CC43: =BP43+BV43 -> 10.09487609 | CE43: =D43 -> 100 W Metal Halide | CF43: ='TC5'!E664 -> 12.5702086 | CG43: ='TC5'!F664 -> 11.19418141 | CH43: ='TC5'!G664 -> 9.828823781 | CI43: ='TC5'!H664 -> 8.473355268 | CJ43: ='TC5'!I664 -> 7.126979795 | CL43: =Output!BK43 -> Bracket - Minor <=3m | CM43: ='TC5'!K199 -> 106.4271603 | CN43: ='TC5'!L199 -> 98.06914609 | CO43: ='TC5'!M199 -> 90.29231207 | CP43: ='TC5'!N199 -> 83.0562455 | CQ43: ='TC5'!O199 -> 76.32468468 | CR43: ='TC5'!P199 -> 70.0874041 | CS43: ='TC5'!Q199 -> 64.3081101 | CT43: ='TC5'!R199 -> 58.95317398 | CU43: ='TC5'!S199 -> 53.99143628 | CV43: ='TC5'!T199 -> 49.39402551 | CW43: ='TC5'!U199 -> 45.13419013 | CX43: ='TC5'!V199 -> 41.1871429 | CY43: ='TC5'!W199 -> 37.52991664 | CZ43: ='TC5'!X199 -> 34.14123057 | DA43: ='TC5'!Y199 -> 31.00136653 | DB43: ='TC5'!Z199 -> 28.09205418 | DC43: ='TC5'!AA199 -> 25.39636473 | DD43: ='TC5'!AB199 -> 22.89861245 | DE43: ='TC5'!AC199 -> 20.58426333 | DF43: ='TC5'!AD199 -> 18.43985059 | DG43: ='TC5'!AE199 -> 16.45289626 | DH43: ='TC5'!AF199 -> 14.61183859 | DI43: ='TC5'!AG199 -> 12.90596478 | DJ43: ='TC5'!AH199 -> 11.32534866 | DK43: ='TC5'!AI199 -> 9.860792894 | DL43: ='TC5'!AJ199 -> 8.50377548 | DM43: ='TC5'!AK199 -> 7.246400171 | DN43: ='TC5'!AL199 -> 6.081350517 | DO43: ='TC5'!AM199 -> 5.001847298 | DP43: ='TC5'!AN199 -> 4.001609069 | DQ43: ='TC5'!AO199 -> 3.074815619 | DR43: ='TC5'!AP199 -> 2.216074096 | DS43: ='TC5'!AQ199 -> 1.420387632 | DT43: ='TC5'!AR199 -> 0.6831262657 | DU43: ='TC5'!AS199 -> 0 | DV43: ='TC5'!AT199 -> 0 | DW43: ='TC5'!AU199 -> 0 | DX43: ='TC5'!AV199 -> 0 | DY43: ='TC5'!AW199 -> 0 | DZ43: ='TC5'!AX199 -> 0 | EA43: ='TC5'!AY199 -> 0 | EB43: ='TC5'!AZ199 -> 0 | EC43: ='TC5'!BA199 -> 0 | ED43: ='TC5'!BB199 -> 0 | EE43: ='TC5'!BC199 -> 0 | EF43: ='TC5'!BD199 -> 0 | EG43: ='TC5'!BE199 -> 0 | EH43: ='TC5'!BF199 -> 0 | EI43: ='TC5'!BG199 -> 0 | EJ43: ='TC5'!BH199 -> 0 | EL43: Bracket - Minor <=3m | EM43: ='TC5'!K507 -> 22.14813189 | EN43: ='TC5'!L507 -> 20.40877888 | EO43: ='TC5'!M507 -> 18.79037297 | EP43: ='TC5'!N507 -> 17.28450401 | EQ43: ='TC5'!O507 -> 15.88362574 | ER43: ='TC5'!P507 -> 14.58561015 | ES43: ='TC5'!Q507 -> 13.38290432 | ET43: ='TC5'!R507 -> 12.26850992 | EU43: ='TC5'!S507 -> 11.23594248 | EV43: ='TC5'!T507 -> 10.27919366 | EW43: ='TC5'!U507 -> 9.392696307 | EX43: ='TC5'!V507 -> 8.57129205 | EY43: ='TC5'!W507 -> 7.810201278 | EZ43: ='TC5'!X507 -> 7.104995335 | FA43: ='TC5'!Y507 -> 6.45157075 | FB43: ='TC5'!Z507 -> 5.846125359 | FC43: ='TC5'!AA507 -> 5.28513618 | FD43: ='TC5'!AB507 -> 4.765338914 | FE43: ='TC5'!AC507 -> 4.283708949 | FF43: ='TC5'!AD507 -> 3.837443766 | FG43: ='TC5'!AE507 -> 3.423946624 | FH43: ='TC5'!AF507 -> 3.040811454 | FI43: ='TC5'!AG507 -> 2.68580886 | FJ43: ='TC5'!AH507 -> 2.356873143 | FK43: ='TC5'!AI507 -> 2.052090283 | FL43: ='TC5'!AJ507 -> 1.769686801 | FM43: ='TC5'!AK507 -> 1.50801944 | FN43: ='TC5'!AL507 -> 1.265565603 | FO43: ='TC5'!AM507 -> 1.040914493 | FP43: ='TC5'!AN507 -> 0.8327589045 | FQ43: ='TC5'!AO507 -> 0.6398876157 | FR43: ='TC5'!AP507 -> 0.4611783422 | FS43: ='TC5'!AQ507 -> 0.2955912055 | FT43: ='TC5'!AR507 -> 0.1421626828 | FU43: ='TC5'!AS507 -> 0 | FV43: ='TC5'!AT507 -> 0 | FW43: ='TC5'!AU507 -> 0 | FX43: ='TC5'!AV507 -> 0 | FY43: ='TC5'!AW507 -> 0 | FZ43: ='TC5'!AX507 -> 0 | GA43: ='TC5'!AY507 -> 0 | GB43: ='TC5'!AZ507 -> 0 | GC43: ='TC5'!BA507 -> 0 | GD43: ='TC5'!BB507 -> 0 | GE43: ='TC5'!BC507 -> 0 | GF43: ='TC5'!BD507 -> 0 | GG43: ='TC5'!BE507 -> 0 | GH43: ='TC5'!BF507 -> 0 | GI43: ='TC5'!BG507 -> 0 | GJ43: ='TC5'!BH507 -> 0
B44: 0 | C44: 34 | D44: 150 W Metal Halide | E44: 3.460120435 | F44: 3.437845442 | G44: 3.415570449 | H44: 3.393295457 | I44: 3.371020464 | K44: 34 | L44: 69.97366638 | M44: 69.97366638 | N44: 69.97366638 | O44: 69.97366638 | P44: 69.97366638 | R44: 73.43378681 | S44: 73.41151182 | T44: 73.38923683 | U44: 73.36696183 | V44: 73.34468684 | X44: 150 W Metal Halide | Y44: ='Tariff Smoothing - real'!N44 -> 16.16363636 | Z44: ='Tariff Smoothing - real'!O44 -> 2.730271832 | AA44: ='Tariff Smoothing - real'!P44 -> 2.730271832 | AB44: ='Tariff Smoothing - real'!Q44 -> 2.730271832 | AC44: ='Tariff Smoothing - real'!R44 -> 2.730271832 | AE44: ='Tariff Smoothing - real'!AE44 -> 52.93636364 | AF44: ='Tariff Smoothing - real'!AF44 -> 56.08787435 | AG44: ='Tariff Smoothing - real'!AG44 -> 56.08787435 | AH44: ='Tariff Smoothing - real'!AH44 -> 56.08787435 | AI44: ='Tariff Smoothing - real'!AI44 -> 56.08787435 | AK44: 69.1 | AL44: 58.81814618 | AM44: 58.81814618 | AN44: 58.81814618 | AO44: 58.81814618 | AQ44: =Annuity!C57 -> Bracket - Major >3m | AR44: ='TC3'!K53+'TC3'!K210 -> 58.57217662 | AS44: ='TC3'!L53+'TC3'!L210 -> 58.75960758 | AT44: ='TC3'!M53+'TC3'!M210 -> 59.00639794 | AU44: ='TC3'!N53+'TC3'!N210 -> 59.25422481 | AV44: ='TC3'!O53+'TC3'!O210 -> 59.49124171 | AX44: ='TC3'!K368 -> 8.319912098 | AY44: ='TC3'!L368 -> 8.243868101 | AZ44: ='TC3'!M368 -> 8.177175208 | BA44: ='TC3'!N368 -> 8.111021861 | BB44: ='TC3'!O368 -> 8.043700379 | BD44: 48.60373534 | BE44: 66.89208872 | BF44: 67.00347569 | BG44: 67.18357314 | BH44: 67.36524667 | BI44: 67.53494209 | BK44: Bracket - Major >3m | BL44: ='TC4'!L50 -> 12.18922208 | BM44: ='TC4'!M50 -> 12.22822759 | BN44: ='TC4'!N50 -> 12.27958615 | BO44: ='TC4'!O50 -> 12.33116041 | BP44: ='TC4'!P50 -> 12.38048505 | BR44: 8.319912098 | BS44: 8.243868101 | BT44: 8.177175208 | BU44: 8.111021861 | BV44: 8.043700379 | BX44: 18.00946415 | BY44: 20.50913418 | BZ44: 20.47209569 | CA44: 20.45676136 | CB44: 20.44218227 | CC44: 20.42418543 | CE44: 150 W Metal Halide | CF44: ='TC5'!E665 -> 5.471831206 | CG44: ='TC5'!F665 -> 5.108066911 | CH44: ='TC5'!G665 -> 4.742354748 | CI44: ='TC5'!H665 -> 4.374679029 | CJ44: ='TC5'!I665 -> 4.005023899 | CL44: =Output!BK44 -> Bracket - Major >3m | CM44: ='TC5'!K200 -> 642.3729864 | CN44: ='TC5'!L200 -> 591.9256894 | CO44: ='TC5'!M200 -> 544.9862796 | CP44: ='TC5'!N200 -> 501.3108336 | CQ44: ='TC5'!O200 -> 460.6804831 | CR44: ='TC5'!P200 -> 423.033509 | CS44: ='TC5'!Q200 -> 388.1508499 | CT44: ='TC5'!R200 -> 355.8295299 | CU44: ='TC5'!S200 -> 325.8814766 | CV44: ='TC5'!T200 -> 298.1324277 | CW44: ='TC5'!U200 -> 272.420916 | CX44: ='TC5'!V200 -> 248.5973309 | CY44: ='TC5'!W200 -> 226.5230469 | CZ44: ='TC5'!X200 -> 206.0696177 | DA44: ='TC5'!Y200 -> 187.1180283 | DB44: ='TC5'!Z200 -> 169.5580027 | DC44: ='TC5'!AA200 -> 153.287362 | DD44: ='TC5'!AB200 -> 138.2114304 | DE44: ='TC5'!AC200 -> 124.2424835 | DF44: ='TC5'!AD200 -> 111.2992384 | DG44: ='TC5'!AE200 -> 99.30638074 | DH44: ='TC5'!AF200 -> 88.19412602 | DI44: ='TC5'!AG200 -> 77.89781401 | DJ44: ='TC5'!AH200 -> 68.35753224 | DK44: ='TC5'!AI200 -> 59.51776746 | DL44: ='TC5'!AJ200 -> 51.32708262 | DM44: ='TC5'!AK200 -> 43.73781753 | DN44: ='TC5'!AL200 -> 36.70581157 | DO44: ='TC5'!AM200 -> 30.19014673 | DP44: ='TC5'!AN200 -> 24.15290947 | DQ44: ='TC5'!AO200 -> 18.55897015 | DR44: ='TC5'!AP200 -> 13.37577862 | DS44: ='TC5'!AQ200 -> 8.573174765 | DT44: ='TC5'!AR200 -> 4.123213079 | DU44: ='TC5'!AS200 -> 0 | DV44: ='TC5'!AT200 -> 0 | DW44: ='TC5'!AU200 -> 0 | DX44: ='TC5'!AV200 -> 0 | DY44: ='TC5'!AW200 -> 0 | DZ44: ='TC5'!AX200 -> 0 | EA44: ='TC5'!AY200 -> 0 | EB44: ='TC5'!AZ200 -> 0 | EC44: ='TC5'!BA200 -> 0 | ED44: ='TC5'!BB200 -> 0 | EE44: ='TC5'!BC200 -> 0 | EF44: ='TC5'!BD200 -> 0 | EG44: ='TC5'!BE200 -> 0 | EH44: ='TC5'!BF200 -> 0 | EI44: ='TC5'!BG200 -> 0 | EJ44: ='TC5'!BH200 -> 0 | EL44: Bracket - Major >3m | EM44: ='TC5'!K508 -> 133.6816803 | EN44: ='TC5'!L508 -> 123.1832945 | EO44: ='TC5'!M508 -> 113.4149212 | EP44: ='TC5'!N508 -> 104.3257983 | EQ44: ='TC5'!O508 -> 95.87037808 | ER44: ='TC5'!P508 -> 88.03581643 | ES44: ='TC5'!Q508 -> 80.77652538 | ET44: ='TC5'!R508 -> 74.05026437 | EU44: ='TC5'!S508 -> 67.81789444 | EV44: ='TC5'!T508 -> 62.04315053 | EW44: ='TC5'!U508 -> 56.69243038 | EX44: ='TC5'!V508 -> 51.73459909 | EY44: ='TC5'!W508 -> 47.14080789 | EZ44: ='TC5'!X508 -> 42.88432631 | FA44: ='TC5'!Y508 -> 38.94038662 | FB44: ='TC5'!Z508 -> 35.28603972 | FC44: ='TC5'!AA508 -> 31.90002159 | FD44: ='TC5'!AB508 -> 28.76262957 | FE44: ='TC5'!AC508 -> 25.85560774 | FF44: ='TC5'!AD508 -> 23.16204064 | FG44: ='TC5'!AE508 -> 20.66625485 | FH44: ='TC5'!AF508 -> 18.35372784 | FI44: ='TC5'!AG508 -> 16.21100341 | FJ44: ='TC5'!AH508 -> 14.22561341 | FK44: ='TC5'!AI508 -> 12.38600522 | FL44: ='TC5'!AJ508 -> 10.68147446 | FM44: ='TC5'!AK508 -> 9.102102773 | FN44: ='TC5'!AL508 -> 7.638700059 | FO44: ='TC5'!AM508 -> 6.282751033 | FP44: ='TC5'!AN508 -> 5.026365664 | FQ44: ='TC5'!AO508 -> 3.862233263 | FR44: ='TC5'!AP508 -> 2.783579943 | FS44: ='TC5'!AQ508 -> 1.784129209 | FT44: ='TC5'!AR508 -> 0.8580654299 | FU44: ='TC5'!AS508 -> 0 | FV44: ='TC5'!AT508 -> 0 | FW44: ='TC5'!AU508 -> 0 | FX44: ='TC5'!AV508 -> 0 | FY44: ='TC5'!AW508 -> 0 | FZ44: ='TC5'!AX508 -> 0 | GA44: ='TC5'!AY508 -> 0 | GB44: ='TC5'!AZ508 -> 0 | GC44: ='TC5'!BA508 -> 0 | GD44: ='TC5'!BB508 -> 0 | GE44: ='TC5'!BC508 -> 0 | GF44: ='TC5'!BD508 -> 0 | GG44: ='TC5'!BE508 -> 0 | GH44: ='TC5'!BF508 -> 0 | GI44: ='TC5'!BG508 -> 0 | GJ44: ='TC5'!BH508 -> 0
B45: 0 | C45: 35 | D45: 250 W Metal Halide | E45: 7.832267827 | F45: 7.51003773 | G45: 7.189531637 | H45: 6.870707498 | I45: 6.553524291 | K45: 35 | L45: 57.67366638 | M45: 57.67366638 | N45: 57.67366638 | O45: 57.67366638 | P45: 57.67366638 | R45: 65.5059342 | S45: 65.18370411 | T45: 64.86319801 | U45: 64.54437387 | V45: 64.22719067 | X45: 250 W Metal Halide | Y45: ='Tariff Smoothing - real'!N45 -> 16.60909091 | Z45: ='Tariff Smoothing - real'!O45 -> 5.656107015 | AA45: ='Tariff Smoothing - real'!P45 -> 5.656107015 | AB45: ='Tariff Smoothing - real'!Q45 -> 5.656107015 | AC45: ='Tariff Smoothing - real'!R45 -> 5.656107015 | AE45: ='Tariff Smoothing - real'!AE45 -> 60.8 | AF45: ='Tariff Smoothing - real'!AF45 -> 46.22872461 | AG45: ='Tariff Smoothing - real'!AG45 -> 46.22872461 | AH45: ='Tariff Smoothing - real'!AH45 -> 46.22872461 | AI45: ='Tariff Smoothing - real'!AI45 -> 46.22872461 | AK45: 77.40909091 | AL45: 51.88483163 | AM45: 51.88483163 | AN45: 51.88483163 | AO45: 51.88483163 | AQ45: =Annuity!C58 -> Outreach - Minor <=2m | AR45: ='TC3'!K54+'TC3'!K211 -> 11.87306074 | AS45: ='TC3'!L54+'TC3'!L211 -> 11.91105453 | AT45: ='TC3'!M54+'TC3'!M211 -> 11.96108096 | AU45: ='TC3'!N54+'TC3'!N211 -> 12.0113175 | AV45: ='TC3'!O54+'TC3'!O211 -> 12.05936277 | AX45: ='TC3'!K369 -> 8.319912098 | AY45: ='TC3'!L369 -> 8.243868101 | AZ45: ='TC3'!M369 -> 8.177175208 | BA45: ='TC3'!N369 -> 8.111021861 | BB45: ='TC3'!O369 -> 8.043700379 | BD45: 10.1290199 | BE45: 20.19297284 | BF45: 20.15492263 | BG45: 20.13825617 | BH45: 20.12233936 | BI45: 20.10306315 | BK45: Outreach - Minor <=2m | BL45: ='TC4'!L51 -> 2.470855319 | BM45: ='TC4'!M51 -> 2.478762056 | BN45: ='TC4'!N51 -> 2.489172857 | BO45: ='TC4'!O51 -> 2.499627383 | BP45: ='TC4'!P51 -> 2.509625892 | BR45: 8.319912098 | BS45: 8.243868101 | BT45: 8.177175208 | BU45: 8.111021861 | BV45: 8.043700379 | BX45: 3.753172868 | BY45: 10.79076742 | BZ45: 10.72263016 | CA45: 10.66634806 | CB45: 10.61064924 | CC45: 10.55332627 | CE45: 250 W Metal Halide | CF45: ='TC5'!E666 -> 70.22785109 | CG45: ='TC5'!F666 -> 65.36250796 | CH45: ='TC5'!G666 -> 60.47853608 | CI45: ='TC5'!H666 -> 55.57517754 | CJ45: ='TC5'!I666 -> 50.65167469 | CL45: =Output!BK45 -> Outreach - Minor <=2m | CM45: ='TC5'!K201 -> 130.2142745 | CN45: ='TC5'!L201 -> 119.9881935 | CO45: ='TC5'!M201 -> 110.4731901 | CP45: ='TC5'!N201 -> 101.6198188 | CQ45: ='TC5'!O201 -> 93.38371345 | CR45: ='TC5'!P201 -> 85.75236292 | CS45: ='TC5'!Q201 -> 78.68136176 | CT45: ='TC5'!R201 -> 72.12956501 | CU45: ='TC5'!S201 -> 66.05884892 | CV45: ='TC5'!T201 -> 60.43388903 | CW45: ='TC5'!U201 -> 55.22195467 | CX45: ='TC5'!V201 -> 50.39271851 | CY45: ='TC5'!W201 -> 45.91808005 | CZ45: ='TC5'!X201 -> 41.77200215 | DA45: ='TC5'!Y201 -> 37.9303595 | DB45: ='TC5'!Z201 -> 34.37079823 | DC45: ='TC5'!AA201 -> 31.07260589 | DD45: ='TC5'!AB201 -> 28.01659086 | DE45: ='TC5'!AC201 -> 25.18497072 | DF45: ='TC5'!AD201 -> 22.56126875 | DG45: ='TC5'!AE201 -> 20.13021811 | DH45: ='TC5'!AF201 -> 17.87767291 | DI45: ='TC5'!AG201 -> 15.79052599 | DJ45: ='TC5'!AH201 -> 13.8566326 | DK45: ='TC5'!AI201 -> 12.06473976 | DL45: ='TC5'!AJ201 -> 10.40442074 | DM45: ='TC5'!AK201 -> 8.866014447 | DN45: ='TC5'!AL201 -> 7.440569148 | DO45: ='TC5'!AM201 -> 6.119790429 | DP45: ='TC5'!AN201 -> 4.895992905 | DQ45: ='TC5'!AO201 -> 3.762055512 | DR45: ='TC5'!AP201 -> 2.711380063 | DS45: ='TC5'!AQ201 -> 1.737852861 | DT45: ='TC5'!AR201 -> 0.8358091188 | DU45: ='TC5'!AS201 -> 0 | DV45: ='TC5'!AT201 -> 0 | DW45: ='TC5'!AU201 -> 0 | DX45: ='TC5'!AV201 -> 0 | DY45: ='TC5'!AW201 -> 0 | DZ45: ='TC5'!AX201 -> 0 | EA45: ='TC5'!AY201 -> 0 | EB45: ='TC5'!AZ201 -> 0 | EC45: ='TC5'!BA201 -> 0 | ED45: ='TC5'!BB201 -> 0 | EE45: ='TC5'!BC201 -> 0 | EF45: ='TC5'!BD201 -> 0 | EG45: ='TC5'!BE201 -> 0 | EH45: ='TC5'!BF201 -> 0 | EI45: ='TC5'!BG201 -> 0 | EJ45: ='TC5'!BH201 -> 0 | EL45: Outreach - Minor <=2m | EM45: ='TC5'!K509 -> 27.09837335 | EN45: ='TC5'!L509 -> 24.97026443 | EO45: ='TC5'!M509 -> 22.990135 | EP45: ='TC5'!N509 -> 21.14769522 | EQ45: ='TC5'!O509 -> 19.43371218 | ER45: ='TC5'!P509 -> 17.84558226 | ES45: ='TC5'!Q509 -> 16.3740644 | ET45: ='TC5'!R509 -> 15.01059611 | EU45: ='TC5'!S509 -> 13.7472436 | EV45: ='TC5'!T509 -> 12.57665563 | EW45: ='TC5'!U509 -> 11.49202075 | EX45: ='TC5'!V509 -> 10.48702768 | EY45: ='TC5'!W509 -> 9.555828512 | EZ45: ='TC5'!X509 -> 8.693004775 | FA45: ='TC5'!Y509 -> 7.893535843 | FB45: ='TC5'!Z509 -> 7.152769745 | FC45: ='TC5'!AA509 -> 6.46639609 | FD45: ='TC5'!AB509 -> 5.83042099 | FE45: ='TC5'!AC509 -> 5.241143815 | FF45: ='TC5'!AD509 -> 4.695135663 | FG45: ='TC5'!AE509 -> 4.189219408 | FH45: ='TC5'!AF509 -> 3.72045121 | FI45: ='TC5'!AG509 -> 3.286103389 | FJ45: ='TC5'!AH509 -> 2.883648549 | FK45: ='TC5'!AI509 -> 2.510744876 | FL45: ='TC5'!AJ509 -> 2.165222507 | FM45: ='TC5'!AK509 -> 1.845070908 | FN45: ='TC5'!AL509 -> 1.548427171 | FO45: ='TC5'!AM509 -> 1.27356518 | FP45: ='TC5'!AN509 -> 1.018885558 | FQ45: ='TC5'!AO509 -> 0.7829063689 | FR45: ='TC5'!AP509 -> 0.5642544916 | FS45: ='TC5'!AQ509 -> 0.3616576281 | FT45: ='TC5'!AR509 -> 0.1739369024 | FU45: ='TC5'!AS509 -> 0 | FV45: ='TC5'!AT509 -> 0 | FW45: ='TC5'!AU509 -> 0 | FX45: ='TC5'!AV509 -> 0 | FY45: ='TC5'!AW509 -> 0 | FZ45: ='TC5'!AX509 -> 0 | GA45: ='TC5'!AY509 -> 0 | GB45: ='TC5'!AZ509 -> 0 | GC45: ='TC5'!BA509 -> 0 | GD45: ='TC5'!BB509 -> 0 | GE45: ='TC5'!BC509 -> 0 | GF45: ='TC5'!BD509 -> 0 | GG45: ='TC5'!BE509 -> 0 | GH45: ='TC5'!BF509 -> 0 | GI45: ='TC5'!BG509 -> 0 | GJ45: ='TC5'!BH509 -> 0
B46: 0 | C46: 36 | D46: 2 x 250 W Metal Halide | E46: 21.87443019 | F46: 21.38347711 | G46: 20.89252404 | H46: 20.40157096 | I46: 19.91061788 | K46: 36 | L46: 63.67366638 | M46: 63.67366638 | N46: 63.67366638 | O46: 63.67366638 | P46: 63.67366638 | R46: 85.54809657 | S46: 85.05714349 | T46: 84.56619041 | U46: 84.07523734 | V46: 83.58428426 | X46: 2 x 250 W Metal Halide | Y46: ='Tariff Smoothing - real'!N46 -> 33.23636364 | Z46: ='Tariff Smoothing - real'!O46 -> 16.58119412 | AA46: ='Tariff Smoothing - real'!P46 -> 16.58119412 | AB46: ='Tariff Smoothing - real'!Q46 -> 16.58119412 | AC46: ='Tariff Smoothing - real'!R46 -> 16.58119412 | AE46: ='Tariff Smoothing - real'!AE46 -> 121.5909091 | AF46: ='Tariff Smoothing - real'!AF46 -> 51.03806595 | AG46: ='Tariff Smoothing - real'!AG46 -> 51.03806595 | AH46: ='Tariff Smoothing - real'!AH46 -> 51.03806595 | AI46: ='Tariff Smoothing - real'!AI46 -> 51.03806595 | AK46: 154.8272727 | AL46: 67.61926007 | AM46: 67.61926007 | AN46: 67.61926007 | AO46: 67.61926007 | AQ46: =Annuity!C59 -> Outreach - Major >2m | AR46: ='TC3'!K55+'TC3'!K212 -> 27.0045825 | AS46: ='TC3'!L55+'TC3'!L212 -> 27.09099717 | AT46: ='TC3'!M55+'TC3'!M212 -> 27.20477936 | AU46: ='TC3'!N55+'TC3'!N212 -> 27.31903943 | AV46: ='TC3'!O55+'TC3'!O212 -> 27.42831559 | AX46: ='TC3'!K370 -> 8.319912098 | AY46: ='TC3'!L370 -> 8.243868101 | AZ46: ='TC3'!M370 -> 8.177175208 | BA46: ='TC3'!N370 -> 8.111021861 | BB46: ='TC3'!O370 -> 8.043700379 | BD46: 20.21971912 | BE46: 35.3244946 | BF46: 35.33486527 | BG46: 35.38195457 | BH46: 35.43006129 | BI46: 35.47201597 | BK46: Outreach - Major >2m | BL46: ='TC4'!L52 -> 5.619815967 | BM46: ='TC4'!M52 -> 5.637799378 | BN46: ='TC4'!N52 -> 5.661478136 | BO46: ='TC4'!O52 -> 5.685256344 | BP46: ='TC4'!P52 -> 5.707997369 | BR46: 8.319912098 | BS46: 8.243868101 | BT46: 8.177175208 | BU46: 8.111021861 | BV46: 8.043700379 | BX46: 7.492146522 | BY46: 13.93972806 | BZ46: 13.88166748 | CA46: 13.83865334 | CB46: 13.7962782 | CC46: 13.75169775 | CE46: 2 x 250 W Metal Halide | CF46: ='TC5'!E667 -> 120.7629687 | CG46: ='TC5'!F667 -> 112.4344881 | CH46: ='TC5'!G667 -> 104.1060075 | CI46: ='TC5'!H667 -> 95.77752687 | CJ46: ='TC5'!I667 -> 87.44904628 | CL46: =Output!BK46 -> Outreach - Major >2m | CM46: ='TC5'!K202 -> 296.1647545 | CN46: ='TC5'!L202 -> 272.9061312 | CO46: ='TC5'!M202 -> 251.2648121 | CP46: ='TC5'!N202 -> 231.1283368 | CQ46: ='TC5'!O202 -> 212.3957966 | CR46: ='TC5'!P202 -> 195.038736 | CS46: ='TC5'!Q202 -> 178.9561573 | CT46: ='TC5'!R202 -> 164.0544786 | CU46: ='TC5'!S202 -> 150.2469898 | CV46: ='TC5'!T202 -> 137.4533474 | CW46: ='TC5'!U202 -> 125.5991074 | CX46: ='TC5'!V202 -> 114.6152921 | CY46: ='TC5'!W202 -> 104.4379885 | CZ46: ='TC5'!X202 -> 95.00797673 | DA46: ='TC5'!Y202 -> 86.27038511 | DB46: ='TC5'!Z202 -> 78.17437112 | DC46: ='TC5'!AA202 -> 70.67282547 | DD46: ='TC5'!AB202 -> 63.72209795 | DE46: ='TC5'!AC202 -> 57.28174348 | DF46: ='TC5'!AD202 -> 51.31428676 | DG46: ='TC5'!AE202 -> 45.78500419 | DH46: ='TC5'!AF202 -> 40.66172183 | DI46: ='TC5'!AG202 -> 35.91462819 | DJ46: ='TC5'!AH202 -> 31.51610074 | DK46: ='TC5'!AI202 -> 27.44054523 | DL46: ='TC5'!AJ202 -> 23.6642467 | DM46: ='TC5'!AK202 -> 20.16523152 | DN46: ='TC5'!AL202 -> 16.92313952 | DO46: ='TC5'!AM202 -> 13.91910554 | DP46: ='TC5'!AN202 -> 11.13564962 | DQ46: ='TC5'!AO202 -> 8.556575316 | DR46: ='TC5'!AP202 -> 6.166875436 | DS46: ='TC5'!AQ202 -> 3.952644731 | DT46: ='TC5'!AR202 -> 1.900998976 | DU46: ='TC5'!AS202 -> 0 | DV46: ='TC5'!AT202 -> 0 | DW46: ='TC5'!AU202 -> 0 | DX46: ='TC5'!AV202 -> 0 | DY46: ='TC5'!AW202 -> 0 | DZ46: ='TC5'!AX202 -> 0 | EA46: ='TC5'!AY202 -> 0 | EB46: ='TC5'!AZ202 -> 0 | EC46: ='TC5'!BA202 -> 0 | ED46: ='TC5'!BB202 -> 0 | EE46: ='TC5'!BC202 -> 0 | EF46: ='TC5'!BD202 -> 0 | EG46: ='TC5'!BE202 -> 0 | EH46: ='TC5'!BF202 -> 0 | EI46: ='TC5'!BG202 -> 0 | EJ46: ='TC5'!BH202 -> 0 | EL46: Outreach - Major >2m | EM46: ='TC5'!K510 -> 61.63366591 | EN46: ='TC5'!L510 -> 56.79340658 | EO46: ='TC5'!M510 -> 52.28971796 | EP46: ='TC5'!N510 -> 48.0991964 | EQ46: ='TC5'!O510 -> 44.20084218 | ER46: ='TC5'!P510 -> 40.58873352 | ES46: ='TC5'!Q510 -> 37.24185219 | ET46: ='TC5'!R510 -> 34.14072328 | EU46: ='TC5'!S510 -> 31.26730184 | EV46: ='TC5'!T510 -> 28.60486794 | EW46: ='TC5'!U510 -> 26.13792934 | EX46: ='TC5'!V510 -> 23.85213134 | EY46: ='TC5'!W510 -> 21.73417328 | EZ46: ='TC5'!X510 -> 19.77173113 | FA46: ='TC5'!Y510 -> 17.95338579 | FB46: ='TC5'!Z510 -> 16.2685566 | FC46: ='TC5'!AA510 -> 14.70743985 | FD46: ='TC5'!AB510 -> 13.26095167 | FE46: ='TC5'!AC510 -> 11.92067519 | FF46: ='TC5'!AD510 -> 10.67881157 | FG46: ='TC5'!AE510 -> 9.528134625 | FH46: ='TC5'!AF510 -> 8.461948765 | FI46: ='TC5'!AG510 -> 7.474050039 | FJ46: ='TC5'!AH510 -> 6.558690035 | FK46: ='TC5'!AI510 -> 5.710542432 | FL46: ='TC5'!AJ510 -> 4.924672004 | FM46: ='TC5'!AK510 -> 4.196505909 | FN46: ='TC5'!AL510 -> 3.521807074 | FO46: ='TC5'!AM510 -> 2.896649543 | FP46: ='TC5'!AN510 -> 2.317395633 | FQ46: ='TC5'!AO510 -> 1.780674764 | FR46: ='TC5'!AP510 -> 1.283363853 | FS46: ='TC5'!AQ510 -> 0.8225691312 | FT46: ='TC5'!AR510 -> 0.3956093154 | FU46: ='TC5'!AS510 -> 0 | FV46: ='TC5'!AT510 -> 0 | FW46: ='TC5'!AU510 -> 0 | FX46: ='TC5'!AV510 -> 0 | FY46: ='TC5'!AW510 -> 0 | FZ46: ='TC5'!AX510 -> 0 | GA46: ='TC5'!AY510 -> 0 | GB46: ='TC5'!AZ510 -> 0 | GC46: ='TC5'!BA510 -> 0 | GD46: ='TC5'!BB510 -> 0 | GE46: ='TC5'!BC510 -> 0 | GF46: ='TC5'!BD510 -> 0 | GG46: ='TC5'!BE510 -> 0 | GH46: ='TC5'!BF510 -> 0 | GI46: ='TC5'!BG510 -> 0 | GJ46: ='TC5'!BH510 -> 0
B47: 0 | C47: 37 | D47: 400 W Metal Halide | E47: 0.5609039525 | F47: 0.5409944769 | G47: 0.5215705982 | H47: 0.5026204728 | I47: 0.4841325455 | K47: 37 | L47: 54.39866638 | M47: 54.39866638 | N47: 54.39866638 | O47: 54.39866638 | P47: 54.39866638 | R47: 54.95957033 | S47: 54.93966085 | T47: 54.92023697 | U47: 54.90128685 | V47: 54.88279892 | X47: 400 W Metal Halide | Y47: ='Tariff Smoothing - real'!N47 -> 20.46363636 | Z47: ='Tariff Smoothing - real'!O47 -> 0.411874284 | AA47: ='Tariff Smoothing - real'!P47 -> 0.411874284 | AB47: ='Tariff Smoothing - real'!Q47 -> 0.411874284 | AC47: ='Tariff Smoothing - real'!R47 -> 0.411874284 | AE47: ='Tariff Smoothing - real'!AE47 -> 66.13636364 | AF47: ='Tariff Smoothing - real'!AF47 -> 43.6036258 | AG47: ='Tariff Smoothing - real'!AG47 -> 43.6036258 | AH47: ='Tariff Smoothing - real'!AH47 -> 43.6036258 | AI47: ='Tariff Smoothing - real'!AI47 -> 43.6036258 | AK47: 86.6 | AL47: 44.01550008 | AM47: 44.01550008 | AN47: 44.01550008 | AO47: 44.01550008 | AQ47: =Annuity!C60 -> Pole (Wood) - Minor - DEDICATED SL <=11m | AR47: ='TC3'!K56+'TC3'!K213 -> 84.72441994 | AS47: ='TC3'!L56+'TC3'!L213 -> 84.99553808 | AT47: ='TC3'!M56+'TC3'!M213 -> 85.35251934 | AU47: ='TC3'!N56+'TC3'!N213 -> 85.71099992 | AV47: ='TC3'!O56+'TC3'!O213 -> 86.05384392 | AX47: ='TC3'!K371 -> 0 | AY47: ='TC3'!L371 -> 0 | AZ47: ='TC3'!M371 -> 0 | BA47: ='TC3'!N371 -> 0 | BB47: ='TC3'!O371 -> 0 | BD47: 200.8878092 | BE47: 84.72441994 | BF47: 84.99553808 | BG47: 85.35251934 | BH47: 85.71099992 | BI47: 86.05384392 | BK47: Pole (Wood) - Minor - DEDICATED SL <=11m | BL47: ='TC4'!L53 -> 17.63166114 | BM47: ='TC4'!M53 -> 17.68808246 | BN47: ='TC4'!N53 -> 17.7623724 | BO47: ='TC4'!O53 -> 17.83697437 | BP47: ='TC4'!P53 -> 17.90832226 | BR47: 0 | BS47: 0 | BT47: 0 | BU47: 0 | BV47: 0 | BX47: 111.8248871 | BY47: 17.63166114 | BZ47: 17.68808246 | CA47: 17.7623724 | CB47: 17.83697437 | CC47: 17.90832226 | CE47: 400 W Metal Halide | CF47: ='TC5'!E668 -> 0 | CG47: ='TC5'!F668 -> 0 | CH47: ='TC5'!G668 -> 0 | CI47: ='TC5'!H668 -> 0 | CJ47: ='TC5'!I668 -> 0 | CL47: =Output!BK47 -> Pole (Wood) - Minor - DEDICATED SL <=11m | CM47: ='TC5'!K203 -> 929.1899635 | CN47: ='TC5'!L203 -> 856.2181496 | CO47: ='TC5'!M203 -> 788.3204805 | CP47: ='TC5'!N203 -> 725.1441219 | CQ47: ='TC5'!O203 -> 666.372482 | CR47: ='TC5'!P203 -> 611.916284 | CS47: ='TC5'!Q203 -> 561.4586568 | CT47: ='TC5'!R203 -> 514.7059962 | CU47: ='TC5'!S203 -> 471.3862566 | CV47: ='TC5'!T203 -> 431.2473679 | CW47: ='TC5'!U203 -> 394.0557688 | CX47: ='TC5'!V203 -> 359.5950479 | CY47: ='TC5'!W203 -> 327.6646842 | CZ47: ='TC5'!X203 -> 298.0788804 | DA47: ='TC5'!Y203 -> 270.6654819 | DB47: ='TC5'!Z203 -> 245.2649748 | DC47: ='TC5'!AA203 -> 221.729558 | DD47: ='TC5'!AB203 -> 199.922283 | DE47: ='TC5'!AC203 -> 179.716257 | DF47: ='TC5'!AD203 -> 160.9939046 | DG47: ='TC5'!AE203 -> 143.6462838 | DH47: ='TC5'!AF203 -> 127.5724516 | DI47: ='TC5'!AG203 -> 112.6788774 | DJ47: ='TC5'!AH203 -> 98.87889782 | DK47: ='TC5'!AI203 -> 86.09221332 | DL47: ='TC5'!AJ203 -> 74.24442035 | DM47: ='TC5'!AK203 -> 63.26657866 | DN47: ='TC5'!AL203 -> 53.09481009 | DO47: ='TC5'!AM203 -> 43.66992687 | DP47: ='TC5'!AN203 -> 34.93708724 | DQ47: ='TC5'!AO203 -> 26.84547633 | DR47: ='TC5'!AP203 -> 19.34801044 | DS47: ='TC5'!AQ203 -> 12.40106311 | DT47: ='TC5'!AR203 -> 5.964211278 | DU47: ='TC5'!AS203 -> 0 | DV47: ='TC5'!AT203 -> 0 | DW47: ='TC5'!AU203 -> 0 | DX47: ='TC5'!AV203 -> 0 | DY47: ='TC5'!AW203 -> 0 | DZ47: ='TC5'!AX203 -> 0 | EA47: ='TC5'!AY203 -> 0 | EB47: ='TC5'!AZ203 -> 0 | EC47: ='TC5'!BA203 -> 0 | ED47: ='TC5'!BB203 -> 0 | EE47: ='TC5'!BC203 -> 0 | EF47: ='TC5'!BD203 -> 0 | EG47: ='TC5'!BE203 -> 0 | EH47: ='TC5'!BF203 -> 0 | EI47: ='TC5'!BG203 -> 0 | EJ47: ='TC5'!BH203 -> 0 | EL47: Pole (Wood) - Minor - DEDICATED SL <=11m | EM47: ='TC5'!K511 -> 193.3700176 | EN47: ='TC5'!L511 -> 178.1841444 | EO47: ='TC5'!M511 -> 164.0542313 | EP47: ='TC5'!N511 -> 150.9068512 | EQ47: ='TC5'!O511 -> 138.6761196 | ER47: ='TC5'!P511 -> 127.3434575 | ES47: ='TC5'!Q511 -> 116.8429219 | ET47: ='TC5'!R511 -> 107.1134122 | EU47: ='TC5'!S511 -> 98.09831391 | EV47: ='TC5'!T511 -> 89.74516985 | EW47: ='TC5'!U511 -> 82.0053745 | EX47: ='TC5'!V511 -> 74.8338913 | EY47: ='TC5'!W511 -> 68.18899065 | EZ47: ='TC5'!X511 -> 62.03200702 | FA47: ='TC5'!Y511 -> 56.32711398 | FB47: ='TC5'!Z511 -> 51.04111576 | FC47: ='TC5'!AA511 -> 46.14325403 | FD47: ='TC5'!AB511 -> 41.605029 | FE47: ='TC5'!AC511 -> 37.40003351 | FF47: ='TC5'!AD511 -> 33.50379943 | FG47: ='TC5'!AE511 -> 29.89365524 | FH47: ='TC5'!AF511 -> 26.54859413 | FI47: ='TC5'!AG511 -> 23.44915179 | FJ47: ='TC5'!AH511 -> 20.57729308 | FK47: ='TC5'!AI511 -> 17.91630717 | FL47: ='TC5'!AJ511 -> 15.45071022 | FM47: ='TC5'!AK511 -> 13.16615537 | FN47: ='TC5'!AL511 -> 11.04934918 | FO47: ='TC5'!AM511 -> 9.087974319 | FP47: ='TC5'!AN511 -> 7.270617892 | FQ47: ='TC5'!AO511 -> 5.586705015 | FR47: ='TC5'!AP511 -> 4.026437289 | FS47: ='TC5'!AQ511 -> 2.580735788 | FT47: ='TC5'!AR511 -> 1.241188223 | FU47: ='TC5'!AS511 -> 0 | FV47: ='TC5'!AT511 -> 0 | FW47: ='TC5'!AU511 -> 0 | FX47: ='TC5'!AV511 -> 0 | FY47: ='TC5'!AW511 -> 0 | FZ47: ='TC5'!AX511 -> 0 | GA47: ='TC5'!AY511 -> 0 | GB47: ='TC5'!AZ511 -> 0 | GC47: ='TC5'!BA511 -> 0 | GD47: ='TC5'!BB511 -> 0 | GE47: ='TC5'!BC511 -> 0 | GF47: ='TC5'!BD511 -> 0 | GG47: ='TC5'!BE511 -> 0 | GH47: ='TC5'!BF511 -> 0 | GI47: ='TC5'!BG511 -> 0 | GJ47: ='TC5'!BH511 -> 0
B48: 0 | C48: 38 | D48: 2 x 400 W Metal Halide | E48: 28.86689061 | F48: 28.22001288 | G48: 27.57313515 | H48: 26.92625742 | I48: 26.27937968 | K48: 38 | L48: 57.12366638 | M48: 57.12366638 | N48: 57.12366638 | O48: 57.12366638 | P48: 57.12366638 | R48: 85.99055699 | S48: 85.34367926 | T48: 84.69680152 | U48: 84.04992379 | V48: 83.40304606 | X48: 2 x 400 W Metal Halide | Y48: ='Tariff Smoothing - real'!N48 -> 40.92727273 | Z48: ='Tariff Smoothing - real'!O48 -> 21.88356873 | AA48: ='Tariff Smoothing - real'!P48 -> 21.88356873 | AB48: ='Tariff Smoothing - real'!Q48 -> 21.88356873 | AC48: ='Tariff Smoothing - real'!R48 -> 21.88356873 | AE48: ='Tariff Smoothing - real'!AE48 -> 132.2818182 | AF48: ='Tariff Smoothing - real'!AF48 -> 45.78786832 | AG48: ='Tariff Smoothing - real'!AG48 -> 45.78786832 | AH48: ='Tariff Smoothing - real'!AH48 -> 45.78786832 | AI48: ='Tariff Smoothing - real'!AI48 -> 45.78786832 | AK48: 173.2090909 | AL48: 67.67143706 | AM48: 67.67143706 | AN48: 67.67143706 | AO48: 67.67143706 | AQ48: =Annuity!C61 -> Pole (Wood) - Major - DEDICATED SL >11m | AR48: ='TC3'!K57+'TC3'!K214 -> 164.3858677 | AS48: ='TC3'!L57+'TC3'!L214 -> 164.9119024 | AT48: ='TC3'!M57+'TC3'!M214 -> 165.6045324 | AU48: ='TC3'!N57+'TC3'!N214 -> 166.3000715 | AV48: ='TC3'!O57+'TC3'!O214 -> 166.9652718 | AX48: ='TC3'!K372 -> 0 | AY48: ='TC3'!L372 -> 0 | AZ48: ='TC3'!M372 -> 0 | BA48: ='TC3'!N372 -> 0 | BB48: ='TC3'!O372 -> 0 | BD48: 217.4524994 | BE48: 164.3858677 | BF48: 164.9119024 | BG48: 165.6045324 | BH48: 166.3000715 | BI48: 166.9652718 | BK48: Pole (Wood) - Major - DEDICATED SL >11m | BL48: ='TC4'!L54 -> 34.20968733 | BM48: ='TC4'!M54 -> 34.31915833 | BN48: ='TC4'!N54 -> 34.46329879 | BO48: ='TC4'!O54 -> 34.60804465 | BP48: ='TC4'!P54 -> 34.74647683 | BR48: 0 | BS48: 0 | BT48: 0 | BU48: 0 | BV48: 0 | BX48: 111.8248871 | BY48: 34.20968733 | BZ48: 34.31915833 | CA48: 34.46329879 | CB48: 34.60804465 | CC48: 34.74647683 | CE48: 2 x 400 W Metal Halide | CF48: ='TC5'!E669 -> 159.1167851 | CG48: ='TC5'!F669 -> 148.1432137 | CH48: ='TC5'!G669 -> 137.1696423 | CI48: ='TC5'!H669 -> 126.1960709 | CJ48: ='TC5'!I669 -> 115.2224995 | CL48: =Output!BK48 -> Pole (Wood) - Major - DEDICATED SL >11m | CM48: ='TC5'!K204 -> 1802.85328 | CN48: ='TC5'!L204 -> 1661.270311 | CO48: ='TC5'!M204 -> 1529.53241 | CP48: ='TC5'!N204 -> 1406.954993 | CQ48: ='TC5'!O204 -> 1292.923796 | CR48: ='TC5'!P204 -> 1187.2656 | CS48: ='TC5'!Q204 -> 1089.365599 | CT48: ='TC5'!R204 -> 998.6541288 | CU48: ='TC5'!S204 -> 914.6033559 | CV48: ='TC5'!T204 -> 836.724203 | CW48: ='TC5'!U204 -> 764.563505 | CX48: ='TC5'!V204 -> 697.7013711 | CY48: ='TC5'!W204 -> 635.7487422 | CZ48: ='TC5'!X204 -> 578.3451267 | DA48: ='TC5'!Y204 -> 525.1565029 | DB48: ='TC5'!Z204 -> 475.8733754 | DC48: ='TC5'!AA204 -> 430.2089741 | DD48: ='TC5'!AB204 -> 387.8975859 | DE48: ='TC5'!AC204 -> 348.693008 | DF48: ='TC5'!AD204 -> 312.3671159 | DG48: ='TC5'!AE204 -> 278.7085354 | DH48: ='TC5'!AF204 -> 247.5214132 | DI48: ='TC5'!AG204 -> 218.6242767 | DJ48: ='TC5'!AH204 -> 191.8489784 | DK48: ='TC5'!AI204 -> 167.0397177 | DL48: ='TC5'!AJ204 -> 144.0521336 | DM48: ='TC5'!AK204 -> 122.7524654 | DN48: ='TC5'!AL204 -> 103.016774 | DO48: ='TC5'!AM204 -> 84.73022093 | DP48: ='TC5'!AN204 -> 67.78639977 | DQ48: ='TC5'!AO204 -> 52.08671741 | DR48: ='TC5'!AP204 -> 37.53982011 | DS48: ='TC5'!AQ204 -> 24.06106199 | DT48: ='TC5'!AR204 -> 11.57201249 | DU48: ='TC5'!AS204 -> 0 | DV48: ='TC5'!AT204 -> 0 | DW48: ='TC5'!AU204 -> 0 | DX48: ='TC5'!AV204 -> 0 | DY48: ='TC5'!AW204 -> 0 | DZ48: ='TC5'!AX204 -> 0 | EA48: ='TC5'!AY204 -> 0 | EB48: ='TC5'!AZ204 -> 0 | EC48: ='TC5'!BA204 -> 0 | ED48: ='TC5'!BB204 -> 0 | EE48: ='TC5'!BC204 -> 0 | EF48: ='TC5'!BD204 -> 0 | EG48: ='TC5'!BE204 -> 0 | EH48: ='TC5'!BF204 -> 0 | EI48: ='TC5'!BG204 -> 0 | EJ48: ='TC5'!BH204 -> 0 | EL48: Pole (Wood) - Major - DEDICATED SL >11m | EM48: ='TC5'!K512 -> 375.1846061 | EN48: ='TC5'!L512 -> 345.720339 | EO48: ='TC5'!M512 -> 318.3048898 | EP48: ='TC5'!N512 -> 292.7957925 | EQ48: ='TC5'!O512 -> 269.0652148 | ER48: ='TC5'!P512 -> 247.0771091 | ES48: ='TC5'!Q512 -> 226.7035302 | ET48: ='TC5'!R512 -> 207.825928 | EU48: ='TC5'!S512 -> 190.3344568 | EV48: ='TC5'!T512 -> 174.1273369 | EW48: ='TC5'!U512 -> 159.1102618 | EX48: ='TC5'!V512 -> 145.1958498 | EY48: ='TC5'!W512 -> 132.3031353 | EZ48: ='TC5'!X512 -> 120.3570978 | FA48: ='TC5'!Y512 -> 109.2882254 | FB48: ='TC5'!Z512 -> 99.0321103 | FC48: ='TC5'!AA512 -> 89.52907386 | FD48: ='TC5'!AB512 -> 80.7238196 | FE48: ='TC5'!AC512 -> 72.56511126 | FF48: ='TC5'!AD512 -> 65.00547473 | FG48: ='TC5'!AE512 -> 58.00092178 | FH48: ='TC5'!AF512 -> 51.51069415 | FI48: ='TC5'!AG512 -> 45.49702631 | FJ48: ='TC5'!AH512 -> 39.92492578 | FK48: ='TC5'!AI512 -> 34.76196947 | FL48: ='TC5'!AJ512 -> 29.97811502 | FM48: ='TC5'!AK512 -> 25.54552602 | FN48: ='TC5'!AL512 -> 21.43841 | FO48: ='TC5'!AM512 -> 17.63286836 | FP48: ='TC5'!AN512 -> 14.10675731 | FQ48: ='TC5'!AO512 -> 10.83955903 | FR48: ='TC5'!AP512 -> 7.812262249 | FS48: ='TC5'!AQ512 -> 5.007251652 | FT48: ='TC5'!AR512 -> 2.408205369 | FU48: ='TC5'!AS512 -> 0 | FV48: ='TC5'!AT512 -> 0 | FW48: ='TC5'!AU512 -> 0 | FX48: ='TC5'!AV512 -> 0 | FY48: ='TC5'!AW512 -> 0 | FZ48: ='TC5'!AX512 -> 0 | GA48: ='TC5'!AY512 -> 0 | GB48: ='TC5'!AZ512 -> 0 | GC48: ='TC5'!BA512 -> 0 | GD48: ='TC5'!BB512 -> 0 | GE48: ='TC5'!BC512 -> 0 | GF48: ='TC5'!BD512 -> 0 | GG48: ='TC5'!BE512 -> 0 | GH48: ='TC5'!BF512 -> 0 | GI48: ='TC5'!BG512 -> 0 | GJ48: ='TC5'!BH512 -> 0
B49: 0 | C49: 39 | D49: 1000 W Metal Halide | E49: 0.05442044528 | F49: -0.1228786742 | G49: -0.27662876 | H49: -0.4122702079 | I49: -0.629249137 | K49: 39 | L49: 54.39866638 | M49: 54.39866638 | N49: 54.39866638 | O49: 54.39866638 | P49: 54.39866638 | R49: 54.45308682 | S49: 54.2757877 | T49: 54.12203762 | U49: 53.98639617 | V49: 53.76941724 | X49: 1000 W Metal Halide | Y49: ='Tariff Smoothing - real'!N49 -> 27.64545455 | Z49: ='Tariff Smoothing - real'!O49 -> -0.2782047883 | AA49: ='Tariff Smoothing - real'!P49 -> -0.2782047883 | AB49: ='Tariff Smoothing - real'!Q49 -> -0.2782047883 | AC49: ='Tariff Smoothing - real'!R49 -> -0.2782047883 | AE49: ='Tariff Smoothing - real'!AE49 -> 89.29090909 | AF49: ='Tariff Smoothing - real'!AF49 -> 43.6036258 | AG49: ='Tariff Smoothing - real'!AG49 -> 43.6036258 | AH49: ='Tariff Smoothing - real'!AH49 -> 43.6036258 | AI49: ='Tariff Smoothing - real'!AI49 -> 43.6036258 | AK49: 116.9363636 | AL49: 43.32542101 | AM49: 43.32542101 | AN49: 43.32542101 | AO49: 43.32542101 | AQ49: =Annuity!C62 -> Column (Steel) - Minor <=9m | AR49: ='TC3'!K58+'TC3'!K215 -> 281.3117431 | AS49: ='TC3'!L58+'TC3'!L215 -> 282.2119407 | AT49: ='TC3'!M58+'TC3'!M215 -> 283.3972309 | AU49: ='TC3'!N58+'TC3'!N215 -> 284.5874992 | AV49: ='TC3'!O58+'TC3'!O215 -> 285.7258492 | AX49: ='TC3'!K373 -> 0 | AY49: ='TC3'!L373 -> 0 | AZ49: ='TC3'!M373 -> 0 | BA49: ='TC3'!N373 -> 0 | BB49: ='TC3'!O373 -> 0 | BD49: 266.2311923 | BE49: 281.3117431 | BF49: 282.2119407 | BG49: 283.3972309 | BH49: 284.5874992 | BI49: 285.7258492 | BK49: Column (Steel) - Minor <=9m | BL49: ='TC4'!L55 -> 58.54266495 | BM49: ='TC4'!M55 -> 58.73000148 | BN49: ='TC4'!N55 -> 58.97666749 | BO49: ='TC4'!O55 -> 59.22436949 | BP49: ='TC4'!P55 -> 59.46126697 | BR49: 0 | BS49: 0 | BT49: 0 | BU49: 0 | BV49: 0 | BX49: 126.3102279 | BY49: 58.54266495 | BZ49: 58.73000148 | CA49: 58.97666749 | CB49: 59.22436949 | CC49: 59.46126697 | CE49: 1000 W Metal Halide | CF49: ='TC5'!E670 -> 0 | CG49: ='TC5'!F670 -> 0 | CH49: ='TC5'!G670 -> 0 | CI49: ='TC5'!H670 -> 0 | CJ49: ='TC5'!I670 -> 0 | CL49: =Output!BK49 -> Column (Steel) - Minor <=9m | CM49: ='TC5'!K205 -> 3085.203162 | CN49: ='TC5'!L205 -> 2842.913771 | CO49: ='TC5'!M205 -> 2617.472137 | CP49: ='TC5'!N205 -> 2407.70674 | CQ49: ='TC5'!O205 -> 2212.566396 | CR49: ='TC5'!P205 -> 2031.754677 | CS49: ='TC5'!Q205 -> 1864.219472 | CT49: ='TC5'!R205 -> 1708.985923 | CU49: ='TC5'!S205 -> 1565.150751 | CV49: ='TC5'!T205 -> 1431.877006 | CW49: ='TC5'!U205 -> 1308.38919 | CX49: ='TC5'!V205 -> 1193.96875 | CY49: ='TC5'!W205 -> 1087.949891 | CZ49: ='TC5'!X205 -> 989.71571 | DA49: ='TC5'!Y205 -> 898.6945979 | DB49: ='TC5'!Z205 -> 814.356919 | DC49: ='TC5'!AA205 -> 736.211927 | DD49: ='TC5'!AB205 -> 663.8049096 | DE49: ='TC5'!AC205 -> 596.714543 | DF49: ='TC5'!AD205 -> 534.5504398 | DG49: ='TC5'!AE205 -> 476.9508781 | DH49: ='TC5'!AF205 -> 423.5806958 | DI49: ='TC5'!AG205 -> 374.1293411 | DJ49: ='TC5'!AH205 -> 328.3090651 | DK49: ='TC5'!AI205 -> 285.8532477 | DL49: ='TC5'!AJ205 -> 246.5148457 | DM49: ='TC5'!AK205 -> 210.0649557 | DN49: ='TC5'!AL205 -> 176.2914823 | DO49: ='TC5'!AM205 -> 144.9979033 | DP49: ='TC5'!AN205 -> 116.0021269 | DQ49: ='TC5'!AO205 -> 89.13543163 | DR49: ='TC5'!AP205 -> 64.24148487 | DS49: ='TC5'!AQ205 -> 41.17543306 | DT49: ='TC5'!AR205 -> 19.80305881 | DU49: ='TC5'!AS205 -> 0 | DV49: ='TC5'!AT205 -> 0 | DW49: ='TC5'!AU205 -> 0 | DX49: ='TC5'!AV205 -> 0 | DY49: ='TC5'!AW205 -> 0 | DZ49: ='TC5'!AX205 -> 0 | EA49: ='TC5'!AY205 -> 0 | EB49: ='TC5'!AZ205 -> 0 | EC49: ='TC5'!BA205 -> 0 | ED49: ='TC5'!BB205 -> 0 | EE49: ='TC5'!BC205 -> 0 | EF49: ='TC5'!BD205 -> 0 | EG49: ='TC5'!BE205 -> 0 | EH49: ='TC5'!BF205 -> 0 | EI49: ='TC5'!BG205 -> 0 | EJ49: ='TC5'!BH205 -> 0 | EL49: Column (Steel) - Minor <=9m | EM49: ='TC5'!K513 -> 642.0493259 | EN49: ='TC5'!L513 -> 591.6274469 | EO49: ='TC5'!M513 -> 544.7116876 | EP49: ='TC5'!N513 -> 501.0582475 | EQ49: ='TC5'!O513 -> 460.4483686 | ER49: ='TC5'!P513 -> 422.820363 | ES49: ='TC5'!Q513 -> 387.9552796 | ET49: ='TC5'!R513 -> 355.6502447 | EU49: ='TC5'!S513 -> 325.7172808 | EV49: ='TC5'!T513 -> 297.9822132 | EW49: ='TC5'!U513 -> 272.2836564 | EX49: ='TC5'!V513 -> 248.4720748 | EY49: ='TC5'!W513 -> 226.408913 | EZ49: ='TC5'!X513 -> 205.9657893 | FA49: ='TC5'!Y513 -> 187.0237487 | FB49: ='TC5'!Z513 -> 169.4725707 | FC49: ='TC5'!AA513 -> 153.210128 | FD49: ='TC5'!AB513 -> 138.1417924 | FE49: ='TC5'!AC513 -> 124.1798838 | FF49: ='TC5'!AD513 -> 111.2431602 | FG49: ='TC5'!AE513 -> 99.25634509 | FH49: ='TC5'!AF513 -> 88.1496893 | FI49: ='TC5'!AG513 -> 77.85856509 | FJ49: ='TC5'!AH513 -> 68.32309021 | FK49: ='TC5'!AI513 -> 59.48777936 | FL49: ='TC5'!AJ513 -> 51.3012214 | FM49: ='TC5'!AK513 -> 43.71578017 | FN49: ='TC5'!AL513 -> 36.6873173 | FO49: ='TC5'!AM513 -> 30.17493539 | FP49: ='TC5'!AN513 -> 24.14073999 | FQ49: ='TC5'!AO513 -> 18.54961919 | FR49: ='TC5'!AP513 -> 13.36903921 | FS49: ='TC5'!AQ513 -> 8.56885516 | FT49: ='TC5'!AR513 -> 4.121135593 | FU49: ='TC5'!AS513 -> 0 | FV49: ='TC5'!AT513 -> 0 | FW49: ='TC5'!AU513 -> 0 | FX49: ='TC5'!AV513 -> 0 | FY49: ='TC5'!AW513 -> 0 | FZ49: ='TC5'!AX513 -> 0 | GA49: ='TC5'!AY513 -> 0 | GB49: ='TC5'!AZ513 -> 0 | GC49: ='TC5'!BA513 -> 0 | GD49: ='TC5'!BB513 -> 0 | GE49: ='TC5'!BC513 -> 0 | GF49: ='TC5'!BD513 -> 0 | GG49: ='TC5'!BE513 -> 0 | GH49: ='TC5'!BF513 -> 0 | GI49: ='TC5'!BG513 -> 0 | GJ49: ='TC5'!BH513 -> 0
B50: 0 | C50: 40 | D50: 600 W Sodium | E50: 30.0765798 | F50: 29.02741463 | G50: 27.97824945 | H50: 26.92908428 | I50: 25.87991911 | K50: 40 | L50: 54.39866638 | M50: 54.39866638 | N50: 54.39866638 | O50: 54.39866638 | P50: 54.39866638 | R50: 84.47524617 | S50: 83.426081 | T50: 82.37691583 | U50: 81.32775066 | V50: 80.27858549 | X50: 600 W Sodium | Y50: ='Tariff Smoothing - real'!N50 -> 85.54772727 | Z50: ='Tariff Smoothing - real'!O50 -> 22.07280094 | AA50: ='Tariff Smoothing - real'!P50 -> 22.07280094 | AB50: ='Tariff Smoothing - real'!Q50 -> 22.07280094 | AC50: ='Tariff Smoothing - real'!R50 -> 22.07280094 | AE50: ='Tariff Smoothing - real'!AE50 -> 0 | AF50: ='Tariff Smoothing - real'!AF50 -> 43.6036258 | AG50: ='Tariff Smoothing - real'!AG50 -> 43.6036258 | AH50: ='Tariff Smoothing - real'!AH50 -> 43.6036258 | AI50: ='Tariff Smoothing - real'!AI50 -> 43.6036258 | AK50: 85.54772727 | AL50: 65.67642674 | AM50: 65.67642674 | AN50: 65.67642674 | AO50: 65.67642674 | AQ50: =Annuity!C63 -> Column (Steel) - Major >9m | AR50: ='TC3'!K59+'TC3'!K216 -> 590.3628234 | AS50: ='TC3'!L59+'TC3'!L216 -> 592.2519844 | AT50: ='TC3'!M59+'TC3'!M216 -> 594.7394428 | AU50: ='TC3'!N59+'TC3'!N216 -> 597.2373484 | AV50: ='TC3'!O59+'TC3'!O216 -> 599.6262978 | AX50: ='TC3'!K374 -> 0 | AY50: ='TC3'!L374 -> 0 | AZ50: ='TC3'!M374 -> 0 | BA50: ='TC3'!N374 -> 0 | BB50: ='TC3'!O374 -> 0 | BD50: 598.686164 | BE50: 590.3628234 | BF50: 592.2519844 | BG50: 594.7394428 | BH50: 597.2373484 | BI50: 599.6262978 | BK50: Column (Steel) - Major >9m | BL50: ='TC4'!L56 -> 122.8580527 | BM50: ='TC4'!M56 -> 123.2511985 | BN50: ='TC4'!N56 -> 123.7688535 | BO50: ='TC4'!O56 -> 124.2886827 | BP50: ='TC4'!P56 -> 124.7858375 | BR50: 0 | BS50: 0 | BT50: 0 | BU50: 0 | BV50: 0 | BX50: 249.4969717 | BY50: 122.8580527 | BZ50: 123.2511985 | CA50: 123.7688535 | CB50: 124.2886827 | CC50: 124.7858375 | CE50: 600 W Sodium | CF50: ='TC5'!E671 -> 204.6762714 | CG50: ='TC5'!F671 -> 186.8783347 | CH50: ='TC5'!G671 -> 169.0803981 | CI50: ='TC5'!H671 -> 151.2824614 | CJ50: ='TC5'!I671 -> 133.4845248 | CL50: =Output!BK50 -> Column (Steel) - Major >9m | CM50: ='TC5'!K206 -> 6474.629283 | CN50: ='TC5'!L206 -> 5966.159044 | CO50: ='TC5'!M206 -> 5493.045629 | CP50: ='TC5'!N206 -> 5052.830477 | CQ50: ='TC5'!O206 -> 4643.307563 | CR50: ='TC5'!P206 -> 4263.854806 | CS50: ='TC5'!Q206 -> 3912.264234 | CT50: ='TC5'!R206 -> 3586.490003 | CU50: ='TC5'!S206 -> 3284.63649 | CV50: ='TC5'!T206 -> 3004.947262 | CW50: ='TC5'!U206 -> 2745.794854 | CX50: ='TC5'!V206 -> 2505.671304 | CY50: ='TC5'!W206 -> 2283.179374 | CZ50: ='TC5'!X206 -> 2077.024423 | DA50: ='TC5'!Y206 -> 1886.00687 | DB50: ='TC5'!Z206 -> 1709.015218 | DC50: ='TC5'!AA206 -> 1545.019582 | DD50: ='TC5'!AB206 -> 1393.065701 | DE50: ='TC5'!AC206 -> 1252.269381 | DF50: ='TC5'!AD206 -> 1121.811352 | DG50: ='TC5'!AE206 -> 1000.932502 | DH50: ='TC5'!AF206 -> 888.9294585 | DI50: ='TC5'!AG206 -> 785.1504941 | DJ50: ='TC5'!AH206 -> 688.9917374 | DK50: ='TC5'!AI206 -> 599.8936572 | DL50: ='TC5'!AJ206 -> 517.3378071 | DM50: ='TC5'!AK206 -> 440.8438091 | DN50: ='TC5'!AL206 -> 369.9665576 | DO50: ='TC5'!AM206 -> 304.2936304 | DP50: ='TC5'!AN206 -> 243.4428879 | DQ50: ='TC5'!AO206 -> 187.0602503 | DR50: ='TC5'!AP206 -> 134.8176367 | DS50: ='TC5'!AQ206 -> 86.41105645 | DT50: ='TC5'!AR206 -> 41.55883997 | DU50: ='TC5'!AS206 -> 0 | DV50: ='TC5'!AT206 -> 0 | DW50: ='TC5'!AU206 -> 0 | DX50: ='TC5'!AV206 -> 0 | DY50: ='TC5'!AW206 -> 0 | DZ50: ='TC5'!AX206 -> 0 | EA50: ='TC5'!AY206 -> 0 | EB50: ='TC5'!AZ206 -> 0 | EC50: ='TC5'!BA206 -> 0 | ED50: ='TC5'!BB206 -> 0 | EE50: ='TC5'!BC206 -> 0 | EF50: ='TC5'!BD206 -> 0 | EG50: ='TC5'!BE206 -> 0 | EH50: ='TC5'!BF206 -> 0 | EI50: ='TC5'!BG206 -> 0 | EJ50: ='TC5'!BH206 -> 0 | EL50: Column (Steel) - Major >9m | EM50: ='TC5'!K514 -> 1347.409278 | EN50: ='TC5'!L514 -> 1241.593565 | EO50: ='TC5'!M514 -> 1143.135819 | EP50: ='TC5'!N514 -> 1051.524399 | EQ50: ='TC5'!O514 -> 966.3002188 | ER50: ='TC5'!P514 -> 887.3338187 | ES50: ='TC5'!Q514 -> 814.165707 | ET50: ='TC5'!R514 -> 746.3701312 | EU50: ='TC5'!S514 -> 683.5526004 | EV50: ='TC5'!T514 -> 625.3475905 | EW50: ='TC5'!U514 -> 571.4164164 | EX50: ='TC5'!V514 -> 521.445262 | EY50: ='TC5'!W514 -> 475.1433539 | EZ50: ='TC5'!X514 -> 432.2412692 | FA50: ='TC5'!Y514 -> 392.4893681 | FB50: ='TC5'!Z514 -> 355.6563412 | FC50: ='TC5'!AA514 -> 321.5278635 | FD50: ='TC5'!AB514 -> 289.9053473 | FE50: ='TC5'!AC514 -> 260.6047866 | FF50: ='TC5'!AD514 -> 233.4556866 | FG50: ='TC5'!AE514 -> 208.3000712 | FH50: ='TC5'!AF514 -> 184.9915644 | FI50: ='TC5'!AG514 -> 163.394538 | FJ50: ='TC5'!AH514 -> 143.3833227 | FK50: ='TC5'!AI514 -> 124.8414765 | FL50: ='TC5'!AJ514 -> 107.6611078 | FM50: ='TC5'!AK514 -> 91.74224696 | FN50: ='TC5'!AL514 -> 76.99226483 | FO50: ='TC5'!AM514 -> 63.32533385 | FP50: ='TC5'!AN514 -> 50.66192852 | FQ50: ='TC5'!AO514 -> 38.92836267 | FR50: ='TC5'!AP514 -> 28.05636071 | FS50: ='TC5'!AQ514 -> 17.98266034 | FT50: ='TC5'!AR514 -> 8.648644443 | FU50: ='TC5'!AS514 -> 0 | FV50: ='TC5'!AT514 -> 0 | FW50: ='TC5'!AU514 -> 0 | FX50: ='TC5'!AV514 -> 0 | FY50: ='TC5'!AW514 -> 0 | FZ50: ='TC5'!AX514 -> 0 | GA50: ='TC5'!AY514 -> 0 | GB50: ='TC5'!AZ514 -> 0 | GC50: ='TC5'!BA514 -> 0 | GD50: ='TC5'!BB514 -> 0 | GE50: ='TC5'!BC514 -> 0 | GF50: ='TC5'!BD514 -> 0 | GG50: ='TC5'!BE514 -> 0 | GH50: ='TC5'!BF514 -> 0 | GI50: ='TC5'!BG514 -> 0 | GJ50: ='TC5'!BH514 -> 0
B51: 0 | C51: 41 | D51: Pole mounting bracket minor (<=3m) | E51: 1.621017537 | F51: 1.530739767 | G51: 1.441846377 | H51: 1.354303602 | I51: 1.268078499 | K51: 41 | L51: 12.91841659 | M51: 12.91841659 | N51: 12.91841659 | O51: 12.91841659 | P51: 12.91841659 | R51: 14.53943413 | S51: 14.44915636 | T51: 14.36026297 | U51: 14.2727202 | V51: 14.18649509 | X51: Pole mounting bracket minor (<=3m) | Y51: ='Tariff Smoothing - real'!N51 -> 2.954545455 | Z51: ='Tariff Smoothing - real'!O51 -> 1.126774006 | AA51: ='Tariff Smoothing - real'!P51 -> 1.126774006 | AB51: ='Tariff Smoothing - real'!Q51 -> 1.126774006 | AC51: ='Tariff Smoothing - real'!R51 -> 1.126774006 | AE51: ='Tariff Smoothing - real'!AE51 -> 0 | AF51: ='Tariff Smoothing - real'!AF51 -> 10.35484582 | AG51: ='Tariff Smoothing - real'!AG51 -> 10.35484582 | AH51: ='Tariff Smoothing - real'!AH51 -> 10.35484582 | AI51: ='Tariff Smoothing - real'!AI51 -> 10.35484582 | AK51: 2.954545455 | AL51: 11.48161983 | AM51: 11.48161983 | AN51: 11.48161983 | AO51: 11.48161983 | AQ51: =Annuity!C64 -> Pole (Wood) - Minor <=11m | AR51: ='TC3'!K60+'TC3'!K217 -> 0 | AS51: ='TC3'!L60+'TC3'!L217 -> 0 | AT51: ='TC3'!M60+'TC3'!M217 -> 0 | AU51: ='TC3'!N60+'TC3'!N217 -> 0 | AV51: ='TC3'!O60+'TC3'!O217 -> 0 | AX51: ='TC3'!K375 -> 0 | AY51: ='TC3'!L375 -> 0 | AZ51: ='TC3'!M375 -> 0 | BA51: ='TC3'!N375 -> 0 | BB51: ='TC3'!O375 -> 0 | BD51: 0 | BE51: 0 | BF51: 0 | BG51: 0 | BH51: 0 | BI51: 0 | BK51: Pole (Wood) - Minor <=11m | BL51: ='TC4'!L57 -> 0 | BM51: ='TC4'!M57 -> 0 | BN51: ='TC4'!N57 -> 0 | BO51: ='TC4'!O57 -> 0 | BP51: ='TC4'!P57 -> 0 | BR51: 0 | BS51: 0 | BT51: 0 | BU51: 0 | BV51: 0 | BX51: 0 | BY51: 0 | BZ51: 0 | CA51: 0 | CB51: 0 | CC51: 0 | CE51: Pole mounting bracket minor (<=3m) | CF51: ='TC5'!E672 -> 14.53570067 | CG51: ='TC5'!F672 -> 13.18327558 | CH51: ='TC5'!G672 -> 11.84366116 | CI51: ='TC5'!H672 -> 10.51646964 | CJ51: ='TC5'!I672 -> 9.20132103 | CL51: =Output!BK51 -> Pole (Wood) - Minor <=11m | CM51: ='TC5'!K207 -> 0 | CN51: ='TC5'!L207 -> 0 | CO51: ='TC5'!M207 -> 0 | CP51: ='TC5'!N207 -> 0 | CQ51: ='TC5'!O207 -> 0 | CR51: ='TC5'!P207 -> 0 | CS51: ='TC5'!Q207 -> 0 | CT51: ='TC5'!R207 -> 0 | CU51: ='TC5'!S207 -> 0 | CV51: ='TC5'!T207 -> 0 | CW51: ='TC5'!U207 -> 0 | CX51: ='TC5'!V207 -> 0 | CY51: ='TC5'!W207 -> 0 | CZ51: ='TC5'!X207 -> 0 | DA51: ='TC5'!Y207 -> 0 | DB51: ='TC5'!Z207 -> 0 | DC51: ='TC5'!AA207 -> 0 | DD51: ='TC5'!AB207 -> 0 | DE51: ='TC5'!AC207 -> 0 | DF51: ='TC5'!AD207 -> 0 | DG51: ='TC5'!AE207 -> 0 | DH51: ='TC5'!AF207 -> 0 | DI51: ='TC5'!AG207 -> 0 | DJ51: ='TC5'!AH207 -> 0 | DK51: ='TC5'!AI207 -> 0 | DL51: ='TC5'!AJ207 -> 0 | DM51: ='TC5'!AK207 -> 0 | DN51: ='TC5'!AL207 -> 0 | DO51: ='TC5'!AM207 -> 0 | DP51: ='TC5'!AN207 -> 0 | DQ51: ='TC5'!AO207 -> 0 | DR51: ='TC5'!AP207 -> 0 | DS51: ='TC5'!AQ207 -> 0 | DT51: ='TC5'!AR207 -> 0 | DU51: ='TC5'!AS207 -> 0 | DV51: ='TC5'!AT207 -> 0 | DW51: ='TC5'!AU207 -> 0 | DX51: ='TC5'!AV207 -> 0 | DY51: ='TC5'!AW207 -> 0 | DZ51: ='TC5'!AX207 -> 0 | EA51: ='TC5'!AY207 -> 0 | EB51: ='TC5'!AZ207 -> 0 | EC51: ='TC5'!BA207 -> 0 | ED51: ='TC5'!BB207 -> 0 | EE51: ='TC5'!BC207 -> 0 | EF51: ='TC5'!BD207 -> 0 | EG51: ='TC5'!BE207 -> 0 | EH51: ='TC5'!BF207 -> 0 | EI51: ='TC5'!BG207 -> 0 | EJ51: ='TC5'!BH207 -> 0 | EL51: Pole (Wood) - Minor <=11m | EM51: ='TC5'!K515 -> 0 | EN51: ='TC5'!L515 -> 0 | EO51: ='TC5'!M515 -> 0 | EP51: ='TC5'!N515 -> 0 | EQ51: ='TC5'!O515 -> 0 | ER51: ='TC5'!P515 -> 0 | ES51: ='TC5'!Q515 -> 0 | ET51: ='TC5'!R515 -> 0 | EU51: ='TC5'!S515 -> 0 | EV51: ='TC5'!T515 -> 0 | EW51: ='TC5'!U515 -> 0 | EX51: ='TC5'!V515 -> 0 | EY51: ='TC5'!W515 -> 0 | EZ51: ='TC5'!X515 -> 0 | FA51: ='TC5'!Y515 -> 0 | FB51: ='TC5'!Z515 -> 0 | FC51: ='TC5'!AA515 -> 0 | FD51: ='TC5'!AB515 -> 0 | FE51: ='TC5'!AC515 -> 0 | FF51: ='TC5'!AD515 -> 0 | FG51: ='TC5'!AE515 -> 0 | FH51: ='TC5'!AF515 -> 0 | FI51: ='TC5'!AG515 -> 0 | FJ51: ='TC5'!AH515 -> 0 | FK51: ='TC5'!AI515 -> 0 | FL51: ='TC5'!AJ515 -> 0 | FM51: ='TC5'!AK515 -> 0 | FN51: ='TC5'!AL515 -> 0 | FO51: ='TC5'!AM515 -> 0 | FP51: ='TC5'!AN515 -> 0 | FQ51: ='TC5'!AO515 -> 0 | FR51: ='TC5'!AP515 -> 0 | FS51: ='TC5'!AQ515 -> 0 | FT51: ='TC5'!AR515 -> 0 | FU51: ='TC5'!AS515 -> 0 | FV51: ='TC5'!AT515 -> 0 | FW51: ='TC5'!AU515 -> 0 | FX51: ='TC5'!AV515 -> 0 | FY51: ='TC5'!AW515 -> 0 | FZ51: ='TC5'!AX515 -> 0 | GA51: ='TC5'!AY515 -> 0 | GB51: ='TC5'!AZ515 -> 0 | GC51: ='TC5'!BA515 -> 0 | GD51: ='TC5'!BB515 -> 0 | GE51: ='TC5'!BC515 -> 0 | GF51: ='TC5'!BD515 -> 0 | GG51: ='TC5'!BE515 -> 0 | GH51: ='TC5'!BF515 -> 0 | GI51: ='TC5'!BG515 -> 0 | GJ51: ='TC5'!BH515 -> 0
B52: 0 | C52: 42 | D52: Pole mounting bracket major (>3m) | E52: 8.165775841 | F52: 7.806539622 | G52: 7.449916146 | H52: 7.095841686 | I52: 6.744254073 | K52: 42 | L52: 12.91841659 | M52: 12.91841659 | N52: 12.91841659 | O52: 12.91841659 | P52: 12.91841659 | R52: 21.08419243 | S52: 20.72495622 | T52: 20.36833274 | U52: 20.01425828 | V52: 19.66267067 | X52: Pole mounting bracket major (>3m) | Y52: ='Tariff Smoothing - real'!N52 -> 17.88181818 | Z52: ='Tariff Smoothing - real'!O52 -> 5.853292111 | AA52: ='Tariff Smoothing - real'!P52 -> 5.853292111 | AB52: ='Tariff Smoothing - real'!Q52 -> 5.853292111 | AC52: ='Tariff Smoothing - real'!R52 -> 5.853292111 | AE52: ='Tariff Smoothing - real'!AE52 -> 0 | AF52: ='Tariff Smoothing - real'!AF52 -> 10.35484582 | AG52: ='Tariff Smoothing - real'!AG52 -> 10.35484582 | AH52: ='Tariff Smoothing - real'!AH52 -> 10.35484582 | AI52: ='Tariff Smoothing - real'!AI52 -> 10.35484582 | AK52: 17.88181818 | AL52: 16.20813793 | AM52: 16.20813793 | AN52: 16.20813793 | AO52: 16.20813793 | AQ52: =Annuity!C65 -> Pole (Wood) - Major >11m | AR52: ='TC3'!K61+'TC3'!K218 -> 0 | AS52: ='TC3'!L61+'TC3'!L218 -> 0 | AT52: ='TC3'!M61+'TC3'!M218 -> 0 | AU52: ='TC3'!N61+'TC3'!N218 -> 0 | AV52: ='TC3'!O61+'TC3'!O218 -> 0 | AX52: ='TC3'!K376 -> 0 | AY52: ='TC3'!L376 -> 0 | AZ52: ='TC3'!M376 -> 0 | BA52: ='TC3'!N376 -> 0 | BB52: ='TC3'!O376 -> 0 | BD52: 0 | BE52: 0 | BF52: 0 | BG52: 0 | BH52: 0 | BI52: 0 | BK52: Pole (Wood) - Major >11m | BL52: ='TC4'!L58 -> 0 | BM52: ='TC4'!M58 -> 0 | BN52: ='TC4'!N58 -> 0 | BO52: ='TC4'!O58 -> 0 | BP52: ='TC4'!P58 -> 0 | BR52: 0 | BS52: 0 | BT52: 0 | BU52: 0 | BV52: 0 | BX52: 0 | BY52: 0 | BZ52: 0 | CA52: 0 | CB52: 0 | CC52: 0 | CE52: Pole mounting bracket major (>3m) | CF52: ='TC5'!E673 -> 73.77443116 | CG52: ='TC5'!F673 -> 68.23586409 | CH52: ='TC5'!G673 -> 62.69014158 | CI52: ='TC5'!H673 -> 57.13624446 | CJ52: ='TC5'!I673 -> 51.57315958 | CL52: =Output!BK52 -> Pole (Wood) - Major >11m | CM52: ='TC5'!K208 -> 0 | CN52: ='TC5'!L208 -> 0 | CO52: ='TC5'!M208 -> 0 | CP52: ='TC5'!N208 -> 0 | CQ52: ='TC5'!O208 -> 0 | CR52: ='TC5'!P208 -> 0 | CS52: ='TC5'!Q208 -> 0 | CT52: ='TC5'!R208 -> 0 | CU52: ='TC5'!S208 -> 0 | CV52: ='TC5'!T208 -> 0 | CW52: ='TC5'!U208 -> 0 | CX52: ='TC5'!V208 -> 0 | CY52: ='TC5'!W208 -> 0 | CZ52: ='TC5'!X208 -> 0 | DA52: ='TC5'!Y208 -> 0 | DB52: ='TC5'!Z208 -> 0 | DC52: ='TC5'!AA208 -> 0 | DD52: ='TC5'!AB208 -> 0 | DE52: ='TC5'!AC208 -> 0 | DF52: ='TC5'!AD208 -> 0 | DG52: ='TC5'!AE208 -> 0 | DH52: ='TC5'!AF208 -> 0 | DI52: ='TC5'!AG208 -> 0 | DJ52: ='TC5'!AH208 -> 0 | DK52: ='TC5'!AI208 -> 0 | DL52: ='TC5'!AJ208 -> 0 | DM52: ='TC5'!AK208 -> 0 | DN52: ='TC5'!AL208 -> 0 | DO52: ='TC5'!AM208 -> 0 | DP52: ='TC5'!AN208 -> 0 | DQ52: ='TC5'!AO208 -> 0 | DR52: ='TC5'!AP208 -> 0 | DS52: ='TC5'!AQ208 -> 0 | DT52: ='TC5'!AR208 -> 0 | DU52: ='TC5'!AS208 -> 0 | DV52: ='TC5'!AT208 -> 0 | DW52: ='TC5'!AU208 -> 0 | DX52: ='TC5'!AV208 -> 0 | DY52: ='TC5'!AW208 -> 0 | DZ52: ='TC5'!AX208 -> 0 | EA52: ='TC5'!AY208 -> 0 | EB52: ='TC5'!AZ208 -> 0 | EC52: ='TC5'!BA208 -> 0 | ED52: ='TC5'!BB208 -> 0 | EE52: ='TC5'!BC208 -> 0 | EF52: ='TC5'!BD208 -> 0 | EG52: ='TC5'!BE208 -> 0 | EH52: ='TC5'!BF208 -> 0 | EI52: ='TC5'!BG208 -> 0 | EJ52: ='TC5'!BH208 -> 0 | EL52: Pole (Wood) - Major >11m | EM52: ='TC5'!K516 -> 0 | EN52: ='TC5'!L516 -> 0 | EO52: ='TC5'!M516 -> 0 | EP52: ='TC5'!N516 -> 0 | EQ52: ='TC5'!O516 -> 0 | ER52: ='TC5'!P516 -> 0 | ES52: ='TC5'!Q516 -> 0 | ET52: ='TC5'!R516 -> 0 | EU52: ='TC5'!S516 -> 0 | EV52: ='TC5'!T516 -> 0 | EW52: ='TC5'!U516 -> 0 | EX52: ='TC5'!V516 -> 0 | EY52: ='TC5'!W516 -> 0 | EZ52: ='TC5'!X516 -> 0 | FA52: ='TC5'!Y516 -> 0 | FB52: ='TC5'!Z516 -> 0 | FC52: ='TC5'!AA516 -> 0 | FD52: ='TC5'!AB516 -> 0 | FE52: ='TC5'!AC516 -> 0 | FF52: ='TC5'!AD516 -> 0 | FG52: ='TC5'!AE516 -> 0 | FH52: ='TC5'!AF516 -> 0 | FI52: ='TC5'!AG516 -> 0 | FJ52: ='TC5'!AH516 -> 0 | FK52: ='TC5'!AI516 -> 0 | FL52: ='TC5'!AJ516 -> 0 | FM52: ='TC5'!AK516 -> 0 | FN52: ='TC5'!AL516 -> 0 | FO52: ='TC5'!AM516 -> 0 | FP52: ='TC5'!AN516 -> 0 | FQ52: ='TC5'!AO516 -> 0 | FR52: ='TC5'!AP516 -> 0 | FS52: ='TC5'!AQ516 -> 0 | FT52: ='TC5'!AR516 -> 0 | FU52: ='TC5'!AS516 -> 0 | FV52: ='TC5'!AT516 -> 0 | FW52: ='TC5'!AU516 -> 0 | FX52: ='TC5'!AV516 -> 0 | FY52: ='TC5'!AW516 -> 0 | FZ52: ='TC5'!AX516 -> 0 | GA52: ='TC5'!AY516 -> 0 | GB52: ='TC5'!AZ516 -> 0 | GC52: ='TC5'!BA516 -> 0 | GD52: ='TC5'!BB516 -> 0 | GE52: ='TC5'!BC516 -> 0 | GF52: ='TC5'!BD516 -> 0 | GG52: ='TC5'!BE516 -> 0 | GH52: ='TC5'!BF516 -> 0 | GI52: ='TC5'!BG516 -> 0 | GJ52: ='TC5'!BH516 -> 0
B53: 0 | C53: 43 | D53: Outreach Minor (<=2m) | E53: 4.831445284 | F53: 4.320890648 | G53: 3.824137625 | H53: 3.340849588 | I53: 2.870698124 | K53: 43 | L53: 12.91841659 | M53: 12.91841659 | N53: 12.91841659 | O53: 12.91841659 | P53: 12.91841659 | R53: 17.74986188 | S53: 17.23930724 | T53: 16.74255422 | U53: 16.25926618 | V53: 15.78911472 | X53: Outreach Minor (<=2m) | Y53: ='Tariff Smoothing - real'!N53 -> 3.727272727 | Z53: ='Tariff Smoothing - real'!O53 -> 2.907840829 | AA53: ='Tariff Smoothing - real'!P53 -> 2.907840829 | AB53: ='Tariff Smoothing - real'!Q53 -> 2.907840829 | AC53: ='Tariff Smoothing - real'!R53 -> 2.907840829 | AE53: ='Tariff Smoothing - real'!AE53 -> 0 | AF53: ='Tariff Smoothing - real'!AF53 -> 10.35484582 | AG53: ='Tariff Smoothing - real'!AG53 -> 10.35484582 | AH53: ='Tariff Smoothing - real'!AH53 -> 10.35484582 | AI53: ='Tariff Smoothing - real'!AI53 -> 10.35484582 | AK53: 3.727272727 | AL53: 13.26268665 | AM53: 13.26268665 | AN53: 13.26268665 | AO53: 13.26268665 | AQ53: =Annuity!C66 -> Spare | AR53: ='TC3'!K62+'TC3'!K219 -> 0 | AS53: ='TC3'!L62+'TC3'!L219 -> 0 | AT53: ='TC3'!M62+'TC3'!M219 -> 0 | AU53: ='TC3'!N62+'TC3'!N219 -> 0 | AV53: ='TC3'!O62+'TC3'!O219 -> 0 | AX53: ='TC3'!K377 -> 0 | AY53: ='TC3'!L377 -> 0 | AZ53: ='TC3'!M377 -> 0 | BA53: ='TC3'!N377 -> 0 | BB53: ='TC3'!O377 -> 0 | BD53: 0 | BE53: =AR53+AX53 -> 0 | BF53: =AS53+AY53 -> 0 | BG53: =AT53+AZ53 -> 0 | BH53: =AU53+BA53 -> 0 | BI53: =AV53+BB53 -> 0 | BK53: Spare | BL53: ='TC4'!L59 -> 0 | BM53: ='TC4'!M59 -> 0 | BN53: ='TC4'!N59 -> 0 | BO53: ='TC4'!O59 -> 0 | BP53: ='TC4'!P59 -> 0 | BR53: 0 | BS53: 0 | BT53: 0 | BU53: 0 | BV53: 0 | BX53: 0 | BY53: 0 | BZ53: 0 | CA53: 0 | CB53: 0 | CC53: 0 | CE53: Outreach Minor (<=2m) | CF53: ='TC5'!E674 -> 38.91370212 | CG53: ='TC5'!F674 -> 33.80616632 | CH53: ='TC5'!G674 -> 28.62644567 | CI53: ='TC5'!H674 -> 23.36483486 | CJ53: ='TC5'!I674 -> 18.01075372 | CL53: =Output!BK53 -> Spare | CM53: ='TC5'!K209 -> 0 | CN53: ='TC5'!L209 -> 0 | CO53: ='TC5'!M209 -> 0 | CP53: ='TC5'!N209 -> 0 | CQ53: ='TC5'!O209 -> 0 | CR53: ='TC5'!P209 -> 0 | CS53: ='TC5'!Q209 -> 0 | CT53: ='TC5'!R209 -> 0 | CU53: ='TC5'!S209 -> 0 | CV53: ='TC5'!T209 -> 0 | CW53: ='TC5'!U209 -> 0 | CX53: ='TC5'!V209 -> 0 | CY53: ='TC5'!W209 -> 0 | CZ53: ='TC5'!X209 -> 0 | DA53: ='TC5'!Y209 -> 0 | DB53: ='TC5'!Z209 -> 0 | DC53: ='TC5'!AA209 -> 0 | DD53: ='TC5'!AB209 -> 0 | DE53: ='TC5'!AC209 -> 0 | DF53: ='TC5'!AD209 -> 0 | DG53: ='TC5'!AE209 -> 0 | DH53: ='TC5'!AF209 -> 0 | DI53: ='TC5'!AG209 -> 0 | DJ53: ='TC5'!AH209 -> 0 | DK53: ='TC5'!AI209 -> 0 | DL53: ='TC5'!AJ209 -> 0 | DM53: ='TC5'!AK209 -> 0 | DN53: ='TC5'!AL209 -> 0 | DO53: ='TC5'!AM209 -> 0 | DP53: ='TC5'!AN209 -> 0 | DQ53: ='TC5'!AO209 -> 0 | DR53: ='TC5'!AP209 -> 0 | DS53: ='TC5'!AQ209 -> 0 | DT53: ='TC5'!AR209 -> 0 | DU53: ='TC5'!AS209 -> 0 | DV53: ='TC5'!AT209 -> 0 | DW53: ='TC5'!AU209 -> 0 | DX53: ='TC5'!AV209 -> 0 | DY53: ='TC5'!AW209 -> 0 | DZ53: ='TC5'!AX209 -> 0 | EA53: ='TC5'!AY209 -> 0 | EB53: ='TC5'!AZ209 -> 0 | EC53: ='TC5'!BA209 -> 0 | ED53: ='TC5'!BB209 -> 0 | EE53: ='TC5'!BC209 -> 0 | EF53: ='TC5'!BD209 -> 0 | EG53: ='TC5'!BE209 -> 0 | EH53: ='TC5'!BF209 -> 0 | EI53: ='TC5'!BG209 -> 0 | EJ53: ='TC5'!BH209 -> 0 | EL53: Spare | EM53: ='TC5'!K517 -> 0 | EN53: ='TC5'!L517 -> 0 | EO53: ='TC5'!M517 -> 0 | EP53: ='TC5'!N517 -> 0 | EQ53: ='TC5'!O517 -> 0 | ER53: ='TC5'!P517 -> 0 | ES53: ='TC5'!Q517 -> 0 | ET53: ='TC5'!R517 -> 0 | EU53: ='TC5'!S517 -> 0 | EV53: ='TC5'!T517 -> 0 | EW53: ='TC5'!U517 -> 0 | EX53: ='TC5'!V517 -> 0 | EY53: ='TC5'!W517 -> 0 | EZ53: ='TC5'!X517 -> 0 | FA53: ='TC5'!Y517 -> 0 | FB53: ='TC5'!Z517 -> 0 | FC53: ='TC5'!AA517 -> 0 | FD53: ='TC5'!AB517 -> 0 | FE53: ='TC5'!AC517 -> 0 | FF53: ='TC5'!AD517 -> 0 | FG53: ='TC5'!AE517 -> 0 | FH53: ='TC5'!AF517 -> 0 | FI53: ='TC5'!AG517 -> 0 | FJ53: ='TC5'!AH517 -> 0 | FK53: ='TC5'!AI517 -> 0 | FL53: ='TC5'!AJ517 -> 0 | FM53: ='TC5'!AK517 -> 0 | FN53: ='TC5'!AL517 -> 0 | FO53: ='TC5'!AM517 -> 0 | FP53: ='TC5'!AN517 -> 0 | FQ53: ='TC5'!AO517 -> 0 | FR53: ='TC5'!AP517 -> 0 | FS53: ='TC5'!AQ517 -> 0 | FT53: ='TC5'!AR517 -> 0 | FU53: ='TC5'!AS517 -> 0 | FV53: ='TC5'!AT517 -> 0 | FW53: ='TC5'!AU517 -> 0 | FX53: ='TC5'!AV517 -> 0 | FY53: ='TC5'!AW517 -> 0 | FZ53: ='TC5'!AX517 -> 0 | GA53: ='TC5'!AY517 -> 0 | GB53: ='TC5'!AZ517 -> 0 | GC53: ='TC5'!BA517 -> 0 | GD53: ='TC5'!BB517 -> 0 | GE53: ='TC5'!BC517 -> 0 | GF53: ='TC5'!BD517 -> 0 | GG53: ='TC5'!BE517 -> 0 | GH53: ='TC5'!BF517 -> 0 | GI53: ='TC5'!BG517 -> 0 | GJ53: ='TC5'!BH517 -> 0
B54: 0 | C54: 44 | D54: Outreach Major (>2m) | E54: 3.306906299 | F54: 3.040071862 | G54: 2.779036532 | H54: 2.523658866 | I54: 2.273800873 | K54: 44 | L54: 12.91841659 | M54: 12.91841659 | N54: 12.91841659 | O54: 12.91841659 | P54: 12.91841659 | R54: 16.22532289 | S54: 15.95848846 | T54: 15.69745313 | U54: 15.44207546 | V54: 15.19221747 | X54: Outreach Major (>2m) | Y54: ='Tariff Smoothing - real'!N54 -> 7.436363636 | Z54: ='Tariff Smoothing - real'!O54 -> 2.143791999 | AA54: ='Tariff Smoothing - real'!P54 -> 2.143791999 | AB54: ='Tariff Smoothing - real'!Q54 -> 2.143791999 | AC54: ='Tariff Smoothing - real'!R54 -> 2.143791999 | AE54: ='Tariff Smoothing - real'!AE54 -> 0 | AF54: ='Tariff Smoothing - real'!AF54 -> 10.35484582 | AG54: ='Tariff Smoothing - real'!AG54 -> 10.35484582 | AH54: ='Tariff Smoothing - real'!AH54 -> 10.35484582 | AI54: ='Tariff Smoothing - real'!AI54 -> 10.35484582 | AK54: 7.436363636 | AL54: 12.49863782 | AM54: 12.49863782 | AN54: 12.49863782 | AO54: 12.49863782 | AQ54: =Annuity!C67 -> Spare | AR54: ='TC3'!K63+'TC3'!K220 -> 0 | AS54: ='TC3'!L63+'TC3'!L220 -> 0 | AT54: ='TC3'!M63+'TC3'!M220 -> 0 | AU54: ='TC3'!N63+'TC3'!N220 -> 0 | AV54: ='TC3'!O63+'TC3'!O220 -> 0 | AX54: ='TC3'!K378 -> 0 | AY54: ='TC3'!L378 -> 0 | AZ54: ='TC3'!M378 -> 0 | BA54: ='TC3'!N378 -> 0 | BB54: ='TC3'!O378 -> 0 | BD54: 0 | BE54: 0 | BF54: 0 | BG54: 0 | BH54: 0 | BI54: 0 | BK54: Spare | BL54: ='TC4'!L60 -> 0 | BM54: ='TC4'!M60 -> 0 | BN54: ='TC4'!N60 -> 0 | BO54: ='TC4'!O60 -> 0 | BP54: ='TC4'!P60 -> 0 | BR54: 0 | BS54: 0 | BT54: 0 | BU54: 0 | BV54: 0 | BX54: 0 | BY54: 0 | BZ54: 0 | CA54: 0 | CB54: 0 | CC54: 0 | CE54: Outreach Major (>2m) | CF54: ='TC5'!E675 -> 29.34934184 | CG54: ='TC5'!F675 -> 26.07165362 | CH54: ='TC5'!G675 -> 22.83851599 | CI54: ='TC5'!H675 -> 19.6487314 | CJ54: ='TC5'!I675 -> 16.50112542 | CL54: =Output!BK54 -> Spare | CM54: ='TC5'!K210 -> 0 | CN54: ='TC5'!L210 -> 0 | CO54: ='TC5'!M210 -> 0 | CP54: ='TC5'!N210 -> 0 | CQ54: ='TC5'!O210 -> 0 | CR54: ='TC5'!P210 -> 0 | CS54: ='TC5'!Q210 -> 0 | CT54: ='TC5'!R210 -> 0 | CU54: ='TC5'!S210 -> 0 | CV54: ='TC5'!T210 -> 0 | CW54: ='TC5'!U210 -> 0 | CX54: ='TC5'!V210 -> 0 | CY54: ='TC5'!W210 -> 0 | CZ54: ='TC5'!X210 -> 0 | DA54: ='TC5'!Y210 -> 0 | DB54: ='TC5'!Z210 -> 0 | DC54: ='TC5'!AA210 -> 0 | DD54: ='TC5'!AB210 -> 0 | DE54: ='TC5'!AC210 -> 0 | DF54: ='TC5'!AD210 -> 0 | DG54: ='TC5'!AE210 -> 0 | DH54: ='TC5'!AF210 -> 0 | DI54: ='TC5'!AG210 -> 0 | DJ54: ='TC5'!AH210 -> 0 | DK54: ='TC5'!AI210 -> 0 | DL54: ='TC5'!AJ210 -> 0 | DM54: ='TC5'!AK210 -> 0 | DN54: ='TC5'!AL210 -> 0 | DO54: ='TC5'!AM210 -> 0 | DP54: ='TC5'!AN210 -> 0 | DQ54: ='TC5'!AO210 -> 0 | DR54: ='TC5'!AP210 -> 0 | DS54: ='TC5'!AQ210 -> 0 | DT54: ='TC5'!AR210 -> 0 | DU54: ='TC5'!AS210 -> 0 | DV54: ='TC5'!AT210 -> 0 | DW54: ='TC5'!AU210 -> 0 | DX54: ='TC5'!AV210 -> 0 | DY54: ='TC5'!AW210 -> 0 | DZ54: ='TC5'!AX210 -> 0 | EA54: ='TC5'!AY210 -> 0 | EB54: ='TC5'!AZ210 -> 0 | EC54: ='TC5'!BA210 -> 0 | ED54: ='TC5'!BB210 -> 0 | EE54: ='TC5'!BC210 -> 0 | EF54: ='TC5'!BD210 -> 0 | EG54: ='TC5'!BE210 -> 0 | EH54: ='TC5'!BF210 -> 0 | EI54: ='TC5'!BG210 -> 0 | EJ54: ='TC5'!BH210 -> 0 | EL54: Spare | EM54: ='TC5'!K518 -> 0 | EN54: ='TC5'!L518 -> 0 | EO54: ='TC5'!M518 -> 0 | EP54: ='TC5'!N518 -> 0 | EQ54: ='TC5'!O518 -> 0 | ER54: ='TC5'!P518 -> 0 | ES54: ='TC5'!Q518 -> 0 | ET54: ='TC5'!R518 -> 0 | EU54: ='TC5'!S518 -> 0 | EV54: ='TC5'!T518 -> 0 | EW54: ='TC5'!U518 -> 0 | EX54: ='TC5'!V518 -> 0 | EY54: ='TC5'!W518 -> 0 | EZ54: ='TC5'!X518 -> 0 | FA54: ='TC5'!Y518 -> 0 | FB54: ='TC5'!Z518 -> 0 | FC54: ='TC5'!AA518 -> 0 | FD54: ='TC5'!AB518 -> 0 | FE54: ='TC5'!AC518 -> 0 | FF54: ='TC5'!AD518 -> 0 | FG54: ='TC5'!AE518 -> 0 | FH54: ='TC5'!AF518 -> 0 | FI54: ='TC5'!AG518 -> 0 | FJ54: ='TC5'!AH518 -> 0 | FK54: ='TC5'!AI518 -> 0 | FL54: ='TC5'!AJ518 -> 0 | FM54: ='TC5'!AK518 -> 0 | FN54: ='TC5'!AL518 -> 0 | FO54: ='TC5'!AM518 -> 0 | FP54: ='TC5'!AN518 -> 0 | FQ54: ='TC5'!AO518 -> 0 | FR54: ='TC5'!AP518 -> 0 | FS54: ='TC5'!AQ518 -> 0 | FT54: ='TC5'!AR518 -> 0 | FU54: ='TC5'!AS518 -> 0 | FV54: ='TC5'!AT518 -> 0 | FW54: ='TC5'!AU518 -> 0 | FX54: ='TC5'!AV518 -> 0 | FY54: ='TC5'!AW518 -> 0 | FZ54: ='TC5'!AX518 -> 0 | GA54: ='TC5'!AY518 -> 0 | GB54: ='TC5'!AZ518 -> 0 | GC54: ='TC5'!BA518 -> 0 | GD54: ='TC5'!BB518 -> 0 | GE54: ='TC5'!BC518 -> 0 | GF54: ='TC5'!BD518 -> 0 | GG54: ='TC5'!BE518 -> 0 | GH54: ='TC5'!BF518 -> 0 | GI54: ='TC5'!BG518 -> 0 | GJ54: ='TC5'!BH518 -> 0
B55: 0 | C55: 45 | D55: Minor Column (<=9) | E55: 46.52858105 | F55: 44.46499482 | G55: 42.42593722 | H55: 40.41080999 | I55: 38.41902946 | K55: 45 | L55: 13.55318696 | M55: 13.55318696 | N55: 13.55318696 | O55: 13.55318696 | P55: 13.55318696 | R55: 60.08176801 | S55: 58.01818178 | T55: 55.97912418 | U55: 53.96399695 | V55: 51.97221642 | X55: Minor Column (<=9) | Y55: ='Tariff Smoothing - real'!N55 -> 70.60181818 | Z55: ='Tariff Smoothing - real'!O55 -> 33.33761399 | AA55: ='Tariff Smoothing - real'!P55 -> 33.33761399 | AB55: ='Tariff Smoothing - real'!Q55 -> 33.33761399 | AC55: ='Tariff Smoothing - real'!R55 -> 33.33761399 | AE55: ='Tariff Smoothing - real'!AE55 -> 43.98 | AF55: ='Tariff Smoothing - real'!AF55 -> 10.86365038 | AG55: ='Tariff Smoothing - real'!AG55 -> 10.86365038 | AH55: ='Tariff Smoothing - real'!AH55 -> 10.86365038 | AI55: ='Tariff Smoothing - real'!AI55 -> 10.86365038 | AK55: 114.5818182 | AL55: 44.20126437 | AM55: 44.20126437 | AN55: 44.20126437 | AO55: 44.20126437 | AQ55: =Annuity!C68 -> Spare | AR55: ='TC3'!K64+'TC3'!K221 -> 0 | AS55: ='TC3'!L64+'TC3'!L221 -> 0 | AT55: ='TC3'!M64+'TC3'!M221 -> 0 | AU55: ='TC3'!N64+'TC3'!N221 -> 0 | AV55: ='TC3'!O64+'TC3'!O221 -> 0 | AX55: ='TC3'!K379 -> 0 | AY55: ='TC3'!L379 -> 0 | AZ55: ='TC3'!M379 -> 0 | BA55: ='TC3'!N379 -> 0 | BB55: ='TC3'!O379 -> 0 | BD55: 0 | BE55: 0 | BF55: 0 | BG55: 0 | BH55: 0 | BI55: 0 | BK55: Spare | BL55: ='TC4'!L61 -> 0 | BM55: ='TC4'!M61 -> 0 | BN55: ='TC4'!N61 -> 0 | BO55: ='TC4'!O61 -> 0 | BP55: ='TC4'!P61 -> 0 | BR55: 0 | BS55: 0 | BT55: 0 | BU55: 0 | BV55: 0 | BX55: 0 | BY55: 0 | BZ55: 0 | CA55: 0 | CB55: 0 | CC55: 0 | CE55: Minor Column (<=9) | CF55: ='TC5'!E676 -> 472.3151634 | CG55: ='TC5'!F676 -> 452.3572067 | CH55: ='TC5'!G676 -> 431.7940644 | CI55: ='TC5'!H676 -> 410.5754662 | CJ55: ='TC5'!I676 -> 388.6465077 | CL55: =Output!BK55 -> Spare | CM55: ='TC5'!K211 -> 0 | CN55: ='TC5'!L211 -> 0 | CO55: ='TC5'!M211 -> 0 | CP55: ='TC5'!N211 -> 0 | CQ55: ='TC5'!O211 -> 0 | CR55: ='TC5'!P211 -> 0 | CS55: ='TC5'!Q211 -> 0 | CT55: ='TC5'!R211 -> 0 | CU55: ='TC5'!S211 -> 0 | CV55: ='TC5'!T211 -> 0 | CW55: ='TC5'!U211 -> 0 | CX55: ='TC5'!V211 -> 0 | CY55: ='TC5'!W211 -> 0 | CZ55: ='TC5'!X211 -> 0 | DA55: ='TC5'!Y211 -> 0 | DB55: ='TC5'!Z211 -> 0 | DC55: ='TC5'!AA211 -> 0 | DD55: ='TC5'!AB211 -> 0 | DE55: ='TC5'!AC211 -> 0 | DF55: ='TC5'!AD211 -> 0 | DG55: ='TC5'!AE211 -> 0 | DH55: ='TC5'!AF211 -> 0 | DI55: ='TC5'!AG211 -> 0 | DJ55: ='TC5'!AH211 -> 0 | DK55: ='TC5'!AI211 -> 0 | DL55: ='TC5'!AJ211 -> 0 | DM55: ='TC5'!AK211 -> 0 | DN55: ='TC5'!AL211 -> 0 | DO55: ='TC5'!AM211 -> 0 | DP55: ='TC5'!AN211 -> 0 | DQ55: ='TC5'!AO211 -> 0 | DR55: ='TC5'!AP211 -> 0 | DS55: ='TC5'!AQ211 -> 0 | DT55: ='TC5'!AR211 -> 0 | DU55: ='TC5'!AS211 -> 0 | DV55: ='TC5'!AT211 -> 0 | DW55: ='TC5'!AU211 -> 0 | DX55: ='TC5'!AV211 -> 0 | DY55: ='TC5'!AW211 -> 0 | DZ55: ='TC5'!AX211 -> 0 | EA55: ='TC5'!AY211 -> 0 | EB55: ='TC5'!AZ211 -> 0 | EC55: ='TC5'!BA211 -> 0 | ED55: ='TC5'!BB211 -> 0 | EE55: ='TC5'!BC211 -> 0 | EF55: ='TC5'!BD211 -> 0 | EG55: ='TC5'!BE211 -> 0 | EH55: ='TC5'!BF211 -> 0 | EI55: ='TC5'!BG211 -> 0 | EJ55: ='TC5'!BH211 -> 0 | EL55: Spare | EM55: ='TC5'!K519 -> 0 | EN55: ='TC5'!L519 -> 0 | EO55: ='TC5'!M519 -> 0 | EP55: ='TC5'!N519 -> 0 | EQ55: ='TC5'!O519 -> 0 | ER55: ='TC5'!P519 -> 0 | ES55: ='TC5'!Q519 -> 0 | ET55: ='TC5'!R519 -> 0 | EU55: ='TC5'!S519 -> 0 | EV55: ='TC5'!T519 -> 0 | EW55: ='TC5'!U519 -> 0 | EX55: ='TC5'!V519 -> 0 | EY55: ='TC5'!W519 -> 0 | EZ55: ='TC5'!X519 -> 0 | FA55: ='TC5'!Y519 -> 0 | FB55: ='TC5'!Z519 -> 0 | FC55: ='TC5'!AA519 -> 0 | FD55: ='TC5'!AB519 -> 0 | FE55: ='TC5'!AC519 -> 0 | FF55: ='TC5'!AD519 -> 0 | FG55: ='TC5'!AE519 -> 0 | FH55: ='TC5'!AF519 -> 0 | FI55: ='TC5'!AG519 -> 0 | FJ55: ='TC5'!AH519 -> 0 | FK55: ='TC5'!AI519 -> 0 | FL55: ='TC5'!AJ519 -> 0 | FM55: ='TC5'!AK519 -> 0 | FN55: ='TC5'!AL519 -> 0 | FO55: ='TC5'!AM519 -> 0 | FP55: ='TC5'!AN519 -> 0 | FQ55: ='TC5'!AO519 -> 0 | FR55: ='TC5'!AP519 -> 0 | FS55: ='TC5'!AQ519 -> 0 | FT55: ='TC5'!AR519 -> 0 | FU55: ='TC5'!AS519 -> 0 | FV55: ='TC5'!AT519 -> 0 | FW55: ='TC5'!AU519 -> 0 | FX55: ='TC5'!AV519 -> 0 | FY55: ='TC5'!AW519 -> 0 | FZ55: ='TC5'!AX519 -> 0 | GA55: ='TC5'!AY519 -> 0 | GB55: ='TC5'!AZ519 -> 0 | GC55: ='TC5'!BA519 -> 0 | GD55: ='TC5'!BB519 -> 0 | GE55: ='TC5'!BC519 -> 0 | GF55: ='TC5'!BD519 -> 0 | GG55: ='TC5'!BE519 -> 0 | GH55: ='TC5'!BF519 -> 0 | GI55: ='TC5'!BG519 -> 0 | GJ55: ='TC5'!BH519 -> 0
B56: 0 | C56: 46 | D56: Major Column (>=9) | E56: 112.4053933 | F56: 108.8194532 | G56: 105.2376427 | H56: 101.6598612 | I56: 98.08601043 | K56: 46 | L56: 13.55318696 | M56: 13.55318696 | N56: 13.55318696 | O56: 13.55318696 | P56: 13.55318696 | R56: 125.9585803 | S56: 122.3726401 | T56: 118.7908297 | U56: 115.2130482 | V56: 111.6391974 | X56: Major Column (>=9) | Y56: ='Tariff Smoothing - real'!N56 -> 176.0836364 | Z56: ='Tariff Smoothing - real'!O56 -> 83.15056487 | AA56: ='Tariff Smoothing - real'!P56 -> 83.15056487 | AB56: ='Tariff Smoothing - real'!Q56 -> 83.15056487 | AC56: ='Tariff Smoothing - real'!R56 -> 83.15056487 | AE56: ='Tariff Smoothing - real'!AE56 -> 43.98 | AF56: ='Tariff Smoothing - real'!AF56 -> 10.86365038 | AG56: ='Tariff Smoothing - real'!AG56 -> 10.86365038 | AH56: ='Tariff Smoothing - real'!AH56 -> 10.86365038 | AI56: ='Tariff Smoothing - real'!AI56 -> 10.86365038 | AK56: 220.0636364 | AL56: 94.01421525 | AM56: 94.01421525 | AN56: 94.01421525 | AO56: 94.01421525 | AQ56: =Annuity!C69 -> Spare | AR56: ='TC3'!K65+'TC3'!K222 -> 0 | AS56: ='TC3'!L65+'TC3'!L222 -> 0 | AT56: ='TC3'!M65+'TC3'!M222 -> 0 | AU56: ='TC3'!N65+'TC3'!N222 -> 0 | AV56: ='TC3'!O65+'TC3'!O222 -> 0 | AX56: ='TC3'!K380 -> 0 | AY56: ='TC3'!L380 -> 0 | AZ56: ='TC3'!M380 -> 0 | BA56: ='TC3'!N380 -> 0 | BB56: ='TC3'!O380 -> 0 | BD56: 0 | BE56: 0 | BF56: 0 | BG56: 0 | BH56: 0 | BI56: 0 | BK56: Spare | BL56: ='TC4'!L62 -> 0 | BM56: ='TC4'!M62 -> 0 | BN56: ='TC4'!N62 -> 0 | BO56: ='TC4'!O62 -> 0 | BP56: ='TC4'!P62 -> 0 | BR56: 0 | BS56: 0 | BT56: 0 | BU56: 0 | BV56: 0 | BX56: 0 | BY56: 0 | BZ56: 0 | CA56: 0 | CB56: 0 | CC56: 0 | CE56: Major Column (>=9) | CF56: ='TC5'!E677 -> 1149.291555 | CG56: ='TC5'!F677 -> 1093.945823 | CH56: ='TC5'!G677 -> 1038.186354 | CI56: ='TC5'!H677 -> 982.0066798 | CJ56: ='TC5'!I677 -> 925.4002522 | CL56: =Output!BK56 -> Spare | CM56: ='TC5'!K212 -> 0 | CN56: ='TC5'!L212 -> 0 | CO56: ='TC5'!M212 -> 0 | CP56: ='TC5'!N212 -> 0 | CQ56: ='TC5'!O212 -> 0 | CR56: ='TC5'!P212 -> 0 | CS56: ='TC5'!Q212 -> 0 | CT56: ='TC5'!R212 -> 0 | CU56: ='TC5'!S212 -> 0 | CV56: ='TC5'!T212 -> 0 | CW56: ='TC5'!U212 -> 0 | CX56: ='TC5'!V212 -> 0 | CY56: ='TC5'!W212 -> 0 | CZ56: ='TC5'!X212 -> 0 | DA56: ='TC5'!Y212 -> 0 | DB56: ='TC5'!Z212 -> 0 | DC56: ='TC5'!AA212 -> 0 | DD56: ='TC5'!AB212 -> 0 | DE56: ='TC5'!AC212 -> 0 | DF56: ='TC5'!AD212 -> 0 | DG56: ='TC5'!AE212 -> 0 | DH56: ='TC5'!AF212 -> 0 | DI56: ='TC5'!AG212 -> 0 | DJ56: ='TC5'!AH212 -> 0 | DK56: ='TC5'!AI212 -> 0 | DL56: ='TC5'!AJ212 -> 0 | DM56: ='TC5'!AK212 -> 0 | DN56: ='TC5'!AL212 -> 0 | DO56: ='TC5'!AM212 -> 0 | DP56: ='TC5'!AN212 -> 0 | DQ56: ='TC5'!AO212 -> 0 | DR56: ='TC5'!AP212 -> 0 | DS56: ='TC5'!AQ212 -> 0 | DT56: ='TC5'!AR212 -> 0 | DU56: ='TC5'!AS212 -> 0 | DV56: ='TC5'!AT212 -> 0 | DW56: ='TC5'!AU212 -> 0 | DX56: ='TC5'!AV212 -> 0 | DY56: ='TC5'!AW212 -> 0 | DZ56: ='TC5'!AX212 -> 0 | EA56: ='TC5'!AY212 -> 0 | EB56: ='TC5'!AZ212 -> 0 | EC56: ='TC5'!BA212 -> 0 | ED56: ='TC5'!BB212 -> 0 | EE56: ='TC5'!BC212 -> 0 | EF56: ='TC5'!BD212 -> 0 | EG56: ='TC5'!BE212 -> 0 | EH56: ='TC5'!BF212 -> 0 | EI56: ='TC5'!BG212 -> 0 | EJ56: ='TC5'!BH212 -> 0 | EL56: Spare | EM56: ='TC5'!K520 -> 0 | EN56: ='TC5'!L520 -> 0 | EO56: ='TC5'!M520 -> 0 | EP56: ='TC5'!N520 -> 0 | EQ56: ='TC5'!O520 -> 0 | ER56: ='TC5'!P520 -> 0 | ES56: ='TC5'!Q520 -> 0 | ET56: ='TC5'!R520 -> 0 | EU56: ='TC5'!S520 -> 0 | EV56: ='TC5'!T520 -> 0 | EW56: ='TC5'!U520 -> 0 | EX56: ='TC5'!V520 -> 0 | EY56: ='TC5'!W520 -> 0 | EZ56: ='TC5'!X520 -> 0 | FA56: ='TC5'!Y520 -> 0 | FB56: ='TC5'!Z520 -> 0 | FC56: ='TC5'!AA520 -> 0 | FD56: ='TC5'!AB520 -> 0 | FE56: ='TC5'!AC520 -> 0 | FF56: ='TC5'!AD520 -> 0 | FG56: ='TC5'!AE520 -> 0 | FH56: ='TC5'!AF520 -> 0 | FI56: ='TC5'!AG520 -> 0 | FJ56: ='TC5'!AH520 -> 0 | FK56: ='TC5'!AI520 -> 0 | FL56: ='TC5'!AJ520 -> 0 | FM56: ='TC5'!AK520 -> 0 | FN56: ='TC5'!AL520 -> 0 | FO56: ='TC5'!AM520 -> 0 | FP56: ='TC5'!AN520 -> 0 | FQ56: ='TC5'!AO520 -> 0 | FR56: ='TC5'!AP520 -> 0 | FS56: ='TC5'!AQ520 -> 0 | FT56: ='TC5'!AR520 -> 0 | FU56: ='TC5'!AS520 -> 0 | FV56: ='TC5'!AT520 -> 0 | FW56: ='TC5'!AU520 -> 0 | FX56: ='TC5'!AV520 -> 0 | FY56: ='TC5'!AW520 -> 0 | FZ56: ='TC5'!AX520 -> 0 | GA56: ='TC5'!AY520 -> 0 | GB56: ='TC5'!AZ520 -> 0 | GC56: ='TC5'!BA520 -> 0 | GD56: ='TC5'!BB520 -> 0 | GE56: ='TC5'!BC520 -> 0 | GF56: ='TC5'!BD520 -> 0 | GG56: ='TC5'!BE520 -> 0 | GH56: ='TC5'!BF520 -> 0 | GI56: ='TC5'!BG520 -> 0 | GJ56: ='TC5'!BH520 -> 0
B57: TRUE | C57: 47 | D57: Spare | E57: 0 | F57: 0 | G57: 0 | H57: 0 | I57: 0 | K57: 47 | L57: 0 | M57: 0 | N57: 0 | O57: 0 | P57: 0 | R57: 0 | S57: 0 | T57: 0 | U57: 0 | V57: 0 | X57: Spare | Y57: ='Tariff Smoothing - real'!N57 -> 0 | Z57: ='Tariff Smoothing - real'!O57 -> 0 | AA57: ='Tariff Smoothing - real'!P57 -> 0 | AB57: ='Tariff Smoothing - real'!Q57 -> 0 | AC57: ='Tariff Smoothing - real'!R57 -> 0 | AE57: ='Tariff Smoothing - real'!AE57 -> 0 | AF57: ='Tariff Smoothing - real'!AF57 -> 0 | AG57: ='Tariff Smoothing - real'!AG57 -> 0 | AH57: ='Tariff Smoothing - real'!AH57 -> 0 | AI57: ='Tariff Smoothing - real'!AI57 -> 0 | AK57: 0 | AL57: 0 | AM57: 0 | AN57: 0 | AO57: 0 | AQ57: =Annuity!C70 -> Spare | AR57: ='TC3'!K66+'TC3'!K223 -> 0 | AS57: ='TC3'!L66+'TC3'!L223 -> 0 | AT57: ='TC3'!M66+'TC3'!M223 -> 0 | AU57: ='TC3'!N66+'TC3'!N223 -> 0 | AV57: ='TC3'!O66+'TC3'!O223 -> 0 | AX57: ='TC3'!K381 -> 0 | AY57: ='TC3'!L381 -> 0 | AZ57: ='TC3'!M381 -> 0 | BA57: ='TC3'!N381 -> 0 | BB57: ='TC3'!O381 -> 0 | BD57: 0 | BE57: 0 | BF57: 0 | BG57: 0 | BH57: 0 | BI57: 0 | BK57: Spare | BL57: ='TC4'!L63 -> 0 | BM57: ='TC4'!M63 -> 0 | BN57: ='TC4'!N63 -> 0 | BO57: ='TC4'!O63 -> 0 | BP57: ='TC4'!P63 -> 0 | BR57: 0 | BS57: 0 | BT57: 0 | BU57: 0 | BV57: 0 | BX57: 0 | BY57: 0 | BZ57: 0 | CA57: 0 | CB57: 0 | CC57: 0 | CE57: Spare | CF57: ='TC5'!E678 -> 0 | CG57: ='TC5'!F678 -> 0 | CH57: ='TC5'!G678 -> 0 | CI57: ='TC5'!H678 -> 0 | CJ57: ='TC5'!I678 -> 0 | CL57: =Output!BK57 -> Spare | CM57: ='TC5'!K213 -> 0 | CN57: ='TC5'!L213 -> 0 | CO57: ='TC5'!M213 -> 0 | CP57: ='TC5'!N213 -> 0 | CQ57: ='TC5'!O213 -> 0 | CR57: ='TC5'!P213 -> 0 | CS57: ='TC5'!Q213 -> 0 | CT57: ='TC5'!R213 -> 0 | CU57: ='TC5'!S213 -> 0 | CV57: ='TC5'!T213 -> 0 | CW57: ='TC5'!U213 -> 0 | CX57: ='TC5'!V213 -> 0 | CY57: ='TC5'!W213 -> 0 | CZ57: ='TC5'!X213 -> 0 | DA57: ='TC5'!Y213 -> 0 | DB57: ='TC5'!Z213 -> 0 | DC57: ='TC5'!AA213 -> 0 | DD57: ='TC5'!AB213 -> 0 | DE57: ='TC5'!AC213 -> 0 | DF57: ='TC5'!AD213 -> 0 | DG57: ='TC5'!AE213 -> 0 | DH57: ='TC5'!AF213 -> 0 | DI57: ='TC5'!AG213 -> 0 | DJ57: ='TC5'!AH213 -> 0 | DK57: ='TC5'!AI213 -> 0 | DL57: ='TC5'!AJ213 -> 0 | DM57: ='TC5'!AK213 -> 0 | DN57: ='TC5'!AL213 -> 0 | DO57: ='TC5'!AM213 -> 0 | DP57: ='TC5'!AN213 -> 0 | DQ57: ='TC5'!AO213 -> 0 | DR57: ='TC5'!AP213 -> 0 | DS57: ='TC5'!AQ213 -> 0 | DT57: ='TC5'!AR213 -> 0 | DU57: ='TC5'!AS213 -> 0 | DV57: ='TC5'!AT213 -> 0 | DW57: ='TC5'!AU213 -> 0 | DX57: ='TC5'!AV213 -> 0 | DY57: ='TC5'!AW213 -> 0 | DZ57: ='TC5'!AX213 -> 0 | EA57: ='TC5'!AY213 -> 0 | EB57: ='TC5'!AZ213 -> 0 | EC57: ='TC5'!BA213 -> 0 | ED57: ='TC5'!BB213 -> 0 | EE57: ='TC5'!BC213 -> 0 | EF57: ='TC5'!BD213 -> 0 | EG57: ='TC5'!BE213 -> 0 | EH57: ='TC5'!BF213 -> 0 | EI57: ='TC5'!BG213 -> 0 | EJ57: ='TC5'!BH213 -> 0 | EL57: Spare | EM57: ='TC5'!K521 -> 0 | EN57: ='TC5'!L521 -> 0 | EO57: ='TC5'!M521 -> 0 | EP57: ='TC5'!N521 -> 0 | EQ57: ='TC5'!O521 -> 0 | ER57: ='TC5'!P521 -> 0 | ES57: ='TC5'!Q521 -> 0 | ET57: ='TC5'!R521 -> 0 | EU57: ='TC5'!S521 -> 0 | EV57: ='TC5'!T521 -> 0 | EW57: ='TC5'!U521 -> 0 | EX57: ='TC5'!V521 -> 0 | EY57: ='TC5'!W521 -> 0 | EZ57: ='TC5'!X521 -> 0 | FA57: ='TC5'!Y521 -> 0 | FB57: ='TC5'!Z521 -> 0 | FC57: ='TC5'!AA521 -> 0 | FD57: ='TC5'!AB521 -> 0 | FE57: ='TC5'!AC521 -> 0 | FF57: ='TC5'!AD521 -> 0 | FG57: ='TC5'!AE521 -> 0 | FH57: ='TC5'!AF521 -> 0 | FI57: ='TC5'!AG521 -> 0 | FJ57: ='TC5'!AH521 -> 0 | FK57: ='TC5'!AI521 -> 0 | FL57: ='TC5'!AJ521 -> 0 | FM57: ='TC5'!AK521 -> 0 | FN57: ='TC5'!AL521 -> 0 | FO57: ='TC5'!AM521 -> 0 | FP57: ='TC5'!AN521 -> 0 | FQ57: ='TC5'!AO521 -> 0 | FR57: ='TC5'!AP521 -> 0 | FS57: ='TC5'!AQ521 -> 0 | FT57: ='TC5'!AR521 -> 0 | FU57: ='TC5'!AS521 -> 0 | FV57: ='TC5'!AT521 -> 0 | FW57: ='TC5'!AU521 -> 0 | FX57: ='TC5'!AV521 -> 0 | FY57: ='TC5'!AW521 -> 0 | FZ57: ='TC5'!AX521 -> 0 | GA57: ='TC5'!AY521 -> 0 | GB57: ='TC5'!AZ521 -> 0 | GC57: ='TC5'!BA521 -> 0 | GD57: ='TC5'!BB521 -> 0 | GE57: ='TC5'!BC521 -> 0 | GF57: ='TC5'!BD521 -> 0 | GG57: ='TC5'!BE521 -> 0 | GH57: ='TC5'!BF521 -> 0 | GI57: ='TC5'!BG521 -> 0 | GJ57: ='TC5'!BH521 -> 0
B58: TRUE | C58: 48 | D58: Spare | E58: 0 | F58: 0 | G58: 0 | H58: 0 | I58: 0 | K58: 48 | L58: 0 | M58: 0 | N58: 0 | O58: 0 | P58: 0 | R58: 0 | S58: 0 | T58: 0 | U58: 0 | V58: 0 | X58: Spare | Y58: ='Tariff Smoothing - real'!N58 -> 0 | Z58: ='Tariff Smoothing - real'!O58 -> 0 | AA58: ='Tariff Smoothing - real'!P58 -> 0 | AB58: ='Tariff Smoothing - real'!Q58 -> 0 | AC58: ='Tariff Smoothing - real'!R58 -> 0 | AE58: ='Tariff Smoothing - real'!AE58 -> 0 | AF58: ='Tariff Smoothing - real'!AF58 -> 0 | AG58: ='Tariff Smoothing - real'!AG58 -> 0 | AH58: ='Tariff Smoothing - real'!AH58 -> 0 | AI58: ='Tariff Smoothing - real'!AI58 -> 0 | AK58: 0 | AL58: 0 | AM58: 0 | AN58: 0 | AO58: 0 | AQ58: =Annuity!C71 -> Spare | AR58: ='TC3'!K67+'TC3'!K224 -> 0 | AS58: ='TC3'!L67+'TC3'!L224 -> 0 | AT58: ='TC3'!M67+'TC3'!M224 -> 0 | AU58: ='TC3'!N67+'TC3'!N224 -> 0 | AV58: ='TC3'!O67+'TC3'!O224 -> 0 | AX58: ='TC3'!K382 -> 0 | AY58: ='TC3'!L382 -> 0 | AZ58: ='TC3'!M382 -> 0 | BA58: ='TC3'!N382 -> 0 | BB58: ='TC3'!O382 -> 0 | BD58: 0 | BE58: 0 | BF58: 0 | BG58: 0 | BH58: 0 | BI58: 0 | BK58: Spare | BL58: ='TC4'!L64 -> 0 | BM58: ='TC4'!M64 -> 0 | BN58: ='TC4'!N64 -> 0 | BO58: ='TC4'!O64 -> 0 | BP58: ='TC4'!P64 -> 0 | BR58: 0 | BS58: 0 | BT58: 0 | BU58: 0 | BV58: 0 | BX58: 0 | BY58: 0 | BZ58: 0 | CA58: 0 | CB58: 0 | CC58: 0 | CE58: Spare | CF58: ='TC5'!E679 -> 0 | CG58: ='TC5'!F679 -> 0 | CH58: ='TC5'!G679 -> 0 | CI58: ='TC5'!H679 -> 0 | CJ58: ='TC5'!I679 -> 0 | CL58: =Output!BK58 -> Spare | CM58: ='TC5'!K214 -> 0 | CN58: ='TC5'!L214 -> 0 | CO58: ='TC5'!M214 -> 0 | CP58: ='TC5'!N214 -> 0 | CQ58: ='TC5'!O214 -> 0 | CR58: ='TC5'!P214 -> 0 | CS58: ='TC5'!Q214 -> 0 | CT58: ='TC5'!R214 -> 0 | CU58: ='TC5'!S214 -> 0 | CV58: ='TC5'!T214 -> 0 | CW58: ='TC5'!U214 -> 0 | CX58: ='TC5'!V214 -> 0 | CY58: ='TC5'!W214 -> 0 | CZ58: ='TC5'!X214 -> 0 | DA58: ='TC5'!Y214 -> 0 | DB58: ='TC5'!Z214 -> 0 | DC58: ='TC5'!AA214 -> 0 | DD58: ='TC5'!AB214 -> 0 | DE58: ='TC5'!AC214 -> 0 | DF58: ='TC5'!AD214 -> 0 | DG58: ='TC5'!AE214 -> 0 | DH58: ='TC5'!AF214 -> 0 | DI58: ='TC5'!AG214 -> 0 | DJ58: ='TC5'!AH214 -> 0 | DK58: ='TC5'!AI214 -> 0 | DL58: ='TC5'!AJ214 -> 0 | DM58: ='TC5'!AK214 -> 0 | DN58: ='TC5'!AL214 -> 0 | DO58: ='TC5'!AM214 -> 0 | DP58: ='TC5'!AN214 -> 0 | DQ58: ='TC5'!AO214 -> 0 | DR58: ='TC5'!AP214 -> 0 | DS58: ='TC5'!AQ214 -> 0 | DT58: ='TC5'!AR214 -> 0 | DU58: ='TC5'!AS214 -> 0 | DV58: ='TC5'!AT214 -> 0 | DW58: ='TC5'!AU214 -> 0 | DX58: ='TC5'!AV214 -> 0 | DY58: ='TC5'!AW214 -> 0 | DZ58: ='TC5'!AX214 -> 0 | EA58: ='TC5'!AY214 -> 0 | EB58: ='TC5'!AZ214 -> 0 | EC58: ='TC5'!BA214 -> 0 | ED58: ='TC5'!BB214 -> 0 | EE58: ='TC5'!BC214 -> 0 | EF58: ='TC5'!BD214 -> 0 | EG58: ='TC5'!BE214 -> 0 | EH58: ='TC5'!BF214 -> 0 | EI58: ='TC5'!BG214 -> 0 | EJ58: ='TC5'!BH214 -> 0 | EL58: Spare | EM58: ='TC5'!K522 -> 0 | EN58: ='TC5'!L522 -> 0 | EO58: ='TC5'!M522 -> 0 | EP58: ='TC5'!N522 -> 0 | EQ58: ='TC5'!O522 -> 0 | ER58: ='TC5'!P522 -> 0 | ES58: ='TC5'!Q522 -> 0 | ET58: ='TC5'!R522 -> 0 | EU58: ='TC5'!S522 -> 0 | EV58: ='TC5'!T522 -> 0 | EW58: ='TC5'!U522 -> 0 | EX58: ='TC5'!V522 -> 0 | EY58: ='TC5'!W522 -> 0 | EZ58: ='TC5'!X522 -> 0 | FA58: ='TC5'!Y522 -> 0 | FB58: ='TC5'!Z522 -> 0 | FC58: ='TC5'!AA522 -> 0 | FD58: ='TC5'!AB522 -> 0 | FE58: ='TC5'!AC522 -> 0 | FF58: ='TC5'!AD522 -> 0 | FG58: ='TC5'!AE522 -> 0 | FH58: ='TC5'!AF522 -> 0 | FI58: ='TC5'!AG522 -> 0 | FJ58: ='TC5'!AH522 -> 0 | FK58: ='TC5'!AI522 -> 0 | FL58: ='TC5'!AJ522 -> 0 | FM58: ='TC5'!AK522 -> 0 | FN58: ='TC5'!AL522 -> 0 | FO58: ='TC5'!AM522 -> 0 | FP58: ='TC5'!AN522 -> 0 | FQ58: ='TC5'!AO522 -> 0 | FR58: ='TC5'!AP522 -> 0 | FS58: ='TC5'!AQ522 -> 0 | FT58: ='TC5'!AR522 -> 0 | FU58: ='TC5'!AS522 -> 0 | FV58: ='TC5'!AT522 -> 0 | FW58: ='TC5'!AU522 -> 0 | FX58: ='TC5'!AV522 -> 0 | FY58: ='TC5'!AW522 -> 0 | FZ58: ='TC5'!AX522 -> 0 | GA58: ='TC5'!AY522 -> 0 | GB58: ='TC5'!AZ522 -> 0 | GC58: ='TC5'!BA522 -> 0 | GD58: ='TC5'!BB522 -> 0 | GE58: ='TC5'!BC522 -> 0 | GF58: ='TC5'!BD522 -> 0 | GG58: ='TC5'!BE522 -> 0 | GH58: ='TC5'!BF522 -> 0 | GI58: ='TC5'!BG522 -> 0 | GJ58: ='TC5'!BH522 -> 0
B59: TRUE | C59: 49 | D59: Spare | E59: 0 | F59: 0 | G59: 0 | H59: 0 | I59: 0 | K59: 49 | L59: 0 | M59: 0 | N59: 0 | O59: 0 | P59: 0 | R59: 0 | S59: 0 | T59: 0 | U59: 0 | V59: 0 | X59: Spare | Y59: ='Tariff Smoothing - real'!N59 -> 0 | Z59: ='Tariff Smoothing - real'!O59 -> 0 | AA59: ='Tariff Smoothing - real'!P59 -> 0 | AB59: ='Tariff Smoothing - real'!Q59 -> 0 | AC59: ='Tariff Smoothing - real'!R59 -> 0 | AE59: ='Tariff Smoothing - real'!AE59 -> 0 | AF59: ='Tariff Smoothing - real'!AF59 -> 0 | AG59: ='Tariff Smoothing - real'!AG59 -> 0 | AH59: ='Tariff Smoothing - real'!AH59 -> 0 | AI59: ='Tariff Smoothing - real'!AI59 -> 0 | AK59: 0 | AL59: 0 | AM59: 0 | AN59: 0 | AO59: 0 | AQ59: =Annuity!C72 -> Spare | AR59: ='TC3'!K68+'TC3'!K225 -> 0 | AS59: ='TC3'!L68+'TC3'!L225 -> 0 | AT59: ='TC3'!M68+'TC3'!M225 -> 0 | AU59: ='TC3'!N68+'TC3'!N225 -> 0 | AV59: ='TC3'!O68+'TC3'!O225 -> 0 | AX59: ='TC3'!K383 -> 0 | AY59: ='TC3'!L383 -> 0 | AZ59: ='TC3'!M383 -> 0 | BA59: ='TC3'!N383 -> 0 | BB59: ='TC3'!O383 -> 0 | BD59: 0 | BE59: 0 | BF59: 0 | BG59: 0 | BH59: 0 | BI59: 0 | BK59: Spare | BL59: ='TC4'!L65 -> 0 | BM59: ='TC4'!M65 -> 0 | BN59: ='TC4'!N65 -> 0 | BO59: ='TC4'!O65 -> 0 | BP59: ='TC4'!P65 -> 0 | BR59: 0 | BS59: 0 | BT59: 0 | BU59: 0 | BV59: 0 | BX59: 0 | BY59: 0 | BZ59: 0 | CA59: 0 | CB59: 0 | CC59: 0 | CE59: Spare | CF59: ='TC5'!E680 -> 0 | CG59: ='TC5'!F680 -> 0 | CH59: ='TC5'!G680 -> 0 | CI59: ='TC5'!H680 -> 0 | CJ59: ='TC5'!I680 -> 0 | CL59: =Output!BK59 -> Spare | CM59: ='TC5'!K215 -> 0 | CN59: ='TC5'!L215 -> 0 | CO59: ='TC5'!M215 -> 0 | CP59: ='TC5'!N215 -> 0 | CQ59: ='TC5'!O215 -> 0 | CR59: ='TC5'!P215 -> 0 | CS59: ='TC5'!Q215 -> 0 | CT59: ='TC5'!R215 -> 0 | CU59: ='TC5'!S215 -> 0 | CV59: ='TC5'!T215 -> 0 | CW59: ='TC5'!U215 -> 0 | CX59: ='TC5'!V215 -> 0 | CY59: ='TC5'!W215 -> 0 | CZ59: ='TC5'!X215 -> 0 | DA59: ='TC5'!Y215 -> 0 | DB59: ='TC5'!Z215 -> 0 | DC59: ='TC5'!AA215 -> 0 | DD59: ='TC5'!AB215 -> 0 | DE59: ='TC5'!AC215 -> 0 | DF59: ='TC5'!AD215 -> 0 | DG59: ='TC5'!AE215 -> 0 | DH59: ='TC5'!AF215 -> 0 | DI59: ='TC5'!AG215 -> 0 | DJ59: ='TC5'!AH215 -> 0 | DK59: ='TC5'!AI215 -> 0 | DL59: ='TC5'!AJ215 -> 0 | DM59: ='TC5'!AK215 -> 0 | DN59: ='TC5'!AL215 -> 0 | DO59: ='TC5'!AM215 -> 0 | DP59: ='TC5'!AN215 -> 0 | DQ59: ='TC5'!AO215 -> 0 | DR59: ='TC5'!AP215 -> 0 | DS59: ='TC5'!AQ215 -> 0 | DT59: ='TC5'!AR215 -> 0 | DU59: ='TC5'!AS215 -> 0 | DV59: ='TC5'!AT215 -> 0 | DW59: ='TC5'!AU215 -> 0 | DX59: ='TC5'!AV215 -> 0 | DY59: ='TC5'!AW215 -> 0 | DZ59: ='TC5'!AX215 -> 0 | EA59: ='TC5'!AY215 -> 0 | EB59: ='TC5'!AZ215 -> 0 | EC59: ='TC5'!BA215 -> 0 | ED59: ='TC5'!BB215 -> 0 | EE59: ='TC5'!BC215 -> 0 | EF59: ='TC5'!BD215 -> 0 | EG59: ='TC5'!BE215 -> 0 | EH59: ='TC5'!BF215 -> 0 | EI59: ='TC5'!BG215 -> 0 | EJ59: ='TC5'!BH215 -> 0 | EL59: Spare | EM59: ='TC5'!K523 -> 0 | EN59: ='TC5'!L523 -> 0 | EO59: ='TC5'!M523 -> 0 | EP59: ='TC5'!N523 -> 0 | EQ59: ='TC5'!O523 -> 0 | ER59: ='TC5'!P523 -> 0 | ES59: ='TC5'!Q523 -> 0 | ET59: ='TC5'!R523 -> 0 | EU59: ='TC5'!S523 -> 0 | EV59: ='TC5'!T523 -> 0 | EW59: ='TC5'!U523 -> 0 | EX59: ='TC5'!V523 -> 0 | EY59: ='TC5'!W523 -> 0 | EZ59: ='TC5'!X523 -> 0 | FA59: ='TC5'!Y523 -> 0 | FB59: ='TC5'!Z523 -> 0 | FC59: ='TC5'!AA523 -> 0 | FD59: ='TC5'!AB523 -> 0 | FE59: ='TC5'!AC523 -> 0 | FF59: ='TC5'!AD523 -> 0 | FG59: ='TC5'!AE523 -> 0 | FH59: ='TC5'!AF523 -> 0 | FI59: ='TC5'!AG523 -> 0 | FJ59: ='TC5'!AH523 -> 0 | FK59: ='TC5'!AI523 -> 0 | FL59: ='TC5'!AJ523 -> 0 | FM59: ='TC5'!AK523 -> 0 | FN59: ='TC5'!AL523 -> 0 | FO59: ='TC5'!AM523 -> 0 | FP59: ='TC5'!AN523 -> 0 | FQ59: ='TC5'!AO523 -> 0 | FR59: ='TC5'!AP523 -> 0 | FS59: ='TC5'!AQ523 -> 0 | FT59: ='TC5'!AR523 -> 0 | FU59: ='TC5'!AS523 -> 0 | FV59: ='TC5'!AT523 -> 0 | FW59: ='TC5'!AU523 -> 0 | FX59: ='TC5'!AV523 -> 0 | FY59: ='TC5'!AW523 -> 0 | FZ59: ='TC5'!AX523 -> 0 | GA59: ='TC5'!AY523 -> 0 | GB59: ='TC5'!AZ523 -> 0 | GC59: ='TC5'!BA523 -> 0 | GD59: ='TC5'!BB523 -> 0 | GE59: ='TC5'!BC523 -> 0 | GF59: ='TC5'!BD523 -> 0 | GG59: ='TC5'!BE523 -> 0 | GH59: ='TC5'!BF523 -> 0 | GI59: ='TC5'!BG523 -> 0 | GJ59: ='TC5'!BH523 -> 0
B60: TRUE | C60: 50 | D60: Spare | E60: 0 | F60: 0 | G60: 0 | H60: 0 | I60: 0 | K60: 50 | L60: 0 | M60: 0 | N60: 0 | O60: 0 | P60: 0 | R60: 0 | S60: 0 | T60: 0 | U60: 0 | V60: 0 | X60: Spare | Y60: ='Tariff Smoothing - real'!N60 -> 0 | Z60: ='Tariff Smoothing - real'!O60 -> 0 | AA60: ='Tariff Smoothing - real'!P60 -> 0 | AB60: ='Tariff Smoothing - real'!Q60 -> 0 | AC60: ='Tariff Smoothing - real'!R60 -> 0 | AE60: ='Tariff Smoothing - real'!AE60 -> 0 | AF60: ='Tariff Smoothing - real'!AF60 -> 0 | AG60: ='Tariff Smoothing - real'!AG60 -> 0 | AH60: ='Tariff Smoothing - real'!AH60 -> 0 | AI60: ='Tariff Smoothing - real'!AI60 -> 0 | AK60: 0 | AL60: 0 | AM60: 0 | AN60: 0 | AO60: 0 | AQ60: =Annuity!C73 -> Spare | AR60: ='TC3'!K69+'TC3'!K226 -> 0 | AS60: ='TC3'!L69+'TC3'!L226 -> 0 | AT60: ='TC3'!M69+'TC3'!M226 -> 0 | AU60: ='TC3'!N69+'TC3'!N226 -> 0 | AV60: ='TC3'!O69+'TC3'!O226 -> 0 | AX60: ='TC3'!K384 -> 0 | AY60: ='TC3'!L384 -> 0 | AZ60: ='TC3'!M384 -> 0 | BA60: ='TC3'!N384 -> 0 | BB60: ='TC3'!O384 -> 0 | BD60: 0 | BE60: 0 | BF60: 0 | BG60: 0 | BH60: 0 | BI60: 0 | BK60: Spare | BL60: ='TC4'!L66 -> 0 | BM60: ='TC4'!M66 -> 0 | BN60: ='TC4'!N66 -> 0 | BO60: ='TC4'!O66 -> 0 | BP60: ='TC4'!P66 -> 0 | BR60: 0 | BS60: 0 | BT60: 0 | BU60: 0 | BV60: 0 | BX60: 0 | BY60: 0 | BZ60: 0 | CA60: 0 | CB60: 0 | CC60: 0 | CE60: Spare | CF60: ='TC5'!E681 -> 0 | CG60: ='TC5'!F681 -> 0 | CH60: ='TC5'!G681 -> 0 | CI60: ='TC5'!H681 -> 0 | CJ60: ='TC5'!I681 -> 0 | CL60: =Output!BK60 -> Spare | CM60: ='TC5'!K216 -> 0 | CN60: ='TC5'!L216 -> 0 | CO60: ='TC5'!M216 -> 0 | CP60: ='TC5'!N216 -> 0 | CQ60: ='TC5'!O216 -> 0 | CR60: ='TC5'!P216 -> 0 | CS60: ='TC5'!Q216 -> 0 | CT60: ='TC5'!R216 -> 0 | CU60: ='TC5'!S216 -> 0 | CV60: ='TC5'!T216 -> 0 | CW60: ='TC5'!U216 -> 0 | CX60: ='TC5'!V216 -> 0 | CY60: ='TC5'!W216 -> 0 | CZ60: ='TC5'!X216 -> 0 | DA60: ='TC5'!Y216 -> 0 | DB60: ='TC5'!Z216 -> 0 | DC60: ='TC5'!AA216 -> 0 | DD60: ='TC5'!AB216 -> 0 | DE60: ='TC5'!AC216 -> 0 | DF60: ='TC5'!AD216 -> 0 | DG60: ='TC5'!AE216 -> 0 | DH60: ='TC5'!AF216 -> 0 | DI60: ='TC5'!AG216 -> 0 | DJ60: ='TC5'!AH216 -> 0 | DK60: ='TC5'!AI216 -> 0 | DL60: ='TC5'!AJ216 -> 0 | DM60: ='TC5'!AK216 -> 0 | DN60: ='TC5'!AL216 -> 0 | DO60: ='TC5'!AM216 -> 0 | DP60: ='TC5'!AN216 -> 0 | DQ60: ='TC5'!AO216 -> 0 | DR60: ='TC5'!AP216 -> 0 | DS60: ='TC5'!AQ216 -> 0 | DT60: ='TC5'!AR216 -> 0 | DU60: ='TC5'!AS216 -> 0 | DV60: ='TC5'!AT216 -> 0 | DW60: ='TC5'!AU216 -> 0 | DX60: ='TC5'!AV216 -> 0 | DY60: ='TC5'!AW216 -> 0 | DZ60: ='TC5'!AX216 -> 0 | EA60: ='TC5'!AY216 -> 0 | EB60: ='TC5'!AZ216 -> 0 | EC60: ='TC5'!BA216 -> 0 | ED60: ='TC5'!BB216 -> 0 | EE60: ='TC5'!BC216 -> 0 | EF60: ='TC5'!BD216 -> 0 | EG60: ='TC5'!BE216 -> 0 | EH60: ='TC5'!BF216 -> 0 | EI60: ='TC5'!BG216 -> 0 | EJ60: ='TC5'!BH216 -> 0 | EL60: Spare | EM60: ='TC5'!K524 -> 0 | EN60: ='TC5'!L524 -> 0 | EO60: ='TC5'!M524 -> 0 | EP60: ='TC5'!N524 -> 0 | EQ60: ='TC5'!O524 -> 0 | ER60: ='TC5'!P524 -> 0 | ES60: ='TC5'!Q524 -> 0 | ET60: ='TC5'!R524 -> 0 | EU60: ='TC5'!S524 -> 0 | EV60: ='TC5'!T524 -> 0 | EW60: ='TC5'!U524 -> 0 | EX60: ='TC5'!V524 -> 0 | EY60: ='TC5'!W524 -> 0 | EZ60: ='TC5'!X524 -> 0 | FA60: ='TC5'!Y524 -> 0 | FB60: ='TC5'!Z524 -> 0 | FC60: ='TC5'!AA524 -> 0 | FD60: ='TC5'!AB524 -> 0 | FE60: ='TC5'!AC524 -> 0 | FF60: ='TC5'!AD524 -> 0 | FG60: ='TC5'!AE524 -> 0 | FH60: ='TC5'!AF524 -> 0 | FI60: ='TC5'!AG524 -> 0 | FJ60: ='TC5'!AH524 -> 0 | FK60: ='TC5'!AI524 -> 0 | FL60: ='TC5'!AJ524 -> 0 | FM60: ='TC5'!AK524 -> 0 | FN60: ='TC5'!AL524 -> 0 | FO60: ='TC5'!AM524 -> 0 | FP60: ='TC5'!AN524 -> 0 | FQ60: ='TC5'!AO524 -> 0 | FR60: ='TC5'!AP524 -> 0 | FS60: ='TC5'!AQ524 -> 0 | FT60: ='TC5'!AR524 -> 0 | FU60: ='TC5'!AS524 -> 0 | FV60: ='TC5'!AT524 -> 0 | FW60: ='TC5'!AU524 -> 0 | FX60: ='TC5'!AV524 -> 0 | FY60: ='TC5'!AW524 -> 0 | FZ60: ='TC5'!AX524 -> 0 | GA60: ='TC5'!AY524 -> 0 | GB60: ='TC5'!AZ524 -> 0 | GC60: ='TC5'!BA524 -> 0 | GD60: ='TC5'!BB524 -> 0 | GE60: ='TC5'!BC524 -> 0 | GF60: ='TC5'!BD524 -> 0 | GG60: ='TC5'!BE524 -> 0 | GH60: ='TC5'!BF524 -> 0 | GI60: ='TC5'!BG524 -> 0 | GJ60: ='TC5'!BH524 -> 0
B61: TRUE | C61: 51 | D61: Spare | E61: 0 | F61: 0 | G61: 0 | H61: 0 | I61: 0 | K61: 51 | L61: 0 | M61: 0 | N61: 0 | O61: 0 | P61: 0 | R61: 0 | S61: 0 | T61: 0 | U61: 0 | V61: 0 | X61: Spare | Y61: ='Tariff Smoothing - real'!N61 -> 0 | Z61: ='Tariff Smoothing - real'!O61 -> 0 | AA61: ='Tariff Smoothing - real'!P61 -> 0 | AB61: ='Tariff Smoothing - real'!Q61 -> 0 | AC61: ='Tariff Smoothing - real'!R61 -> 0 | AE61: ='Tariff Smoothing - real'!AE61 -> 0 | AF61: ='Tariff Smoothing - real'!AF61 -> 0 | AG61: ='Tariff Smoothing - real'!AG61 -> 0 | AH61: ='Tariff Smoothing - real'!AH61 -> 0 | AI61: ='Tariff Smoothing - real'!AI61 -> 0 | AK61: 0 | AL61: 0 | AM61: 0 | AN61: 0 | AO61: 0 | AQ61: =Annuity!C74 -> Spare | AR61: ='TC3'!K70+'TC3'!K227 -> 0 | AS61: ='TC3'!L70+'TC3'!L227 -> 0 | AT61: ='TC3'!M70+'TC3'!M227 -> 0 | AU61: ='TC3'!N70+'TC3'!N227 -> 0 | AV61: ='TC3'!O70+'TC3'!O227 -> 0 | AX61: ='TC3'!K385 -> 0 | AY61: ='TC3'!L385 -> 0 | AZ61: ='TC3'!M385 -> 0 | BA61: ='TC3'!N385 -> 0 | BB61: ='TC3'!O385 -> 0 | BD61: 0 | BE61: 0 | BF61: 0 | BG61: 0 | BH61: 0 | BI61: 0 | BK61: Spare | BL61: ='TC4'!L67 -> 0 | BM61: ='TC4'!M67 -> 0 | BN61: ='TC4'!N67 -> 0 | BO61: ='TC4'!O67 -> 0 | BP61: ='TC4'!P67 -> 0 | BR61: 0 | BS61: 0 | BT61: 0 | BU61: 0 | BV61: 0 | BX61: 0 | BY61: 0 | BZ61: 0 | CA61: 0 | CB61: 0 | CC61: 0 | CE61: Spare | CF61: ='TC5'!E682 -> 0 | CG61: ='TC5'!F682 -> 0 | CH61: ='TC5'!G682 -> 0 | CI61: ='TC5'!H682 -> 0 | CJ61: ='TC5'!I682 -> 0 | CL61: =Output!BK61 -> Spare | CM61: ='TC5'!K217 -> 0 | CN61: ='TC5'!L217 -> 0 | CO61: ='TC5'!M217 -> 0 | CP61: ='TC5'!N217 -> 0 | CQ61: ='TC5'!O217 -> 0 | CR61: ='TC5'!P217 -> 0 | CS61: ='TC5'!Q217 -> 0 | CT61: ='TC5'!R217 -> 0 | CU61: ='TC5'!S217 -> 0 | CV61: ='TC5'!T217 -> 0 | CW61: ='TC5'!U217 -> 0 | CX61: ='TC5'!V217 -> 0 | CY61: ='TC5'!W217 -> 0 | CZ61: ='TC5'!X217 -> 0 | DA61: ='TC5'!Y217 -> 0 | DB61: ='TC5'!Z217 -> 0 | DC61: ='TC5'!AA217 -> 0 | DD61: ='TC5'!AB217 -> 0 | DE61: ='TC5'!AC217 -> 0 | DF61: ='TC5'!AD217 -> 0 | DG61: ='TC5'!AE217 -> 0 | DH61: ='TC5'!AF217 -> 0 | DI61: ='TC5'!AG217 -> 0 | DJ61: ='TC5'!AH217 -> 0 | DK61: ='TC5'!AI217 -> 0 | DL61: ='TC5'!AJ217 -> 0 | DM61: ='TC5'!AK217 -> 0 | DN61: ='TC5'!AL217 -> 0 | DO61: ='TC5'!AM217 -> 0 | DP61: ='TC5'!AN217 -> 0 | DQ61: ='TC5'!AO217 -> 0 | DR61: ='TC5'!AP217 -> 0 | DS61: ='TC5'!AQ217 -> 0 | DT61: ='TC5'!AR217 -> 0 | DU61: ='TC5'!AS217 -> 0 | DV61: ='TC5'!AT217 -> 0 | DW61: ='TC5'!AU217 -> 0 | DX61: ='TC5'!AV217 -> 0 | DY61: ='TC5'!AW217 -> 0 | DZ61: ='TC5'!AX217 -> 0 | EA61: ='TC5'!AY217 -> 0 | EB61: ='TC5'!AZ217 -> 0 | EC61: ='TC5'!BA217 -> 0 | ED61: ='TC5'!BB217 -> 0 | EE61: ='TC5'!BC217 -> 0 | EF61: ='TC5'!BD217 -> 0 | EG61: ='TC5'!BE217 -> 0 | EH61: ='TC5'!BF217 -> 0 | EI61: ='TC5'!BG217 -> 0 | EJ61: ='TC5'!BH217 -> 0 | EL61: Spare | EM61: ='TC5'!K525 -> 0 | EN61: ='TC5'!L525 -> 0 | EO61: ='TC5'!M525 -> 0 | EP61: ='TC5'!N525 -> 0 | EQ61: ='TC5'!O525 -> 0 | ER61: ='TC5'!P525 -> 0 | ES61: ='TC5'!Q525 -> 0 | ET61: ='TC5'!R525 -> 0 | EU61: ='TC5'!S525 -> 0 | EV61: ='TC5'!T525 -> 0 | EW61: ='TC5'!U525 -> 0 | EX61: ='TC5'!V525 -> 0 | EY61: ='TC5'!W525 -> 0 | EZ61: ='TC5'!X525 -> 0 | FA61: ='TC5'!Y525 -> 0 | FB61: ='TC5'!Z525 -> 0 | FC61: ='TC5'!AA525 -> 0 | FD61: ='TC5'!AB525 -> 0 | FE61: ='TC5'!AC525 -> 0 | FF61: ='TC5'!AD525 -> 0 | FG61: ='TC5'!AE525 -> 0 | FH61: ='TC5'!AF525 -> 0 | FI61: ='TC5'!AG525 -> 0 | FJ61: ='TC5'!AH525 -> 0 | FK61: ='TC5'!AI525 -> 0 | FL61: ='TC5'!AJ525 -> 0 | FM61: ='TC5'!AK525 -> 0 | FN61: ='TC5'!AL525 -> 0 | FO61: ='TC5'!AM525 -> 0 | FP61: ='TC5'!AN525 -> 0 | FQ61: ='TC5'!AO525 -> 0 | FR61: ='TC5'!AP525 -> 0 | FS61: ='TC5'!AQ525 -> 0 | FT61: ='TC5'!AR525 -> 0 | FU61: ='TC5'!AS525 -> 0 | FV61: ='TC5'!AT525 -> 0 | FW61: ='TC5'!AU525 -> 0 | FX61: ='TC5'!AV525 -> 0 | FY61: ='TC5'!AW525 -> 0 | FZ61: ='TC5'!AX525 -> 0 | GA61: ='TC5'!AY525 -> 0 | GB61: ='TC5'!AZ525 -> 0 | GC61: ='TC5'!BA525 -> 0 | GD61: ='TC5'!BB525 -> 0 | GE61: ='TC5'!BC525 -> 0 | GF61: ='TC5'!BD525 -> 0 | GG61: ='TC5'!BE525 -> 0 | GH61: ='TC5'!BF525 -> 0 | GI61: ='TC5'!BG525 -> 0 | GJ61: ='TC5'!BH525 -> 0
B62: TRUE | C62: 52 | D62: Spare | E62: 0 | F62: 0 | G62: 0 | H62: 0 | I62: 0 | K62: 52 | L62: 0 | M62: 0 | N62: 0 | O62: 0 | P62: 0 | R62: 0 | S62: 0 | T62: 0 | U62: 0 | V62: 0 | X62: Spare | Y62: ='Tariff Smoothing - real'!N62 -> 0 | Z62: ='Tariff Smoothing - real'!O62 -> 0 | AA62: ='Tariff Smoothing - real'!P62 -> 0 | AB62: ='Tariff Smoothing - real'!Q62 -> 0 | AC62: ='Tariff Smoothing - real'!R62 -> 0 | AE62: ='Tariff Smoothing - real'!AE62 -> 0 | AF62: ='Tariff Smoothing - real'!AF62 -> 0 | AG62: ='Tariff Smoothing - real'!AG62 -> 0 | AH62: ='Tariff Smoothing - real'!AH62 -> 0 | AI62: ='Tariff Smoothing - real'!AI62 -> 0 | AK62: 0 | AL62: 0 | AM62: 0 | AN62: 0 | AO62: 0 | AQ62: =Annuity!C75 -> Spare | AR62: ='TC3'!K71+'TC3'!K228 -> 0 | AS62: ='TC3'!L71+'TC3'!L228 -> 0 | AT62: ='TC3'!M71+'TC3'!M228 -> 0 | AU62: ='TC3'!N71+'TC3'!N228 -> 0 | AV62: ='TC3'!O71+'TC3'!O228 -> 0 | AX62: ='TC3'!K386 -> 0 | AY62: ='TC3'!L386 -> 0 | AZ62: ='TC3'!M386 -> 0 | BA62: ='TC3'!N386 -> 0 | BB62: ='TC3'!O386 -> 0 | BD62: 0 | BE62: 0 | BF62: 0 | BG62: 0 | BH62: 0 | BI62: 0 | BK62: Spare | BL62: ='TC4'!L68 -> 0 | BM62: ='TC4'!M68 -> 0 | BN62: ='TC4'!N68 -> 0 | BO62: ='TC4'!O68 -> 0 | BP62: ='TC4'!P68 -> 0 | BR62: 0 | BS62: 0 | BT62: 0 | BU62: 0 | BV62: 0 | BX62: 0 | BY62: 0 | BZ62: 0 | CA62: 0 | CB62: 0 | CC62: 0 | CE62: Spare | CF62: ='TC5'!E683 -> 0 | CG62: ='TC5'!F683 -> 0 | CH62: ='TC5'!G683 -> 0 | CI62: ='TC5'!H683 -> 0 | CJ62: ='TC5'!I683 -> 0 | CL62: =Output!BK62 -> Spare | CM62: ='TC5'!K218 -> 0 | CN62: ='TC5'!L218 -> 0 | CO62: ='TC5'!M218 -> 0 | CP62: ='TC5'!N218 -> 0 | CQ62: ='TC5'!O218 -> 0 | CR62: ='TC5'!P218 -> 0 | CS62: ='TC5'!Q218 -> 0 | CT62: ='TC5'!R218 -> 0 | CU62: ='TC5'!S218 -> 0 | CV62: ='TC5'!T218 -> 0 | CW62: ='TC5'!U218 -> 0 | CX62: ='TC5'!V218 -> 0 | CY62: ='TC5'!W218 -> 0 | CZ62: ='TC5'!X218 -> 0 | DA62: ='TC5'!Y218 -> 0 | DB62: ='TC5'!Z218 -> 0 | DC62: ='TC5'!AA218 -> 0 | DD62: ='TC5'!AB218 -> 0 | DE62: ='TC5'!AC218 -> 0 | DF62: ='TC5'!AD218 -> 0 | DG62: ='TC5'!AE218 -> 0 | DH62: ='TC5'!AF218 -> 0 | DI62: ='TC5'!AG218 -> 0 | DJ62: ='TC5'!AH218 -> 0 | DK62: ='TC5'!AI218 -> 0 | DL62: ='TC5'!AJ218 -> 0 | DM62: ='TC5'!AK218 -> 0 | DN62: ='TC5'!AL218 -> 0 | DO62: ='TC5'!AM218 -> 0 | DP62: ='TC5'!AN218 -> 0 | DQ62: ='TC5'!AO218 -> 0 | DR62: ='TC5'!AP218 -> 0 | DS62: ='TC5'!AQ218 -> 0 | DT62: ='TC5'!AR218 -> 0 | DU62: ='TC5'!AS218 -> 0 | DV62: ='TC5'!AT218 -> 0 | DW62: ='TC5'!AU218 -> 0 | DX62: ='TC5'!AV218 -> 0 | DY62: ='TC5'!AW218 -> 0 | DZ62: ='TC5'!AX218 -> 0 | EA62: ='TC5'!AY218 -> 0 | EB62: ='TC5'!AZ218 -> 0 | EC62: ='TC5'!BA218 -> 0 | ED62: ='TC5'!BB218 -> 0 | EE62: ='TC5'!BC218 -> 0 | EF62: ='TC5'!BD218 -> 0 | EG62: ='TC5'!BE218 -> 0 | EH62: ='TC5'!BF218 -> 0 | EI62: ='TC5'!BG218 -> 0 | EJ62: ='TC5'!BH218 -> 0 | EL62: Spare | EM62: ='TC5'!K526 -> 0 | EN62: ='TC5'!L526 -> 0 | EO62: ='TC5'!M526 -> 0 | EP62: ='TC5'!N526 -> 0 | EQ62: ='TC5'!O526 -> 0 | ER62: ='TC5'!P526 -> 0 | ES62: ='TC5'!Q526 -> 0 | ET62: ='TC5'!R526 -> 0 | EU62: ='TC5'!S526 -> 0 | EV62: ='TC5'!T526 -> 0 | EW62: ='TC5'!U526 -> 0 | EX62: ='TC5'!V526 -> 0 | EY62: ='TC5'!W526 -> 0 | EZ62: ='TC5'!X526 -> 0 | FA62: ='TC5'!Y526 -> 0 | FB62: ='TC5'!Z526 -> 0 | FC62: ='TC5'!AA526 -> 0 | FD62: ='TC5'!AB526 -> 0 | FE62: ='TC5'!AC526 -> 0 | FF62: ='TC5'!AD526 -> 0 | FG62: ='TC5'!AE526 -> 0 | FH62: ='TC5'!AF526 -> 0 | FI62: ='TC5'!AG526 -> 0 | FJ62: ='TC5'!AH526 -> 0 | FK62: ='TC5'!AI526 -> 0 | FL62: ='TC5'!AJ526 -> 0 | FM62: ='TC5'!AK526 -> 0 | FN62: ='TC5'!AL526 -> 0 | FO62: ='TC5'!AM526 -> 0 | FP62: ='TC5'!AN526 -> 0 | FQ62: ='TC5'!AO526 -> 0 | FR62: ='TC5'!AP526 -> 0 | FS62: ='TC5'!AQ526 -> 0 | FT62: ='TC5'!AR526 -> 0 | FU62: ='TC5'!AS526 -> 0 | FV62: ='TC5'!AT526 -> 0 | FW62: ='TC5'!AU526 -> 0 | FX62: ='TC5'!AV526 -> 0 | FY62: ='TC5'!AW526 -> 0 | FZ62: ='TC5'!AX526 -> 0 | GA62: ='TC5'!AY526 -> 0 | GB62: ='TC5'!AZ526 -> 0 | GC62: ='TC5'!BA526 -> 0 | GD62: ='TC5'!BB526 -> 0 | GE62: ='TC5'!BC526 -> 0 | GF62: ='TC5'!BD526 -> 0 | GG62: ='TC5'!BE526 -> 0 | GH62: ='TC5'!BF526 -> 0 | GI62: ='TC5'!BG526 -> 0 | GJ62: ='TC5'!BH526 -> 0
B63: TRUE | C63: 53 | D63: Spare | E63: 0 | F63: 0 | G63: 0 | H63: 0 | I63: 0 | K63: 53 | L63: 0 | M63: 0 | N63: 0 | O63: 0 | P63: 0 | R63: 0 | S63: 0 | T63: 0 | U63: 0 | V63: 0 | X63: Spare | Y63: ='Tariff Smoothing - real'!N63 -> 0 | Z63: ='Tariff Smoothing - real'!O63 -> 0 | AA63: ='Tariff Smoothing - real'!P63 -> 0 | AB63: ='Tariff Smoothing - real'!Q63 -> 0 | AC63: ='Tariff Smoothing - real'!R63 -> 0 | AE63: ='Tariff Smoothing - real'!AE63 -> 0 | AF63: ='Tariff Smoothing - real'!AF63 -> 0 | AG63: ='Tariff Smoothing - real'!AG63 -> 0 | AH63: ='Tariff Smoothing - real'!AH63 -> 0 | AI63: ='Tariff Smoothing - real'!AI63 -> 0 | AK63: 0 | AL63: 0 | AM63: 0 | AN63: 0 | AO63: 0 | AQ63: =Annuity!C76 -> Spare | AR63: ='TC3'!K72+'TC3'!K229 -> 0 | AS63: ='TC3'!L72+'TC3'!L229 -> 0 | AT63: ='TC3'!M72+'TC3'!M229 -> 0 | AU63: ='TC3'!N72+'TC3'!N229 -> 0 | AV63: ='TC3'!O72+'TC3'!O229 -> 0 | AX63: ='TC3'!K387 -> 0 | AY63: ='TC3'!L387 -> 0 | AZ63: ='TC3'!M387 -> 0 | BA63: ='TC3'!N387 -> 0 | BB63: ='TC3'!O387 -> 0 | BD63: 0 | BE63: 0 | BF63: 0 | BG63: 0 | BH63: 0 | BI63: 0 | BK63: Spare | BL63: ='TC4'!L69 -> 0 | BM63: ='TC4'!M69 -> 0 | BN63: ='TC4'!N69 -> 0 | BO63: ='TC4'!O69 -> 0 | BP63: ='TC4'!P69 -> 0 | BR63: 0 | BS63: 0 | BT63: 0 | BU63: 0 | BV63: 0 | BX63: 0 | BY63: 0 | BZ63: 0 | CA63: 0 | CB63: 0 | CC63: 0 | CE63: Spare | CF63: ='TC5'!E684 -> 0 | CG63: ='TC5'!F684 -> 0 | CH63: ='TC5'!G684 -> 0 | CI63: ='TC5'!H684 -> 0 | CJ63: ='TC5'!I684 -> 0 | CL63: =Output!BK63 -> Spare | CM63: ='TC5'!K219 -> 0 | CN63: ='TC5'!L219 -> 0 | CO63: ='TC5'!M219 -> 0 | CP63: ='TC5'!N219 -> 0 | CQ63: ='TC5'!O219 -> 0 | CR63: ='TC5'!P219 -> 0 | CS63: ='TC5'!Q219 -> 0 | CT63: ='TC5'!R219 -> 0 | CU63: ='TC5'!S219 -> 0 | CV63: ='TC5'!T219 -> 0 | CW63: ='TC5'!U219 -> 0 | CX63: ='TC5'!V219 -> 0 | CY63: ='TC5'!W219 -> 0 | CZ63: ='TC5'!X219 -> 0 | DA63: ='TC5'!Y219 -> 0 | DB63: ='TC5'!Z219 -> 0 | DC63: ='TC5'!AA219 -> 0 | DD63: ='TC5'!AB219 -> 0 | DE63: ='TC5'!AC219 -> 0 | DF63: ='TC5'!AD219 -> 0 | DG63: ='TC5'!AE219 -> 0 | DH63: ='TC5'!AF219 -> 0 | DI63: ='TC5'!AG219 -> 0 | DJ63: ='TC5'!AH219 -> 0 | DK63: ='TC5'!AI219 -> 0 | DL63: ='TC5'!AJ219 -> 0 | DM63: ='TC5'!AK219 -> 0 | DN63: ='TC5'!AL219 -> 0 | DO63: ='TC5'!AM219 -> 0 | DP63: ='TC5'!AN219 -> 0 | DQ63: ='TC5'!AO219 -> 0 | DR63: ='TC5'!AP219 -> 0 | DS63: ='TC5'!AQ219 -> 0 | DT63: ='TC5'!AR219 -> 0 | DU63: ='TC5'!AS219 -> 0 | DV63: ='TC5'!AT219 -> 0 | DW63: ='TC5'!AU219 -> 0 | DX63: ='TC5'!AV219 -> 0 | DY63: ='TC5'!AW219 -> 0 | DZ63: ='TC5'!AX219 -> 0 | EA63: ='TC5'!AY219 -> 0 | EB63: ='TC5'!AZ219 -> 0 | EC63: ='TC5'!BA219 -> 0 | ED63: ='TC5'!BB219 -> 0 | EE63: ='TC5'!BC219 -> 0 | EF63: ='TC5'!BD219 -> 0 | EG63: ='TC5'!BE219 -> 0 | EH63: ='TC5'!BF219 -> 0 | EI63: ='TC5'!BG219 -> 0 | EJ63: ='TC5'!BH219 -> 0 | EL63: Spare | EM63: ='TC5'!K527 -> 0 | EN63: ='TC5'!L527 -> 0 | EO63: ='TC5'!M527 -> 0 | EP63: ='TC5'!N527 -> 0 | EQ63: ='TC5'!O527 -> 0 | ER63: ='TC5'!P527 -> 0 | ES63: ='TC5'!Q527 -> 0 | ET63: ='TC5'!R527 -> 0 | EU63: ='TC5'!S527 -> 0 | EV63: ='TC5'!T527 -> 0 | EW63: ='TC5'!U527 -> 0 | EX63: ='TC5'!V527 -> 0 | EY63: ='TC5'!W527 -> 0 | EZ63: ='TC5'!X527 -> 0 | FA63: ='TC5'!Y527 -> 0 | FB63: ='TC5'!Z527 -> 0 | FC63: ='TC5'!AA527 -> 0 | FD63: ='TC5'!AB527 -> 0 | FE63: ='TC5'!AC527 -> 0 | FF63: ='TC5'!AD527 -> 0 | FG63: ='TC5'!AE527 -> 0 | FH63: ='TC5'!AF527 -> 0 | FI63: ='TC5'!AG527 -> 0 | FJ63: ='TC5'!AH527 -> 0 | FK63: ='TC5'!AI527 -> 0 | FL63: ='TC5'!AJ527 -> 0 | FM63: ='TC5'!AK527 -> 0 | FN63: ='TC5'!AL527 -> 0 | FO63: ='TC5'!AM527 -> 0 | FP63: ='TC5'!AN527 -> 0 | FQ63: ='TC5'!AO527 -> 0 | FR63: ='TC5'!AP527 -> 0 | FS63: ='TC5'!AQ527 -> 0 | FT63: ='TC5'!AR527 -> 0 | FU63: ='TC5'!AS527 -> 0 | FV63: ='TC5'!AT527 -> 0 | FW63: ='TC5'!AU527 -> 0 | FX63: ='TC5'!AV527 -> 0 | FY63: ='TC5'!AW527 -> 0 | FZ63: ='TC5'!AX527 -> 0 | GA63: ='TC5'!AY527 -> 0 | GB63: ='TC5'!AZ527 -> 0 | GC63: ='TC5'!BA527 -> 0 | GD63: ='TC5'!BB527 -> 0 | GE63: ='TC5'!BC527 -> 0 | GF63: ='TC5'!BD527 -> 0 | GG63: ='TC5'!BE527 -> 0 | GH63: ='TC5'!BF527 -> 0 | GI63: ='TC5'!BG527 -> 0 | GJ63: ='TC5'!BH527 -> 0
B64: TRUE | C64: 54 | D64: Spare | E64: 0 | F64: 0 | G64: 0 | H64: 0 | I64: 0 | K64: 54 | L64: 0 | M64: 0 | N64: 0 | O64: 0 | P64: 0 | R64: 0 | S64: 0 | T64: 0 | U64: 0 | V64: 0 | X64: Spare | Y64: ='Tariff Smoothing - real'!N64 -> 0 | Z64: ='Tariff Smoothing - real'!O64 -> 0 | AA64: ='Tariff Smoothing - real'!P64 -> 0 | AB64: ='Tariff Smoothing - real'!Q64 -> 0 | AC64: ='Tariff Smoothing - real'!R64 -> 0 | AE64: ='Tariff Smoothing - real'!AE64 -> 0 | AF64: ='Tariff Smoothing - real'!AF64 -> 0 | AG64: ='Tariff Smoothing - real'!AG64 -> 0 | AH64: ='Tariff Smoothing - real'!AH64 -> 0 | AI64: ='Tariff Smoothing - real'!AI64 -> 0 | AK64: 0 | AL64: 0 | AM64: 0 | AN64: 0 | AO64: 0 | AQ64: =Annuity!C77 -> Spare | AR64: ='TC3'!K73+'TC3'!K230 -> 0 | AS64: ='TC3'!L73+'TC3'!L230 -> 0 | AT64: ='TC3'!M73+'TC3'!M230 -> 0 | AU64: ='TC3'!N73+'TC3'!N230 -> 0 | AV64: ='TC3'!O73+'TC3'!O230 -> 0 | AX64: ='TC3'!K388 -> 0 | AY64: ='TC3'!L388 -> 0 | AZ64: ='TC3'!M388 -> 0 | BA64: ='TC3'!N388 -> 0 | BB64: ='TC3'!O388 -> 0 | BD64: 0 | BE64: 0 | BF64: 0 | BG64: 0 | BH64: 0 | BI64: 0 | BK64: Spare | BL64: ='TC4'!L70 -> 0 | BM64: ='TC4'!M70 -> 0 | BN64: ='TC4'!N70 -> 0 | BO64: ='TC4'!O70 -> 0 | BP64: ='TC4'!P70 -> 0 | BR64: 0 | BS64: 0 | BT64: 0 | BU64: 0 | BV64: 0 | BX64: 0 | BY64: 0 | BZ64: 0 | CA64: 0 | CB64: 0 | CC64: 0 | CE64: Spare | CF64: ='TC5'!E685 -> 0 | CG64: ='TC5'!F685 -> 0 | CH64: ='TC5'!G685 -> 0 | CI64: ='TC5'!H685 -> 0 | CJ64: ='TC5'!I685 -> 0 | CL64: =Output!BK64 -> Spare | CM64: ='TC5'!K220 -> 0 | CN64: ='TC5'!L220 -> 0 | CO64: ='TC5'!M220 -> 0 | CP64: ='TC5'!N220 -> 0 | CQ64: ='TC5'!O220 -> 0 | CR64: ='TC5'!P220 -> 0 | CS64: ='TC5'!Q220 -> 0 | CT64: ='TC5'!R220 -> 0 | CU64: ='TC5'!S220 -> 0 | CV64: ='TC5'!T220 -> 0 | CW64: ='TC5'!U220 -> 0 | CX64: ='TC5'!V220 -> 0 | CY64: ='TC5'!W220 -> 0 | CZ64: ='TC5'!X220 -> 0 | DA64: ='TC5'!Y220 -> 0 | DB64: ='TC5'!Z220 -> 0 | DC64: ='TC5'!AA220 -> 0 | DD64: ='TC5'!AB220 -> 0 | DE64: ='TC5'!AC220 -> 0 | DF64: ='TC5'!AD220 -> 0 | DG64: ='TC5'!AE220 -> 0 | DH64: ='TC5'!AF220 -> 0 | DI64: ='TC5'!AG220 -> 0 | DJ64: ='TC5'!AH220 -> 0 | DK64: ='TC5'!AI220 -> 0 | DL64: ='TC5'!AJ220 -> 0 | DM64: ='TC5'!AK220 -> 0 | DN64: ='TC5'!AL220 -> 0 | DO64: ='TC5'!AM220 -> 0 | DP64: ='TC5'!AN220 -> 0 | DQ64: ='TC5'!AO220 -> 0 | DR64: ='TC5'!AP220 -> 0 | DS64: ='TC5'!AQ220 -> 0 | DT64: ='TC5'!AR220 -> 0 | DU64: ='TC5'!AS220 -> 0 | DV64: ='TC5'!AT220 -> 0 | DW64: ='TC5'!AU220 -> 0 | DX64: ='TC5'!AV220 -> 0 | DY64: ='TC5'!AW220 -> 0 | DZ64: ='TC5'!AX220 -> 0 | EA64: ='TC5'!AY220 -> 0 | EB64: ='TC5'!AZ220 -> 0 | EC64: ='TC5'!BA220 -> 0 | ED64: ='TC5'!BB220 -> 0 | EE64: ='TC5'!BC220 -> 0 | EF64: ='TC5'!BD220 -> 0 | EG64: ='TC5'!BE220 -> 0 | EH64: ='TC5'!BF220 -> 0 | EI64: ='TC5'!BG220 -> 0 | EJ64: ='TC5'!BH220 -> 0 | EL64: Spare | EM64: ='TC5'!K528 -> 0 | EN64: ='TC5'!L528 -> 0 | EO64: ='TC5'!M528 -> 0 | EP64: ='TC5'!N528 -> 0 | EQ64: ='TC5'!O528 -> 0 | ER64: ='TC5'!P528 -> 0 | ES64: ='TC5'!Q528 -> 0 | ET64: ='TC5'!R528 -> 0 | EU64: ='TC5'!S528 -> 0 | EV64: ='TC5'!T528 -> 0 | EW64: ='TC5'!U528 -> 0 | EX64: ='TC5'!V528 -> 0 | EY64: ='TC5'!W528 -> 0 | EZ64: ='TC5'!X528 -> 0 | FA64: ='TC5'!Y528 -> 0 | FB64: ='TC5'!Z528 -> 0 | FC64: ='TC5'!AA528 -> 0 | FD64: ='TC5'!AB528 -> 0 | FE64: ='TC5'!AC528 -> 0 | FF64: ='TC5'!AD528 -> 0 | FG64: ='TC5'!AE528 -> 0 | FH64: ='TC5'!AF528 -> 0 | FI64: ='TC5'!AG528 -> 0 | FJ64: ='TC5'!AH528 -> 0 | FK64: ='TC5'!AI528 -> 0 | FL64: ='TC5'!AJ528 -> 0 | FM64: ='TC5'!AK528 -> 0 | FN64: ='TC5'!AL528 -> 0 | FO64: ='TC5'!AM528 -> 0 | FP64: ='TC5'!AN528 -> 0 | FQ64: ='TC5'!AO528 -> 0 | FR64: ='TC5'!AP528 -> 0 | FS64: ='TC5'!AQ528 -> 0 | FT64: ='TC5'!AR528 -> 0 | FU64: ='TC5'!AS528 -> 0 | FV64: ='TC5'!AT528 -> 0 | FW64: ='TC5'!AU528 -> 0 | FX64: ='TC5'!AV528 -> 0 | FY64: ='TC5'!AW528 -> 0 | FZ64: ='TC5'!AX528 -> 0 | GA64: ='TC5'!AY528 -> 0 | GB64: ='TC5'!AZ528 -> 0 | GC64: ='TC5'!BA528 -> 0 | GD64: ='TC5'!BB528 -> 0 | GE64: ='TC5'!BC528 -> 0 | GF64: ='TC5'!BD528 -> 0 | GG64: ='TC5'!BE528 -> 0 | GH64: ='TC5'!BF528 -> 0 | GI64: ='TC5'!BG528 -> 0 | GJ64: ='TC5'!BH528 -> 0
B65: TRUE | C65: 55 | D65: Spare | E65: 0 | F65: 0 | G65: 0 | H65: 0 | I65: 0 | K65: 55 | L65: 0 | M65: 0 | N65: 0 | O65: 0 | P65: 0 | R65: 0 | S65: 0 | T65: 0 | U65: 0 | V65: 0 | X65: Spare | Y65: ='Tariff Smoothing - real'!N65 -> 0 | Z65: ='Tariff Smoothing - real'!O65 -> 0 | AA65: ='Tariff Smoothing - real'!P65 -> 0 | AB65: ='Tariff Smoothing - real'!Q65 -> 0 | AC65: ='Tariff Smoothing - real'!R65 -> 0 | AE65: ='Tariff Smoothing - real'!AE65 -> 0 | AF65: ='Tariff Smoothing - real'!AF65 -> 0 | AG65: ='Tariff Smoothing - real'!AG65 -> 0 | AH65: ='Tariff Smoothing - real'!AH65 -> 0 | AI65: ='Tariff Smoothing - real'!AI65 -> 0 | AK65: 0 | AL65: 0 | AM65: 0 | AN65: 0 | AO65: 0 | AQ65: =Annuity!C78 -> Spare | AR65: ='TC3'!K74+'TC3'!K231 -> 0 | AS65: ='TC3'!L74+'TC3'!L231 -> 0 | AT65: ='TC3'!M74+'TC3'!M231 -> 0 | AU65: ='TC3'!N74+'TC3'!N231 -> 0 | AV65: ='TC3'!O74+'TC3'!O231 -> 0 | AX65: ='TC3'!K389 -> 0 | AY65: ='TC3'!L389 -> 0 | AZ65: ='TC3'!M389 -> 0 | BA65: ='TC3'!N389 -> 0 | BB65: ='TC3'!O389 -> 0 | BD65: 0 | BE65: 0 | BF65: 0 | BG65: 0 | BH65: 0 | BI65: 0 | BK65: Spare | BL65: ='TC4'!L71 -> 0 | BM65: ='TC4'!M71 -> 0 | BN65: ='TC4'!N71 -> 0 | BO65: ='TC4'!O71 -> 0 | BP65: ='TC4'!P71 -> 0 | BR65: 0 | BS65: 0 | BT65: 0 | BU65: 0 | BV65: 0 | BX65: 0 | BY65: 0 | BZ65: 0 | CA65: 0 | CB65: 0 | CC65: 0 | CE65: Spare | CF65: ='TC5'!E686 -> 0 | CG65: ='TC5'!F686 -> 0 | CH65: ='TC5'!G686 -> 0 | CI65: ='TC5'!H686 -> 0 | CJ65: ='TC5'!I686 -> 0 | CL65: =Output!BK65 -> Spare | CM65: ='TC5'!K221 -> 0 | CN65: ='TC5'!L221 -> 0 | CO65: ='TC5'!M221 -> 0 | CP65: ='TC5'!N221 -> 0 | CQ65: ='TC5'!O221 -> 0 | CR65: ='TC5'!P221 -> 0 | CS65: ='TC5'!Q221 -> 0 | CT65: ='TC5'!R221 -> 0 | CU65: ='TC5'!S221 -> 0 | CV65: ='TC5'!T221 -> 0 | CW65: ='TC5'!U221 -> 0 | CX65: ='TC5'!V221 -> 0 | CY65: ='TC5'!W221 -> 0 | CZ65: ='TC5'!X221 -> 0 | DA65: ='TC5'!Y221 -> 0 | DB65: ='TC5'!Z221 -> 0 | DC65: ='TC5'!AA221 -> 0 | DD65: ='TC5'!AB221 -> 0 | DE65: ='TC5'!AC221 -> 0 | DF65: ='TC5'!AD221 -> 0 | DG65: ='TC5'!AE221 -> 0 | DH65: ='TC5'!AF221 -> 0 | DI65: ='TC5'!AG221 -> 0 | DJ65: ='TC5'!AH221 -> 0 | DK65: ='TC5'!AI221 -> 0 | DL65: ='TC5'!AJ221 -> 0 | DM65: ='TC5'!AK221 -> 0 | DN65: ='TC5'!AL221 -> 0 | DO65: ='TC5'!AM221 -> 0 | DP65: ='TC5'!AN221 -> 0 | DQ65: ='TC5'!AO221 -> 0 | DR65: ='TC5'!AP221 -> 0 | DS65: ='TC5'!AQ221 -> 0 | DT65: ='TC5'!AR221 -> 0 | DU65: ='TC5'!AS221 -> 0 | DV65: ='TC5'!AT221 -> 0 | DW65: ='TC5'!AU221 -> 0 | DX65: ='TC5'!AV221 -> 0 | DY65: ='TC5'!AW221 -> 0 | DZ65: ='TC5'!AX221 -> 0 | EA65: ='TC5'!AY221 -> 0 | EB65: ='TC5'!AZ221 -> 0 | EC65: ='TC5'!BA221 -> 0 | ED65: ='TC5'!BB221 -> 0 | EE65: ='TC5'!BC221 -> 0 | EF65: ='TC5'!BD221 -> 0 | EG65: ='TC5'!BE221 -> 0 | EH65: ='TC5'!BF221 -> 0 | EI65: ='TC5'!BG221 -> 0 | EJ65: ='TC5'!BH221 -> 0 | EL65: Spare | EM65: ='TC5'!K529 -> 0 | EN65: ='TC5'!L529 -> 0 | EO65: ='TC5'!M529 -> 0 | EP65: ='TC5'!N529 -> 0 | EQ65: ='TC5'!O529 -> 0 | ER65: ='TC5'!P529 -> 0 | ES65: ='TC5'!Q529 -> 0 | ET65: ='TC5'!R529 -> 0 | EU65: ='TC5'!S529 -> 0 | EV65: ='TC5'!T529 -> 0 | EW65: ='TC5'!U529 -> 0 | EX65: ='TC5'!V529 -> 0 | EY65: ='TC5'!W529 -> 0 | EZ65: ='TC5'!X529 -> 0 | FA65: ='TC5'!Y529 -> 0 | FB65: ='TC5'!Z529 -> 0 | FC65: ='TC5'!AA529 -> 0 | FD65: ='TC5'!AB529 -> 0 | FE65: ='TC5'!AC529 -> 0 | FF65: ='TC5'!AD529 -> 0 | FG65: ='TC5'!AE529 -> 0 | FH65: ='TC5'!AF529 -> 0 | FI65: ='TC5'!AG529 -> 0 | FJ65: ='TC5'!AH529 -> 0 | FK65: ='TC5'!AI529 -> 0 | FL65: ='TC5'!AJ529 -> 0 | FM65: ='TC5'!AK529 -> 0 | FN65: ='TC5'!AL529 -> 0 | FO65: ='TC5'!AM529 -> 0 | FP65: ='TC5'!AN529 -> 0 | FQ65: ='TC5'!AO529 -> 0 | FR65: ='TC5'!AP529 -> 0 | FS65: ='TC5'!AQ529 -> 0 | FT65: ='TC5'!AR529 -> 0 | FU65: ='TC5'!AS529 -> 0 | FV65: ='TC5'!AT529 -> 0 | FW65: ='TC5'!AU529 -> 0 | FX65: ='TC5'!AV529 -> 0 | FY65: ='TC5'!AW529 -> 0 | FZ65: ='TC5'!AX529 -> 0 | GA65: ='TC5'!AY529 -> 0 | GB65: ='TC5'!AZ529 -> 0 | GC65: ='TC5'!BA529 -> 0 | GD65: ='TC5'!BB529 -> 0 | GE65: ='TC5'!BC529 -> 0 | GF65: ='TC5'!BD529 -> 0 | GG65: ='TC5'!BE529 -> 0 | GH65: ='TC5'!BF529 -> 0 | GI65: ='TC5'!BG529 -> 0 | GJ65: ='TC5'!BH529 -> 0
B66: TRUE | C66: 56 | D66: Spare | E66: 0 | F66: 0 | G66: 0 | H66: 0 | I66: 0 | K66: 56 | L66: 0 | M66: 0 | N66: 0 | O66: 0 | P66: 0 | R66: 0 | S66: 0 | T66: 0 | U66: 0 | V66: 0 | X66: Spare | Y66: ='Tariff Smoothing - real'!N66 -> 0 | Z66: ='Tariff Smoothing - real'!O66 -> 0 | AA66: ='Tariff Smoothing - real'!P66 -> 0 | AB66: ='Tariff Smoothing - real'!Q66 -> 0 | AC66: ='Tariff Smoothing - real'!R66 -> 0 | AE66: ='Tariff Smoothing - real'!AE66 -> 0 | AF66: ='Tariff Smoothing - real'!AF66 -> 0 | AG66: ='Tariff Smoothing - real'!AG66 -> 0 | AH66: ='Tariff Smoothing - real'!AH66 -> 0 | AI66: ='Tariff Smoothing - real'!AI66 -> 0 | AK66: 0 | AL66: 0 | AM66: 0 | AN66: 0 | AO66: 0 | AQ66: =Annuity!C79 -> Spare | AR66: ='TC3'!K75+'TC3'!K232 -> 0 | AS66: ='TC3'!L75+'TC3'!L232 -> 0 | AT66: ='TC3'!M75+'TC3'!M232 -> 0 | AU66: ='TC3'!N75+'TC3'!N232 -> 0 | AV66: ='TC3'!O75+'TC3'!O232 -> 0 | AX66: ='TC3'!K390 -> 0 | AY66: ='TC3'!L390 -> 0 | AZ66: ='TC3'!M390 -> 0 | BA66: ='TC3'!N390 -> 0 | BB66: ='TC3'!O390 -> 0 | BD66: 0 | BE66: 0 | BF66: 0 | BG66: 0 | BH66: 0 | BI66: 0 | BK66: Spare | BL66: ='TC4'!L72 -> 0 | BM66: ='TC4'!M72 -> 0 | BN66: ='TC4'!N72 -> 0 | BO66: ='TC4'!O72 -> 0 | BP66: ='TC4'!P72 -> 0 | BR66: 0 | BS66: 0 | BT66: 0 | BU66: 0 | BV66: 0 | BX66: 0 | BY66: 0 | BZ66: 0 | CA66: 0 | CB66: 0 | CC66: 0 | CE66: Spare | CF66: ='TC5'!E687 -> 0 | CG66: ='TC5'!F687 -> 0 | CH66: ='TC5'!G687 -> 0 | CI66: ='TC5'!H687 -> 0 | CJ66: ='TC5'!I687 -> 0 | CL66: =Output!BK66 -> Spare | CM66: ='TC5'!K222 -> 0 | CN66: ='TC5'!L222 -> 0 | CO66: ='TC5'!M222 -> 0 | CP66: ='TC5'!N222 -> 0 | CQ66: ='TC5'!O222 -> 0 | CR66: ='TC5'!P222 -> 0 | CS66: ='TC5'!Q222 -> 0 | CT66: ='TC5'!R222 -> 0 | CU66: ='TC5'!S222 -> 0 | CV66: ='TC5'!T222 -> 0 | CW66: ='TC5'!U222 -> 0 | CX66: ='TC5'!V222 -> 0 | CY66: ='TC5'!W222 -> 0 | CZ66: ='TC5'!X222 -> 0 | DA66: ='TC5'!Y222 -> 0 | DB66: ='TC5'!Z222 -> 0 | DC66: ='TC5'!AA222 -> 0 | DD66: ='TC5'!AB222 -> 0 | DE66: ='TC5'!AC222 -> 0 | DF66: ='TC5'!AD222 -> 0 | DG66: ='TC5'!AE222 -> 0 | DH66: ='TC5'!AF222 -> 0 | DI66: ='TC5'!AG222 -> 0 | DJ66: ='TC5'!AH222 -> 0 | DK66: ='TC5'!AI222 -> 0 | DL66: ='TC5'!AJ222 -> 0 | DM66: ='TC5'!AK222 -> 0 | DN66: ='TC5'!AL222 -> 0 | DO66: ='TC5'!AM222 -> 0 | DP66: ='TC5'!AN222 -> 0 | DQ66: ='TC5'!AO222 -> 0 | DR66: ='TC5'!AP222 -> 0 | DS66: ='TC5'!AQ222 -> 0 | DT66: ='TC5'!AR222 -> 0 | DU66: ='TC5'!AS222 -> 0 | DV66: ='TC5'!AT222 -> 0 | DW66: ='TC5'!AU222 -> 0 | DX66: ='TC5'!AV222 -> 0 | DY66: ='TC5'!AW222 -> 0 | DZ66: ='TC5'!AX222 -> 0 | EA66: ='TC5'!AY222 -> 0 | EB66: ='TC5'!AZ222 -> 0 | EC66: ='TC5'!BA222 -> 0 | ED66: ='TC5'!BB222 -> 0 | EE66: ='TC5'!BC222 -> 0 | EF66: ='TC5'!BD222 -> 0 | EG66: ='TC5'!BE222 -> 0 | EH66: ='TC5'!BF222 -> 0 | EI66: ='TC5'!BG222 -> 0 | EJ66: ='TC5'!BH222 -> 0 | EL66: Spare | EM66: ='TC5'!K530 -> 0 | EN66: ='TC5'!L530 -> 0 | EO66: ='TC5'!M530 -> 0 | EP66: ='TC5'!N530 -> 0 | EQ66: ='TC5'!O530 -> 0 | ER66: ='TC5'!P530 -> 0 | ES66: ='TC5'!Q530 -> 0 | ET66: ='TC5'!R530 -> 0 | EU66: ='TC5'!S530 -> 0 | EV66: ='TC5'!T530 -> 0 | EW66: ='TC5'!U530 -> 0 | EX66: ='TC5'!V530 -> 0 | EY66: ='TC5'!W530 -> 0 | EZ66: ='TC5'!X530 -> 0 | FA66: ='TC5'!Y530 -> 0 | FB66: ='TC5'!Z530 -> 0 | FC66: ='TC5'!AA530 -> 0 | FD66: ='TC5'!AB530 -> 0 | FE66: ='TC5'!AC530 -> 0 | FF66: ='TC5'!AD530 -> 0 | FG66: ='TC5'!AE530 -> 0 | FH66: ='TC5'!AF530 -> 0 | FI66: ='TC5'!AG530 -> 0 | FJ66: ='TC5'!AH530 -> 0 | FK66: ='TC5'!AI530 -> 0 | FL66: ='TC5'!AJ530 -> 0 | FM66: ='TC5'!AK530 -> 0 | FN66: ='TC5'!AL530 -> 0 | FO66: ='TC5'!AM530 -> 0 | FP66: ='TC5'!AN530 -> 0 | FQ66: ='TC5'!AO530 -> 0 | FR66: ='TC5'!AP530 -> 0 | FS66: ='TC5'!AQ530 -> 0 | FT66: ='TC5'!AR530 -> 0 | FU66: ='TC5'!AS530 -> 0 | FV66: ='TC5'!AT530 -> 0 | FW66: ='TC5'!AU530 -> 0 | FX66: ='TC5'!AV530 -> 0 | FY66: ='TC5'!AW530 -> 0 | FZ66: ='TC5'!AX530 -> 0 | GA66: ='TC5'!AY530 -> 0 | GB66: ='TC5'!AZ530 -> 0 | GC66: ='TC5'!BA530 -> 0 | GD66: ='TC5'!BB530 -> 0 | GE66: ='TC5'!BC530 -> 0 | GF66: ='TC5'!BD530 -> 0 | GG66: ='TC5'!BE530 -> 0 | GH66: ='TC5'!BF530 -> 0 | GI66: ='TC5'!BG530 -> 0 | GJ66: ='TC5'!BH530 -> 0
B67: TRUE | C67: 57 | D67: Spare | E67: 0 | F67: 0 | G67: 0 | H67: 0 | I67: 0 | K67: 57 | L67: 0 | M67: 0 | N67: 0 | O67: 0 | P67: 0 | R67: 0 | S67: 0 | T67: 0 | U67: 0 | V67: 0 | X67: Spare | Y67: ='Tariff Smoothing - real'!N67 -> 0 | Z67: ='Tariff Smoothing - real'!O67 -> 0 | AA67: ='Tariff Smoothing - real'!P67 -> 0 | AB67: ='Tariff Smoothing - real'!Q67 -> 0 | AC67: ='Tariff Smoothing - real'!R67 -> 0 | AE67: ='Tariff Smoothing - real'!AE67 -> 0 | AF67: ='Tariff Smoothing - real'!AF67 -> 0 | AG67: ='Tariff Smoothing - real'!AG67 -> 0 | AH67: ='Tariff Smoothing - real'!AH67 -> 0 | AI67: ='Tariff Smoothing - real'!AI67 -> 0 | AK67: 0 | AL67: 0 | AM67: 0 | AN67: 0 | AO67: 0 | AQ67: =Annuity!C80 -> Spare | AR67: ='TC3'!K76+'TC3'!K233 -> 0 | AS67: ='TC3'!L76+'TC3'!L233 -> 0 | AT67: ='TC3'!M76+'TC3'!M233 -> 0 | AU67: ='TC3'!N76+'TC3'!N233 -> 0 | AV67: ='TC3'!O76+'TC3'!O233 -> 0 | AX67: ='TC3'!K391 -> 0 | AY67: ='TC3'!L391 -> 0 | AZ67: ='TC3'!M391 -> 0 | BA67: ='TC3'!N391 -> 0 | BB67: ='TC3'!O391 -> 0 | BD67: 0 | BE67: 0 | BF67: 0 | BG67: 0 | BH67: 0 | BI67: 0 | BK67: Spare | BL67: ='TC4'!L73 -> 0 | BM67: ='TC4'!M73 -> 0 | BN67: ='TC4'!N73 -> 0 | BO67: ='TC4'!O73 -> 0 | BP67: ='TC4'!P73 -> 0 | BR67: 0 | BS67: 0 | BT67: 0 | BU67: 0 | BV67: 0 | BX67: 0 | BY67: 0 | BZ67: 0 | CA67: 0 | CB67: 0 | CC67: 0 | CE67: Spare | CF67: ='TC5'!E688 -> 0 | CG67: ='TC5'!F688 -> 0 | CH67: ='TC5'!G688 -> 0 | CI67: ='TC5'!H688 -> 0 | CJ67: ='TC5'!I688 -> 0 | CL67: =Output!BK67 -> Spare | CM67: ='TC5'!K223 -> 0 | CN67: ='TC5'!L223 -> 0 | CO67: ='TC5'!M223 -> 0 | CP67: ='TC5'!N223 -> 0 | CQ67: ='TC5'!O223 -> 0 | CR67: ='TC5'!P223 -> 0 | CS67: ='TC5'!Q223 -> 0 | CT67: ='TC5'!R223 -> 0 | CU67: ='TC5'!S223 -> 0 | CV67: ='TC5'!T223 -> 0 | CW67: ='TC5'!U223 -> 0 | CX67: ='TC5'!V223 -> 0 | CY67: ='TC5'!W223 -> 0 | CZ67: ='TC5'!X223 -> 0 | DA67: ='TC5'!Y223 -> 0 | DB67: ='TC5'!Z223 -> 0 | DC67: ='TC5'!AA223 -> 0 | DD67: ='TC5'!AB223 -> 0 | DE67: ='TC5'!AC223 -> 0 | DF67: ='TC5'!AD223 -> 0 | DG67: ='TC5'!AE223 -> 0 | DH67: ='TC5'!AF223 -> 0 | DI67: ='TC5'!AG223 -> 0 | DJ67: ='TC5'!AH223 -> 0 | DK67: ='TC5'!AI223 -> 0 | DL67: ='TC5'!AJ223 -> 0 | DM67: ='TC5'!AK223 -> 0 | DN67: ='TC5'!AL223 -> 0 | DO67: ='TC5'!AM223 -> 0 | DP67: ='TC5'!AN223 -> 0 | DQ67: ='TC5'!AO223 -> 0 | DR67: ='TC5'!AP223 -> 0 | DS67: ='TC5'!AQ223 -> 0 | DT67: ='TC5'!AR223 -> 0 | DU67: ='TC5'!AS223 -> 0 | DV67: ='TC5'!AT223 -> 0 | DW67: ='TC5'!AU223 -> 0 | DX67: ='TC5'!AV223 -> 0 | DY67: ='TC5'!AW223 -> 0 | DZ67: ='TC5'!AX223 -> 0 | EA67: ='TC5'!AY223 -> 0 | EB67: ='TC5'!AZ223 -> 0 | EC67: ='TC5'!BA223 -> 0 | ED67: ='TC5'!BB223 -> 0 | EE67: ='TC5'!BC223 -> 0 | EF67: ='TC5'!BD223 -> 0 | EG67: ='TC5'!BE223 -> 0 | EH67: ='TC5'!BF223 -> 0 | EI67: ='TC5'!BG223 -> 0 | EJ67: ='TC5'!BH223 -> 0 | EL67: Spare | EM67: ='TC5'!K531 -> 0 | EN67: ='TC5'!L531 -> 0 | EO67: ='TC5'!M531 -> 0 | EP67: ='TC5'!N531 -> 0 | EQ67: ='TC5'!O531 -> 0 | ER67: ='TC5'!P531 -> 0 | ES67: ='TC5'!Q531 -> 0 | ET67: ='TC5'!R531 -> 0 | EU67: ='TC5'!S531 -> 0 | EV67: ='TC5'!T531 -> 0 | EW67: ='TC5'!U531 -> 0 | EX67: ='TC5'!V531 -> 0 | EY67: ='TC5'!W531 -> 0 | EZ67: ='TC5'!X531 -> 0 | FA67: ='TC5'!Y531 -> 0 | FB67: ='TC5'!Z531 -> 0 | FC67: ='TC5'!AA531 -> 0 | FD67: ='TC5'!AB531 -> 0 | FE67: ='TC5'!AC531 -> 0 | FF67: ='TC5'!AD531 -> 0 | FG67: ='TC5'!AE531 -> 0 | FH67: ='TC5'!AF531 -> 0 | FI67: ='TC5'!AG531 -> 0 | FJ67: ='TC5'!AH531 -> 0 | FK67: ='TC5'!AI531 -> 0 | FL67: ='TC5'!AJ531 -> 0 | FM67: ='TC5'!AK531 -> 0 | FN67: ='TC5'!AL531 -> 0 | FO67: ='TC5'!AM531 -> 0 | FP67: ='TC5'!AN531 -> 0 | FQ67: ='TC5'!AO531 -> 0 | FR67: ='TC5'!AP531 -> 0 | FS67: ='TC5'!AQ531 -> 0 | FT67: ='TC5'!AR531 -> 0 | FU67: ='TC5'!AS531 -> 0 | FV67: ='TC5'!AT531 -> 0 | FW67: ='TC5'!AU531 -> 0 | FX67: ='TC5'!AV531 -> 0 | FY67: ='TC5'!AW531 -> 0 | FZ67: ='TC5'!AX531 -> 0 | GA67: ='TC5'!AY531 -> 0 | GB67: ='TC5'!AZ531 -> 0 | GC67: ='TC5'!BA531 -> 0 | GD67: ='TC5'!BB531 -> 0 | GE67: ='TC5'!BC531 -> 0 | GF67: ='TC5'!BD531 -> 0 | GG67: ='TC5'!BE531 -> 0 | GH67: ='TC5'!BF531 -> 0 | GI67: ='TC5'!BG531 -> 0 | GJ67: ='TC5'!BH531 -> 0
B68: TRUE | C68: 58 | D68: Spare | E68: 0 | F68: 0 | G68: 0 | H68: 0 | I68: 0 | K68: 58 | L68: 0 | M68: 0 | N68: 0 | O68: 0 | P68: 0 | R68: 0 | S68: 0 | T68: 0 | U68: 0 | V68: 0 | X68: Spare | Y68: ='Tariff Smoothing - real'!N68 -> 0 | Z68: ='Tariff Smoothing - real'!O68 -> 0 | AA68: ='Tariff Smoothing - real'!P68 -> 0 | AB68: ='Tariff Smoothing - real'!Q68 -> 0 | AC68: ='Tariff Smoothing - real'!R68 -> 0 | AE68: ='Tariff Smoothing - real'!AE68 -> 0 | AF68: ='Tariff Smoothing - real'!AF68 -> 0 | AG68: ='Tariff Smoothing - real'!AG68 -> 0 | AH68: ='Tariff Smoothing - real'!AH68 -> 0 | AI68: ='Tariff Smoothing - real'!AI68 -> 0 | AK68: 0 | AL68: 0 | AM68: 0 | AN68: 0 | AO68: 0 | AQ68: =Annuity!C81 -> Spare | AR68: ='TC3'!K77+'TC3'!K234 -> 0 | AS68: ='TC3'!L77+'TC3'!L234 -> 0 | AT68: ='TC3'!M77+'TC3'!M234 -> 0 | AU68: ='TC3'!N77+'TC3'!N234 -> 0 | AV68: ='TC3'!O77+'TC3'!O234 -> 0 | AX68: ='TC3'!K392 -> 0 | AY68: ='TC3'!L392 -> 0 | AZ68: ='TC3'!M392 -> 0 | BA68: ='TC3'!N392 -> 0 | BB68: ='TC3'!O392 -> 0 | BD68: 0 | BE68: 0 | BF68: 0 | BG68: 0 | BH68: 0 | BI68: 0 | BK68: Spare | BL68: ='TC4'!L74 -> 0 | BM68: ='TC4'!M74 -> 0 | BN68: ='TC4'!N74 -> 0 | BO68: ='TC4'!O74 -> 0 | BP68: ='TC4'!P74 -> 0 | BR68: 0 | BS68: 0 | BT68: 0 | BU68: 0 | BV68: 0 | BX68: 0 | BY68: 0 | BZ68: 0 | CA68: 0 | CB68: 0 | CC68: 0 | CE68: Spare | CF68: ='TC5'!E689 -> 0 | CG68: ='TC5'!F689 -> 0 | CH68: ='TC5'!G689 -> 0 | CI68: ='TC5'!H689 -> 0 | CJ68: ='TC5'!I689 -> 0 | CL68: =Output!BK68 -> Spare | CM68: ='TC5'!K224 -> 0 | CN68: ='TC5'!L224 -> 0 | CO68: ='TC5'!M224 -> 0 | CP68: ='TC5'!N224 -> 0 | CQ68: ='TC5'!O224 -> 0 | CR68: ='TC5'!P224 -> 0 | CS68: ='TC5'!Q224 -> 0 | CT68: ='TC5'!R224 -> 0 | CU68: ='TC5'!S224 -> 0 | CV68: ='TC5'!T224 -> 0 | CW68: ='TC5'!U224 -> 0 | CX68: ='TC5'!V224 -> 0 | CY68: ='TC5'!W224 -> 0 | CZ68: ='TC5'!X224 -> 0 | DA68: ='TC5'!Y224 -> 0 | DB68: ='TC5'!Z224 -> 0 | DC68: ='TC5'!AA224 -> 0 | DD68: ='TC5'!AB224 -> 0 | DE68: ='TC5'!AC224 -> 0 | DF68: ='TC5'!AD224 -> 0 | DG68: ='TC5'!AE224 -> 0 | DH68: ='TC5'!AF224 -> 0 | DI68: ='TC5'!AG224 -> 0 | DJ68: ='TC5'!AH224 -> 0 | DK68: ='TC5'!AI224 -> 0 | DL68: ='TC5'!AJ224 -> 0 | DM68: ='TC5'!AK224 -> 0 | DN68: ='TC5'!AL224 -> 0 | DO68: ='TC5'!AM224 -> 0 | DP68: ='TC5'!AN224 -> 0 | DQ68: ='TC5'!AO224 -> 0 | DR68: ='TC5'!AP224 -> 0 | DS68: ='TC5'!AQ224 -> 0 | DT68: ='TC5'!AR224 -> 0 | DU68: ='TC5'!AS224 -> 0 | DV68: ='TC5'!AT224 -> 0 | DW68: ='TC5'!AU224 -> 0 | DX68: ='TC5'!AV224 -> 0 | DY68: ='TC5'!AW224 -> 0 | DZ68: ='TC5'!AX224 -> 0 | EA68: ='TC5'!AY224 -> 0 | EB68: ='TC5'!AZ224 -> 0 | EC68: ='TC5'!BA224 -> 0 | ED68: ='TC5'!BB224 -> 0 | EE68: ='TC5'!BC224 -> 0 | EF68: ='TC5'!BD224 -> 0 | EG68: ='TC5'!BE224 -> 0 | EH68: ='TC5'!BF224 -> 0 | EI68: ='TC5'!BG224 -> 0 | EJ68: ='TC5'!BH224 -> 0 | EL68: Spare | EM68: ='TC5'!K532 -> 0 | EN68: ='TC5'!L532 -> 0 | EO68: ='TC5'!M532 -> 0 | EP68: ='TC5'!N532 -> 0 | EQ68: ='TC5'!O532 -> 0 | ER68: ='TC5'!P532 -> 0 | ES68: ='TC5'!Q532 -> 0 | ET68: ='TC5'!R532 -> 0 | EU68: ='TC5'!S532 -> 0 | EV68: ='TC5'!T532 -> 0 | EW68: ='TC5'!U532 -> 0 | EX68: ='TC5'!V532 -> 0 | EY68: ='TC5'!W532 -> 0 | EZ68: ='TC5'!X532 -> 0 | FA68: ='TC5'!Y532 -> 0 | FB68: ='TC5'!Z532 -> 0 | FC68: ='TC5'!AA532 -> 0 | FD68: ='TC5'!AB532 -> 0 | FE68: ='TC5'!AC532 -> 0 | FF68: ='TC5'!AD532 -> 0 | FG68: ='TC5'!AE532 -> 0 | FH68: ='TC5'!AF532 -> 0 | FI68: ='TC5'!AG532 -> 0 | FJ68: ='TC5'!AH532 -> 0 | FK68: ='TC5'!AI532 -> 0 | FL68: ='TC5'!AJ532 -> 0 | FM68: ='TC5'!AK532 -> 0 | FN68: ='TC5'!AL532 -> 0 | FO68: ='TC5'!AM532 -> 0 | FP68: ='TC5'!AN532 -> 0 | FQ68: ='TC5'!AO532 -> 0 | FR68: ='TC5'!AP532 -> 0 | FS68: ='TC5'!AQ532 -> 0 | FT68: ='TC5'!AR532 -> 0 | FU68: ='TC5'!AS532 -> 0 | FV68: ='TC5'!AT532 -> 0 | FW68: ='TC5'!AU532 -> 0 | FX68: ='TC5'!AV532 -> 0 | FY68: ='TC5'!AW532 -> 0 | FZ68: ='TC5'!AX532 -> 0 | GA68: ='TC5'!AY532 -> 0 | GB68: ='TC5'!AZ532 -> 0 | GC68: ='TC5'!BA532 -> 0 | GD68: ='TC5'!BB532 -> 0 | GE68: ='TC5'!BC532 -> 0 | GF68: ='TC5'!BD532 -> 0 | GG68: ='TC5'!BE532 -> 0 | GH68: ='TC5'!BF532 -> 0 | GI68: ='TC5'!BG532 -> 0 | GJ68: ='TC5'!BH532 -> 0
B69: TRUE | C69: 59 | D69: Spare | E69: 0 | F69: 0 | G69: 0 | H69: 0 | I69: 0 | K69: 59 | L69: 0 | M69: 0 | N69: 0 | O69: 0 | P69: 0 | R69: 0 | S69: 0 | T69: 0 | U69: 0 | V69: 0 | X69: Spare | Y69: ='Tariff Smoothing - real'!N69 -> 0 | Z69: ='Tariff Smoothing - real'!O69 -> 0 | AA69: ='Tariff Smoothing - real'!P69 -> 0 | AB69: ='Tariff Smoothing - real'!Q69 -> 0 | AC69: ='Tariff Smoothing - real'!R69 -> 0 | AE69: ='Tariff Smoothing - real'!AE69 -> 0 | AF69: ='Tariff Smoothing - real'!AF69 -> 0 | AG69: ='Tariff Smoothing - real'!AG69 -> 0 | AH69: ='Tariff Smoothing - real'!AH69 -> 0 | AI69: ='Tariff Smoothing - real'!AI69 -> 0 | AK69: 0 | AL69: 0 | AM69: 0 | AN69: 0 | AO69: 0 | AQ69: =Annuity!C82 -> Spare | AR69: ='TC3'!K78+'TC3'!K235 -> 0 | AS69: ='TC3'!L78+'TC3'!L235 -> 0 | AT69: ='TC3'!M78+'TC3'!M235 -> 0 | AU69: ='TC3'!N78+'TC3'!N235 -> 0 | AV69: ='TC3'!O78+'TC3'!O235 -> 0 | AX69: ='TC3'!K393 -> 0 | AY69: ='TC3'!L393 -> 0 | AZ69: ='TC3'!M393 -> 0 | BA69: ='TC3'!N393 -> 0 | BB69: ='TC3'!O393 -> 0 | BD69: 0 | BE69: 0 | BF69: 0 | BG69: 0 | BH69: 0 | BI69: 0 | BK69: Spare | BL69: ='TC4'!L75 -> 0 | BM69: ='TC4'!M75 -> 0 | BN69: ='TC4'!N75 -> 0 | BO69: ='TC4'!O75 -> 0 | BP69: ='TC4'!P75 -> 0 | BR69: 0 | BS69: 0 | BT69: 0 | BU69: 0 | BV69: 0 | BX69: 0 | BY69: 0 | BZ69: 0 | CA69: 0 | CB69: 0 | CC69: 0 | CE69: Spare | CF69: ='TC5'!E690 -> 0 | CG69: ='TC5'!F690 -> 0 | CH69: ='TC5'!G690 -> 0 | CI69: ='TC5'!H690 -> 0 | CJ69: ='TC5'!I690 -> 0 | CL69: =Output!BK69 -> Spare | CM69: ='TC5'!K225 -> 0 | CN69: ='TC5'!L225 -> 0 | CO69: ='TC5'!M225 -> 0 | CP69: ='TC5'!N225 -> 0 | CQ69: ='TC5'!O225 -> 0 | CR69: ='TC5'!P225 -> 0 | CS69: ='TC5'!Q225 -> 0 | CT69: ='TC5'!R225 -> 0 | CU69: ='TC5'!S225 -> 0 | CV69: ='TC5'!T225 -> 0 | CW69: ='TC5'!U225 -> 0 | CX69: ='TC5'!V225 -> 0 | CY69: ='TC5'!W225 -> 0 | CZ69: ='TC5'!X225 -> 0 | DA69: ='TC5'!Y225 -> 0 | DB69: ='TC5'!Z225 -> 0 | DC69: ='TC5'!AA225 -> 0 | DD69: ='TC5'!AB225 -> 0 | DE69: ='TC5'!AC225 -> 0 | DF69: ='TC5'!AD225 -> 0 | DG69: ='TC5'!AE225 -> 0 | DH69: ='TC5'!AF225 -> 0 | DI69: ='TC5'!AG225 -> 0 | DJ69: ='TC5'!AH225 -> 0 | DK69: ='TC5'!AI225 -> 0 | DL69: ='TC5'!AJ225 -> 0 | DM69: ='TC5'!AK225 -> 0 | DN69: ='TC5'!AL225 -> 0 | DO69: ='TC5'!AM225 -> 0 | DP69: ='TC5'!AN225 -> 0 | DQ69: ='TC5'!AO225 -> 0 | DR69: ='TC5'!AP225 -> 0 | DS69: ='TC5'!AQ225 -> 0 | DT69: ='TC5'!AR225 -> 0 | DU69: ='TC5'!AS225 -> 0 | DV69: ='TC5'!AT225 -> 0 | DW69: ='TC5'!AU225 -> 0 | DX69: ='TC5'!AV225 -> 0 | DY69: ='TC5'!AW225 -> 0 | DZ69: ='TC5'!AX225 -> 0 | EA69: ='TC5'!AY225 -> 0 | EB69: ='TC5'!AZ225 -> 0 | EC69: ='TC5'!BA225 -> 0 | ED69: ='TC5'!BB225 -> 0 | EE69: ='TC5'!BC225 -> 0 | EF69: ='TC5'!BD225 -> 0 | EG69: ='TC5'!BE225 -> 0 | EH69: ='TC5'!BF225 -> 0 | EI69: ='TC5'!BG225 -> 0 | EJ69: ='TC5'!BH225 -> 0 | EL69: Spare | EM69: ='TC5'!K533 -> 0 | EN69: ='TC5'!L533 -> 0 | EO69: ='TC5'!M533 -> 0 | EP69: ='TC5'!N533 -> 0 | EQ69: ='TC5'!O533 -> 0 | ER69: ='TC5'!P533 -> 0 | ES69: ='TC5'!Q533 -> 0 | ET69: ='TC5'!R533 -> 0 | EU69: ='TC5'!S533 -> 0 | EV69: ='TC5'!T533 -> 0 | EW69: ='TC5'!U533 -> 0 | EX69: ='TC5'!V533 -> 0 | EY69: ='TC5'!W533 -> 0 | EZ69: ='TC5'!X533 -> 0 | FA69: ='TC5'!Y533 -> 0 | FB69: ='TC5'!Z533 -> 0 | FC69: ='TC5'!AA533 -> 0 | FD69: ='TC5'!AB533 -> 0 | FE69: ='TC5'!AC533 -> 0 | FF69: ='TC5'!AD533 -> 0 | FG69: ='TC5'!AE533 -> 0 | FH69: ='TC5'!AF533 -> 0 | FI69: ='TC5'!AG533 -> 0 | FJ69: ='TC5'!AH533 -> 0 | FK69: ='TC5'!AI533 -> 0 | FL69: ='TC5'!AJ533 -> 0 | FM69: ='TC5'!AK533 -> 0 | FN69: ='TC5'!AL533 -> 0 | FO69: ='TC5'!AM533 -> 0 | FP69: ='TC5'!AN533 -> 0 | FQ69: ='TC5'!AO533 -> 0 | FR69: ='TC5'!AP533 -> 0 | FS69: ='TC5'!AQ533 -> 0 | FT69: ='TC5'!AR533 -> 0 | FU69: ='TC5'!AS533 -> 0 | FV69: ='TC5'!AT533 -> 0 | FW69: ='TC5'!AU533 -> 0 | FX69: ='TC5'!AV533 -> 0 | FY69: ='TC5'!AW533 -> 0 | FZ69: ='TC5'!AX533 -> 0 | GA69: ='TC5'!AY533 -> 0 | GB69: ='TC5'!AZ533 -> 0 | GC69: ='TC5'!BA533 -> 0 | GD69: ='TC5'!BB533 -> 0 | GE69: ='TC5'!BC533 -> 0 | GF69: ='TC5'!BD533 -> 0 | GG69: ='TC5'!BE533 -> 0 | GH69: ='TC5'!BF533 -> 0 | GI69: ='TC5'!BG533 -> 0 | GJ69: ='TC5'!BH533 -> 0
B70: TRUE | C70: 60 | D70: Spare | E70: 0 | F70: 0 | G70: 0 | H70: 0 | I70: 0 | K70: 60 | L70: 0 | M70: 0 | N70: 0 | O70: 0 | P70: 0 | R70: 0 | S70: 0 | T70: 0 | U70: 0 | V70: 0 | X70: Spare | Y70: ='Tariff Smoothing - real'!N70 -> 0 | Z70: ='Tariff Smoothing - real'!O70 -> 0 | AA70: ='Tariff Smoothing - real'!P70 -> 0 | AB70: ='Tariff Smoothing - real'!Q70 -> 0 | AC70: ='Tariff Smoothing - real'!R70 -> 0 | AE70: ='Tariff Smoothing - real'!AE70 -> 0 | AF70: ='Tariff Smoothing - real'!AF70 -> 0 | AG70: ='Tariff Smoothing - real'!AG70 -> 0 | AH70: ='Tariff Smoothing - real'!AH70 -> 0 | AI70: ='Tariff Smoothing - real'!AI70 -> 0 | AK70: 0 | AL70: 0 | AM70: 0 | AN70: 0 | AO70: 0 | AQ70: =Annuity!C83 -> Spare | AR70: ='TC3'!K79+'TC3'!K236 -> 0 | AS70: ='TC3'!L79+'TC3'!L236 -> 0 | AT70: ='TC3'!M79+'TC3'!M236 -> 0 | AU70: ='TC3'!N79+'TC3'!N236 -> 0 | AV70: ='TC3'!O79+'TC3'!O236 -> 0 | AX70: ='TC3'!K394 -> 0 | AY70: ='TC3'!L394 -> 0 | AZ70: ='TC3'!M394 -> 0 | BA70: ='TC3'!N394 -> 0 | BB70: ='TC3'!O394 -> 0 | BD70: 0 | BE70: 0 | BF70: 0 | BG70: 0 | BH70: 0 | BI70: 0 | BK70: Spare | BL70: ='TC4'!L76 -> 0 | BM70: ='TC4'!M76 -> 0 | BN70: ='TC4'!N76 -> 0 | BO70: ='TC4'!O76 -> 0 | BP70: ='TC4'!P76 -> 0 | BR70: 0 | BS70: 0 | BT70: 0 | BU70: 0 | BV70: 0 | BX70: 0 | BY70: 0 | BZ70: 0 | CA70: 0 | CB70: 0 | CC70: 0 | CE70: Spare | CF70: ='TC5'!E691 -> 0 | CG70: ='TC5'!F691 -> 0 | CH70: ='TC5'!G691 -> 0 | CI70: ='TC5'!H691 -> 0 | CJ70: ='TC5'!I691 -> 0 | CL70: =Output!BK70 -> Spare | CM70: ='TC5'!K226 -> 0 | CN70: ='TC5'!L226 -> 0 | CO70: ='TC5'!M226 -> 0 | CP70: ='TC5'!N226 -> 0 | CQ70: ='TC5'!O226 -> 0 | CR70: ='TC5'!P226 -> 0 | CS70: ='TC5'!Q226 -> 0 | CT70: ='TC5'!R226 -> 0 | CU70: ='TC5'!S226 -> 0 | CV70: ='TC5'!T226 -> 0 | CW70: ='TC5'!U226 -> 0 | CX70: ='TC5'!V226 -> 0 | CY70: ='TC5'!W226 -> 0 | CZ70: ='TC5'!X226 -> 0 | DA70: ='TC5'!Y226 -> 0 | DB70: ='TC5'!Z226 -> 0 | DC70: ='TC5'!AA226 -> 0 | DD70: ='TC5'!AB226 -> 0 | DE70: ='TC5'!AC226 -> 0 | DF70: ='TC5'!AD226 -> 0 | DG70: ='TC5'!AE226 -> 0 | DH70: ='TC5'!AF226 -> 0 | DI70: ='TC5'!AG226 -> 0 | DJ70: ='TC5'!AH226 -> 0 | DK70: ='TC5'!AI226 -> 0 | DL70: ='TC5'!AJ226 -> 0 | DM70: ='TC5'!AK226 -> 0 | DN70: ='TC5'!AL226 -> 0 | DO70: ='TC5'!AM226 -> 0 | DP70: ='TC5'!AN226 -> 0 | DQ70: ='TC5'!AO226 -> 0 | DR70: ='TC5'!AP226 -> 0 | DS70: ='TC5'!AQ226 -> 0 | DT70: ='TC5'!AR226 -> 0 | DU70: ='TC5'!AS226 -> 0 | DV70: ='TC5'!AT226 -> 0 | DW70: ='TC5'!AU226 -> 0 | DX70: ='TC5'!AV226 -> 0 | DY70: ='TC5'!AW226 -> 0 | DZ70: ='TC5'!AX226 -> 0 | EA70: ='TC5'!AY226 -> 0 | EB70: ='TC5'!AZ226 -> 0 | EC70: ='TC5'!BA226 -> 0 | ED70: ='TC5'!BB226 -> 0 | EE70: ='TC5'!BC226 -> 0 | EF70: ='TC5'!BD226 -> 0 | EG70: ='TC5'!BE226 -> 0 | EH70: ='TC5'!BF226 -> 0 | EI70: ='TC5'!BG226 -> 0 | EJ70: ='TC5'!BH226 -> 0 | EL70: Spare | EM70: ='TC5'!K534 -> 0 | EN70: ='TC5'!L534 -> 0 | EO70: ='TC5'!M534 -> 0 | EP70: ='TC5'!N534 -> 0 | EQ70: ='TC5'!O534 -> 0 | ER70: ='TC5'!P534 -> 0 | ES70: ='TC5'!Q534 -> 0 | ET70: ='TC5'!R534 -> 0 | EU70: ='TC5'!S534 -> 0 | EV70: ='TC5'!T534 -> 0 | EW70: ='TC5'!U534 -> 0 | EX70: ='TC5'!V534 -> 0 | EY70: ='TC5'!W534 -> 0 | EZ70: ='TC5'!X534 -> 0 | FA70: ='TC5'!Y534 -> 0 | FB70: ='TC5'!Z534 -> 0 | FC70: ='TC5'!AA534 -> 0 | FD70: ='TC5'!AB534 -> 0 | FE70: ='TC5'!AC534 -> 0 | FF70: ='TC5'!AD534 -> 0 | FG70: ='TC5'!AE534 -> 0 | FH70: ='TC5'!AF534 -> 0 | FI70: ='TC5'!AG534 -> 0 | FJ70: ='TC5'!AH534 -> 0 | FK70: ='TC5'!AI534 -> 0 | FL70: ='TC5'!AJ534 -> 0 | FM70: ='TC5'!AK534 -> 0 | FN70: ='TC5'!AL534 -> 0 | FO70: ='TC5'!AM534 -> 0 | FP70: ='TC5'!AN534 -> 0 | FQ70: ='TC5'!AO534 -> 0 | FR70: ='TC5'!AP534 -> 0 | FS70: ='TC5'!AQ534 -> 0 | FT70: ='TC5'!AR534 -> 0 | FU70: ='TC5'!AS534 -> 0 | FV70: ='TC5'!AT534 -> 0 | FW70: ='TC5'!AU534 -> 0 | FX70: ='TC5'!AV534 -> 0 | FY70: ='TC5'!AW534 -> 0 | FZ70: ='TC5'!AX534 -> 0 | GA70: ='TC5'!AY534 -> 0 | GB70: ='TC5'!AZ534 -> 0 | GC70: ='TC5'!BA534 -> 0 | GD70: ='TC5'!BB534 -> 0 | GE70: ='TC5'!BC534 -> 0 | GF70: ='TC5'!BD534 -> 0 | GG70: ='TC5'!BE534 -> 0 | GH70: ='TC5'!BF534 -> 0 | GI70: ='TC5'!BG534 -> 0 | GJ70: ='TC5'!BH534 -> 0
